Workbook

Sheet Smolt Calculator

Sheet Instructions
B2: Steps | C2: Enter data only in yellow cells on Input-Output Panel | D2: Navigate
B3: 1 | C3: Enter Temperature profile for two scenarios: "Current" and "Alternative" as a monthly range. Daily temperature is drawn at random within this range | D3: Temp
B4: 2 | C4: Enter start date for the "model year". Fish growth is calculated daily for 13 months after the start date. | D4: Start
B5: 3 | C5: Enter three spawning dates. They are labeled "Early", "Peak", and "Late" in I/O table. | D5: Spawn
B6: 4 | C6: Enter the temperature-days (in °C) required for 50% emergence to estimate emergence date. | D6: Emerge
C7: Size at emergence as a function of mean daily temperature is based on Table 3 in Heming (1982), assuming a normal probability distribution.
C8: Daily size of fry as a function of temperature is based on Perry et at (2015). Parameter values are randomized according to the reported standard errors to capture uncertainty.
B9: 5 | C9: Enter food availability as % of saturation feed | D9: Food
C10: In order to account for food consumption, the Optimal growth temperature parameter (TM) in Perry et al was adjusted based on Brett et al (1982).
B11: 6 | C11: Click F9 to see effects of variability and parameter uncertainty

Sheet IO Panel
L1: Enter Data in Yellow Cells For Alternatives | R1: Do Not Enter Data In Green Cells
N2: Fahrenheit | T2: Celsius
L3: WFOP | O3: ODFW Proposed | R3: =+L3 -> WFOP | U3: =+O3 -> ODFW Proposed
L4: Max | M4: Min | O4: Max | P4: Min | R4: Max | S4: Min | U4: Max | V4: Min
K5: January | L5: 40.1 | M5: 40.1 | N5: January | O5: 42 | P5: 38 | Q5: January | R5: =+(L5-32)*0.5556 -> 4.50036 | S5: =+(M5-32)*0.5556 -> 4.50036 | T5: January | U5: =+(O5-32)*0.5556 -> 5.556 | V5: =+(P5-32)*0.5556 -> 3.3336
K6: February | L6: 42.1 | M6: 41 | N6: February | O6: 42 | P6: 38 | Q6: February | R6: =+(L6-32)*0.5556 -> 5.61156 | S6: 5.0004 | T6: February | U6: =+(O6-32)*0.5556 -> 5.556 | V6: 3.3336
K7: March | L7: 42.1 | M7: 41 | N7: March | O7: 44 | P7: 42 | Q7: March | R7: 5.61156 | S7: 5.0004 | T7: March | U7: 6.6672 | V7: 5.556
K8: April | L8: 45.1 | M8: 43.2 | N8: April | O8: 46 | P8: 42 | Q8: April | R8: 7.27836 | S8: 6.22272 | T8: April | U8: 7.7784 | V8: 5.556
K9: May | L9: 49.1 | M9: 46 | N9: May | O9: 50 | P9: 46 | Q9: May | R9: 9.50076 | S9: 7.7784 | T9: May | U9: 10.0008 | V9: 7.7784
K10: June | L10: 56.1 | M10: 51.1 | N10: June | O10: 54 | P10: 48 | Q10: June | R10: 13.38996 | S10: 10.61196 | T10: June | U10: 12.2232 | V10: 8.8896
K11: July | L11: 61.2 | M11: 54.1 | N11: July | O11: 54 | P11: 48 | Q11: July | R11: 16.22352 | S11: 12.27876 | T11: July | U11: 12.2232 | V11: 8.8896
K12: August | L12: 60.3 | M12: 54.1 | N12: August | O12: 54 | P12: 48 | Q12: August | R12: 15.72348 | S12: 12.27876 | T12: August | U12: 12.2232 | V12: 8.8896
K13: September | L13: 56.1 | M13: 52.3 | N13: September | O13: 54 | P13: 48 | Q13: September | R13: 13.38996 | S13: 11.27868 | T13: September | U13: 12.2232 | V13: 8.8896
K14: October | L14: 50 | M14: 50 | N14: October | O14: 52 | P14: 46 | Q14: October | R14: 10.0008 | S14: 10.0008 | T14: October | U14: 11.112 | V14: 7.7784
K15: November | L15: 50 | M15: 50 | N15: November | O15: 46 | P15: 42 | Q15: November | R15: 10.0008 | S15: 10.0008 | T15: November | U15: 7.7784 | V15: 5.556
K16: December | L16: 45 | M16: 41 | N16: December | O16: 46 | P16: 41 | Q16: December | R16: 7.2228 | S16: 5.0004 | T16: December | U16: 7.7784 | V16: 5.0004
K17: Accumulated Temp Units (ATU) | L17: 1750 | Q17: ATU | R17: 954.5208
L18: FOOD (% Saturation) | M18: 0.6
B22: Press F9 to see effect of parameter uncertainty and random variation in temperature within the specified ranges.
C23: Start of model year | E23: 2017-09-15
H24: Smolt Size in grams on | M24: Enter Food Saturation Value - 100% implies no food limitation
C25: Spawning Dates | E25: Emergence Dates | H25: 2017-09-01 | J25: Difference | M25: (For most river systems food saturation is set at 60%)
E26: =+L3 -> WFOP | F26: =+O3 -> ODFW Proposed | H26: =+L3 -> WFOP | I26: =+O3 -> ODFW Proposed
B27: Early | C27: 2017-09-10 | E27: =IF(C27>0,Calculations!AE5," ") -> 2017-12-27 | F27: =IF(C27>0,Calculations!AF5," ") -> 2018-01-25 | H27: =IF(C27>0,VLOOKUP($H$25+365,Calculations!$C$9:$O$700,5,FALSE)," ") -> 16.7322183 | I27: =IF(C27>0,VLOOKUP($H$25+365,Calculations!$C$9:$O$700,11)," ") -> 12.6084866 | J27: =(+H27-I27)/I27 -> 0.3270600065
B28: Peak | C28: 2017-10-03 | E28: =IF(C28>0,Calculations!AE7," ") -> 2018-02-10 | F28: =IF(C28>0,Calculations!AF7," ") -> 2018-03-06 | H28: =IF(C28>0,VLOOKUP($H$25+365,Calculations!$C$9:$O$700,6)," ") -> 14.60461371 | I28: =IF(C28>0,VLOOKUP($H$25+365,Calculations!$C$9:$O$700,12)," ") -> 11.1266362 | J28: =(+H28-I28)/I28 -> 0.3125812196
B29: Late | C29: 2017-11-05 | E29: =IF(C29>0,Calculations!AE9," ") -> 2018-04-10 | F29: =IF(C29>0,Calculations!AF9," ") -> 2018-04-22 | H29: =IF(C29>0,VLOOKUP($H$25+365,Calculations!$C$9:$O$700,7)," ") -> 11.31114916 | I29: =IF(C29>0,VLOOKUP($H$25+365,Calculations!$C$9:$O$700,13)," ") -> 8.333735884 | J29: =(+H29-I29)/I29 -> 0.3572723342
E30: Temperature Units (Celsius) for Emergence | F30: 955
H37: Do not enter data in green cells

Sheet Calculations
C1: Calculate Fish Size (grams) by week for two different temperature regimes | AB1: Calculate Emergence Date from TUs and Spawning Date | BJ1: Convert to daily temps, randomize within range
BI2: Day | BJ2: Week | BM2: Current | BN2: Alternative
AD3: =AK5 -> TUs for WFOP | AF3: =AR5 -> TUs for Proposed Temperature Regime | BB3: Lookup Tables | BI3: =100*MONTH(BK3)+DAY(BK3) -> 101 | BJ3: =MONTH(BK3) -> 1 | BK3: 2017-01-01 | BL3: =WEEKNUM(BK3) -> 1 | BM3: =RANDBETWEEN(VLOOKUP(BJ3,Calculations!$BB$6:$BE$17,4,FALSE)*100,VLOOKUP(BJ3,Calculations!$BB$6:$BE$17,3,FALSE)*100)/100 -> 40.1 | BN3: =RANDBETWEEN(VLOOKUP(BJ3,Calculations!$BB$6:$BH$17,7,FALSE)*100,VLOOKUP(BJ3,Calculations!$BB$6:$BH$17,6,FALSE)*100)/100 -> 39.46
AC4: Early Spawning Date | AD4: Spawning Date | AE4: Emergence | BD4: ='IO Panel'!L3 -> WFOP | BG4: ='IO Panel'!O3 -> ODFW Proposed | BI4: 102 | BJ4: 1 | BK4: =BK3+Calculations!$C$6 -> 2017-01-02 | BL4: 1 | BM4: =RANDBETWEEN(VLOOKUP(BJ4,Calculations!$BB$6:$BE$17,4,FALSE)*100,VLOOKUP(BJ4,Calculations!$BB$6:$BE$17,3,FALSE)*100)/100 -> 40.1 | BN4: =RANDBETWEEN(VLOOKUP(BJ4,Calculations!$BB$6:$BH$17,7,FALSE)*100,VLOOKUP(BJ4,Calculations!$BB$6:$BH$17,6,FALSE)*100)/100 -> 38.69
AC5: Emergence date | AD5: ='IO Panel'!C27 -> 2017-09-10 | AE5: =IF(AD5=0,0,MAX(AL9:AL500)) -> 2017-12-27 | AF5: =IF(AD5=0,0,MAX(AS9:AS5001)) -> 2018-01-25 | AK5: =CONCATENATE("TUs for ",'IO Panel'!L3) -> TUs for WFOP | AR5: TUs for Proposed Temperature Regime | BD5: Max | BE5: Min | BG5: Max | BH5: Min | BI5: 103 | BJ5: 1 | BK5: =BK4+Calculations!$C$6 -> 2017-01-03 | BL5: 1 | BM5: =RANDBETWEEN(VLOOKUP(BJ5,Calculations!$BB$6:$BE$17,4,FALSE)*100,VLOOKUP(BJ5,Calculations!$BB$6:$BE$17,3,FALSE)*100)/100 -> 40.1 | BN5: =RANDBETWEEN(VLOOKUP(BJ5,Calculations!$BB$6:$BH$17,7,FALSE)*100,VLOOKUP(BJ5,Calculations!$BB$6:$BH$17,6,FALSE)*100)/100 -> 40.39
C6: 1 | AC6: Peak Spawning Date | BB6: =MONTH(BC6) -> 1 | BC6: 2017-01-01 | BD6: ='IO Panel'!L5 -> 40.1 | BE6: ='IO Panel'!M5 -> 40.1 | BG6: ='IO Panel'!O5 -> 42 | BH6: ='IO Panel'!P5 -> 38 | BI6: 104 | BJ6: 1 | BK6: =BK5+Calculations!$C$6 -> 2017-01-04 | BL6: 1 | BM6: =RANDBETWEEN(VLOOKUP(BJ6,Calculations!$BB$6:$BE$17,4,FALSE)*100,VLOOKUP(BJ6,Calculations!$BB$6:$BE$17,3,FALSE)*100)/100 -> 40.1 | BN6: =RANDBETWEEN(VLOOKUP(BJ6,Calculations!$BB$6:$BH$17,7,FALSE)*100,VLOOKUP(BJ6,Calculations!$BB$6:$BH$17,6,FALSE)*100)/100 -> 38.73
D7: Current | J7: =Calculations!BG4 -> ODFW Proposed | AC7: Emergence date | AD7: ='IO Panel'!C28 -> 2017-10-03 | AE7: =IF(AD7=0,0,MAX(AN9:AN5001)) -> 2018-02-10 | AF7: =IF(AD7=0,0,MAX(AU9:AU500)) -> 2018-03-06 | BB7: 2 | BC7: 2017-02-01 | BD7: ='IO Panel'!L6 -> 42.1 | BE7: ='IO Panel'!M6 -> 41 | BG7: ='IO Panel'!O6 -> 42 | BH7: ='IO Panel'!P6 -> 38 | BI7: 105 | BJ7: 1 | BK7: =BK6+Calculations!$C$6 -> 2017-01-05 | BL7: 1 | BM7: =RANDBETWEEN(VLOOKUP(BJ7,Calculations!$BB$6:$BE$17,4,FALSE)*100,VLOOKUP(BJ7,Calculations!$BB$6:$BE$17,3,FALSE)*100)/100 -> 40.1 | BN7: =RANDBETWEEN(VLOOKUP(BJ7,Calculations!$BB$6:$BH$17,7,FALSE)*100,VLOOKUP(BJ7,Calculations!$BB$6:$BH$17,6,FALSE)*100)/100 -> 39.78
C8: Date | D8: Temp °F | E8: Temp °C | F8: Omega | G8: Early | H8: Peak Spawning | I8: Late | J8: Temp °F | K8: Temp °C | L8: Omega | M8: Early | N8: Peak Spawning | O8: Late | AC8: Late Spawning date | AH8: Spawn time | AI8: Week | AJ8: Temp | AK8: Early Spawning | AM8: Peak Spawning | AO8: Late Spawning | AQ8: Temp | AR8: Early Spawning | AT8: Peak Spawning | AV8: Late Spawning | BB8: 3 | BC8: 2017-03-01 | BD8: ='IO Panel'!L7 -> 42.1 | BE8: ='IO Panel'!M7 -> 41 | BG8: ='IO Panel'!O7 -> 44 | BH8: ='IO Panel'!P7 -> 42 | BI8: 106 | BJ8: 1 | BK8: =BK7+Calculations!$C$6 -> 2017-01-06 | BL8: 1 | BM8: =RANDBETWEEN(VLOOKUP(BJ8,Calculations!$BB$6:$BE$17,4,FALSE)*100,VLOOKUP(BJ8,Calculations!$BB$6:$BE$17,3,FALSE)*100)/100 -> 40.1 | BN8: =RANDBETWEEN(VLOOKUP(BJ8,Calculations!$BB$6:$BH$17,7,FALSE)*100,VLOOKUP(BJ8,Calculations!$BB$6:$BH$17,6,FALSE)*100)/100 -> 38.79
A9: =MONTH(C9)*100+DAY(C9) -> 915 | B9: =WEEKNUM(C9) -> 37 | C9: ='IO Panel'!E23 -> 2017-09-15 | D9: =IF($C$6=7,VLOOKUP($B9,Calculations!$BL$3:$BM$55,2,FALSE),VLOOKUP($A9,Calculations!$BI$3:$BN$400,5,FALSE)) -> 54.5 | E9: =(D9-32)*5/9 -> 12.5 | F9: =MAX(0,'Perry et al-2015'!$K$11*(E9-'Perry et al-2015'!$K$13)*(1-EXP('Perry et al-2015'!$K$12*(E9-'Perry et al-2015'!$K$15)))) -> 3.524940557 | G9: =IF($C9<$AE$5,0,IF($C8<$AE$5,VLOOKUP(ROUND(MIN('Heming-1982'!$C$4,MAX('Heming-1982'!$C$3,$E9)),0),'Heming-1982'!$C$6:$D$9,2),($G8^'Perry et al-2015'!$K$10+$F9*'Perry et al-2015'!$K$10*$C$6/100)^(1/'Perry et al-2015'!$K$10))) -> 0 | H9: =IF($C9<$AE$7,0,IF($C8<$AE$7,VLOOKUP(ROUND(MIN('Heming-1982'!$C$4,MAX('Heming-1982'!$C$3,$E9)),0),'Heming-1982'!$C$6:$D$9,2),($H8^'Perry et al-2015'!$K$10+$F9*'Perry et al-2015'!$K$10*$C$6/100)^(1/'Perry et al-2015'!$K$10))) -> 0 | I9: =IF($C9<$AE$9,0,IF($C8<$AE$9,VLOOKUP(ROUND(MIN('Heming-1982'!$C$4,MAX('Heming-1982'!$C$3,Calculations!$E9)),0),'Heming-1982'!$C$6:$D$9,2),($I8^'Perry et al-2015'!$K$10+$F9*'Perry et al-2015'!$K$10*$C$6/100)^(1/'Perry et al-2015'!$K$10))) -> 0 | J9: =IF($C$6=7,VLOOKUP($B9,Calculations!$BL$3:$BM$55,2,FALSE),VLOOKUP($A9,Calculations!$BI$3:$BN$400,6,FALSE)) -> 48.16 | K9: =(J9-32)*5/9 -> 8.977777778 | L9: =MAX(0,'Perry et al-2015'!$K$11*(K9-'Perry et al-2015'!$K$13)*(1-EXP('Perry et al-2015'!$K$12*(K9-'Perry et al-2015'!$K$15)))) -> 2.490890226 | M9: =IF($C9<$AF$5,0,IF($C8<$AF$5,VLOOKUP(ROUND(MIN('Heming-1982'!$C$4,MAX('Heming-1982'!$C$3,$K9)),0),'Heming-1982'!$C$6:$D$9,2),(M8^'Perry et al-2015'!$K$10+$L9*'Perry et al-2015'!$K$10*$C$6/100)^(1/'Perry et al-2015'!$K$10))) -> 0 | N9: =IF($C9<$AF$7,0,IF($C8<$AF$7,VLOOKUP(ROUND(MIN('Heming-1982'!$C$4,MAX('Heming-1982'!$C$3,$K9)),0),'Heming-1982'!$C$6:$D$9,2),(N8^'Perry et al-2015'!$K$10+$L9*'Perry et al-2015'!$K$10*$C$6/100)^(1/'Perry et al-2015'!$K$10))) -> 0 | O9: =IF($C9<$AF$9,0,IF($C8<$AF$9,VLOOKUP(ROUND(MIN('Heming-1982'!$C$4,MAX('Heming-1982'!$C$3,$K9)),0),'Heming-1982'!$C$6:$D$9,2),(O8^'Perry et al-2015'!$K$10+$L9*'Perry et al-2015'!$K$10*$C$6/100)^(1/'Perry et al-2015'!$K$10))) -> 0 | AC9: Emergence date | AD9: ='IO Panel'!C29 -> 2017-11-05 | AE9: =IF(AD9=0,0,MAX(AP9:AP5001)) -> 2018-04-10 | AF9: =IF(AD9=0,0,MAX(AW9:AW5001)) -> 2018-04-22 | AH9: =C9 -> 2017-09-15 | AI9: =WEEKNUM(AH9) -> 37 | AJ9: =E9 -> 12.5 | AK9: 0 | AL9: =IF(AK9>=$AD$11,IF(AK8<$AD$11,1,0),0)*$AH9 -> 00:00:00 | AM9: 0 | AN9: =IF(AM9>=$AD$11,IF(AM8<$AD$11,1,0),0)*$AH9 -> 00:00:00 | AO9: 0 | AP9: =IF(AO9>=$AD$11,IF(AO8<$AD$11,1,0),0)*AH9 -> 00:00:00 | AQ9: =K9 -> 8.977777778 | AR9: 0 | AS9: =IF(AR9>=$AD$11,IF(AR8<$AD$11,1,0),0)*$AH9 -> 00:00:00 | AT9: 0 | AU9: =IF(AT9>=$AD$11,IF(AT8<$AD$11,1,0),0)*$AH9 -> 00:00:00 | AV9: 0 | AW9: =IF(AV9>=$AD$11,IF(AV8<$AD$11,1,0),0)*AH9 -> 00:00:00 | BB9: 4 | BC9: 2017-04-01 | BD9: ='IO Panel'!L8 -> 45.1 | BE9: ='IO Panel'!M8 -> 43.2 | BG9: ='IO Panel'!O8 -> 46 | BH9: ='IO Panel'!P8 -> 42 | BI9: 107 | BJ9: 1 | BK9: =BK8+Calculations!$C$6 -> 2017-01-07 | BL9: 1 | BM9: =RANDBETWEEN(VLOOKUP(BJ9,Calculations!$BB$6:$BE$17,4,FALSE)*100,VLOOKUP(BJ9,Calculations!$BB$6:$BE$17,3,FALSE)*100)/100 -> 40.1 | BN9: =RANDBETWEEN(VLOOKUP(BJ9,Calculations!$BB$6:$BH$17,7,FALSE)*100,VLOOKUP(BJ9,Calculations!$BB$6:$BH$17,6,FALSE)*100)/100 -> 41.88
A10: 916 | B10: 37 | C10: =C9+$C$6 -> 2017-09-16 | D10: =IF($C$6=7,VLOOKUP(B10,Calculations!$BL$3:$BM$55,2,FALSE),VLOOKUP($A10,Calculations!$BI$3:$BN$400,5,FALSE)) -> 53.85 | E10: 12.13888889 | F10: =MAX(0,'Perry et al-2015'!$K$11*(E10-'Perry et al-2015'!$K$13)*(1-EXP('Perry et al-2015'!$K$12*(E10-'Perry et al-2015'!$K$15)))) -> 3.444709372 | G10: =IF($C10<$AE$5,0,IF($C9<$AE$5,VLOOKUP(ROUND(MIN('Heming-1982'!$C$4,MAX('Heming-1982'!$C$3,$E10)),0),'Heming-1982'!$C$6:$D$9,2),($G9^'Perry et al-2015'!$K$10+$F10*'Perry et al-2015'!$K$10*$C$6/100)^(1/'Perry et al-2015'!$K$10))) -> 0 | H10: =IF($C10<$AE$7,0,IF($C9<$AE$7,VLOOKUP(ROUND(MIN('Heming-1982'!$C$4,MAX('Heming-1982'!$C$3,$E10)),0),'Heming-1982'!$C$6:$D$9,2),($H9^'Perry et al-2015'!$K$10+$F10*'Perry et al-2015'!$K$10*$C$6/100)^(1/'Perry et al-2015'!$K$10))) -> 0 | I10: =IF($C10<$AE$9,0,IF($C9<$AE$9,VLOOKUP(ROUND(MIN('Heming-1982'!$C$4,MAX('Heming-1982'!$C$3,Calculations!$E10)),0),'Heming-1982'!$C$6:$D$9,2),($I9^'Perry et al-2015'!$K$10+$F10*'Perry et al-2015'!$K$10*$C$6/100)^(1/'Perry et al-2015'!$K$10))) -> 0 | J10: =IF($C$6=7,VLOOKUP($B10,Calculations!$BL$3:$BM$55,2,FALSE),VLOOKUP($A10,Calculations!$BI$3:$BN$400,6,FALSE)) -> 48.48 | K10: 9.155555556 | L10: =MAX(0,'Perry et al-2015'!$K$11*(K10-'Perry et al-2015'!$K$13)*(1-EXP('Perry et al-2015'!$K$12*(K10-'Perry et al-2015'!$K$15)))) -> 2.552914815 | M10: =IF($C10<$AF$5,0,IF($C9<$AF$5,VLOOKUP(ROUND(MIN('Heming-1982'!$C$4,MAX('Heming-1982'!$C$3,$K10)),0),'Heming-1982'!$C$6:$D$9,2),(M9^'Perry et al-2015'!$K$10+$L10*'Perry et al-2015'!$K$10*$C$6/100)^(1/'Perry et al-2015'!$K$10))) -> 0 | N10: =IF($C10<$AF$7,0,IF($C9<$AF$7,VLOOKUP(ROUND(MIN('Heming-1982'!$C$4,MAX('Heming-1982'!$C$3,$K10)),0),'Heming-1982'!$C$6:$D$9,2),(N9^'Perry et al-2015'!$K$10+$L10*'Perry et al-2015'!$K$10*$C$6/100)^(1/'Perry et al-2015'!$K$10))) -> 0 | O10: =IF($C10<$AF$9,0,IF($C9<$AF$9,VLOOKUP(ROUND(MIN('Heming-1982'!$C$4,MAX('Heming-1982'!$C$3,$K10)),0),'Heming-1982'!$C$6:$D$9,2),(O9^'Perry et al-2015'!$K$10+$L10*'Perry et al-2015'!$K$10*$C$6/100)^(1/'Perry et al-2015'!$K$10))) -> 0 | AH10: =AH9+$C$6 -> 2017-09-16 | AI10: =WEEKNUM(AH10) -> 37 | AJ10: 12.13888889 | AK10: =IF($AH9>=$AD$5,($AH10-$AH9)*AJ10+AK9,0) -> 12.13888889 | AL10: 00:00:00 | AM10: =IF($AH9>=$AD$7,($AH10-$AH9)*AJ10+AM9,0) -> 0 | AN10: 00:00:00 | AO10: =IF($AH9>=$AD$9,($AH10-$AH9)*AJ10+AO9,0) -> 0 | AP10: 00:00:00 | AQ10: 9.155555556 | AR10: =IF($AH9>=$AD$5,($AH10-$AH9)*AQ10+AR9,0) -> 9.155555556 | AS10: =IF(AR10>=$AD$11,IF(AR9<$AD$11,1,0),0)*$AH10 -> 00:00:00 | AT10: =IF($AH9>=$AD$7,($AH10-$AH9)*AQ10+AT9,0) -> 0 | AU10: =IF(AT10>=$AD$11,IF(AT9<$AD$11,1,0),0)*$AH10 -> 00:00:00 | AV10: =IF($AH9>=$AD$9,($AH10-$AH9)*AQ10+AV9,0) -> 0 | AW10: 00:00:00 | BB10: 5 | BC10: 2017-05-01 | BD10: ='IO Panel'!L9 -> 49.1 | BE10: ='IO Panel'!M9 -> 46 | BG10: ='IO Panel'!O9 -> 50 | BH10: ='IO Panel'!P9 -> 46 | BI10: 108 | BJ10: 1 | BK10: =BK9+Calculations!$C$6 -> 2017-01-08 | BL10: 2 | BM10: =RANDBETWEEN(VLOOKUP(BJ10,Calculations!$BB$6:$BE$17,4,FALSE)*100,VLOOKUP(BJ10,Calculations!$BB$6:$BE$17,3,FALSE)*100)/100 -> 40.1 | BN10: =RANDBETWEEN(VLOOKUP(BJ10,Calculations!$BB$6:$BH$17,7,FALSE)*100,VLOOKUP(BJ10,Calculations!$BB$6:$BH$17,6,FALSE)*100)/100 -> 39.98
A11: 917 | B11: 38 | C11: 2017-09-17 | D11: =IF($C$6=7,VLOOKUP(B11,Calculations!$BL$3:$BM$55,2,FALSE),VLOOKUP($A11,Calculations!$BI$3:$BN$400,5,FALSE)) -> 52.95 | E11: 11.63888889 | F11: =MAX(0,'Perry et al-2015'!$K$11*(E11-'Perry et al-2015'!$K$13)*(1-EXP('Perry et al-2015'!$K$12*(E11-'Perry et al-2015'!$K$15)))) -> 3.321108569 | G11: =IF($C11<$AE$5,0,IF($C10<$AE$5,VLOOKUP(ROUND(MIN('Heming-1982'!$C$4,MAX('Heming-1982'!$C$3,$E11)),0),'Heming-1982'!$C$6:$D$9,2),($G10^'Perry et al-2015'!$K$10+$F11*'Perry et al-2015'!$K$10*$C$6/100)^(1/'Perry et al-2015'!$K$10))) -> 0 | H11: =IF($C11<$AE$7,0,IF($C10<$AE$7,VLOOKUP(ROUND(MIN('Heming-1982'!$C$4,MAX('Heming-1982'!$C$3,$E11)),0),'Heming-1982'!$C$6:$D$9,2),($H10^'Perry et al-2015'!$K$10+$F11*'Perry et al-2015'!$K$10*$C$6/100)^(1/'Perry et al-2015'!$K$10))) -> 0 | I11: =IF($C11<$AE$9,0,IF($C10<$AE$9,VLOOKUP(ROUND(MIN('Heming-1982'!$C$4,MAX('Heming-1982'!$C$3,Calculations!$E11)),0),'Heming-1982'!$C$6:$D$9,2),($I10^'Perry et al-2015'!$K$10+$F11*'Perry et al-2015'!$K$10*$C$6/100)^(1/'Perry et al-2015'!$K$10))) -> 0 | J11: =IF($C$6=7,VLOOKUP($B11,Calculations!$BL$3:$BM$55,2,FALSE),VLOOKUP($A11,Calculations!$BI$3:$BN$400,6,FALSE)) -> 51.94 | K11: 11.07777778 | L11: =MAX(0,'Perry et al-2015'!$K$11*(K11-'Perry et al-2015'!$K$13)*(1-EXP('Perry et al-2015'!$K$12*(K11-'Perry et al-2015'!$K$15)))) -> 3.167481423 | M11: =IF($C11<$AF$5,0,IF($C10<$AF$5,VLOOKUP(ROUND(MIN('Heming-1982'!$C$4,MAX('Heming-1982'!$C$3,$K11)),0),'Heming-1982'!$C$6:$D$9,2),(M10^'Perry et al-2015'!$K$10+$L11*'Perry et al-2015'!$K$10*$C$6/100)^(1/'Perry et al-2015'!$K$10))) -> 0 | N11: =IF($C11<$AF$7,0,IF($C10<$AF$7,VLOOKUP(ROUND(MIN('Heming-1982'!$C$4,MAX('Heming-1982'!$C$3,$K11)),0),'Heming-1982'!$C$6:$D$9,2),(N10^'Perry et al-2015'!$K$10+$L11*'Perry et al-2015'!$K$10*$C$6/100)^(1/'Perry et al-2015'!$K$10))) -> 0 | O11: =IF($C11<$AF$9,0,IF($C10<$AF$9,VLOOKUP(ROUND(MIN('Heming-1982'!$C$4,MAX('Heming-1982'!$C$3,$K11)),0),'Heming-1982'!$C$6:$D$9,2),(O10^'Perry et al-2015'!$K$10+$L11*'Perry et al-2015'!$K$10*$C$6/100)^(1/'Perry et al-2015'!$K$10))) -> 0 | AC11: TUs | AD11: ='IO Panel'!F30 -> 955 | AH11: 2017-09-17 | AI11: 38 | AJ11: 11.63888889 | AK11: 23.77777778 | AL11: 00:00:00 | AM11: 0 | AN11: 00:00:00 | AO11: 0 | AP11: 00:00:00 | AQ11: 11.07777778 | AR11: 20.23333333 | AS11: =IF(AR11>=$AD$11,IF(AR10<$AD$11,1,0),0)*$AH11 -> 00:00:00 | AT11: 0 | AU11: =IF(AT11>=$AD$11,IF(AT10<$AD$11,1,0),0)*$AH11 -> 00:00:00 | AV11: 0 | AW11: 00:00:00 | BB11: 6 | BC11: 2017-06-01 | BD11: ='IO Panel'!L10 -> 56.1 | BE11: ='IO Panel'!M10 -> 51.1 | BG11: ='IO Panel'!O10 -> 54 | BH11: ='IO Panel'!P10 -> 48 | BI11: 109 | BJ11: 1 | BK11: =BK10+Calculations!$C$6 -> 2017-01-09 | BL11: 2 | BM11: =RANDBETWEEN(VLOOKUP(BJ11,Calculations!$BB$6:$BE$17,4,FALSE)*100,VLOOKUP(BJ11,Calculations!$BB$6:$BE$17,3,FALSE)*100)/100 -> 40.1 | BN11: =RANDBETWEEN(VLOOKUP(BJ11,Calculations!$BB$6:$BH$17,7,FALSE)*100,VLOOKUP(BJ11,Calculations!$BB$6:$BH$17,6,FALSE)*100)/100 -> 40.9
A12: 918 | B12: 38 | C12: 2017-09-18 | D12: =IF($C$6=7,VLOOKUP(B12,Calculations!$BL$3:$BM$55,2,FALSE),VLOOKUP($A12,Calculations!$BI$3:$BN$400,5,FALSE)) -> 53.58 | E12: 11.98888889 | F12: =MAX(0,'Perry et al-2015'!$K$11*(E12-'Perry et al-2015'!$K$13)*(1-EXP('Perry et al-2015'!$K$12*(E12-'Perry et al-2015'!$K$15)))) -> 3.409073982 | G12: =IF($C12<$AE$5,0,IF($C11<$AE$5,VLOOKUP(ROUND(MIN('Heming-1982'!$C$4,MAX('Heming-1982'!$C$3,$E12)),0),'Heming-1982'!$C$6:$D$9,2),($G11^'Perry et al-2015'!$K$10+$F12*'Perry et al-2015'!$K$10*$C$6/100)^(1/'Perry et al-2015'!$K$10))) -> 0 | H12: =IF($C12<$AE$7,0,IF($C11<$AE$7,VLOOKUP(ROUND(MIN('Heming-1982'!$C$4,MAX('Heming-1982'!$C$3,$E12)),0),'Heming-1982'!$C$6:$D$9,2),($H11^'Perry et al-2015'!$K$10+$F12*'Perry et al-2015'!$K$10*$C$6/100)^(1/'Perry et al-2015'!$K$10))) -> 0 | I12: =IF($C12<$AE$9,0,IF($C11<$AE$9,VLOOKUP(ROUND(MIN('Heming-1982'!$C$4,MAX('Heming-1982'!$C$3,Calculations!$E12)),0),'Heming-1982'!$C$6:$D$9,2),($I11^'Perry et al-2015'!$K$10+$F12*'Perry et al-2015'!$K$10*$C$6/100)^(1/'Perry et al-2015'!$K$10))) -> 0 | J12: =IF($C$6=7,VLOOKUP($B12,Calculations!$BL$3:$BM$55,2,FALSE),VLOOKUP($A12,Calculations!$BI$3:$BN$400,6,FALSE)) -> 49.27 | K12: 9.594444444 | L12: =MAX(0,'Perry et al-2015'!$K$11*(K12-'Perry et al-2015'!$K$13)*(1-EXP('Perry et al-2015'!$K$12*(K12-'Perry et al-2015'!$K$15)))) -> 2.70286805 | M12: =IF($C12<$AF$5,0,IF($C11<$AF$5,VLOOKUP(ROUND(MIN('Heming-1982'!$C$4,MAX('Heming-1982'!$C$3,$K12)),0),'Heming-1982'!$C$6:$D$9,2),(M11^'Perry et al-2015'!$K$10+$L12*'Perry et al-2015'!$K$10*$C$6/100)^(1/'Perry et al-2015'!$K$10))) -> 0 | N12: =IF($C12<$AF$7,0,IF($C11<$AF$7,VLOOKUP(ROUND(MIN('Heming-1982'!$C$4,MAX('Heming-1982'!$C$3,$K12)),0),'Heming-1982'!$C$6:$D$9,2),(N11^'Perry et al-2015'!$K$10+$L12*'Perry et al-2015'!$K$10*$C$6/100)^(1/'Perry et al-2015'!$K$10))) -> 0 | O12: =IF($C12<$AF$9,0,IF($C11<$AF$9,VLOOKUP(ROUND(MIN('Heming-1982'!$C$4,MAX('Heming-1982'!$C$3,$K12)),0),'Heming-1982'!$C$6:$D$9,2),(O11^'Perry et al-2015'!$K$10+$L12*'Perry et al-2015'!$K$10*$C$6/100)^(1/'Perry et al-2015'!$K$10))) -> 0 | AH12: 2017-09-18 | AI12: 38 | AJ12: 11.98888889 | AK12: 35.76666667 | AL12: 00:00:00 | AM12: 0 | AN12: 00:00:00 | AO12: 0 | AP12: 00:00:00 | AQ12: 9.594444444 | AR12: 29.82777778 | AS12: 00:00:00 | AT12: 0 | AU12: 00:00:00 | AV12: 0 | AW12: 00:00:00 | BB12: 7 | BC12: 2017-07-01 | BD12: ='IO Panel'!L11 -> 61.2 | BE12: ='IO Panel'!M11 -> 54.1 | BG12: ='IO Panel'!O11 -> 54 | BH12: ='IO Panel'!P11 -> 48 | BI12: 110 | BJ12: 1 | BK12: =BK11+Calculations!$C$6 -> 2017-01-10 | BL12: 2 | BM12: =RANDBETWEEN(VLOOKUP(BJ12,Calculations!$BB$6:$BE$17,4,FALSE)*100,VLOOKUP(BJ12,Calculations!$BB$6:$BE$17,3,FALSE)*100)/100 -> 40.1 | BN12: =RANDBETWEEN(VLOOKUP(BJ12,Calculations!$BB$6:$BH$17,7,FALSE)*100,VLOOKUP(BJ12,Calculations!$BB$6:$BH$17,6,FALSE)*100)/100 -> 39.2
A13: 919 | B13: 38 | C13: 2017-09-19 | D13: =IF($C$6=7,VLOOKUP(B13,Calculations!$BL$3:$BM$55,2,FALSE),VLOOKUP($A13,Calculations!$BI$3:$BN$400,5,FALSE)) -> 54.59 | E13: 12.55 | F13: =MAX(0,'Perry et al-2015'!$K$11*(E13-'Perry et al-2015'!$K$13)*(1-EXP('Perry et al-2015'!$K$12*(E13-'Perry et al-2015'!$K$15)))) -> 3.535393353 | G13: =IF($C13<$AE$5,0,IF($C12<$AE$5,VLOOKUP(ROUND(MIN('Heming-1982'!$C$4,MAX('Heming-1982'!$C$3,$E13)),0),'Heming-1982'!$C$6:$D$9,2),($G12^'Perry et al-2015'!$K$10+$F13*'Perry et al-2015'!$K$10*$C$6/100)^(1/'Perry et al-2015'!$K$10))) -> 0 | H13: =IF($C13<$AE$7,0,IF($C12<$AE$7,VLOOKUP(ROUND(MIN('Heming-1982'!$C$4,MAX('Heming-1982'!$C$3,$E13)),0),'Heming-1982'!$C$6:$D$9,2),($H12^'Perry et al-2015'!$K$10+$F13*'Perry et al-2015'!$K$10*$C$6/100)^(1/'Perry et al-2015'!$K$10))) -> 0 | I13: =IF($C13<$AE$9,0,IF($C12<$AE$9,VLOOKUP(ROUND(MIN('Heming-1982'!$C$4,MAX('Heming-1982'!$C$3,Calculations!$E13)),0),'Heming-1982'!$C$6:$D$9,2),($I12^'Perry et al-2015'!$K$10+$F13*'Perry et al-2015'!$K$10*$C$6/100)^(1/'Perry et al-2015'!$K$10))) -> 0 | J13: =IF($C$6=7,VLOOKUP($B13,Calculations!$BL$3:$BM$55,2,FALSE),VLOOKUP($A13,Calculations!$BI$3:$BN$400,6,FALSE)) -> 52.99 | K13: 11.66111111 | L13: =MAX(0,'Perry et al-2015'!$K$11*(K13-'Perry et al-2015'!$K$13)*(1-EXP('Perry et al-2015'!$K$12*(K13-'Perry et al-2015'!$K$15)))) -> 3.326884313 | M13: =IF($C13<$AF$5,0,IF($C12<$AF$5,VLOOKUP(ROUND(MIN('Heming-1982'!$C$4,MAX('Heming-1982'!$C$3,$K13)),0),'Heming-1982'!$C$6:$D$9,2),(M12^'Perry et al-2015'!$K$10+$L13*'Perry et al-2015'!$K$10*$C$6/100)^(1/'Perry et al-2015'!$K$10))) -> 0 | N13: =IF($C13<$AF$7,0,IF($C12<$AF$7,VLOOKUP(ROUND(MIN('Heming-1982'!$C$4,MAX('Heming-1982'!$C$3,$K13)),0),'Heming-1982'!$C$6:$D$9,2),(N12^'Perry et al-2015'!$K$10+$L13*'Perry et al-2015'!$K$10*$C$6/100)^(1/'Perry et al-2015'!$K$10))) -> 0 | O13: =IF($C13<$AF$9,0,IF($C12<$AF$9,VLOOKUP(ROUND(MIN('Heming-1982'!$C$4,MAX('Heming-1982'!$C$3,$K13)),0),'Heming-1982'!$C$6:$D$9,2),(O12^'Perry et al-2015'!$K$10+$L13*'Perry et al-2015'!$K$10*$C$6/100)^(1/'Perry et al-2015'!$K$10))) -> 0 | AH13: 2017-09-19 | AI13: 38 | AJ13: 12.55 | AK13: 48.31666667 | AL13: 00:00:00 | AM13: 0 | AN13: 00:00:00 | AO13: 0 | AP13: 00:00:00 | AQ13: 11.66111111 | AR13: 41.48888889 | AS13: 00:00:00 | AT13: 0 | AU13: 00:00:00 | AV13: 0 | AW13: 00:00:00 | BB13: 8 | BC13: 2017-08-01 | BD13: ='IO Panel'!L12 -> 60.3 | BE13: ='IO Panel'!M12 -> 54.1 | BG13: ='IO Panel'!O12 -> 54 | BH13: ='IO Panel'!P12 -> 48 | BI13: 111 | BJ13: 1 | BK13: =BK12+Calculations!$C$6 -> 2017-01-11 | BL13: 2 | BM13: =RANDBETWEEN(VLOOKUP(BJ13,Calculations!$BB$6:$BE$17,4,FALSE)*100,VLOOKUP(BJ13,Calculations!$BB$6:$BE$17,3,FALSE)*100)/100 -> 40.1 | BN13: =RANDBETWEEN(VLOOKUP(BJ13,Calculations!$BB$6:$BH$17,7,FALSE)*100,VLOOKUP(BJ13,Calculations!$BB$6:$BH$17,6,FALSE)*100)/100 -> 39.62
A14: 920 | B14: 38 | C14: 2017-09-20 | D14: =IF($C$6=7,VLOOKUP(B14,Calculations!$BL$3:$BM$55,2,FALSE),VLOOKUP($A14,Calculations!$BI$3:$BN$400,5,FALSE)) -> 53.72 | E14: 12.06666667 | F14: =MAX(0,'Perry et al-2015'!$K$11*(E14-'Perry et al-2015'!$K$13)*(1-EXP('Perry et al-2015'!$K$12*(E14-'Perry et al-2015'!$K$15)))) -> 3.427713178 | G14: =IF($C14<$AE$5,0,IF($C13<$AE$5,VLOOKUP(ROUND(MIN('Heming-1982'!$C$4,MAX('Heming-1982'!$C$3,$E14)),0),'Heming-1982'!$C$6:$D$9,2),($G13^'Perry et al-2015'!$K$10+$F14*'Perry et al-2015'!$K$10*$C$6/100)^(1/'Perry et al-2015'!$K$10))) -> 0 | H14: =IF($C14<$AE$7,0,IF($C13<$AE$7,VLOOKUP(ROUND(MIN('Heming-1982'!$C$4,MAX('Heming-1982'!$C$3,$E14)),0),'Heming-1982'!$C$6:$D$9,2),($H13^'Perry et al-2015'!$K$10+$F14*'Perry et al-2015'!$K$10*$C$6/100)^(1/'Perry et al-2015'!$K$10))) -> 0 | I14: =IF($C14<$AE$9,0,IF($C13<$AE$9,VLOOKUP(ROUND(MIN('Heming-1982'!$C$4,MAX('Heming-1982'!$C$3,Calculations!$E14)),0),'Heming-1982'!$C$6:$D$9,2),($I13^'Perry et al-2015'!$K$10+$F14*'Perry et al-2015'!$K$10*$C$6/100)^(1/'Perry et al-2015'!$K$10))) -> 0 | J14: =IF($C$6=7,VLOOKUP($B14,Calculations!$BL$3:$BM$55,2,FALSE),VLOOKUP($A14,Calculations!$BI$3:$BN$400,6,FALSE)) -> 48.13 | K14: 8.961111111 | L14: =MAX(0,'Perry et al-2015'!$K$11*(K14-'Perry et al-2015'!$K$13)*(1-EXP('Perry et al-2015'!$K$12*(K14-'Perry et al-2015'!$K$15)))) -> 2.485040008 | M14: =IF($C14<$AF$5,0,IF($C13<$AF$5,VLOOKUP(ROUND(MIN('Heming-1982'!$C$4,MAX('Heming-1982'!$C$3,$K14)),0),'Heming-1982'!$C$6:$D$9,2),(M13^'Perry et al-2015'!$K$10+$L14*'Perry et al-2015'!$K$10*$C$6/100)^(1/'Perry et al-2015'!$K$10))) -> 0 | N14: =IF($C14<$AF$7,0,IF($C13<$AF$7,VLOOKUP(ROUND(MIN('Heming-1982'!$C$4,MAX('Heming-1982'!$C$3,$K14)),0),'Heming-1982'!$C$6:$D$9,2),(N13^'Perry et al-2015'!$K$10+$L14*'Perry et al-2015'!$K$10*$C$6/100)^(1/'Perry et al-2015'!$K$10))) -> 0 | O14: =IF($C14<$AF$9,0,IF($C13<$AF$9,VLOOKUP(ROUND(MIN('Heming-1982'!$C$4,MAX('Heming-1982'!$C$3,$K14)),0),'Heming-1982'!$C$6:$D$9,2),(O13^'Perry et al-2015'!$K$10+$L14*'Perry et al-2015'!$K$10*$C$6/100)^(1/'Perry et al-2015'!$K$10))) -> 0 | AH14: 2017-09-20 | AI14: 38 | AJ14: 12.06666667 | AK14: 60.38333333 | AL14: 00:00:00 | AM14: 0 | AN14: 00:00:00 | AO14: 0 | AP14: 00:00:00 | AQ14: 8.961111111 | AR14: 50.45 | AS14: 00:00:00 | AT14: 0 | AU14: 00:00:00 | AV14: 0 | AW14: 00:00:00 | BB14: 9 | BC14: 2017-09-01 | BD14: ='IO Panel'!L13 -> 56.1 | BE14: ='IO Panel'!M13 -> 52.3 | BG14: ='IO Panel'!O13 -> 54 | BH14: ='IO Panel'!P13 -> 48 | BI14: 112 | BJ14: 1 | BK14: =BK13+Calculations!$C$6 -> 2017-01-12 | BL14: 2 | BM14: =RANDBETWEEN(VLOOKUP(BJ14,Calculations!$BB$6:$BE$17,4,FALSE)*100,VLOOKUP(BJ14,Calculations!$BB$6:$BE$17,3,FALSE)*100)/100 -> 40.1 | BN14: =RANDBETWEEN(VLOOKUP(BJ14,Calculations!$BB$6:$BH$17,7,FALSE)*100,VLOOKUP(BJ14,Calculations!$BB$6:$BH$17,6,FALSE)*100)/100 -> 40.28
A15: 921 | B15: 38 | C15: 2017-09-21 | D15: =IF($C$6=7,VLOOKUP(B15,Calculations!$BL$3:$BM$55,2,FALSE),VLOOKUP($A15,Calculations!$BI$3:$BN$400,5,FALSE)) -> 53.4 | E15: 11.88888889 | F15: =MAX(0,'Perry et al-2015'!$K$11*(E15-'Perry et al-2015'!$K$13)*(1-EXP('Perry et al-2015'!$K$12*(E15-'Perry et al-2015'!$K$15)))) -> 3.384611086 | G15: =IF($C15<$AE$5,0,IF($C14<$AE$5,VLOOKUP(ROUND(MIN('Heming-1982'!$C$4,MAX('Heming-1982'!$C$3,$E15)),0),'Heming-1982'!$C$6:$D$9,2),($G14^'Perry et al-2015'!$K$10+$F15*'Perry et al-2015'!$K$10*$C$6/100)^(1/'Perry et al-2015'!$K$10))) -> 0 | H15: =IF($C15<$AE$7,0,IF($C14<$AE$7,VLOOKUP(ROUND(MIN('Heming-1982'!$C$4,MAX('Heming-1982'!$C$3,$E15)),0),'Heming-1982'!$C$6:$D$9,2),($H14^'Perry et al-2015'!$K$10+$F15*'Perry et al-2015'!$K$10*$C$6/100)^(1/'Perry et al-2015'!$K$10))) -> 0 | I15: =IF($C15<$AE$9,0,IF($C14<$AE$9,VLOOKUP(ROUND(MIN('Heming-1982'!$C$4,MAX('Heming-1982'!$C$3,Calculations!$E15)),0),'Heming-1982'!$C$6:$D$9,2),($I14^'Perry et al-2015'!$K$10+$F15*'Perry et al-2015'!$K$10*$C$6/100)^(1/'Perry et al-2015'!$K$10))) -> 0 | J15: =IF($C$6=7,VLOOKUP($B15,Calculations!$BL$3:$BM$55,2,FALSE),VLOOKUP($A15,Calculations!$BI$3:$BN$400,6,FALSE)) -> 53.12 | K15: 11.73333333 | L15: =MAX(0,'Perry et al-2015'!$K$11*(K15-'Perry et al-2015'!$K$13)*(1-EXP('Perry et al-2015'!$K$12*(K15-'Perry et al-2015'!$K$15)))) -> 3.345481731 | M15: =IF($C15<$AF$5,0,IF($C14<$AF$5,VLOOKUP(ROUND(MIN('Heming-1982'!$C$4,MAX('Heming-1982'!$C$3,$K15)),0),'Heming-1982'!$C$6:$D$9,2),(M14^'Perry et al-2015'!$K$10+$L15*'Perry et al-2015'!$K$10*$C$6/100)^(1/'Perry et al-2015'!$K$10))) -> 0 | N15: =IF($C15<$AF$7,0,IF($C14<$AF$7,VLOOKUP(ROUND(MIN('Heming-1982'!$C$4,MAX('Heming-1982'!$C$3,$K15)),0),'Heming-1982'!$C$6:$D$9,2),(N14^'Perry et al-2015'!$K$10+$L15*'Perry et al-2015'!$K$10*$C$6/100)^(1/'Perry et al-2015'!$K$10))) -> 0 | O15: =IF($C15<$AF$9,0,IF($C14<$AF$9,VLOOKUP(ROUND(MIN('Heming-1982'!$C$4,MAX('Heming-1982'!$C$3,$K15)),0),'Heming-1982'!$C$6:$D$9,2),(O14^'Perry et al-2015'!$K$10+$L15*'Perry et al-2015'!$K$10*$C$6/100)^(1/'Perry et al-2015'!$K$10))) -> 0 | AH15: 2017-09-21 | AI15: 38 | AJ15: 11.88888889 | AK15: 72.27222222 | AL15: 00:00:00 | AM15: 0 | AN15: 00:00:00 | AO15: 0 | AP15: 00:00:00 | AQ15: 11.73333333 | AR15: 62.18333333 | AS15: 00:00:00 | AT15: 0 | AU15: 00:00:00 | AV15: 0 | AW15: 00:00:00 | BB15: 10 | BC15: 2017-10-01 | BD15: ='IO Panel'!L14 -> 50 | BE15: ='IO Panel'!M14 -> 50 | BG15: ='IO Panel'!O14 -> 52 | BH15: ='IO Panel'!P14 -> 46 | BI15: 113 | BJ15: 1 | BK15: =BK14+Calculations!$C$6 -> 2017-01-13 | BL15: 2 | BM15: =RANDBETWEEN(VLOOKUP(BJ15,Calculations!$BB$6:$BE$17,4,FALSE)*100,VLOOKUP(BJ15,Calculations!$BB$6:$BE$17,3,FALSE)*100)/100 -> 40.1 | BN15: =RANDBETWEEN(VLOOKUP(BJ15,Calculations!$BB$6:$BH$17,7,FALSE)*100,VLOOKUP(BJ15,Calculations!$BB$6:$BH$17,6,FALSE)*100)/100 -> 40.88
A16: 922 | B16: 38 | C16: 2017-09-22 | D16: =IF($C$6=7,VLOOKUP(B16,Calculations!$BL$3:$BM$55,2,FALSE),VLOOKUP($A16,Calculations!$BI$3:$BN$400,5,FALSE)) -> 55.49 | E16: 13.05 | F16: =MAX(0,'Perry et al-2015'!$K$11*(E16-'Perry et al-2015'!$K$13)*(1-EXP('Perry et al-2015'!$K$12*(E16-'Perry et al-2015'!$K$15)))) -> 3.630268138 | G16: =IF($C16<$AE$5,0,IF($C15<$AE$5,VLOOKUP(ROUND(MIN('Heming-1982'!$C$4,MAX('Heming-1982'!$C$3,$E16)),0),'Heming-1982'!$C$6:$D$9,2),($G15^'Perry et al-2015'!$K$10+$F16*'Perry et al-2015'!$K$10*$C$6/100)^(1/'Perry et al-2015'!$K$10))) -> 0 | H16: =IF($C16<$AE$7,0,IF($C15<$AE$7,VLOOKUP(ROUND(MIN('Heming-1982'!$C$4,MAX('Heming-1982'!$C$3,$E16)),0),'Heming-1982'!$C$6:$D$9,2),($H15^'Perry et al-2015'!$K$10+$F16*'Perry et al-2015'!$K$10*$C$6/100)^(1/'Perry et al-2015'!$K$10))) -> 0 | I16: =IF($C16<$AE$9,0,IF($C15<$AE$9,VLOOKUP(ROUND(MIN('Heming-1982'!$C$4,MAX('Heming-1982'!$C$3,Calculations!$E16)),0),'Heming-1982'!$C$6:$D$9,2),($I15^'Perry et al-2015'!$K$10+$F16*'Perry et al-2015'!$K$10*$C$6/100)^(1/'Perry et al-2015'!$K$10))) -> 0 | J16: =IF($C$6=7,VLOOKUP($B16,Calculations!$BL$3:$BM$55,2,FALSE),VLOOKUP($A16,Calculations!$BI$3:$BN$400,6,FALSE)) -> 48.2 | K16: 9 | L16: =MAX(0,'Perry et al-2015'!$K$11*(K16-'Perry et al-2015'!$K$13)*(1-EXP('Perry et al-2015'!$K$12*(K16-'Perry et al-2015'!$K$15)))) -> 2.498681232 | M16: =IF($C16<$AF$5,0,IF($C15<$AF$5,VLOOKUP(ROUND(MIN('Heming-1982'!$C$4,MAX('Heming-1982'!$C$3,$K16)),0),'Heming-1982'!$C$6:$D$9,2),(M15^'Perry et al-2015'!$K$10+$L16*'Perry et al-2015'!$K$10*$C$6/100)^(1/'Perry et al-2015'!$K$10))) -> 0 | N16: =IF($C16<$AF$7,0,IF($C15<$AF$7,VLOOKUP(ROUND(MIN('Heming-1982'!$C$4,MAX('Heming-1982'!$C$3,$K16)),0),'Heming-1982'!$C$6:$D$9,2),(N15^'Perry et al-2015'!$K$10+$L16*'Perry et al-2015'!$K$10*$C$6/100)^(1/'Perry et al-2015'!$K$10))) -> 0 | O16: =IF($C16<$AF$9,0,IF($C15<$AF$9,VLOOKUP(ROUND(MIN('Heming-1982'!$C$4,MAX('Heming-1982'!$C$3,$K16)),0),'Heming-1982'!$C$6:$D$9,2),(O15^'Perry et al-2015'!$K$10+$L16*'Perry et al-2015'!$K$10*$C$6/100)^(1/'Perry et al-2015'!$K$10))) -> 0 | AH16: 2017-09-22 | AI16: 38 | AJ16: 13.05 | AK16: 85.32222222 | AL16: 00:00:00 | AM16: 0 | AN16: 00:00:00 | AO16: 0 | AP16: 00:00:00 | AQ16: 9 | AR16: 71.18333333 | AS16: 00:00:00 | AT16: 0 | AU16: 00:00:00 | AV16: 0 | AW16: 00:00:00 | BB16: 11 | BC16: 2017-11-01 | BD16: ='IO Panel'!L15 -> 50 | BE16: ='IO Panel'!M15 -> 50 | BG16: ='IO Panel'!O15 -> 46 | BH16: ='IO Panel'!P15 -> 42 | BI16: 114 | BJ16: 1 | BK16: =BK15+Calculations!$C$6 -> 2017-01-14 | BL16: 2 | BM16: =RANDBETWEEN(VLOOKUP(BJ16,Calculations!$BB$6:$BE$17,4,FALSE)*100,VLOOKUP(BJ16,Calculations!$BB$6:$BE$17,3,FALSE)*100)/100 -> 40.1 | BN16: =RANDBETWEEN(VLOOKUP(BJ16,Calculations!$BB$6:$BH$17,7,FALSE)*100,VLOOKUP(BJ16,Calculations!$BB$6:$BH$17,6,FALSE)*100)/100 -> 40.04
A17: 923 | B17: 38 | C17: 2017-09-23 | D17: =IF($C$6=7,VLOOKUP(B17,Calculations!$BL$3:$BM$55,2,FALSE),VLOOKUP($A17,Calculations!$BI$3:$BN$400,5,FALSE)) -> 54.02 | E17: 12.23333333 | F17: =MAX(0,'Perry et al-2015'!$K$11*(E17-'Perry et al-2015'!$K$13)*(1-EXP('Perry et al-2015'!$K$12*(E17-'Perry et al-2015'!$K$15)))) -> 3.466470655 | G17: =IF($C17<$AE$5,0,IF($C16<$AE$5,VLOOKUP(ROUND(MIN('Heming-1982'!$C$4,MAX('Heming-1982'!$C$3,$E17)),0),'Heming-1982'!$C$6:$D$9,2),($G16^'Perry et al-2015'!$K$10+$F17*'Perry et al-2015'!$K$10*$C$6/100)^(1/'Perry et al-2015'!$K$10))) -> 0 | H17: =IF($C17<$AE$7,0,IF($C16<$AE$7,VLOOKUP(ROUND(MIN('Heming-1982'!$C$4,MAX('Heming-1982'!$C$3,$E17)),0),'Heming-1982'!$C$6:$D$9,2),($H16^'Perry et al-2015'!$K$10+$F17*'Perry et al-2015'!$K$10*$C$6/100)^(1/'Perry et al-2015'!$K$10))) -> 0 | I17: =IF($C17<$AE$9,0,IF($C16<$AE$9,VLOOKUP(ROUND(MIN('Heming-1982'!$C$4,MAX('Heming-1982'!$C$3,Calculations!$E17)),0),'Heming-1982'!$C$6:$D$9,2),($I16^'Perry et al-2015'!$K$10+$F17*'Perry et al-2015'!$K$10*$C$6/100)^(1/'Perry et al-2015'!$K$10))) -> 0 | J17: =IF($C$6=7,VLOOKUP($B17,Calculations!$BL$3:$BM$55,2,FALSE),VLOOKUP($A17,Calculations!$BI$3:$BN$400,6,FALSE)) -> 52.26 | K17: 11.25555556 | L17: =MAX(0,'Perry et al-2015'!$K$11*(K17-'Perry et al-2015'!$K$13)*(1-EXP('Perry et al-2015'!$K$12*(K17-'Perry et al-2015'!$K$15)))) -> 3.217709112 | M17: =IF($C17<$AF$5,0,IF($C16<$AF$5,VLOOKUP(ROUND(MIN('Heming-1982'!$C$4,MAX('Heming-1982'!$C$3,$K17)),0),'Heming-1982'!$C$6:$D$9,2),(M16^'Perry et al-2015'!$K$10+$L17*'Perry et al-2015'!$K$10*$C$6/100)^(1/'Perry et al-2015'!$K$10))) -> 0 | N17: =IF($C17<$AF$7,0,IF($C16<$AF$7,VLOOKUP(ROUND(MIN('Heming-1982'!$C$4,MAX('Heming-1982'!$C$3,$K17)),0),'Heming-1982'!$C$6:$D$9,2),(N16^'Perry et al-2015'!$K$10+$L17*'Perry et al-2015'!$K$10*$C$6/100)^(1/'Perry et al-2015'!$K$10))) -> 0 | O17: =IF($C17<$AF$9,0,IF($C16<$AF$9,VLOOKUP(ROUND(MIN('Heming-1982'!$C$4,MAX('Heming-1982'!$C$3,$K17)),0),'Heming-1982'!$C$6:$D$9,2),(O16^'Perry et al-2015'!$K$10+$L17*'Perry et al-2015'!$K$10*$C$6/100)^(1/'Perry et al-2015'!$K$10))) -> 0 | AH17: 2017-09-23 | AI17: 38 | AJ17: 12.23333333 | AK17: 97.55555556 | AL17: 00:00:00 | AM17: 0 | AN17: 00:00:00 | AO17: 0 | AP17: 00:00:00 | AQ17: 11.25555556 | AR17: 82.43888889 | AS17: 00:00:00 | AT17: 0 | AU17: 00:00:00 | AV17: 0 | AW17: 00:00:00 | BB17: 12 | BC17: 2017-12-01 | BD17: ='IO Panel'!L16 -> 45 | BE17: ='IO Panel'!M16 -> 41 | BG17: ='IO Panel'!O16 -> 46 | BH17: ='IO Panel'!P16 -> 41 | BI17: 115 | BJ17: 1 | BK17: =BK16+Calculations!$C$6 -> 2017-01-15 | BL17: 3 | BM17: =RANDBETWEEN(VLOOKUP(BJ17,Calculations!$BB$6:$BE$17,4,FALSE)*100,VLOOKUP(BJ17,Calculations!$BB$6:$BE$17,3,FALSE)*100)/100 -> 40.1 | BN17: =RANDBETWEEN(VLOOKUP(BJ17,Calculations!$BB$6:$BH$17,7,FALSE)*100,VLOOKUP(BJ17,Calculations!$BB$6:$BH$17,6,FALSE)*100)/100 -> 41.26
A18: 924 | B18: 39 | C18: 2017-09-24 | D18: =IF($C$6=7,VLOOKUP(B18,Calculations!$BL$3:$BM$55,2,FALSE),VLOOKUP($A18,Calculations!$BI$3:$BN$400,5,FALSE)) -> 53.57 | E18: 11.98333333 | F18: =MAX(0,'Perry et al-2015'!$K$11*(E18-'Perry et al-2015'!$K$13)*(1-EXP('Perry et al-2015'!$K$12*(E18-'Perry et al-2015'!$K$15)))) -> 3.407729508 | G18: =IF($C18<$AE$5,0,IF($C17<$AE$5,VLOOKUP(ROUND(MIN('Heming-1982'!$C$4,MAX('Heming-1982'!$C$3,$E18)),0),'Heming-1982'!$C$6:$D$9,2),($G17^'Perry et al-2015'!$K$10+$F18*'Perry et al-2015'!$K$10*$C$6/100)^(1/'Perry et al-2015'!$K$10))) -> 0 | H18: =IF($C18<$AE$7,0,IF($C17<$AE$7,VLOOKUP(ROUND(MIN('Heming-1982'!$C$4,MAX('Heming-1982'!$C$3,$E18)),0),'Heming-1982'!$C$6:$D$9,2),($H17^'Perry et al-2015'!$K$10+$F18*'Perry et al-2015'!$K$10*$C$6/100)^(1/'Perry et al-2015'!$K$10))) -> 0 | I18: =IF($C18<$AE$9,0,IF($C17<$AE$9,VLOOKUP(ROUND(MIN('Heming-1982'!$C$4,MAX('Heming-1982'!$C$3,Calculations!$E18)),0),'Heming-1982'!$C$6:$D$9,2),($I17^'Perry et al-2015'!$K$10+$F18*'Perry et al-2015'!$K$10*$C$6/100)^(1/'Perry et al-2015'!$K$10))) -> 0 | J18: =IF($C$6=7,VLOOKUP($B18,Calculations!$BL$3:$BM$55,2,FALSE),VLOOKUP($A18,Calculations!$BI$3:$BN$400,6,FALSE)) -> 48.54 | K18: 9.188888889 | L18: =MAX(0,'Perry et al-2015'!$K$11*(K18-'Perry et al-2015'!$K$13)*(1-EXP('Perry et al-2015'!$K$12*(K18-'Perry et al-2015'!$K$15)))) -> 2.564465605 | M18: =IF($C18<$AF$5,0,IF($C17<$AF$5,VLOOKUP(ROUND(MIN('Heming-1982'!$C$4,MAX('Heming-1982'!$C$3,$K18)),0),'Heming-1982'!$C$6:$D$9,2),(M17^'Perry et al-2015'!$K$10+$L18*'Perry et al-2015'!$K$10*$C$6/100)^(1/'Perry et al-2015'!$K$10))) -> 0 | N18: =IF($C18<$AF$7,0,IF($C17<$AF$7,VLOOKUP(ROUND(MIN('Heming-1982'!$C$4,MAX('Heming-1982'!$C$3,$K18)),0),'Heming-1982'!$C$6:$D$9,2),(N17^'Perry et al-2015'!$K$10+$L18*'Perry et al-2015'!$K$10*$C$6/100)^(1/'Perry et al-2015'!$K$10))) -> 0 | O18: =IF($C18<$AF$9,0,IF($C17<$AF$9,VLOOKUP(ROUND(MIN('Heming-1982'!$C$4,MAX('Heming-1982'!$C$3,$K18)),0),'Heming-1982'!$C$6:$D$9,2),(O17^'Perry et al-2015'!$K$10+$L18*'Perry et al-2015'!$K$10*$C$6/100)^(1/'Perry et al-2015'!$K$10))) -> 0 | AH18: 2017-09-24 | AI18: 39 | AJ18: 11.98333333 | AK18: 109.5388889 | AL18: 00:00:00 | AM18: 0 | AN18: 00:00:00 | AO18: 0 | AP18: 00:00:00 | AQ18: 9.188888889 | AR18: 91.62777778 | AS18: 00:00:00 | AT18: 0 | AU18: 00:00:00 | AV18: 0 | AW18: 00:00:00 | BI18: 116 | BJ18: 1 | BK18: =BK17+Calculations!$C$6 -> 2017-01-16 | BL18: 3 | BM18: =RANDBETWEEN(VLOOKUP(BJ18,Calculations!$BB$6:$BE$17,4,FALSE)*100,VLOOKUP(BJ18,Calculations!$BB$6:$BE$17,3,FALSE)*100)/100 -> 40.1 | BN18: =RANDBETWEEN(VLOOKUP(BJ18,Calculations!$BB$6:$BH$17,7,FALSE)*100,VLOOKUP(BJ18,Calculations!$BB$6:$BH$17,6,FALSE)*100)/100 -> 39.99
A19: 925 | B19: 39 | C19: 2017-09-25 | D19: =IF($C$6=7,VLOOKUP(B19,Calculations!$BL$3:$BM$55,2,FALSE),VLOOKUP($A19,Calculations!$BI$3:$BN$400,5,FALSE)) -> 53.27 | E19: 11.81666667 | F19: =MAX(0,'Perry et al-2015'!$K$11*(E19-'Perry et al-2015'!$K$13)*(1-EXP('Perry et al-2015'!$K$12*(E19-'Perry et al-2015'!$K$15)))) -> 3.366603858 | G19: =IF($C19<$AE$5,0,IF($C18<$AE$5,VLOOKUP(ROUND(MIN('Heming-1982'!$C$4,MAX('Heming-1982'!$C$3,$E19)),0),'Heming-1982'!$C$6:$D$9,2),($G18^'Perry et al-2015'!$K$10+$F19*'Perry et al-2015'!$K$10*$C$6/100)^(1/'Perry et al-2015'!$K$10))) -> 0 | H19: =IF($C19<$AE$7,0,IF($C18<$AE$7,VLOOKUP(ROUND(MIN('Heming-1982'!$C$4,MAX('Heming-1982'!$C$3,$E19)),0),'Heming-1982'!$C$6:$D$9,2),($H18^'Perry et al-2015'!$K$10+$F19*'Perry et al-2015'!$K$10*$C$6/100)^(1/'Perry et al-2015'!$K$10))) -> 0 | I19: =IF($C19<$AE$9,0,IF($C18<$AE$9,VLOOKUP(ROUND(MIN('Heming-1982'!$C$4,MAX('Heming-1982'!$C$3,Calculations!$E19)),0),'Heming-1982'!$C$6:$D$9,2),($I18^'Perry et al-2015'!$K$10+$F19*'Perry et al-2015'!$K$10*$C$6/100)^(1/'Perry et al-2015'!$K$10))) -> 0 | J19: =IF($C$6=7,VLOOKUP($B19,Calculations!$BL$3:$BM$55,2,FALSE),VLOOKUP($A19,Calculations!$BI$3:$BN$400,6,FALSE)) -> 53.81 | K19: 12.11666667 | L19: =MAX(0,'Perry et al-2015'!$K$11*(K19-'Perry et al-2015'!$K$13)*(1-EXP('Perry et al-2015'!$K$12*(K19-'Perry et al-2015'!$K$15)))) -> 3.439512164 | M19: =IF($C19<$AF$5,0,IF($C18<$AF$5,VLOOKUP(ROUND(MIN('Heming-1982'!$C$4,MAX('Heming-1982'!$C$3,$K19)),0),'Heming-1982'!$C$6:$D$9,2),(M18^'Perry et al-2015'!$K$10+$L19*'Perry et al-2015'!$K$10*$C$6/100)^(1/'Perry et al-2015'!$K$10))) -> 0 | N19: =IF($C19<$AF$7,0,IF($C18<$AF$7,VLOOKUP(ROUND(MIN('Heming-1982'!$C$4,MAX('Heming-1982'!$C$3,$K19)),0),'Heming-1982'!$C$6:$D$9,2),(N18^'Perry et al-2015'!$K$10+$L19*'Perry et al-2015'!$K$10*$C$6/100)^(1/'Perry et al-2015'!$K$10))) -> 0 | O19: =IF($C19<$AF$9,0,IF($C18<$AF$9,VLOOKUP(ROUND(MIN('Heming-1982'!$C$4,MAX('Heming-1982'!$C$3,$K19)),0),'Heming-1982'!$C$6:$D$9,2),(O18^'Perry et al-2015'!$K$10+$L19*'Perry et al-2015'!$K$10*$C$6/100)^(1/'Perry et al-2015'!$K$10))) -> 0 | AH19: 2017-09-25 | AI19: 39 | AJ19: 11.81666667 | AK19: 121.3555556 | AL19: 00:00:00 | AM19: 0 | AN19: 00:00:00 | AO19: 0 | AP19: 00:00:00 | AQ19: 12.11666667 | AR19: 103.7444444 | AS19: 00:00:00 | AT19: 0 | AU19: 00:00:00 | AV19: 0 | AW19: 00:00:00 | BI19: 117 | BJ19: 1 | BK19: =BK18+Calculations!$C$6 -> 2017-01-17 | BL19: 3 | BM19: =RANDBETWEEN(VLOOKUP(BJ19,Calculations!$BB$6:$BE$17,4,FALSE)*100,VLOOKUP(BJ19,Calculations!$BB$6:$BE$17,3,FALSE)*100)/100 -> 40.1 | BN19: =RANDBETWEEN(VLOOKUP(BJ19,Calculations!$BB$6:$BH$17,7,FALSE)*100,VLOOKUP(BJ19,Calculations!$BB$6:$BH$17,6,FALSE)*100)/100 -> 41.76
A20: 926 | B20: 39 | C20: 2017-09-26 | D20: =IF($C$6=7,VLOOKUP(B20,Calculations!$BL$3:$BM$55,2,FALSE),VLOOKUP($A20,Calculations!$BI$3:$BN$400,5,FALSE)) -> 53.78 | E20: 12.1 | F20: =MAX(0,'Perry et al-2015'!$K$11*(E20-'Perry et al-2015'!$K$13)*(1-EXP('Perry et al-2015'!$K$12*(E20-'Perry et al-2015'!$K$15)))) -> 3.435595298 | G20: =IF($C20<$AE$5,0,IF($C19<$AE$5,VLOOKUP(ROUND(MIN('Heming-1982'!$C$4,MAX('Heming-1982'!$C$3,$E20)),0),'Heming-1982'!$C$6:$D$9,2),($G19^'Perry et al-2015'!$K$10+$F20*'Perry et al-2015'!$K$10*$C$6/100)^(1/'Perry et al-2015'!$K$10))) -> 0 | H20: =IF($C20<$AE$7,0,IF($C19<$AE$7,VLOOKUP(ROUND(MIN('Heming-1982'!$C$4,MAX('Heming-1982'!$C$3,$E20)),0),'Heming-1982'!$C$6:$D$9,2),($H19^'Perry et al-2015'!$K$10+$F20*'Perry et al-2015'!$K$10*$C$6/100)^(1/'Perry et al-2015'!$K$10))) -> 0 | I20: =IF($C20<$AE$9,0,IF($C19<$AE$9,VLOOKUP(ROUND(MIN('Heming-1982'!$C$4,MAX('Heming-1982'!$C$3,Calculations!$E20)),0),'Heming-1982'!$C$6:$D$9,2),($I19^'Perry et al-2015'!$K$10+$F20*'Perry et al-2015'!$K$10*$C$6/100)^(1/'Perry et al-2015'!$K$10))) -> 0 | J20: =IF($C$6=7,VLOOKUP($B20,Calculations!$BL$3:$BM$55,2,FALSE),VLOOKUP($A20,Calculations!$BI$3:$BN$400,6,FALSE)) -> 50.02 | K20: 10.01111111 | L20: =MAX(0,'Perry et al-2015'!$K$11*(K20-'Perry et al-2015'!$K$13)*(1-EXP('Perry et al-2015'!$K$12*(K20-'Perry et al-2015'!$K$15)))) -> 2.840557629 | M20: =IF($C20<$AF$5,0,IF($C19<$AF$5,VLOOKUP(ROUND(MIN('Heming-1982'!$C$4,MAX('Heming-1982'!$C$3,$K20)),0),'Heming-1982'!$C$6:$D$9,2),(M19^'Perry et al-2015'!$K$10+$L20*'Perry et al-2015'!$K$10*$C$6/100)^(1/'Perry et al-2015'!$K$10))) -> 0 | N20: =IF($C20<$AF$7,0,IF($C19<$AF$7,VLOOKUP(ROUND(MIN('Heming-1982'!$C$4,MAX('Heming-1982'!$C$3,$K20)),0),'Heming-1982'!$C$6:$D$9,2),(N19^'Perry et al-2015'!$K$10+$L20*'Perry et al-2015'!$K$10*$C$6/100)^(1/'Perry et al-2015'!$K$10))) -> 0 | O20: =IF($C20<$AF$9,0,IF($C19<$AF$9,VLOOKUP(ROUND(MIN('Heming-1982'!$C$4,MAX('Heming-1982'!$C$3,$K20)),0),'Heming-1982'!$C$6:$D$9,2),(O19^'Perry et al-2015'!$K$10+$L20*'Perry et al-2015'!$K$10*$C$6/100)^(1/'Perry et al-2015'!$K$10))) -> 0 | AH20: 2017-09-26 | AI20: 39 | AJ20: 12.1 | AK20: 133.4555556 | AL20: 00:00:00 | AM20: 0 | AN20: 00:00:00 | AO20: 0 | AP20: 00:00:00 | AQ20: 10.01111111 | AR20: 113.7555556 | AS20: 00:00:00 | AT20: 0 | AU20: 00:00:00 | AV20: 0 | AW20: 00:00:00 | BI20: 118 | BJ20: 1 | BK20: =BK19+Calculations!$C$6 -> 2017-01-18 | BL20: 3 | BM20: =RANDBETWEEN(VLOOKUP(BJ20,Calculations!$BB$6:$BE$17,4,FALSE)*100,VLOOKUP(BJ20,Calculations!$BB$6:$BE$17,3,FALSE)*100)/100 -> 40.1 | BN20: =RANDBETWEEN(VLOOKUP(BJ20,Calculations!$BB$6:$BH$17,7,FALSE)*100,VLOOKUP(BJ20,Calculations!$BB$6:$BH$17,6,FALSE)*100)/100 -> 39.92
A21: 927 | B21: 39 | C21: 2017-09-27 | D21: =IF($C$6=7,VLOOKUP(B21,Calculations!$BL$3:$BM$55,2,FALSE),VLOOKUP($A21,Calculations!$BI$3:$BN$400,5,FALSE)) -> 55.2 | E21: 12.88888889 | F21: =MAX(0,'Perry et al-2015'!$K$11*(E21-'Perry et al-2015'!$K$13)*(1-EXP('Perry et al-2015'!$K$12*(E21-'Perry et al-2015'!$K$15)))) -> 3.601692362 | G21: =IF($C21<$AE$5,0,IF($C20<$AE$5,VLOOKUP(ROUND(MIN('Heming-1982'!$C$4,MAX('Heming-1982'!$C$3,$E21)),0),'Heming-1982'!$C$6:$D$9,2),($G20^'Perry et al-2015'!$K$10+$F21*'Perry et al-2015'!$K$10*$C$6/100)^(1/'Perry et al-2015'!$K$10))) -> 0 | H21: =IF($C21<$AE$7,0,IF($C20<$AE$7,VLOOKUP(ROUND(MIN('Heming-1982'!$C$4,MAX('Heming-1982'!$C$3,$E21)),0),'Heming-1982'!$C$6:$D$9,2),($H20^'Perry et al-2015'!$K$10+$F21*'Perry et al-2015'!$K$10*$C$6/100)^(1/'Perry et al-2015'!$K$10))) -> 0 | I21: =IF($C21<$AE$9,0,IF($C20<$AE$9,VLOOKUP(ROUND(MIN('Heming-1982'!$C$4,MAX('Heming-1982'!$C$3,Calculations!$E21)),0),'Heming-1982'!$C$6:$D$9,2),($I20^'Perry et al-2015'!$K$10+$F21*'Perry et al-2015'!$K$10*$C$6/100)^(1/'Perry et al-2015'!$K$10))) -> 0 | J21: =IF($C$6=7,VLOOKUP($B21,Calculations!$BL$3:$BM$55,2,FALSE),VLOOKUP($A21,Calculations!$BI$3:$BN$400,6,FALSE)) -> 53.8 | K21: 12.11111111 | L21: =MAX(0,'Perry et al-2015'!$K$11*(K21-'Perry et al-2015'!$K$13)*(1-EXP('Perry et al-2015'!$K$12*(K21-'Perry et al-2015'!$K$15)))) -> 3.438208342 | M21: =IF($C21<$AF$5,0,IF($C20<$AF$5,VLOOKUP(ROUND(MIN('Heming-1982'!$C$4,MAX('Heming-1982'!$C$3,$K21)),0),'Heming-1982'!$C$6:$D$9,2),(M20^'Perry et al-2015'!$K$10+$L21*'Perry et al-2015'!$K$10*$C$6/100)^(1/'Perry et al-2015'!$K$10))) -> 0 | N21: =IF($C21<$AF$7,0,IF($C20<$AF$7,VLOOKUP(ROUND(MIN('Heming-1982'!$C$4,MAX('Heming-1982'!$C$3,$K21)),0),'Heming-1982'!$C$6:$D$9,2),(N20^'Perry et al-2015'!$K$10+$L21*'Perry et al-2015'!$K$10*$C$6/100)^(1/'Perry et al-2015'!$K$10))) -> 0 | O21: =IF($C21<$AF$9,0,IF($C20<$AF$9,VLOOKUP(ROUND(MIN('Heming-1982'!$C$4,MAX('Heming-1982'!$C$3,$K21)),0),'Heming-1982'!$C$6:$D$9,2),(O20^'Perry et al-2015'!$K$10+$L21*'Perry et al-2015'!$K$10*$C$6/100)^(1/'Perry et al-2015'!$K$10))) -> 0 | AH21: 2017-09-27 | AI21: 39 | AJ21: 12.88888889 | AK21: 146.3444444 | AL21: 00:00:00 | AM21: 0 | AN21: 00:00:00 | AO21: 0 | AP21: 00:00:00 | AQ21: 12.11111111 | AR21: 125.8666667 | AS21: 00:00:00 | AT21: 0 | AU21: 00:00:00 | AV21: 0 | AW21: 00:00:00 | BI21: 119 | BJ21: 1 | BK21: =BK20+Calculations!$C$6 -> 2017-01-19 | BL21: 3 | BM21: =RANDBETWEEN(VLOOKUP(BJ21,Calculations!$BB$6:$BE$17,4,FALSE)*100,VLOOKUP(BJ21,Calculations!$BB$6:$BE$17,3,FALSE)*100)/100 -> 40.1 | BN21: =RANDBETWEEN(VLOOKUP(BJ21,Calculations!$BB$6:$BH$17,7,FALSE)*100,VLOOKUP(BJ21,Calculations!$BB$6:$BH$17,6,FALSE)*100)/100 -> 40.23
A22: 928 | B22: 39 | C22: 2017-09-28 | D22: =IF($C$6=7,VLOOKUP(B22,Calculations!$BL$3:$BM$55,2,FALSE),VLOOKUP($A22,Calculations!$BI$3:$BN$400,5,FALSE)) -> 55.96 | E22: 13.31111111 | F22: =MAX(0,'Perry et al-2015'!$K$11*(E22-'Perry et al-2015'!$K$13)*(1-EXP('Perry et al-2015'!$K$12*(E22-'Perry et al-2015'!$K$15)))) -> 3.672222733 | G22: =IF($C22<$AE$5,0,IF($C21<$AE$5,VLOOKUP(ROUND(MIN('Heming-1982'!$C$4,MAX('Heming-1982'!$C$3,$E22)),0),'Heming-1982'!$C$6:$D$9,2),($G21^'Perry et al-2015'!$K$10+$F22*'Perry et al-2015'!$K$10*$C$6/100)^(1/'Perry et al-2015'!$K$10))) -> 0 | H22: =IF($C22<$AE$7,0,IF($C21<$AE$7,VLOOKUP(ROUND(MIN('Heming-1982'!$C$4,MAX('Heming-1982'!$C$3,$E22)),0),'Heming-1982'!$C$6:$D$9,2),($H21^'Perry et al-2015'!$K$10+$F22*'Perry et al-2015'!$K$10*$C$6/100)^(1/'Perry et al-2015'!$K$10))) -> 0 | I22: =IF($C22<$AE$9,0,IF($C21<$AE$9,VLOOKUP(ROUND(MIN('Heming-1982'!$C$4,MAX('Heming-1982'!$C$3,Calculations!$E22)),0),'Heming-1982'!$C$6:$D$9,2),($I21^'Perry et al-2015'!$K$10+$F22*'Perry et al-2015'!$K$10*$C$6/100)^(1/'Perry et al-2015'!$K$10))) -> 0 | J22: =IF($C$6=7,VLOOKUP($B22,Calculations!$BL$3:$BM$55,2,FALSE),VLOOKUP($A22,Calculations!$BI$3:$BN$400,6,FALSE)) -> 51.2 | K22: 10.66666667 | L22: =MAX(0,'Perry et al-2015'!$K$11*(K22-'Perry et al-2015'!$K$13)*(1-EXP('Perry et al-2015'!$K$12*(K22-'Perry et al-2015'!$K$15)))) -> 3.046347988 | M22: =IF($C22<$AF$5,0,IF($C21<$AF$5,VLOOKUP(ROUND(MIN('Heming-1982'!$C$4,MAX('Heming-1982'!$C$3,$K22)),0),'Heming-1982'!$C$6:$D$9,2),(M21^'Perry et al-2015'!$K$10+$L22*'Perry et al-2015'!$K$10*$C$6/100)^(1/'Perry et al-2015'!$K$10))) -> 0 | N22: =IF($C22<$AF$7,0,IF($C21<$AF$7,VLOOKUP(ROUND(MIN('Heming-1982'!$C$4,MAX('Heming-1982'!$C$3,$K22)),0),'Heming-1982'!$C$6:$D$9,2),(N21^'Perry et al-2015'!$K$10+$L22*'Perry et al-2015'!$K$10*$C$6/100)^(1/'Perry et al-2015'!$K$10))) -> 0 | O22: =IF($C22<$AF$9,0,IF($C21<$AF$9,VLOOKUP(ROUND(MIN('Heming-1982'!$C$4,MAX('Heming-1982'!$C$3,$K22)),0),'Heming-1982'!$C$6:$D$9,2),(O21^'Perry et al-2015'!$K$10+$L22*'Perry et al-2015'!$K$10*$C$6/100)^(1/'Perry et al-2015'!$K$10))) -> 0 | AH22: 2017-09-28 | AI22: 39 | AJ22: 13.31111111 | AK22: 159.6555556 | AL22: 00:00:00 | AM22: 0 | AN22: 00:00:00 | AO22: 0 | AP22: 00:00:00 | AQ22: 10.66666667 | AR22: 136.5333333 | AS22: 00:00:00 | AT22: 0 | AU22: 00:00:00 | AV22: 0 | AW22: 00:00:00 | BI22: 120 | BJ22: 1 | BK22: =BK21+Calculations!$C$6 -> 2017-01-20 | BL22: 3 | BM22: =RANDBETWEEN(VLOOKUP(BJ22,Calculations!$BB$6:$BE$17,4,FALSE)*100,VLOOKUP(BJ22,Calculations!$BB$6:$BE$17,3,FALSE)*100)/100 -> 40.1 | BN22: =RANDBETWEEN(VLOOKUP(BJ22,Calculations!$BB$6:$BH$17,7,FALSE)*100,VLOOKUP(BJ22,Calculations!$BB$6:$BH$17,6,FALSE)*100)/100 -> 38.54
A23: 929 | B23: 39 | C23: 2017-09-29 | D23: =IF($C$6=7,VLOOKUP(B23,Calculations!$BL$3:$BM$55,2,FALSE),VLOOKUP($A23,Calculations!$BI$3:$BN$400,5,FALSE)) -> 55.07 | E23: 12.81666667 | F23: =MAX(0,'Perry et al-2015'!$K$11*(E23-'Perry et al-2015'!$K$13)*(1-EXP('Perry et al-2015'!$K$12*(E23-'Perry et al-2015'!$K$15)))) -> 3.588249782 | G23: =IF($C23<$AE$5,0,IF($C22<$AE$5,VLOOKUP(ROUND(MIN('Heming-1982'!$C$4,MAX('Heming-1982'!$C$3,$E23)),0),'Heming-1982'!$C$6:$D$9,2),($G22^'Perry et al-2015'!$K$10+$F23*'Perry et al-2015'!$K$10*$C$6/100)^(1/'Perry et al-2015'!$K$10))) -> 0 | H23: =IF($C23<$AE$7,0,IF($C22<$AE$7,VLOOKUP(ROUND(MIN('Heming-1982'!$C$4,MAX('Heming-1982'!$C$3,$E23)),0),'Heming-1982'!$C$6:$D$9,2),($H22^'Perry et al-2015'!$K$10+$F23*'Perry et al-2015'!$K$10*$C$6/100)^(1/'Perry et al-2015'!$K$10))) -> 0 | I23: =IF($C23<$AE$9,0,IF($C22<$AE$9,VLOOKUP(ROUND(MIN('Heming-1982'!$C$4,MAX('Heming-1982'!$C$3,Calculations!$E23)),0),'Heming-1982'!$C$6:$D$9,2),($I22^'Perry et al-2015'!$K$10+$F23*'Perry et al-2015'!$K$10*$C$6/100)^(1/'Perry et al-2015'!$K$10))) -> 0 | J23: =IF($C$6=7,VLOOKUP($B23,Calculations!$BL$3:$BM$55,2,FALSE),VLOOKUP($A23,Calculations!$BI$3:$BN$400,6,FALSE)) -> 52.34 | K23: 11.3 | L23: =MAX(0,'Perry et al-2015'!$K$11*(K23-'Perry et al-2015'!$K$13)*(1-EXP('Perry et al-2015'!$K$12*(K23-'Perry et al-2015'!$K$15)))) -> 3.230048874 | M23: =IF($C23<$AF$5,0,IF($C22<$AF$5,VLOOKUP(ROUND(MIN('Heming-1982'!$C$4,MAX('Heming-1982'!$C$3,$K23)),0),'Heming-1982'!$C$6:$D$9,2),(M22^'Perry et al-2015'!$K$10+$L23*'Perry et al-2015'!$K$10*$C$6/100)^(1/'Perry et al-2015'!$K$10))) -> 0 | N23: =IF($C23<$AF$7,0,IF($C22<$AF$7,VLOOKUP(ROUND(MIN('Heming-1982'!$C$4,MAX('Heming-1982'!$C$3,$K23)),0),'Heming-1982'!$C$6:$D$9,2),(N22^'Perry et al-2015'!$K$10+$L23*'Perry et al-2015'!$K$10*$C$6/100)^(1/'Perry et al-2015'!$K$10))) -> 0 | O23: =IF($C23<$AF$9,0,IF($C22<$AF$9,VLOOKUP(ROUND(MIN('Heming-1982'!$C$4,MAX('Heming-1982'!$C$3,$K23)),0),'Heming-1982'!$C$6:$D$9,2),(O22^'Perry et al-2015'!$K$10+$L23*'Perry et al-2015'!$K$10*$C$6/100)^(1/'Perry et al-2015'!$K$10))) -> 0 | AH23: 2017-09-29 | AI23: 39 | AJ23: 12.81666667 | AK23: 172.4722222 | AL23: 00:00:00 | AM23: 0 | AN23: 00:00:00 | AO23: 0 | AP23: 00:00:00 | AQ23: 11.3 | AR23: 147.8333333 | AS23: 00:00:00 | AT23: 0 | AU23: 00:00:00 | AV23: 0 | AW23: 00:00:00 | BI23: 121 | BJ23: 1 | BK23: =BK22+Calculations!$C$6 -> 2017-01-21 | BL23: 3 | BM23: =RANDBETWEEN(VLOOKUP(BJ23,Calculations!$BB$6:$BE$17,4,FALSE)*100,VLOOKUP(BJ23,Calculations!$BB$6:$BE$17,3,FALSE)*100)/100 -> 40.1 | BN23: =RANDBETWEEN(VLOOKUP(BJ23,Calculations!$BB$6:$BH$17,7,FALSE)*100,VLOOKUP(BJ23,Calculations!$BB$6:$BH$17,6,FALSE)*100)/100 -> 38.08
A24: 930 | B24: 39 | C24: 2017-09-30 | D24: =IF($C$6=7,VLOOKUP(B24,Calculations!$BL$3:$BM$55,2,FALSE),VLOOKUP($A24,Calculations!$BI$3:$BN$400,5,FALSE)) -> 54.89 | E24: 12.71666667 | F24: =MAX(0,'Perry et al-2015'!$K$11*(E24-'Perry et al-2015'!$K$13)*(1-EXP('Perry et al-2015'!$K$12*(E24-'Perry et al-2015'!$K$15)))) -> 3.569012309 | G24: =IF($C24<$AE$5,0,IF($C23<$AE$5,VLOOKUP(ROUND(MIN('Heming-1982'!$C$4,MAX('Heming-1982'!$C$3,$E24)),0),'Heming-1982'!$C$6:$D$9,2),($G23^'Perry et al-2015'!$K$10+$F24*'Perry et al-2015'!$K$10*$C$6/100)^(1/'Perry et al-2015'!$K$10))) -> 0 | H24: =IF($C24<$AE$7,0,IF($C23<$AE$7,VLOOKUP(ROUND(MIN('Heming-1982'!$C$4,MAX('Heming-1982'!$C$3,$E24)),0),'Heming-1982'!$C$6:$D$9,2),($H23^'Perry et al-2015'!$K$10+$F24*'Perry et al-2015'!$K$10*$C$6/100)^(1/'Perry et al-2015'!$K$10))) -> 0 | I24: =IF($C24<$AE$9,0,IF($C23<$AE$9,VLOOKUP(ROUND(MIN('Heming-1982'!$C$4,MAX('Heming-1982'!$C$3,Calculations!$E24)),0),'Heming-1982'!$C$6:$D$9,2),($I23^'Perry et al-2015'!$K$10+$F24*'Perry et al-2015'!$K$10*$C$6/100)^(1/'Perry et al-2015'!$K$10))) -> 0 | J24: =IF($C$6=7,VLOOKUP($B24,Calculations!$BL$3:$BM$55,2,FALSE),VLOOKUP($A24,Calculations!$BI$3:$BN$400,6,FALSE)) -> 49.66 | K24: 9.811111111 | L24: =MAX(0,'Perry et al-2015'!$K$11*(K24-'Perry et al-2015'!$K$13)*(1-EXP('Perry et al-2015'!$K$12*(K24-'Perry et al-2015'!$K$15)))) -> 2.775075195 | M24: =IF($C24<$AF$5,0,IF($C23<$AF$5,VLOOKUP(ROUND(MIN('Heming-1982'!$C$4,MAX('Heming-1982'!$C$3,$K24)),0),'Heming-1982'!$C$6:$D$9,2),(M23^'Perry et al-2015'!$K$10+$L24*'Perry et al-2015'!$K$10*$C$6/100)^(1/'Perry et al-2015'!$K$10))) -> 0 | N24: =IF($C24<$AF$7,0,IF($C23<$AF$7,VLOOKUP(ROUND(MIN('Heming-1982'!$C$4,MAX('Heming-1982'!$C$3,$K24)),0),'Heming-1982'!$C$6:$D$9,2),(N23^'Perry et al-2015'!$K$10+$L24*'Perry et al-2015'!$K$10*$C$6/100)^(1/'Perry et al-2015'!$K$10))) -> 0 | O24: =IF($C24<$AF$9,0,IF($C23<$AF$9,VLOOKUP(ROUND(MIN('Heming-1982'!$C$4,MAX('Heming-1982'!$C$3,$K24)),0),'Heming-1982'!$C$6:$D$9,2),(O23^'Perry et al-2015'!$K$10+$L24*'Perry et al-2015'!$K$10*$C$6/100)^(1/'Perry et al-2015'!$K$10))) -> 0 | AH24: 2017-09-30 | AI24: 39 | AJ24: 12.71666667 | AK24: 185.1888889 | AL24: 00:00:00 | AM24: 0 | AN24: 00:00:00 | AO24: 0 | AP24: 00:00:00 | AQ24: 9.811111111 | AR24: 157.6444444 | AS24: 00:00:00 | AT24: 0 | AU24: 00:00:00 | AV24: 0 | AW24: 00:00:00 | BI24: 122 | BJ24: 1 | BK24: =BK23+Calculations!$C$6 -> 2017-01-22 | BL24: 4 | BM24: =RANDBETWEEN(VLOOKUP(BJ24,Calculations!$BB$6:$BE$17,4,FALSE)*100,VLOOKUP(BJ24,Calculations!$BB$6:$BE$17,3,FALSE)*100)/100 -> 40.1 | BN24: =RANDBETWEEN(VLOOKUP(BJ24,Calculations!$BB$6:$BH$17,7,FALSE)*100,VLOOKUP(BJ24,Calculations!$BB$6:$BH$17,6,FALSE)*100)/100 -> 40.34
A25: 1001 | B25: 40 | C25: 2017-10-01 | D25: =IF($C$6=7,VLOOKUP(B25,Calculations!$BL$3:$BM$55,2,FALSE),VLOOKUP($A25,Calculations!$BI$3:$BN$400,5,FALSE)) -> 50 | E25: 10 | F25: =MAX(0,'Perry et al-2015'!$K$11*(E25-'Perry et al-2015'!$K$13)*(1-EXP('Perry et al-2015'!$K$12*(E25-'Perry et al-2015'!$K$15)))) -> 2.836950493 | G25: =IF($C25<$AE$5,0,IF($C24<$AE$5,VLOOKUP(ROUND(MIN('Heming-1982'!$C$4,MAX('Heming-1982'!$C$3,$E25)),0),'Heming-1982'!$C$6:$D$9,2),($G24^'Perry et al-2015'!$K$10+$F25*'Perry et al-2015'!$K$10*$C$6/100)^(1/'Perry et al-2015'!$K$10))) -> 0 | H25: =IF($C25<$AE$7,0,IF($C24<$AE$7,VLOOKUP(ROUND(MIN('Heming-1982'!$C$4,MAX('Heming-1982'!$C$3,$E25)),0),'Heming-1982'!$C$6:$D$9,2),($H24^'Perry et al-2015'!$K$10+$F25*'Perry et al-2015'!$K$10*$C$6/100)^(1/'Perry et al-2015'!$K$10))) -> 0 | I25: =IF($C25<$AE$9,0,IF($C24<$AE$9,VLOOKUP(ROUND(MIN('Heming-1982'!$C$4,MAX('Heming-1982'!$C$3,Calculations!$E25)),0),'Heming-1982'!$C$6:$D$9,2),($I24^'Perry et al-2015'!$K$10+$F25*'Perry et al-2015'!$K$10*$C$6/100)^(1/'Perry et al-2015'!$K$10))) -> 0 | J25: =IF($C$6=7,VLOOKUP($B25,Calculations!$BL$3:$BM$55,2,FALSE),VLOOKUP($A25,Calculations!$BI$3:$BN$400,6,FALSE)) -> 49.25 | K25: 9.583333333 | L25: =MAX(0,'Perry et al-2015'!$K$11*(K25-'Perry et al-2015'!$K$13)*(1-EXP('Perry et al-2015'!$K$12*(K25-'Perry et al-2015'!$K$15)))) -> 2.69913118 | M25: =IF($C25<$AF$5,0,IF($C24<$AF$5,VLOOKUP(ROUND(MIN('Heming-1982'!$C$4,MAX('Heming-1982'!$C$3,$K25)),0),'Heming-1982'!$C$6:$D$9,2),(M24^'Perry et al-2015'!$K$10+$L25*'Perry et al-2015'!$K$10*$C$6/100)^(1/'Perry et al-2015'!$K$10))) -> 0 | N25: =IF($C25<$AF$7,0,IF($C24<$AF$7,VLOOKUP(ROUND(MIN('Heming-1982'!$C$4,MAX('Heming-1982'!$C$3,$K25)),0),'Heming-1982'!$C$6:$D$9,2),(N24^'Perry et al-2015'!$K$10+$L25*'Perry et al-2015'!$K$10*$C$6/100)^(1/'Perry et al-2015'!$K$10))) -> 0 | O25: =IF($C25<$AF$9,0,IF($C24<$AF$9,VLOOKUP(ROUND(MIN('Heming-1982'!$C$4,MAX('Heming-1982'!$C$3,$K25)),0),'Heming-1982'!$C$6:$D$9,2),(O24^'Perry et al-2015'!$K$10+$L25*'Perry et al-2015'!$K$10*$C$6/100)^(1/'Perry et al-2015'!$K$10))) -> 0 | AH25: 2017-10-01 | AI25: 40 | AJ25: 10 | AK25: 195.1888889 | AL25: 00:00:00 | AM25: 0 | AN25: 00:00:00 | AO25: 0 | AP25: 00:00:00 | AQ25: 9.583333333 | AR25: 167.2277778 | AS25: 00:00:00 | AT25: 0 | AU25: 00:00:00 | AV25: 0 | AW25: 00:00:00 | BI25: 123 | BJ25: 1 | BK25: =BK24+Calculations!$C$6 -> 2017-01-23 | BL25: 4 | BM25: =RANDBETWEEN(VLOOKUP(BJ25,Calculations!$BB$6:$BE$17,4,FALSE)*100,VLOOKUP(BJ25,Calculations!$BB$6:$BE$17,3,FALSE)*100)/100 -> 40.1 | BN25: =RANDBETWEEN(VLOOKUP(BJ25,Calculations!$BB$6:$BH$17,7,FALSE)*100,VLOOKUP(BJ25,Calculations!$BB$6:$BH$17,6,FALSE)*100)/100 -> 40.44
A26: 1002 | B26: 40 | C26: 2017-10-02 | D26: =IF($C$6=7,VLOOKUP(B26,Calculations!$BL$3:$BM$55,2,FALSE),VLOOKUP($A26,Calculations!$BI$3:$BN$400,5,FALSE)) -> 50 | E26: 10 | F26: =MAX(0,'Perry et al-2015'!$K$11*(E26-'Perry et al-2015'!$K$13)*(1-EXP('Perry et al-2015'!$K$12*(E26-'Perry et al-2015'!$K$15)))) -> 2.836950493 | G26: =IF($C26<$AE$5,0,IF($C25<$AE$5,VLOOKUP(ROUND(MIN('Heming-1982'!$C$4,MAX('Heming-1982'!$C$3,$E26)),0),'Heming-1982'!$C$6:$D$9,2),($G25^'Perry et al-2015'!$K$10+$F26*'Perry et al-2015'!$K$10*$C$6/100)^(1/'Perry et al-2015'!$K$10))) -> 0 | H26: =IF($C26<$AE$7,0,IF($C25<$AE$7,VLOOKUP(ROUND(MIN('Heming-1982'!$C$4,MAX('Heming-1982'!$C$3,$E26)),0),'Heming-1982'!$C$6:$D$9,2),($H25^'Perry et al-2015'!$K$10+$F26*'Perry et al-2015'!$K$10*$C$6/100)^(1/'Perry et al-2015'!$K$10))) -> 0 | I26: =IF($C26<$AE$9,0,IF($C25<$AE$9,VLOOKUP(ROUND(MIN('Heming-1982'!$C$4,MAX('Heming-1982'!$C$3,Calculations!$E26)),0),'Heming-1982'!$C$6:$D$9,2),($I25^'Perry et al-2015'!$K$10+$F26*'Perry et al-2015'!$K$10*$C$6/100)^(1/'Perry et al-2015'!$K$10))) -> 0 | J26: =IF($C$6=7,VLOOKUP($B26,Calculations!$BL$3:$BM$55,2,FALSE),VLOOKUP($A26,Calculations!$BI$3:$BN$400,6,FALSE)) -> 50.4 | K26: 10.22222222 | L26: =MAX(0,'Perry et al-2015'!$K$11*(K26-'Perry et al-2015'!$K$13)*(1-EXP('Perry et al-2015'!$K$12*(K26-'Perry et al-2015'!$K$15)))) -> 2.908374285 | M26: =IF($C26<$AF$5,0,IF($C25<$AF$5,VLOOKUP(ROUND(MIN('Heming-1982'!$C$4,MAX('Heming-1982'!$C$3,$K26)),0),'Heming-1982'!$C$6:$D$9,2),(M25^'Perry et al-2015'!$K$10+$L26*'Perry et al-2015'!$K$10*$C$6/100)^(1/'Perry et al-2015'!$K$10))) -> 0 | N26: =IF($C26<$AF$7,0,IF($C25<$AF$7,VLOOKUP(ROUND(MIN('Heming-1982'!$C$4,MAX('Heming-1982'!$C$3,$K26)),0),'Heming-1982'!$C$6:$D$9,2),(N25^'Perry et al-2015'!$K$10+$L26*'Perry et al-2015'!$K$10*$C$6/100)^(1/'Perry et al-2015'!$K$10))) -> 0 | O26: =IF($C26<$AF$9,0,IF($C25<$AF$9,VLOOKUP(ROUND(MIN('Heming-1982'!$C$4,MAX('Heming-1982'!$C$3,$K26)),0),'Heming-1982'!$C$6:$D$9,2),(O25^'Perry et al-2015'!$K$10+$L26*'Perry et al-2015'!$K$10*$C$6/100)^(1/'Perry et al-2015'!$K$10))) -> 0 | AH26: 2017-10-02 | AI26: 40 | AJ26: 10 | AK26: 205.1888889 | AL26: 00:00:00 | AM26: 0 | AN26: 00:00:00 | AO26: 0 | AP26: 00:00:00 | AQ26: 10.22222222 | AR26: 177.45 | AS26: 00:00:00 | AT26: 0 | AU26: 00:00:00 | AV26: 0 | AW26: 00:00:00 | BI26: 124 | BJ26: 1 | BK26: =BK25+Calculations!$C$6 -> 2017-01-24 | BL26: 4 | BM26: =RANDBETWEEN(VLOOKUP(BJ26,Calculations!$BB$6:$BE$17,4,FALSE)*100,VLOOKUP(BJ26,Calculations!$BB$6:$BE$17,3,FALSE)*100)/100 -> 40.1 | BN26: =RANDBETWEEN(VLOOKUP(BJ26,Calculations!$BB$6:$BH$17,7,FALSE)*100,VLOOKUP(BJ26,Calculations!$BB$6:$BH$17,6,FALSE)*100)/100 -> 40.47
A27: 1003 | B27: 40 | C27: 2017-10-03 | D27: =IF($C$6=7,VLOOKUP(B27,Calculations!$BL$3:$BM$55,2,FALSE),VLOOKUP($A27,Calculations!$BI$3:$BN$400,5,FALSE)) -> 50 | E27: 10 | F27: =MAX(0,'Perry et al-2015'!$K$11*(E27-'Perry et al-2015'!$K$13)*(1-EXP('Perry et al-2015'!$K$12*(E27-'Perry et al-2015'!$K$15)))) -> 2.836950493 | G27: =IF($C27<$AE$5,0,IF($C26<$AE$5,VLOOKUP(ROUND(MIN('Heming-1982'!$C$4,MAX('Heming-1982'!$C$3,$E27)),0),'Heming-1982'!$C$6:$D$9,2),($G26^'Perry et al-2015'!$K$10+$F27*'Perry et al-2015'!$K$10*$C$6/100)^(1/'Perry et al-2015'!$K$10))) -> 0 | H27: =IF($C27<$AE$7,0,IF($C26<$AE$7,VLOOKUP(ROUND(MIN('Heming-1982'!$C$4,MAX('Heming-1982'!$C$3,$E27)),0),'Heming-1982'!$C$6:$D$9,2),($H26^'Perry et al-2015'!$K$10+$F27*'Perry et al-2015'!$K$10*$C$6/100)^(1/'Perry et al-2015'!$K$10))) -> 0 | I27: =IF($C27<$AE$9,0,IF($C26<$AE$9,VLOOKUP(ROUND(MIN('Heming-1982'!$C$4,MAX('Heming-1982'!$C$3,Calculations!$E27)),0),'Heming-1982'!$C$6:$D$9,2),($I26^'Perry et al-2015'!$K$10+$F27*'Perry et al-2015'!$K$10*$C$6/100)^(1/'Perry et al-2015'!$K$10))) -> 0 | J27: =IF($C$6=7,VLOOKUP($B27,Calculations!$BL$3:$BM$55,2,FALSE),VLOOKUP($A27,Calculations!$BI$3:$BN$400,6,FALSE)) -> 48.05 | K27: 8.916666667 | L27: =MAX(0,'Perry et al-2015'!$K$11*(K27-'Perry et al-2015'!$K$13)*(1-EXP('Perry et al-2015'!$K$12*(K27-'Perry et al-2015'!$K$15)))) -> 2.46941051 | M27: =IF($C27<$AF$5,0,IF($C26<$AF$5,VLOOKUP(ROUND(MIN('Heming-1982'!$C$4,MAX('Heming-1982'!$C$3,$K27)),0),'Heming-1982'!$C$6:$D$9,2),(M26^'Perry et al-2015'!$K$10+$L27*'Perry et al-2015'!$K$10*$C$6/100)^(1/'Perry et al-2015'!$K$10))) -> 0 | N27: =IF($C27<$AF$7,0,IF($C26<$AF$7,VLOOKUP(ROUND(MIN('Heming-1982'!$C$4,MAX('Heming-1982'!$C$3,$K27)),0),'Heming-1982'!$C$6:$D$9,2),(N26^'Perry et al-2015'!$K$10+$L27*'Perry et al-2015'!$K$10*$C$6/100)^(1/'Perry et al-2015'!$K$10))) -> 0 | O27: =IF($C27<$AF$9,0,IF($C26<$AF$9,VLOOKUP(ROUND(MIN('Heming-1982'!$C$4,MAX('Heming-1982'!$C$3,$K27)),0),'Heming-1982'!$C$6:$D$9,2),(O26^'Perry et al-2015'!$K$10+$L27*'Perry et al-2015'!$K$10*$C$6/100)^(1/'Perry et al-2015'!$K$10))) -> 0 | AH27: 2017-10-03 | AI27: 40 | AJ27: 10 | AK27: 215.1888889 | AL27: 00:00:00 | AM27: 0 | AN27: 00:00:00 | AO27: 0 | AP27: 00:00:00 | AQ27: 8.916666667 | AR27: 186.3666667 | AS27: 00:00:00 | AT27: 0 | AU27: 00:00:00 | AV27: 0 | AW27: 00:00:00 | BI27: 125 | BJ27: 1 | BK27: =BK26+Calculations!$C$6 -> 2017-01-25 | BL27: 4 | BM27: =RANDBETWEEN(VLOOKUP(BJ27,Calculations!$BB$6:$BE$17,4,FALSE)*100,VLOOKUP(BJ27,Calculations!$BB$6:$BE$17,3,FALSE)*100)/100 -> 40.1 | BN27: =RANDBETWEEN(VLOOKUP(BJ27,Calculations!$BB$6:$BH$17,7,FALSE)*100,VLOOKUP(BJ27,Calculations!$BB$6:$BH$17,6,FALSE)*100)/100 -> 40.87
A28: 1004 | B28: 40 | C28: 2017-10-04 | D28: =IF($C$6=7,VLOOKUP(B28,Calculations!$BL$3:$BM$55,2,FALSE),VLOOKUP($A28,Calculations!$BI$3:$BN$400,5,FALSE)) -> 50 | E28: 10 | F28: =MAX(0,'Perry et al-2015'!$K$11*(E28-'Perry et al-2015'!$K$13)*(1-EXP('Perry et al-2015'!$K$12*(E28-'Perry et al-2015'!$K$15)))) -> 2.836950493 | G28: =IF($C28<$AE$5,0,IF($C27<$AE$5,VLOOKUP(ROUND(MIN('Heming-1982'!$C$4,MAX('Heming-1982'!$C$3,$E28)),0),'Heming-1982'!$C$6:$D$9,2),($G27^'Perry et al-2015'!$K$10+$F28*'Perry et al-2015'!$K$10*$C$6/100)^(1/'Perry et al-2015'!$K$10))) -> 0 | H28: =IF($C28<$AE$7,0,IF($C27<$AE$7,VLOOKUP(ROUND(MIN('Heming-1982'!$C$4,MAX('Heming-1982'!$C$3,$E28)),0),'Heming-1982'!$C$6:$D$9,2),($H27^'Perry et al-2015'!$K$10+$F28*'Perry et al-2015'!$K$10*$C$6/100)^(1/'Perry et al-2015'!$K$10))) -> 0 | I28: =IF($C28<$AE$9,0,IF($C27<$AE$9,VLOOKUP(ROUND(MIN('Heming-1982'!$C$4,MAX('Heming-1982'!$C$3,Calculations!$E28)),0),'Heming-1982'!$C$6:$D$9,2),($I27^'Perry et al-2015'!$K$10+$F28*'Perry et al-2015'!$K$10*$C$6/100)^(1/'Perry et al-2015'!$K$10))) -> 0 | J28: =IF($C$6=7,VLOOKUP($B28,Calculations!$BL$3:$BM$55,2,FALSE),VLOOKUP($A28,Calculations!$BI$3:$BN$400,6,FALSE)) -> 46.33 | K28: 7.961111111 | L28: =MAX(0,'Perry et al-2015'!$K$11*(K28-'Perry et al-2015'!$K$13)*(1-EXP('Perry et al-2015'!$K$12*(K28-'Perry et al-2015'!$K$15)))) -> 2.124245359 | M28: =IF($C28<$AF$5,0,IF($C27<$AF$5,VLOOKUP(ROUND(MIN('Heming-1982'!$C$4,MAX('Heming-1982'!$C$3,$K28)),0),'Heming-1982'!$C$6:$D$9,2),(M27^'Perry et al-2015'!$K$10+$L28*'Perry et al-2015'!$K$10*$C$6/100)^(1/'Perry et al-2015'!$K$10))) -> 0 | N28: =IF($C28<$AF$7,0,IF($C27<$AF$7,VLOOKUP(ROUND(MIN('Heming-1982'!$C$4,MAX('Heming-1982'!$C$3,$K28)),0),'Heming-1982'!$C$6:$D$9,2),(N27^'Perry et al-2015'!$K$10+$L28*'Perry et al-2015'!$K$10*$C$6/100)^(1/'Perry et al-2015'!$K$10))) -> 0 | O28: =IF($C28<$AF$9,0,IF($C27<$AF$9,VLOOKUP(ROUND(MIN('Heming-1982'!$C$4,MAX('Heming-1982'!$C$3,$K28)),0),'Heming-1982'!$C$6:$D$9,2),(O27^'Perry et al-2015'!$K$10+$L28*'Perry et al-2015'!$K$10*$C$6/100)^(1/'Perry et al-2015'!$K$10))) -> 0 | AH28: 2017-10-04 | AI28: 40 | AJ28: 10 | AK28: 225.1888889 | AL28: 00:00:00 | AM28: 10 | AN28: 00:00:00 | AO28: 0 | AP28: 00:00:00 | AQ28: 7.961111111 | AR28: 194.3277778 | AS28: 00:00:00 | AT28: 7.961111111 | AU28: 00:00:00 | AV28: 0 | AW28: 00:00:00 | BI28: 126 | BJ28: 1 | BK28: =BK27+Calculations!$C$6 -> 2017-01-26 | BL28: 4 | BM28: =RANDBETWEEN(VLOOKUP(BJ28,Calculations!$BB$6:$BE$17,4,FALSE)*100,VLOOKUP(BJ28,Calculations!$BB$6:$BE$17,3,FALSE)*100)/100 -> 40.1 | BN28: =RANDBETWEEN(VLOOKUP(BJ28,Calculations!$BB$6:$BH$17,7,FALSE)*100,VLOOKUP(BJ28,Calculations!$BB$6:$BH$17,6,FALSE)*100)/100 -> 38.5
A29: 1005 | B29: 40 | C29: 2017-10-05 | D29: =IF($C$6=7,VLOOKUP(B29,Calculations!$BL$3:$BM$55,2,FALSE),VLOOKUP($A29,Calculations!$BI$3:$BN$400,5,FALSE)) -> 50 | E29: 10 | F29: =MAX(0,'Perry et al-2015'!$K$11*(E29-'Perry et al-2015'!$K$13)*(1-EXP('Perry et al-2015'!$K$12*(E29-'Perry et al-2015'!$K$15)))) -> 2.836950493 | G29: =IF($C29<$AE$5,0,IF($C28<$AE$5,VLOOKUP(ROUND(MIN('Heming-1982'!$C$4,MAX('Heming-1982'!$C$3,$E29)),0),'Heming-1982'!$C$6:$D$9,2),($G28^'Perry et al-2015'!$K$10+$F29*'Perry et al-2015'!$K$10*$C$6/100)^(1/'Perry et al-2015'!$K$10))) -> 0 | H29: =IF($C29<$AE$7,0,IF($C28<$AE$7,VLOOKUP(ROUND(MIN('Heming-1982'!$C$4,MAX('Heming-1982'!$C$3,$E29)),0),'Heming-1982'!$C$6:$D$9,2),($H28^'Perry et al-2015'!$K$10+$F29*'Perry et al-2015'!$K$10*$C$6/100)^(1/'Perry et al-2015'!$K$10))) -> 0 | I29: =IF($C29<$AE$9,0,IF($C28<$AE$9,VLOOKUP(ROUND(MIN('Heming-1982'!$C$4,MAX('Heming-1982'!$C$3,Calculations!$E29)),0),'Heming-1982'!$C$6:$D$9,2),($I28^'Perry et al-2015'!$K$10+$F29*'Perry et al-2015'!$K$10*$C$6/100)^(1/'Perry et al-2015'!$K$10))) -> 0 | J29: =IF($C$6=7,VLOOKUP($B29,Calculations!$BL$3:$BM$55,2,FALSE),VLOOKUP($A29,Calculations!$BI$3:$BN$400,6,FALSE)) -> 46.19 | K29: 7.883333333 | L29: =MAX(0,'Perry et al-2015'!$K$11*(K29-'Perry et al-2015'!$K$13)*(1-EXP('Perry et al-2015'!$K$12*(K29-'Perry et al-2015'!$K$15)))) -> 2.095467933 | M29: =IF($C29<$AF$5,0,IF($C28<$AF$5,VLOOKUP(ROUND(MIN('Heming-1982'!$C$4,MAX('Heming-1982'!$C$3,$K29)),0),'Heming-1982'!$C$6:$D$9,2),(M28^'Perry et al-2015'!$K$10+$L29*'Perry et al-2015'!$K$10*$C$6/100)^(1/'Perry et al-2015'!$K$10))) -> 0 | N29: =IF($C29<$AF$7,0,IF($C28<$AF$7,VLOOKUP(ROUND(MIN('Heming-1982'!$C$4,MAX('Heming-1982'!$C$3,$K29)),0),'Heming-1982'!$C$6:$D$9,2),(N28^'Perry et al-2015'!$K$10+$L29*'Perry et al-2015'!$K$10*$C$6/100)^(1/'Perry et al-2015'!$K$10))) -> 0 | O29: =IF($C29<$AF$9,0,IF($C28<$AF$9,VLOOKUP(ROUND(MIN('Heming-1982'!$C$4,MAX('Heming-1982'!$C$3,$K29)),0),'Heming-1982'!$C$6:$D$9,2),(O28^'Perry et al-2015'!$K$10+$L29*'Perry et al-2015'!$K$10*$C$6/100)^(1/'Perry et al-2015'!$K$10))) -> 0 | AH29: 2017-10-05 | AI29: 40 | AJ29: 10 | AK29: 235.1888889 | AL29: 00:00:00 | AM29: 20 | AN29: 00:00:00 | AO29: 0 | AP29: 00:00:00 | AQ29: 7.883333333 | AR29: 202.2111111 | AS29: 00:00:00 | AT29: 15.84444444 | AU29: 00:00:00 | AV29: 0 | AW29: 00:00:00 | BI29: 127 | BJ29: 1 | BK29: =BK28+Calculations!$C$6 -> 2017-01-27 | BL29: 4 | BM29: =RANDBETWEEN(VLOOKUP(BJ29,Calculations!$BB$6:$BE$17,4,FALSE)*100,VLOOKUP(BJ29,Calculations!$BB$6:$BE$17,3,FALSE)*100)/100 -> 40.1 | BN29: =RANDBETWEEN(VLOOKUP(BJ29,Calculations!$BB$6:$BH$17,7,FALSE)*100,VLOOKUP(BJ29,Calculations!$BB$6:$BH$17,6,FALSE)*100)/100 -> 38.5
A30: 1006 | B30: 40 | C30: 2017-10-06 | D30: =IF($C$6=7,VLOOKUP(B30,Calculations!$BL$3:$BM$55,2,FALSE),VLOOKUP($A30,Calculations!$BI$3:$BN$400,5,FALSE)) -> 50 | E30: 10 | F30: =MAX(0,'Perry et al-2015'!$K$11*(E30-'Perry et al-2015'!$K$13)*(1-EXP('Perry et al-2015'!$K$12*(E30-'Perry et al-2015'!$K$15)))) -> 2.836950493 | G30: =IF($C30<$AE$5,0,IF($C29<$AE$5,VLOOKUP(ROUND(MIN('Heming-1982'!$C$4,MAX('Heming-1982'!$C$3,$E30)),0),'Heming-1982'!$C$6:$D$9,2),($G29^'Perry et al-2015'!$K$10+$F30*'Perry et al-2015'!$K$10*$C$6/100)^(1/'Perry et al-2015'!$K$10))) -> 0 | H30: =IF($C30<$AE$7,0,IF($C29<$AE$7,VLOOKUP(ROUND(MIN('Heming-1982'!$C$4,MAX('Heming-1982'!$C$3,$E30)),0),'Heming-1982'!$C$6:$D$9,2),($H29^'Perry et al-2015'!$K$10+$F30*'Perry et al-2015'!$K$10*$C$6/100)^(1/'Perry et al-2015'!$K$10))) -> 0 | I30: =IF($C30<$AE$9,0,IF($C29<$AE$9,VLOOKUP(ROUND(MIN('Heming-1982'!$C$4,MAX('Heming-1982'!$C$3,Calculations!$E30)),0),'Heming-1982'!$C$6:$D$9,2),($I29^'Perry et al-2015'!$K$10+$F30*'Perry et al-2015'!$K$10*$C$6/100)^(1/'Perry et al-2015'!$K$10))) -> 0 | J30: =IF($C$6=7,VLOOKUP($B30,Calculations!$BL$3:$BM$55,2,FALSE),VLOOKUP($A30,Calculations!$BI$3:$BN$400,6,FALSE)) -> 49.94 | K30: 9.966666667 | L30: =MAX(0,'Perry et al-2015'!$K$11*(K30-'Perry et al-2015'!$K$13)*(1-EXP('Perry et al-2015'!$K$12*(K30-'Perry et al-2015'!$K$15)))) -> 2.826106998 | M30: =IF($C30<$AF$5,0,IF($C29<$AF$5,VLOOKUP(ROUND(MIN('Heming-1982'!$C$4,MAX('Heming-1982'!$C$3,$K30)),0),'Heming-1982'!$C$6:$D$9,2),(M29^'Perry et al-2015'!$K$10+$L30*'Perry et al-2015'!$K$10*$C$6/100)^(1/'Perry et al-2015'!$K$10))) -> 0 | N30: =IF($C30<$AF$7,0,IF($C29<$AF$7,VLOOKUP(ROUND(MIN('Heming-1982'!$C$4,MAX('Heming-1982'!$C$3,$K30)),0),'Heming-1982'!$C$6:$D$9,2),(N29^'Perry et al-2015'!$K$10+$L30*'Perry et al-2015'!$K$10*$C$6/100)^(1/'Perry et al-2015'!$K$10))) -> 0 | O30: =IF($C30<$AF$9,0,IF($C29<$AF$9,VLOOKUP(ROUND(MIN('Heming-1982'!$C$4,MAX('Heming-1982'!$C$3,$K30)),0),'Heming-1982'!$C$6:$D$9,2),(O29^'Perry et al-2015'!$K$10+$L30*'Perry et al-2015'!$K$10*$C$6/100)^(1/'Perry et al-2015'!$K$10))) -> 0 | AH30: 2017-10-06 | AI30: 40 | AJ30: 10 | AK30: 245.1888889 | AL30: 00:00:00 | AM30: 30 | AN30: 00:00:00 | AO30: 0 | AP30: 00:00:00 | AQ30: 9.966666667 | AR30: 212.1777778 | AS30: 00:00:00 | AT30: 25.81111111 | AU30: 00:00:00 | AV30: 0 | AW30: 00:00:00 | BI30: 128 | BJ30: 1 | BK30: =BK29+Calculations!$C$6 -> 2017-01-28 | BL30: 4 | BM30: =RANDBETWEEN(VLOOKUP(BJ30,Calculations!$BB$6:$BE$17,4,FALSE)*100,VLOOKUP(BJ30,Calculations!$BB$6:$BE$17,3,FALSE)*100)/100 -> 40.1 | BN30: =RANDBETWEEN(VLOOKUP(BJ30,Calculations!$BB$6:$BH$17,7,FALSE)*100,VLOOKUP(BJ30,Calculations!$BB$6:$BH$17,6,FALSE)*100)/100 -> 39.28
A31: 1007 | B31: 40 | C31: 2017-10-07 | D31: =IF($C$6=7,VLOOKUP(B31,Calculations!$BL$3:$BM$55,2,FALSE),VLOOKUP($A31,Calculations!$BI$3:$BN$400,5,FALSE)) -> 50 | E31: 10 | F31: =MAX(0,'Perry et al-2015'!$K$11*(E31-'Perry et al-2015'!$K$13)*(1-EXP('Perry et al-2015'!$K$12*(E31-'Perry et al-2015'!$K$15)))) -> 2.836950493 | G31: =IF($C31<$AE$5,0,IF($C30<$AE$5,VLOOKUP(ROUND(MIN('Heming-1982'!$C$4,MAX('Heming-1982'!$C$3,$E31)),0),'Heming-1982'!$C$6:$D$9,2),($G30^'Perry et al-2015'!$K$10+$F31*'Perry et al-2015'!$K$10*$C$6/100)^(1/'Perry et al-2015'!$K$10))) -> 0 | H31: =IF($C31<$AE$7,0,IF($C30<$AE$7,VLOOKUP(ROUND(MIN('Heming-1982'!$C$4,MAX('Heming-1982'!$C$3,$E31)),0),'Heming-1982'!$C$6:$D$9,2),($H30^'Perry et al-2015'!$K$10+$F31*'Perry et al-2015'!$K$10*$C$6/100)^(1/'Perry et al-2015'!$K$10))) -> 0 | I31: =IF($C31<$AE$9,0,IF($C30<$AE$9,VLOOKUP(ROUND(MIN('Heming-1982'!$C$4,MAX('Heming-1982'!$C$3,Calculations!$E31)),0),'Heming-1982'!$C$6:$D$9,2),($I30^'Perry et al-2015'!$K$10+$F31*'Perry et al-2015'!$K$10*$C$6/100)^(1/'Perry et al-2015'!$K$10))) -> 0 | J31: =IF($C$6=7,VLOOKUP($B31,Calculations!$BL$3:$BM$55,2,FALSE),VLOOKUP($A31,Calculations!$BI$3:$BN$400,6,FALSE)) -> 47.28 | K31: 8.488888889 | L31: =MAX(0,'Perry et al-2015'!$K$11*(K31-'Perry et al-2015'!$K$13)*(1-EXP('Perry et al-2015'!$K$12*(K31-'Perry et al-2015'!$K$15)))) -> 2.316936195 | M31: =IF($C31<$AF$5,0,IF($C30<$AF$5,VLOOKUP(ROUND(MIN('Heming-1982'!$C$4,MAX('Heming-1982'!$C$3,$K31)),0),'Heming-1982'!$C$6:$D$9,2),(M30^'Perry et al-2015'!$K$10+$L31*'Perry et al-2015'!$K$10*$C$6/100)^(1/'Perry et al-2015'!$K$10))) -> 0 | N31: =IF($C31<$AF$7,0,IF($C30<$AF$7,VLOOKUP(ROUND(MIN('Heming-1982'!$C$4,MAX('Heming-1982'!$C$3,$K31)),0),'Heming-1982'!$C$6:$D$9,2),(N30^'Perry et al-2015'!$K$10+$L31*'Perry et al-2015'!$K$10*$C$6/100)^(1/'Perry et al-2015'!$K$10))) -> 0 | O31: =IF($C31<$AF$9,0,IF($C30<$AF$9,VLOOKUP(ROUND(MIN('Heming-1982'!$C$4,MAX('Heming-1982'!$C$3,$K31)),0),'Heming-1982'!$C$6:$D$9,2),(O30^'Perry et al-2015'!$K$10+$L31*'Perry et al-2015'!$K$10*$C$6/100)^(1/'Perry et al-2015'!$K$10))) -> 0 | AH31: 2017-10-07 | AI31: 40 | AJ31: 10 | AK31: 255.1888889 | AL31: 00:00:00 | AM31: 40 | AN31: 00:00:00 | AO31: 0 | AP31: 00:00:00 | AQ31: 8.488888889 | AR31: 220.6666667 | AS31: 00:00:00 | AT31: 34.3 | AU31: 00:00:00 | AV31: 0 | AW31: 00:00:00 | BI31: 129 | BJ31: 1 | BK31: =BK30+Calculations!$C$6 -> 2017-01-29 | BL31: 5 | BM31: =RANDBETWEEN(VLOOKUP(BJ31,Calculations!$BB$6:$BE$17,4,FALSE)*100,VLOOKUP(BJ31,Calculations!$BB$6:$BE$17,3,FALSE)*100)/100 -> 40.1 | BN31: =RANDBETWEEN(VLOOKUP(BJ31,Calculations!$BB$6:$BH$17,7,FALSE)*100,VLOOKUP(BJ31,Calculations!$BB$6:$BH$17,6,FALSE)*100)/100 -> 40.2
A32: 1008 | B32: 41 | C32: 2017-10-08 | D32: =IF($C$6=7,VLOOKUP(B32,Calculations!$BL$3:$BM$55,2,FALSE),VLOOKUP($A32,Calculations!$BI$3:$BN$400,5,FALSE)) -> 50 | E32: 10 | F32: =MAX(0,'Perry et al-2015'!$K$11*(E32-'Perry et al-2015'!$K$13)*(1-EXP('Perry et al-2015'!$K$12*(E32-'Perry et al-2015'!$K$15)))) -> 2.836950493 | G32: =IF($C32<$AE$5,0,IF($C31<$AE$5,VLOOKUP(ROUND(MIN('Heming-1982'!$C$4,MAX('Heming-1982'!$C$3,$E32)),0),'Heming-1982'!$C$6:$D$9,2),($G31^'Perry et al-2015'!$K$10+$F32*'Perry et al-2015'!$K$10*$C$6/100)^(1/'Perry et al-2015'!$K$10))) -> 0 | H32: =IF($C32<$AE$7,0,IF($C31<$AE$7,VLOOKUP(ROUND(MIN('Heming-1982'!$C$4,MAX('Heming-1982'!$C$3,$E32)),0),'Heming-1982'!$C$6:$D$9,2),($H31^'Perry et al-2015'!$K$10+$F32*'Perry et al-2015'!$K$10*$C$6/100)^(1/'Perry et al-2015'!$K$10))) -> 0 | I32: =IF($C32<$AE$9,0,IF($C31<$AE$9,VLOOKUP(ROUND(MIN('Heming-1982'!$C$4,MAX('Heming-1982'!$C$3,Calculations!$E32)),0),'Heming-1982'!$C$6:$D$9,2),($I31^'Perry et al-2015'!$K$10+$F32*'Perry et al-2015'!$K$10*$C$6/100)^(1/'Perry et al-2015'!$K$10))) -> 0 | J32: =IF($C$6=7,VLOOKUP($B32,Calculations!$BL$3:$BM$55,2,FALSE),VLOOKUP($A32,Calculations!$BI$3:$BN$400,6,FALSE)) -> 46.15 | K32: 7.861111111 | L32: =MAX(0,'Perry et al-2015'!$K$11*(K32-'Perry et al-2015'!$K$13)*(1-EXP('Perry et al-2015'!$K$12*(K32-'Perry et al-2015'!$K$15)))) -> 2.087229059 | M32: =IF($C32<$AF$5,0,IF($C31<$AF$5,VLOOKUP(ROUND(MIN('Heming-1982'!$C$4,MAX('Heming-1982'!$C$3,$K32)),0),'Heming-1982'!$C$6:$D$9,2),(M31^'Perry et al-2015'!$K$10+$L32*'Perry et al-2015'!$K$10*$C$6/100)^(1/'Perry et al-2015'!$K$10))) -> 0 | N32: =IF($C32<$AF$7,0,IF($C31<$AF$7,VLOOKUP(ROUND(MIN('Heming-1982'!$C$4,MAX('Heming-1982'!$C$3,$K32)),0),'Heming-1982'!$C$6:$D$9,2),(N31^'Perry et al-2015'!$K$10+$L32*'Perry et al-2015'!$K$10*$C$6/100)^(1/'Perry et al-2015'!$K$10))) -> 0 | O32: =IF($C32<$AF$9,0,IF($C31<$AF$9,VLOOKUP(ROUND(MIN('Heming-1982'!$C$4,MAX('Heming-1982'!$C$3,$K32)),0),'Heming-1982'!$C$6:$D$9,2),(O31^'Perry et al-2015'!$K$10+$L32*'Perry et al-2015'!$K$10*$C$6/100)^(1/'Perry et al-2015'!$K$10))) -> 0 | AH32: 2017-10-08 | AI32: 41 | AJ32: 10 | AK32: 265.1888889 | AL32: 00:00:00 | AM32: 50 | AN32: 00:00:00 | AO32: 0 | AP32: 00:00:00 | AQ32: 7.861111111 | AR32: 228.5277778 | AS32: 00:00:00 | AT32: 42.16111111 | AU32: 00:00:00 | AV32: 0 | AW32: 00:00:00 | BI32: 130 | BJ32: 1 | BK32: =BK31+Calculations!$C$6 -> 2017-01-30 | BL32: 5 | BM32: =RANDBETWEEN(VLOOKUP(BJ32,Calculations!$BB$6:$BE$17,4,FALSE)*100,VLOOKUP(BJ32,Calculations!$BB$6:$BE$17,3,FALSE)*100)/100 -> 40.1 | BN32: =RANDBETWEEN(VLOOKUP(BJ32,Calculations!$BB$6:$BH$17,7,FALSE)*100,VLOOKUP(BJ32,Calculations!$BB$6:$BH$17,6,FALSE)*100)/100 -> 41.06
A33: 1009 | B33: 41 | C33: 2017-10-09 | D33: =IF($C$6=7,VLOOKUP(B33,Calculations!$BL$3:$BM$55,2,FALSE),VLOOKUP($A33,Calculations!$BI$3:$BN$400,5,FALSE)) -> 50 | E33: 10 | F33: =MAX(0,'Perry et al-2015'!$K$11*(E33-'Perry et al-2015'!$K$13)*(1-EXP('Perry et al-2015'!$K$12*(E33-'Perry et al-2015'!$K$15)))) -> 2.836950493 | G33: =IF($C33<$AE$5,0,IF($C32<$AE$5,VLOOKUP(ROUND(MIN('Heming-1982'!$C$4,MAX('Heming-1982'!$C$3,$E33)),0),'Heming-1982'!$C$6:$D$9,2),($G32^'Perry et al-2015'!$K$10+$F33*'Perry et al-2015'!$K$10*$C$6/100)^(1/'Perry et al-2015'!$K$10))) -> 0 | H33: =IF($C33<$AE$7,0,IF($C32<$AE$7,VLOOKUP(ROUND(MIN('Heming-1982'!$C$4,MAX('Heming-1982'!$C$3,$E33)),0),'Heming-1982'!$C$6:$D$9,2),($H32^'Perry et al-2015'!$K$10+$F33*'Perry et al-2015'!$K$10*$C$6/100)^(1/'Perry et al-2015'!$K$10))) -> 0 | I33: =IF($C33<$AE$9,0,IF($C32<$AE$9,VLOOKUP(ROUND(MIN('Heming-1982'!$C$4,MAX('Heming-1982'!$C$3,Calculations!$E33)),0),'Heming-1982'!$C$6:$D$9,2),($I32^'Perry et al-2015'!$K$10+$F33*'Perry et al-2015'!$K$10*$C$6/100)^(1/'Perry et al-2015'!$K$10))) -> 0 | J33: =IF($C$6=7,VLOOKUP($B33,Calculations!$BL$3:$BM$55,2,FALSE),VLOOKUP($A33,Calculations!$BI$3:$BN$400,6,FALSE)) -> 48.11 | K33: 8.95 | L33: =MAX(0,'Perry et al-2015'!$K$11*(K33-'Perry et al-2015'!$K$13)*(1-EXP('Perry et al-2015'!$K$12*(K33-'Perry et al-2015'!$K$15)))) -> 2.481136565 | M33: =IF($C33<$AF$5,0,IF($C32<$AF$5,VLOOKUP(ROUND(MIN('Heming-1982'!$C$4,MAX('Heming-1982'!$C$3,$K33)),0),'Heming-1982'!$C$6:$D$9,2),(M32^'Perry et al-2015'!$K$10+$L33*'Perry et al-2015'!$K$10*$C$6/100)^(1/'Perry et al-2015'!$K$10))) -> 0 | N33: =IF($C33<$AF$7,0,IF($C32<$AF$7,VLOOKUP(ROUND(MIN('Heming-1982'!$C$4,MAX('Heming-1982'!$C$3,$K33)),0),'Heming-1982'!$C$6:$D$9,2),(N32^'Perry et al-2015'!$K$10+$L33*'Perry et al-2015'!$K$10*$C$6/100)^(1/'Perry et al-2015'!$K$10))) -> 0 | O33: =IF($C33<$AF$9,0,IF($C32<$AF$9,VLOOKUP(ROUND(MIN('Heming-1982'!$C$4,MAX('Heming-1982'!$C$3,$K33)),0),'Heming-1982'!$C$6:$D$9,2),(O32^'Perry et al-2015'!$K$10+$L33*'Perry et al-2015'!$K$10*$C$6/100)^(1/'Perry et al-2015'!$K$10))) -> 0 | AH33: 2017-10-09 | AI33: 41 | AJ33: 10 | AK33: 275.1888889 | AL33: 00:00:00 | AM33: 60 | AN33: 00:00:00 | AO33: 0 | AP33: 00:00:00 | AQ33: 8.95 | AR33: 237.4777778 | AS33: 00:00:00 | AT33: 51.11111111 | AU33: 00:00:00 | AV33: 0 | AW33: 00:00:00 | BI33: 131 | BJ33: 1 | BK33: =BK32+Calculations!$C$6 -> 2017-01-31 | BL33: 5 | BM33: =RANDBETWEEN(VLOOKUP(BJ33,Calculations!$BB$6:$BE$17,4,FALSE)*100,VLOOKUP(BJ33,Calculations!$BB$6:$BE$17,3,FALSE)*100)/100 -> 40.1 | BN33: =RANDBETWEEN(VLOOKUP(BJ33,Calculations!$BB$6:$BH$17,7,FALSE)*100,VLOOKUP(BJ33,Calculations!$BB$6:$BH$17,6,FALSE)*100)/100 -> 40.49
A34: 1010 | B34: 41 | C34: 2017-10-10 | D34: =IF($C$6=7,VLOOKUP(B34,Calculations!$BL$3:$BM$55,2,FALSE),VLOOKUP($A34,Calculations!$BI$3:$BN$400,5,FALSE)) -> 50 | E34: 10 | F34: =MAX(0,'Perry et al-2015'!$K$11*(E34-'Perry et al-2015'!$K$13)*(1-EXP('Perry et al-2015'!$K$12*(E34-'Perry et al-2015'!$K$15)))) -> 2.836950493 | G34: =IF($C34<$AE$5,0,IF($C33<$AE$5,VLOOKUP(ROUND(MIN('Heming-1982'!$C$4,MAX('Heming-1982'!$C$3,$E34)),0),'Heming-1982'!$C$6:$D$9,2),($G33^'Perry et al-2015'!$K$10+$F34*'Perry et al-2015'!$K$10*$C$6/100)^(1/'Perry et al-2015'!$K$10))) -> 0 | H34: =IF($C34<$AE$7,0,IF($C33<$AE$7,VLOOKUP(ROUND(MIN('Heming-1982'!$C$4,MAX('Heming-1982'!$C$3,$E34)),0),'Heming-1982'!$C$6:$D$9,2),($H33^'Perry et al-2015'!$K$10+$F34*'Perry et al-2015'!$K$10*$C$6/100)^(1/'Perry et al-2015'!$K$10))) -> 0 | I34: =IF($C34<$AE$9,0,IF($C33<$AE$9,VLOOKUP(ROUND(MIN('Heming-1982'!$C$4,MAX('Heming-1982'!$C$3,Calculations!$E34)),0),'Heming-1982'!$C$6:$D$9,2),($I33^'Perry et al-2015'!$K$10+$F34*'Perry et al-2015'!$K$10*$C$6/100)^(1/'Perry et al-2015'!$K$10))) -> 0 | J34: =IF($C$6=7,VLOOKUP($B34,Calculations!$BL$3:$BM$55,2,FALSE),VLOOKUP($A34,Calculations!$BI$3:$BN$400,6,FALSE)) -> 47.41 | K34: 8.561111111 | L34: =MAX(0,'Perry et al-2015'!$K$11*(K34-'Perry et al-2015'!$K$13)*(1-EXP('Perry et al-2015'!$K$12*(K34-'Perry et al-2015'!$K$15)))) -> 2.342926884 | M34: =IF($C34<$AF$5,0,IF($C33<$AF$5,VLOOKUP(ROUND(MIN('Heming-1982'!$C$4,MAX('Heming-1982'!$C$3,$K34)),0),'Heming-1982'!$C$6:$D$9,2),(M33^'Perry et al-2015'!$K$10+$L34*'Perry et al-2015'!$K$10*$C$6/100)^(1/'Perry et al-2015'!$K$10))) -> 0 | N34: =IF($C34<$AF$7,0,IF($C33<$AF$7,VLOOKUP(ROUND(MIN('Heming-1982'!$C$4,MAX('Heming-1982'!$C$3,$K34)),0),'Heming-1982'!$C$6:$D$9,2),(N33^'Perry et al-2015'!$K$10+$L34*'Perry et al-2015'!$K$10*$C$6/100)^(1/'Perry et al-2015'!$K$10))) -> 0 | O34: =IF($C34<$AF$9,0,IF($C33<$AF$9,VLOOKUP(ROUND(MIN('Heming-1982'!$C$4,MAX('Heming-1982'!$C$3,$K34)),0),'Heming-1982'!$C$6:$D$9,2),(O33^'Perry et al-2015'!$K$10+$L34*'Perry et al-2015'!$K$10*$C$6/100)^(1/'Perry et al-2015'!$K$10))) -> 0 | AH34: 2017-10-10 | AI34: 41 | AJ34: 10 | AK34: 285.1888889 | AL34: 00:00:00 | AM34: 70 | AN34: 00:00:00 | AO34: 0 | AP34: 00:00:00 | AQ34: 8.561111111 | AR34: 246.0388889 | AS34: 00:00:00 | AT34: 59.67222222 | AU34: 00:00:00 | AV34: 0 | AW34: 00:00:00 | BI34: 201 | BJ34: 2 | BK34: =BK33+Calculations!$C$6 -> 2017-02-01 | BL34: 5 | BM34: =RANDBETWEEN(VLOOKUP(BJ34,Calculations!$BB$6:$BE$17,4,FALSE)*100,VLOOKUP(BJ34,Calculations!$BB$6:$BE$17,3,FALSE)*100)/100 -> 41.69 | BN34: =RANDBETWEEN(VLOOKUP(BJ34,Calculations!$BB$6:$BH$17,7,FALSE)*100,VLOOKUP(BJ34,Calculations!$BB$6:$BH$17,6,FALSE)*100)/100 -> 41.29
A35: 1011 | B35: 41 | C35: 2017-10-11 | D35: =IF($C$6=7,VLOOKUP(B35,Calculations!$BL$3:$BM$55,2,FALSE),VLOOKUP($A35,Calculations!$BI$3:$BN$400,5,FALSE)) -> 50 | E35: 10 | F35: =MAX(0,'Perry et al-2015'!$K$11*(E35-'Perry et al-2015'!$K$13)*(1-EXP('Perry et al-2015'!$K$12*(E35-'Perry et al-2015'!$K$15)))) -> 2.836950493 | G35: =IF($C35<$AE$5,0,IF($C34<$AE$5,VLOOKUP(ROUND(MIN('Heming-1982'!$C$4,MAX('Heming-1982'!$C$3,$E35)),0),'Heming-1982'!$C$6:$D$9,2),($G34^'Perry et al-2015'!$K$10+$F35*'Perry et al-2015'!$K$10*$C$6/100)^(1/'Perry et al-2015'!$K$10))) -> 0 | H35: =IF($C35<$AE$7,0,IF($C34<$AE$7,VLOOKUP(ROUND(MIN('Heming-1982'!$C$4,MAX('Heming-1982'!$C$3,$E35)),0),'Heming-1982'!$C$6:$D$9,2),($H34^'Perry et al-2015'!$K$10+$F35*'Perry et al-2015'!$K$10*$C$6/100)^(1/'Perry et al-2015'!$K$10))) -> 0 | I35: =IF($C35<$AE$9,0,IF($C34<$AE$9,VLOOKUP(ROUND(MIN('Heming-1982'!$C$4,MAX('Heming-1982'!$C$3,Calculations!$E35)),0),'Heming-1982'!$C$6:$D$9,2),($I34^'Perry et al-2015'!$K$10+$F35*'Perry et al-2015'!$K$10*$C$6/100)^(1/'Perry et al-2015'!$K$10))) -> 0 | J35: =IF($C$6=7,VLOOKUP($B35,Calculations!$BL$3:$BM$55,2,FALSE),VLOOKUP($A35,Calculations!$BI$3:$BN$400,6,FALSE)) -> 51.34 | K35: 10.74444444 | L35: =MAX(0,'Perry et al-2015'!$K$11*(K35-'Perry et al-2015'!$K$13)*(1-EXP('Perry et al-2015'!$K$12*(K35-'Perry et al-2015'!$K$15)))) -> 3.069770363 | M35: =IF($C35<$AF$5,0,IF($C34<$AF$5,VLOOKUP(ROUND(MIN('Heming-1982'!$C$4,MAX('Heming-1982'!$C$3,$K35)),0),'Heming-1982'!$C$6:$D$9,2),(M34^'Perry et al-2015'!$K$10+$L35*'Perry et al-2015'!$K$10*$C$6/100)^(1/'Perry et al-2015'!$K$10))) -> 0 | N35: =IF($C35<$AF$7,0,IF($C34<$AF$7,VLOOKUP(ROUND(MIN('Heming-1982'!$C$4,MAX('Heming-1982'!$C$3,$K35)),0),'Heming-1982'!$C$6:$D$9,2),(N34^'Perry et al-2015'!$K$10+$L35*'Perry et al-2015'!$K$10*$C$6/100)^(1/'Perry et al-2015'!$K$10))) -> 0 | O35: =IF($C35<$AF$9,0,IF($C34<$AF$9,VLOOKUP(ROUND(MIN('Heming-1982'!$C$4,MAX('Heming-1982'!$C$3,$K35)),0),'Heming-1982'!$C$6:$D$9,2),(O34^'Perry et al-2015'!$K$10+$L35*'Perry et al-2015'!$K$10*$C$6/100)^(1/'Perry et al-2015'!$K$10))) -> 0 | AH35: 2017-10-11 | AI35: 41 | AJ35: 10 | AK35: 295.1888889 | AL35: 00:00:00 | AM35: 80 | AN35: 00:00:00 | AO35: 0 | AP35: 00:00:00 | AQ35: 10.74444444 | AR35: 256.7833333 | AS35: 00:00:00 | AT35: 70.41666667 | AU35: 00:00:00 | AV35: 0 | AW35: 00:00:00 | BI35: 202 | BJ35: 2 | BK35: =BK34+Calculations!$C$6 -> 2017-02-02 | BL35: 5 | BM35: =RANDBETWEEN(VLOOKUP(BJ35,Calculations!$BB$6:$BE$17,4,FALSE)*100,VLOOKUP(BJ35,Calculations!$BB$6:$BE$17,3,FALSE)*100)/100 -> 41.27 | BN35: =RANDBETWEEN(VLOOKUP(BJ35,Calculations!$BB$6:$BH$17,7,FALSE)*100,VLOOKUP(BJ35,Calculations!$BB$6:$BH$17,6,FALSE)*100)/100 -> 39.9
A36: 1012 | B36: 41 | C36: 2017-10-12 | D36: =IF($C$6=7,VLOOKUP(B36,Calculations!$BL$3:$BM$55,2,FALSE),VLOOKUP($A36,Calculations!$BI$3:$BN$400,5,FALSE)) -> 50 | E36: 10 | F36: =MAX(0,'Perry et al-2015'!$K$11*(E36-'Perry et al-2015'!$K$13)*(1-EXP('Perry et al-2015'!$K$12*(E36-'Perry et al-2015'!$K$15)))) -> 2.836950493 | G36: =IF($C36<$AE$5,0,IF($C35<$AE$5,VLOOKUP(ROUND(MIN('Heming-1982'!$C$4,MAX('Heming-1982'!$C$3,$E36)),0),'Heming-1982'!$C$6:$D$9,2),($G35^'Perry et al-2015'!$K$10+$F36*'Perry et al-2015'!$K$10*$C$6/100)^(1/'Perry et al-2015'!$K$10))) -> 0 | H36: =IF($C36<$AE$7,0,IF($C35<$AE$7,VLOOKUP(ROUND(MIN('Heming-1982'!$C$4,MAX('Heming-1982'!$C$3,$E36)),0),'Heming-1982'!$C$6:$D$9,2),($H35^'Perry et al-2015'!$K$10+$F36*'Perry et al-2015'!$K$10*$C$6/100)^(1/'Perry et al-2015'!$K$10))) -> 0 | I36: =IF($C36<$AE$9,0,IF($C35<$AE$9,VLOOKUP(ROUND(MIN('Heming-1982'!$C$4,MAX('Heming-1982'!$C$3,Calculations!$E36)),0),'Heming-1982'!$C$6:$D$9,2),($I35^'Perry et al-2015'!$K$10+$F36*'Perry et al-2015'!$K$10*$C$6/100)^(1/'Perry et al-2015'!$K$10))) -> 0 | J36: =IF($C$6=7,VLOOKUP($B36,Calculations!$BL$3:$BM$55,2,FALSE),VLOOKUP($A36,Calculations!$BI$3:$BN$400,6,FALSE)) -> 51.69 | K36: 10.93888889 | L36: =MAX(0,'Perry et al-2015'!$K$11*(K36-'Perry et al-2015'!$K$13)*(1-EXP('Perry et al-2015'!$K$12*(K36-'Perry et al-2015'!$K$15)))) -> 3.127310074 | M36: =IF($C36<$AF$5,0,IF($C35<$AF$5,VLOOKUP(ROUND(MIN('Heming-1982'!$C$4,MAX('Heming-1982'!$C$3,$K36)),0),'Heming-1982'!$C$6:$D$9,2),(M35^'Perry et al-2015'!$K$10+$L36*'Perry et al-2015'!$K$10*$C$6/100)^(1/'Perry et al-2015'!$K$10))) -> 0 | N36: =IF($C36<$AF$7,0,IF($C35<$AF$7,VLOOKUP(ROUND(MIN('Heming-1982'!$C$4,MAX('Heming-1982'!$C$3,$K36)),0),'Heming-1982'!$C$6:$D$9,2),(N35^'Perry et al-2015'!$K$10+$L36*'Perry et al-2015'!$K$10*$C$6/100)^(1/'Perry et al-2015'!$K$10))) -> 0 | O36: =IF($C36<$AF$9,0,IF($C35<$AF$9,VLOOKUP(ROUND(MIN('Heming-1982'!$C$4,MAX('Heming-1982'!$C$3,$K36)),0),'Heming-1982'!$C$6:$D$9,2),(O35^'Perry et al-2015'!$K$10+$L36*'Perry et al-2015'!$K$10*$C$6/100)^(1/'Perry et al-2015'!$K$10))) -> 0 | AH36: 2017-10-12 | AI36: 41 | AJ36: 10 | AK36: 305.1888889 | AL36: 00:00:00 | AM36: 90 | AN36: 00:00:00 | AO36: 0 | AP36: 00:00:00 | AQ36: 10.93888889 | AR36: 267.7222222 | AS36: 00:00:00 | AT36: 81.35555556 | AU36: 00:00:00 | AV36: 0 | AW36: 00:00:00 | BI36: 203 | BJ36: 2 | BK36: =BK35+Calculations!$C$6 -> 2017-02-03 | BL36: 5 | BM36: =RANDBETWEEN(VLOOKUP(BJ36,Calculations!$BB$6:$BE$17,4,FALSE)*100,VLOOKUP(BJ36,Calculations!$BB$6:$BE$17,3,FALSE)*100)/100 -> 41.09 | BN36: =RANDBETWEEN(VLOOKUP(BJ36,Calculations!$BB$6:$BH$17,7,FALSE)*100,VLOOKUP(BJ36,Calculations!$BB$6:$BH$17,6,FALSE)*100)/100 -> 41.56
A37: 1013 | B37: 41 | C37: 2017-10-13 | D37: =IF($C$6=7,VLOOKUP(B37,Calculations!$BL$3:$BM$55,2,FALSE),VLOOKUP($A37,Calculations!$BI$3:$BN$400,5,FALSE)) -> 50 | E37: 10 | F37: =MAX(0,'Perry et al-2015'!$K$11*(E37-'Perry et al-2015'!$K$13)*(1-EXP('Perry et al-2015'!$K$12*(E37-'Perry et al-2015'!$K$15)))) -> 2.836950493 | G37: =IF($C37<$AE$5,0,IF($C36<$AE$5,VLOOKUP(ROUND(MIN('Heming-1982'!$C$4,MAX('Heming-1982'!$C$3,$E37)),0),'Heming-1982'!$C$6:$D$9,2),($G36^'Perry et al-2015'!$K$10+$F37*'Perry et al-2015'!$K$10*$C$6/100)^(1/'Perry et al-2015'!$K$10))) -> 0 | H37: =IF($C37<$AE$7,0,IF($C36<$AE$7,VLOOKUP(ROUND(MIN('Heming-1982'!$C$4,MAX('Heming-1982'!$C$3,$E37)),0),'Heming-1982'!$C$6:$D$9,2),($H36^'Perry et al-2015'!$K$10+$F37*'Perry et al-2015'!$K$10*$C$6/100)^(1/'Perry et al-2015'!$K$10))) -> 0 | I37: =IF($C37<$AE$9,0,IF($C36<$AE$9,VLOOKUP(ROUND(MIN('Heming-1982'!$C$4,MAX('Heming-1982'!$C$3,Calculations!$E37)),0),'Heming-1982'!$C$6:$D$9,2),($I36^'Perry et al-2015'!$K$10+$F37*'Perry et al-2015'!$K$10*$C$6/100)^(1/'Perry et al-2015'!$K$10))) -> 0 | J37: =IF($C$6=7,VLOOKUP($B37,Calculations!$BL$3:$BM$55,2,FALSE),VLOOKUP($A37,Calculations!$BI$3:$BN$400,6,FALSE)) -> 49.91 | K37: 9.95 | L37: =MAX(0,'Perry et al-2015'!$K$11*(K37-'Perry et al-2015'!$K$13)*(1-EXP('Perry et al-2015'!$K$12*(K37-'Perry et al-2015'!$K$15)))) -> 2.820672907 | M37: =IF($C37<$AF$5,0,IF($C36<$AF$5,VLOOKUP(ROUND(MIN('Heming-1982'!$C$4,MAX('Heming-1982'!$C$3,$K37)),0),'Heming-1982'!$C$6:$D$9,2),(M36^'Perry et al-2015'!$K$10+$L37*'Perry et al-2015'!$K$10*$C$6/100)^(1/'Perry et al-2015'!$K$10))) -> 0 | N37: =IF($C37<$AF$7,0,IF($C36<$AF$7,VLOOKUP(ROUND(MIN('Heming-1982'!$C$4,MAX('Heming-1982'!$C$3,$K37)),0),'Heming-1982'!$C$6:$D$9,2),(N36^'Perry et al-2015'!$K$10+$L37*'Perry et al-2015'!$K$10*$C$6/100)^(1/'Perry et al-2015'!$K$10))) -> 0 | O37: =IF($C37<$AF$9,0,IF($C36<$AF$9,VLOOKUP(ROUND(MIN('Heming-1982'!$C$4,MAX('Heming-1982'!$C$3,$K37)),0),'Heming-1982'!$C$6:$D$9,2),(O36^'Perry et al-2015'!$K$10+$L37*'Perry et al-2015'!$K$10*$C$6/100)^(1/'Perry et al-2015'!$K$10))) -> 0 | AH37: 2017-10-13 | AI37: 41 | AJ37: 10 | AK37: 315.1888889 | AL37: 00:00:00 | AM37: 100 | AN37: 00:00:00 | AO37: 0 | AP37: 00:00:00 | AQ37: 9.95 | AR37: 277.6722222 | AS37: 00:00:00 | AT37: 91.30555556 | AU37: 00:00:00 | AV37: 0 | AW37: 00:00:00 | BI37: 204 | BJ37: 2 | BK37: =BK36+Calculations!$C$6 -> 2017-02-04 | BL37: 5 | BM37: =RANDBETWEEN(VLOOKUP(BJ37,Calculations!$BB$6:$BE$17,4,FALSE)*100,VLOOKUP(BJ37,Calculations!$BB$6:$BE$17,3,FALSE)*100)/100 -> 41.12 | BN37: =RANDBETWEEN(VLOOKUP(BJ37,Calculations!$BB$6:$BH$17,7,FALSE)*100,VLOOKUP(BJ37,Calculations!$BB$6:$BH$17,6,FALSE)*100)/100 -> 41.29
A38: 1014 | B38: 41 | C38: 2017-10-14 | D38: =IF($C$6=7,VLOOKUP(B38,Calculations!$BL$3:$BM$55,2,FALSE),VLOOKUP($A38,Calculations!$BI$3:$BN$400,5,FALSE)) -> 50 | E38: 10 | F38: =MAX(0,'Perry et al-2015'!$K$11*(E38-'Perry et al-2015'!$K$13)*(1-EXP('Perry et al-2015'!$K$12*(E38-'Perry et al-2015'!$K$15)))) -> 2.836950493 | G38: =IF($C38<$AE$5,0,IF($C37<$AE$5,VLOOKUP(ROUND(MIN('Heming-1982'!$C$4,MAX('Heming-1982'!$C$3,$E38)),0),'Heming-1982'!$C$6:$D$9,2),($G37^'Perry et al-2015'!$K$10+$F38*'Perry et al-2015'!$K$10*$C$6/100)^(1/'Perry et al-2015'!$K$10))) -> 0 | H38: =IF($C38<$AE$7,0,IF($C37<$AE$7,VLOOKUP(ROUND(MIN('Heming-1982'!$C$4,MAX('Heming-1982'!$C$3,$E38)),0),'Heming-1982'!$C$6:$D$9,2),($H37^'Perry et al-2015'!$K$10+$F38*'Perry et al-2015'!$K$10*$C$6/100)^(1/'Perry et al-2015'!$K$10))) -> 0 | I38: =IF($C38<$AE$9,0,IF($C37<$AE$9,VLOOKUP(ROUND(MIN('Heming-1982'!$C$4,MAX('Heming-1982'!$C$3,Calculations!$E38)),0),'Heming-1982'!$C$6:$D$9,2),($I37^'Perry et al-2015'!$K$10+$F38*'Perry et al-2015'!$K$10*$C$6/100)^(1/'Perry et al-2015'!$K$10))) -> 0 | J38: =IF($C$6=7,VLOOKUP($B38,Calculations!$BL$3:$BM$55,2,FALSE),VLOOKUP($A38,Calculations!$BI$3:$BN$400,6,FALSE)) -> 50.38 | K38: 10.21111111 | L38: =MAX(0,'Perry et al-2015'!$K$11*(K38-'Perry et al-2015'!$K$13)*(1-EXP('Perry et al-2015'!$K$12*(K38-'Perry et al-2015'!$K$15)))) -> 2.904839818 | M38: =IF($C38<$AF$5,0,IF($C37<$AF$5,VLOOKUP(ROUND(MIN('Heming-1982'!$C$4,MAX('Heming-1982'!$C$3,$K38)),0),'Heming-1982'!$C$6:$D$9,2),(M37^'Perry et al-2015'!$K$10+$L38*'Perry et al-2015'!$K$10*$C$6/100)^(1/'Perry et al-2015'!$K$10))) -> 0 | N38: =IF($C38<$AF$7,0,IF($C37<$AF$7,VLOOKUP(ROUND(MIN('Heming-1982'!$C$4,MAX('Heming-1982'!$C$3,$K38)),0),'Heming-1982'!$C$6:$D$9,2),(N37^'Perry et al-2015'!$K$10+$L38*'Perry et al-2015'!$K$10*$C$6/100)^(1/'Perry et al-2015'!$K$10))) -> 0 | O38: =IF($C38<$AF$9,0,IF($C37<$AF$9,VLOOKUP(ROUND(MIN('Heming-1982'!$C$4,MAX('Heming-1982'!$C$3,$K38)),0),'Heming-1982'!$C$6:$D$9,2),(O37^'Perry et al-2015'!$K$10+$L38*'Perry et al-2015'!$K$10*$C$6/100)^(1/'Perry et al-2015'!$K$10))) -> 0 | AH38: 2017-10-14 | AI38: 41 | AJ38: 10 | AK38: 325.1888889 | AL38: 00:00:00 | AM38: 110 | AN38: 00:00:00 | AO38: 0 | AP38: 00:00:00 | AQ38: 10.21111111 | AR38: 287.8833333 | AS38: 00:00:00 | AT38: 101.5166667 | AU38: 00:00:00 | AV38: 0 | AW38: 00:00:00 | BI38: 205 | BJ38: 2 | BK38: =BK37+Calculations!$C$6 -> 2017-02-05 | BL38: 6 | BM38: =RANDBETWEEN(VLOOKUP(BJ38,Calculations!$BB$6:$BE$17,4,FALSE)*100,VLOOKUP(BJ38,Calculations!$BB$6:$BE$17,3,FALSE)*100)/100 -> 41.95 | BN38: =RANDBETWEEN(VLOOKUP(BJ38,Calculations!$BB$6:$BH$17,7,FALSE)*100,VLOOKUP(BJ38,Calculations!$BB$6:$BH$17,6,FALSE)*100)/100 -> 40.27
A39: 1015 | B39: 42 | C39: 2017-10-15 | D39: =IF($C$6=7,VLOOKUP(B39,Calculations!$BL$3:$BM$55,2,FALSE),VLOOKUP($A39,Calculations!$BI$3:$BN$400,5,FALSE)) -> 50 | E39: 10 | F39: =MAX(0,'Perry et al-2015'!$K$11*(E39-'Perry et al-2015'!$K$13)*(1-EXP('Perry et al-2015'!$K$12*(E39-'Perry et al-2015'!$K$15)))) -> 2.836950493 | G39: =IF($C39<$AE$5,0,IF($C38<$AE$5,VLOOKUP(ROUND(MIN('Heming-1982'!$C$4,MAX('Heming-1982'!$C$3,$E39)),0),'Heming-1982'!$C$6:$D$9,2),($G38^'Perry et al-2015'!$K$10+$F39*'Perry et al-2015'!$K$10*$C$6/100)^(1/'Perry et al-2015'!$K$10))) -> 0 | H39: =IF($C39<$AE$7,0,IF($C38<$AE$7,VLOOKUP(ROUND(MIN('Heming-1982'!$C$4,MAX('Heming-1982'!$C$3,$E39)),0),'Heming-1982'!$C$6:$D$9,2),($H38^'Perry et al-2015'!$K$10+$F39*'Perry et al-2015'!$K$10*$C$6/100)^(1/'Perry et al-2015'!$K$10))) -> 0 | I39: =IF($C39<$AE$9,0,IF($C38<$AE$9,VLOOKUP(ROUND(MIN('Heming-1982'!$C$4,MAX('Heming-1982'!$C$3,Calculations!$E39)),0),'Heming-1982'!$C$6:$D$9,2),($I38^'Perry et al-2015'!$K$10+$F39*'Perry et al-2015'!$K$10*$C$6/100)^(1/'Perry et al-2015'!$K$10))) -> 0 | J39: =IF($C$6=7,VLOOKUP($B39,Calculations!$BL$3:$BM$55,2,FALSE),VLOOKUP($A39,Calculations!$BI$3:$BN$400,6,FALSE)) -> 50.68 | K39: 10.37777778 | L39: =MAX(0,'Perry et al-2015'!$K$11*(K39-'Perry et al-2015'!$K$13)*(1-EXP('Perry et al-2015'!$K$12*(K39-'Perry et al-2015'!$K$15)))) -> 2.957434242 | M39: =IF($C39<$AF$5,0,IF($C38<$AF$5,VLOOKUP(ROUND(MIN('Heming-1982'!$C$4,MAX('Heming-1982'!$C$3,$K39)),0),'Heming-1982'!$C$6:$D$9,2),(M38^'Perry et al-2015'!$K$10+$L39*'Perry et al-2015'!$K$10*$C$6/100)^(1/'Perry et al-2015'!$K$10))) -> 0 | N39: =IF($C39<$AF$7,0,IF($C38<$AF$7,VLOOKUP(ROUND(MIN('Heming-1982'!$C$4,MAX('Heming-1982'!$C$3,$K39)),0),'Heming-1982'!$C$6:$D$9,2),(N38^'Perry et al-2015'!$K$10+$L39*'Perry et al-2015'!$K$10*$C$6/100)^(1/'Perry et al-2015'!$K$10))) -> 0 | O39: =IF($C39<$AF$9,0,IF($C38<$AF$9,VLOOKUP(ROUND(MIN('Heming-1982'!$C$4,MAX('Heming-1982'!$C$3,$K39)),0),'Heming-1982'!$C$6:$D$9,2),(O38^'Perry et al-2015'!$K$10+$L39*'Perry et al-2015'!$K$10*$C$6/100)^(1/'Perry et al-2015'!$K$10))) -> 0 | AH39: 2017-10-15 | AI39: 42 | AJ39: 10 | AK39: 335.1888889 | AL39: 00:00:00 | AM39: 120 | AN39: 00:00:00 | AO39: 0 | AP39: 00:00:00 | AQ39: 10.37777778 | AR39: 298.2611111 | AS39: 00:00:00 | AT39: 111.8944444 | AU39: 00:00:00 | AV39: 0 | AW39: 00:00:00 | BI39: 206 | BJ39: 2 | BK39: =BK38+Calculations!$C$6 -> 2017-02-06 | BL39: 6 | BM39: =RANDBETWEEN(VLOOKUP(BJ39,Calculations!$BB$6:$BE$17,4,FALSE)*100,VLOOKUP(BJ39,Calculations!$BB$6:$BE$17,3,FALSE)*100)/100 -> 41.27 | BN39: =RANDBETWEEN(VLOOKUP(BJ39,Calculations!$BB$6:$BH$17,7,FALSE)*100,VLOOKUP(BJ39,Calculations!$BB$6:$BH$17,6,FALSE)*100)/100 -> 38.56
A40: 1016 | B40: 42 | C40: 2017-10-16 | D40: =IF($C$6=7,VLOOKUP(B40,Calculations!$BL$3:$BM$55,2,FALSE),VLOOKUP($A40,Calculations!$BI$3:$BN$400,5,FALSE)) -> 50 | E40: 10 | F40: =MAX(0,'Perry et al-2015'!$K$11*(E40-'Perry et al-2015'!$K$13)*(1-EXP('Perry et al-2015'!$K$12*(E40-'Perry et al-2015'!$K$15)))) -> 2.836950493 | G40: =IF($C40<$AE$5,0,IF($C39<$AE$5,VLOOKUP(ROUND(MIN('Heming-1982'!$C$4,MAX('Heming-1982'!$C$3,$E40)),0),'Heming-1982'!$C$6:$D$9,2),($G39^'Perry et al-2015'!$K$10+$F40*'Perry et al-2015'!$K$10*$C$6/100)^(1/'Perry et al-2015'!$K$10))) -> 0 | H40: =IF($C40<$AE$7,0,IF($C39<$AE$7,VLOOKUP(ROUND(MIN('Heming-1982'!$C$4,MAX('Heming-1982'!$C$3,$E40)),0),'Heming-1982'!$C$6:$D$9,2),($H39^'Perry et al-2015'!$K$10+$F40*'Perry et al-2015'!$K$10*$C$6/100)^(1/'Perry et al-2015'!$K$10))) -> 0 | I40: =IF($C40<$AE$9,0,IF($C39<$AE$9,VLOOKUP(ROUND(MIN('Heming-1982'!$C$4,MAX('Heming-1982'!$C$3,Calculations!$E40)),0),'Heming-1982'!$C$6:$D$9,2),($I39^'Perry et al-2015'!$K$10+$F40*'Perry et al-2015'!$K$10*$C$6/100)^(1/'Perry et al-2015'!$K$10))) -> 0 | J40: =IF($C$6=7,VLOOKUP($B40,Calculations!$BL$3:$BM$55,2,FALSE),VLOOKUP($A40,Calculations!$BI$3:$BN$400,6,FALSE)) -> 49.62 | K40: 9.788888889 | L40: =MAX(0,'Perry et al-2015'!$K$11*(K40-'Perry et al-2015'!$K$13)*(1-EXP('Perry et al-2015'!$K$12*(K40-'Perry et al-2015'!$K$15)))) -> 2.767728572 | M40: =IF($C40<$AF$5,0,IF($C39<$AF$5,VLOOKUP(ROUND(MIN('Heming-1982'!$C$4,MAX('Heming-1982'!$C$3,$K40)),0),'Heming-1982'!$C$6:$D$9,2),(M39^'Perry et al-2015'!$K$10+$L40*'Perry et al-2015'!$K$10*$C$6/100)^(1/'Perry et al-2015'!$K$10))) -> 0 | N40: =IF($C40<$AF$7,0,IF($C39<$AF$7,VLOOKUP(ROUND(MIN('Heming-1982'!$C$4,MAX('Heming-1982'!$C$3,$K40)),0),'Heming-1982'!$C$6:$D$9,2),(N39^'Perry et al-2015'!$K$10+$L40*'Perry et al-2015'!$K$10*$C$6/100)^(1/'Perry et al-2015'!$K$10))) -> 0 | O40: =IF($C40<$AF$9,0,IF($C39<$AF$9,VLOOKUP(ROUND(MIN('Heming-1982'!$C$4,MAX('Heming-1982'!$C$3,$K40)),0),'Heming-1982'!$C$6:$D$9,2),(O39^'Perry et al-2015'!$K$10+$L40*'Perry et al-2015'!$K$10*$C$6/100)^(1/'Perry et al-2015'!$K$10))) -> 0 | AH40: 2017-10-16 | AI40: 42 | AJ40: 10 | AK40: 345.1888889 | AL40: 00:00:00 | AM40: 130 | AN40: 00:00:00 | AO40: 0 | AP40: 00:00:00 | AQ40: 9.788888889 | AR40: 308.05 | AS40: 00:00:00 | AT40: 121.6833333 | AU40: 00:00:00 | AV40: 0 | AW40: 00:00:00 | BI40: 207 | BJ40: 2 | BK40: =BK39+Calculations!$C$6 -> 2017-02-07 | BL40: 6 | BM40: =RANDBETWEEN(VLOOKUP(BJ40,Calculations!$BB$6:$BE$17,4,FALSE)*100,VLOOKUP(BJ40,Calculations!$BB$6:$BE$17,3,FALSE)*100)/100 -> 41.57 | BN40: =RANDBETWEEN(VLOOKUP(BJ40,Calculations!$BB$6:$BH$17,7,FALSE)*100,VLOOKUP(BJ40,Calculations!$BB$6:$BH$17,6,FALSE)*100)/100 -> 38.19
A41: 1017 | B41: 42 | C41: 2017-10-17 | D41: =IF($C$6=7,VLOOKUP(B41,Calculations!$BL$3:$BM$55,2,FALSE),VLOOKUP($A41,Calculations!$BI$3:$BN$400,5,FALSE)) -> 50 | E41: 10 | F41: =MAX(0,'Perry et al-2015'!$K$11*(E41-'Perry et al-2015'!$K$13)*(1-EXP('Perry et al-2015'!$K$12*(E41-'Perry et al-2015'!$K$15)))) -> 2.836950493 | G41: =IF($C41<$AE$5,0,IF($C40<$AE$5,VLOOKUP(ROUND(MIN('Heming-1982'!$C$4,MAX('Heming-1982'!$C$3,$E41)),0),'Heming-1982'!$C$6:$D$9,2),($G40^'Perry et al-2015'!$K$10+$F41*'Perry et al-2015'!$K$10*$C$6/100)^(1/'Perry et al-2015'!$K$10))) -> 0 | H41: =IF($C41<$AE$7,0,IF($C40<$AE$7,VLOOKUP(ROUND(MIN('Heming-1982'!$C$4,MAX('Heming-1982'!$C$3,$E41)),0),'Heming-1982'!$C$6:$D$9,2),($H40^'Perry et al-2015'!$K$10+$F41*'Perry et al-2015'!$K$10*$C$6/100)^(1/'Perry et al-2015'!$K$10))) -> 0 | I41: =IF($C41<$AE$9,0,IF($C40<$AE$9,VLOOKUP(ROUND(MIN('Heming-1982'!$C$4,MAX('Heming-1982'!$C$3,Calculations!$E41)),0),'Heming-1982'!$C$6:$D$9,2),($I40^'Perry et al-2015'!$K$10+$F41*'Perry et al-2015'!$K$10*$C$6/100)^(1/'Perry et al-2015'!$K$10))) -> 0 | J41: =IF($C$6=7,VLOOKUP($B41,Calculations!$BL$3:$BM$55,2,FALSE),VLOOKUP($A41,Calculations!$BI$3:$BN$400,6,FALSE)) -> 48.13 | K41: 8.961111111 | L41: =MAX(0,'Perry et al-2015'!$K$11*(K41-'Perry et al-2015'!$K$13)*(1-EXP('Perry et al-2015'!$K$12*(K41-'Perry et al-2015'!$K$15)))) -> 2.485040008 | M41: =IF($C41<$AF$5,0,IF($C40<$AF$5,VLOOKUP(ROUND(MIN('Heming-1982'!$C$4,MAX('Heming-1982'!$C$3,$K41)),0),'Heming-1982'!$C$6:$D$9,2),(M40^'Perry et al-2015'!$K$10+$L41*'Perry et al-2015'!$K$10*$C$6/100)^(1/'Perry et al-2015'!$K$10))) -> 0 | N41: =IF($C41<$AF$7,0,IF($C40<$AF$7,VLOOKUP(ROUND(MIN('Heming-1982'!$C$4,MAX('Heming-1982'!$C$3,$K41)),0),'Heming-1982'!$C$6:$D$9,2),(N40^'Perry et al-2015'!$K$10+$L41*'Perry et al-2015'!$K$10*$C$6/100)^(1/'Perry et al-2015'!$K$10))) -> 0 | O41: =IF($C41<$AF$9,0,IF($C40<$AF$9,VLOOKUP(ROUND(MIN('Heming-1982'!$C$4,MAX('Heming-1982'!$C$3,$K41)),0),'Heming-1982'!$C$6:$D$9,2),(O40^'Perry et al-2015'!$K$10+$L41*'Perry et al-2015'!$K$10*$C$6/100)^(1/'Perry et al-2015'!$K$10))) -> 0 | AH41: 2017-10-17 | AI41: 42 | AJ41: 10 | AK41: 355.1888889 | AL41: =IF(AK41>=$AD$11,IF(AK40<$AD$11,1,0),0)*$AH41 -> 00:00:00 | AM41: 140 | AN41: =IF(AM41>=$AD$11,IF(AM40<$AD$11,1,0),0)*$AH41 -> 00:00:00 | AO41: 0 | AP41: =IF(AO41>=$AD$11,IF(AO40<$AD$11,1,0),0)*AH41 -> 00:00:00 | AQ41: 8.961111111 | AR41: 317.0111111 | AS41: 00:00:00 | AT41: 130.6444444 | AU41: 00:00:00 | AV41: 0 | AW41: =IF(AV41>=$AD$11,IF(AV40<$AD$11,1,0),0)*AH41 -> 00:00:00 | BI41: 208 | BJ41: 2 | BK41: =BK40+Calculations!$C$6 -> 2017-02-08 | BL41: 6 | BM41: =RANDBETWEEN(VLOOKUP(BJ41,Calculations!$BB$6:$BE$17,4,FALSE)*100,VLOOKUP(BJ41,Calculations!$BB$6:$BE$17,3,FALSE)*100)/100 -> 41.91 | BN41: =RANDBETWEEN(VLOOKUP(BJ41,Calculations!$BB$6:$BH$17,7,FALSE)*100,VLOOKUP(BJ41,Calculations!$BB$6:$BH$17,6,FALSE)*100)/100 -> 38.06
A42: 1018 | B42: 42 | C42: 2017-10-18 | D42: =IF($C$6=7,VLOOKUP(B42,Calculations!$BL$3:$BM$55,2,FALSE),VLOOKUP($A42,Calculations!$BI$3:$BN$400,5,FALSE)) -> 50 | E42: 10 | F42: =MAX(0,'Perry et al-2015'!$K$11*(E42-'Perry et al-2015'!$K$13)*(1-EXP('Perry et al-2015'!$K$12*(E42-'Perry et al-2015'!$K$15)))) -> 2.836950493 | G42: =IF($C42<$AE$5,0,IF($C41<$AE$5,VLOOKUP(ROUND(MIN('Heming-1982'!$C$4,MAX('Heming-1982'!$C$3,$E42)),0),'Heming-1982'!$C$6:$D$9,2),($G41^'Perry et al-2015'!$K$10+$F42*'Perry et al-2015'!$K$10*$C$6/100)^(1/'Perry et al-2015'!$K$10))) -> 0 | H42: =IF($C42<$AE$7,0,IF($C41<$AE$7,VLOOKUP(ROUND(MIN('Heming-1982'!$C$4,MAX('Heming-1982'!$C$3,$E42)),0),'Heming-1982'!$C$6:$D$9,2),($H41^'Perry et al-2015'!$K$10+$F42*'Perry et al-2015'!$K$10*$C$6/100)^(1/'Perry et al-2015'!$K$10))) -> 0 | I42: =IF($C42<$AE$9,0,IF($C41<$AE$9,VLOOKUP(ROUND(MIN('Heming-1982'!$C$4,MAX('Heming-1982'!$C$3,Calculations!$E42)),0),'Heming-1982'!$C$6:$D$9,2),($I41^'Perry et al-2015'!$K$10+$F42*'Perry et al-2015'!$K$10*$C$6/100)^(1/'Perry et al-2015'!$K$10))) -> 0 | J42: =IF($C$6=7,VLOOKUP($B42,Calculations!$BL$3:$BM$55,2,FALSE),VLOOKUP($A42,Calculations!$BI$3:$BN$400,6,FALSE)) -> 49.76 | K42: 9.866666667 | L42: =MAX(0,'Perry et al-2015'!$K$11*(K42-'Perry et al-2015'!$K$13)*(1-EXP('Perry et al-2015'!$K$12*(K42-'Perry et al-2015'!$K$15)))) -> 2.793380766 | M42: =IF($C42<$AF$5,0,IF($C41<$AF$5,VLOOKUP(ROUND(MIN('Heming-1982'!$C$4,MAX('Heming-1982'!$C$3,$K42)),0),'Heming-1982'!$C$6:$D$9,2),(M41^'Perry et al-2015'!$K$10+$L42*'Perry et al-2015'!$K$10*$C$6/100)^(1/'Perry et al-2015'!$K$10))) -> 0 | N42: =IF($C42<$AF$7,0,IF($C41<$AF$7,VLOOKUP(ROUND(MIN('Heming-1982'!$C$4,MAX('Heming-1982'!$C$3,$K42)),0),'Heming-1982'!$C$6:$D$9,2),(N41^'Perry et al-2015'!$K$10+$L42*'Perry et al-2015'!$K$10*$C$6/100)^(1/'Perry et al-2015'!$K$10))) -> 0 | O42: =IF($C42<$AF$9,0,IF($C41<$AF$9,VLOOKUP(ROUND(MIN('Heming-1982'!$C$4,MAX('Heming-1982'!$C$3,$K42)),0),'Heming-1982'!$C$6:$D$9,2),(O41^'Perry et al-2015'!$K$10+$L42*'Perry et al-2015'!$K$10*$C$6/100)^(1/'Perry et al-2015'!$K$10))) -> 0 | AH42: 2017-10-18 | AI42: 42 | AJ42: 10 | AK42: =IF($AH41>=$AD$5,($AH42-$AH41)*AJ42+AK41,0) -> 365.1888889 | AL42: 00:00:00 | AM42: =IF($AH41>=$AD$7,($AH42-$AH41)*AJ42+AM41,0) -> 150 | AN42: 00:00:00 | AO42: =IF($AH41>=$AD$9,($AH42-$AH41)*AJ42+AO41,0) -> 0 | AP42: 00:00:00 | AQ42: 9.866666667 | AR42: =IF($AH41>=$AD$5,($AH42-$AH41)*AQ42+AR41,0) -> 326.8777778 | AS42: 00:00:00 | AT42: =IF($AH41>=$AD$7,($AH42-$AH41)*AQ42+AT41,0) -> 140.5111111 | AU42: 00:00:00 | AV42: =IF($AH41>=$AD$9,($AH42-$AH41)*AQ42+AV41,0) -> 0 | AW42: 00:00:00 | BI42: 209 | BJ42: 2 | BK42: =BK41+Calculations!$C$6 -> 2017-02-09 | BL42: 6 | BM42: =RANDBETWEEN(VLOOKUP(BJ42,Calculations!$BB$6:$BE$17,4,FALSE)*100,VLOOKUP(BJ42,Calculations!$BB$6:$BE$17,3,FALSE)*100)/100 -> 41.53 | BN42: =RANDBETWEEN(VLOOKUP(BJ42,Calculations!$BB$6:$BH$17,7,FALSE)*100,VLOOKUP(BJ42,Calculations!$BB$6:$BH$17,6,FALSE)*100)/100 -> 41.81
A43: 1019 | B43: 42 | C43: 2017-10-19 | D43: =IF($C$6=7,VLOOKUP(B43,Calculations!$BL$3:$BM$55,2,FALSE),VLOOKUP($A43,Calculations!$BI$3:$BN$400,5,FALSE)) -> 50 | E43: 10 | F43: =MAX(0,'Perry et al-2015'!$K$11*(E43-'Perry et al-2015'!$K$13)*(1-EXP('Perry et al-2015'!$K$12*(E43-'Perry et al-2015'!$K$15)))) -> 2.836950493 | G43: =IF($C43<$AE$5,0,IF($C42<$AE$5,VLOOKUP(ROUND(MIN('Heming-1982'!$C$4,MAX('Heming-1982'!$C$3,$E43)),0),'Heming-1982'!$C$6:$D$9,2),($G42^'Perry et al-2015'!$K$10+$F43*'Perry et al-2015'!$K$10*$C$6/100)^(1/'Perry et al-2015'!$K$10))) -> 0 | H43: =IF($C43<$AE$7,0,IF($C42<$AE$7,VLOOKUP(ROUND(MIN('Heming-1982'!$C$4,MAX('Heming-1982'!$C$3,$E43)),0),'Heming-1982'!$C$6:$D$9,2),($H42^'Perry et al-2015'!$K$10+$F43*'Perry et al-2015'!$K$10*$C$6/100)^(1/'Perry et al-2015'!$K$10))) -> 0 | I43: =IF($C43<$AE$9,0,IF($C42<$AE$9,VLOOKUP(ROUND(MIN('Heming-1982'!$C$4,MAX('Heming-1982'!$C$3,Calculations!$E43)),0),'Heming-1982'!$C$6:$D$9,2),($I42^'Perry et al-2015'!$K$10+$F43*'Perry et al-2015'!$K$10*$C$6/100)^(1/'Perry et al-2015'!$K$10))) -> 0 | J43: =IF($C$6=7,VLOOKUP($B43,Calculations!$BL$3:$BM$55,2,FALSE),VLOOKUP($A43,Calculations!$BI$3:$BN$400,6,FALSE)) -> 48.13 | K43: 8.961111111 | L43: =MAX(0,'Perry et al-2015'!$K$11*(K43-'Perry et al-2015'!$K$13)*(1-EXP('Perry et al-2015'!$K$12*(K43-'Perry et al-2015'!$K$15)))) -> 2.485040008 | M43: =IF($C43<$AF$5,0,IF($C42<$AF$5,VLOOKUP(ROUND(MIN('Heming-1982'!$C$4,MAX('Heming-1982'!$C$3,$K43)),0),'Heming-1982'!$C$6:$D$9,2),(M42^'Perry et al-2015'!$K$10+$L43*'Perry et al-2015'!$K$10*$C$6/100)^(1/'Perry et al-2015'!$K$10))) -> 0 | N43: =IF($C43<$AF$7,0,IF($C42<$AF$7,VLOOKUP(ROUND(MIN('Heming-1982'!$C$4,MAX('Heming-1982'!$C$3,$K43)),0),'Heming-1982'!$C$6:$D$9,2),(N42^'Perry et al-2015'!$K$10+$L43*'Perry et al-2015'!$K$10*$C$6/100)^(1/'Perry et al-2015'!$K$10))) -> 0 | O43: =IF($C43<$AF$9,0,IF($C42<$AF$9,VLOOKUP(ROUND(MIN('Heming-1982'!$C$4,MAX('Heming-1982'!$C$3,$K43)),0),'Heming-1982'!$C$6:$D$9,2),(O42^'Perry et al-2015'!$K$10+$L43*'Perry et al-2015'!$K$10*$C$6/100)^(1/'Perry et al-2015'!$K$10))) -> 0 | AH43: 2017-10-19 | AI43: 42 | AJ43: 10 | AK43: 375.1888889 | AL43: 00:00:00 | AM43: 160 | AN43: 00:00:00 | AO43: 0 | AP43: 00:00:00 | AQ43: 8.961111111 | AR43: 335.8388889 | AS43: 00:00:00 | AT43: 149.4722222 | AU43: 00:00:00 | AV43: 0 | AW43: 00:00:00 | BI43: 210 | BJ43: 2 | BK43: =BK42+Calculations!$C$6 -> 2017-02-10 | BL43: 6 | BM43: =RANDBETWEEN(VLOOKUP(BJ43,Calculations!$BB$6:$BE$17,4,FALSE)*100,VLOOKUP(BJ43,Calculations!$BB$6:$BE$17,3,FALSE)*100)/100 -> 41.64 | BN43: =RANDBETWEEN(VLOOKUP(BJ43,Calculations!$BB$6:$BH$17,7,FALSE)*100,VLOOKUP(BJ43,Calculations!$BB$6:$BH$17,6,FALSE)*100)/100 -> 40.93
A44: 1020 | B44: 42 | C44: 2017-10-20 | D44: =IF($C$6=7,VLOOKUP(B44,Calculations!$BL$3:$BM$55,2,FALSE),VLOOKUP($A44,Calculations!$BI$3:$BN$400,5,FALSE)) -> 50 | E44: 10 | F44: =MAX(0,'Perry et al-2015'!$K$11*(E44-'Perry et al-2015'!$K$13)*(1-EXP('Perry et al-2015'!$K$12*(E44-'Perry et al-2015'!$K$15)))) -> 2.836950493 | G44: =IF($C44<$AE$5,0,IF($C43<$AE$5,VLOOKUP(ROUND(MIN('Heming-1982'!$C$4,MAX('Heming-1982'!$C$3,$E44)),0),'Heming-1982'!$C$6:$D$9,2),($G43^'Perry et al-2015'!$K$10+$F44*'Perry et al-2015'!$K$10*$C$6/100)^(1/'Perry et al-2015'!$K$10))) -> 0 | H44: =IF($C44<$AE$7,0,IF($C43<$AE$7,VLOOKUP(ROUND(MIN('Heming-1982'!$C$4,MAX('Heming-1982'!$C$3,$E44)),0),'Heming-1982'!$C$6:$D$9,2),($H43^'Perry et al-2015'!$K$10+$F44*'Perry et al-2015'!$K$10*$C$6/100)^(1/'Perry et al-2015'!$K$10))) -> 0 | I44: =IF($C44<$AE$9,0,IF($C43<$AE$9,VLOOKUP(ROUND(MIN('Heming-1982'!$C$4,MAX('Heming-1982'!$C$3,Calculations!$E44)),0),'Heming-1982'!$C$6:$D$9,2),($I43^'Perry et al-2015'!$K$10+$F44*'Perry et al-2015'!$K$10*$C$6/100)^(1/'Perry et al-2015'!$K$10))) -> 0 | J44: =IF($C$6=7,VLOOKUP($B44,Calculations!$BL$3:$BM$55,2,FALSE),VLOOKUP($A44,Calculations!$BI$3:$BN$400,6,FALSE)) -> 49.76 | K44: 9.866666667 | L44: =MAX(0,'Perry et al-2015'!$K$11*(K44-'Perry et al-2015'!$K$13)*(1-EXP('Perry et al-2015'!$K$12*(K44-'Perry et al-2015'!$K$15)))) -> 2.793380766 | M44: =IF($C44<$AF$5,0,IF($C43<$AF$5,VLOOKUP(ROUND(MIN('Heming-1982'!$C$4,MAX('Heming-1982'!$C$3,$K44)),0),'Heming-1982'!$C$6:$D$9,2),(M43^'Perry et al-2015'!$K$10+$L44*'Perry et al-2015'!$K$10*$C$6/100)^(1/'Perry et al-2015'!$K$10))) -> 0 | N44: =IF($C44<$AF$7,0,IF($C43<$AF$7,VLOOKUP(ROUND(MIN('Heming-1982'!$C$4,MAX('Heming-1982'!$C$3,$K44)),0),'Heming-1982'!$C$6:$D$9,2),(N43^'Perry et al-2015'!$K$10+$L44*'Perry et al-2015'!$K$10*$C$6/100)^(1/'Perry et al-2015'!$K$10))) -> 0 | O44: =IF($C44<$AF$9,0,IF($C43<$AF$9,VLOOKUP(ROUND(MIN('Heming-1982'!$C$4,MAX('Heming-1982'!$C$3,$K44)),0),'Heming-1982'!$C$6:$D$9,2),(O43^'Perry et al-2015'!$K$10+$L44*'Perry et al-2015'!$K$10*$C$6/100)^(1/'Perry et al-2015'!$K$10))) -> 0 | AH44: 2017-10-20 | AI44: 42 | AJ44: 10 | AK44: 385.1888889 | AL44: 00:00:00 | AM44: 170 | AN44: 00:00:00 | AO44: 0 | AP44: 00:00:00 | AQ44: 9.866666667 | AR44: 345.7055556 | AS44: 00:00:00 | AT44: 159.3388889 | AU44: 00:00:00 | AV44: 0 | AW44: 00:00:00 | BI44: 211 | BJ44: 2 | BK44: =BK43+Calculations!$C$6 -> 2017-02-11 | BL44: 6 | BM44: =RANDBETWEEN(VLOOKUP(BJ44,Calculations!$BB$6:$BE$17,4,FALSE)*100,VLOOKUP(BJ44,Calculations!$BB$6:$BE$17,3,FALSE)*100)/100 -> 41.11 | BN44: =RANDBETWEEN(VLOOKUP(BJ44,Calculations!$BB$6:$BH$17,7,FALSE)*100,VLOOKUP(BJ44,Calculations!$BB$6:$BH$17,6,FALSE)*100)/100 -> 38.06
A45: 1021 | B45: 42 | C45: 2017-10-21 | D45: =IF($C$6=7,VLOOKUP(B45,Calculations!$BL$3:$BM$55,2,FALSE),VLOOKUP($A45,Calculations!$BI$3:$BN$400,5,FALSE)) -> 50 | E45: 10 | F45: =MAX(0,'Perry et al-2015'!$K$11*(E45-'Perry et al-2015'!$K$13)*(1-EXP('Perry et al-2015'!$K$12*(E45-'Perry et al-2015'!$K$15)))) -> 2.836950493 | G45: =IF($C45<$AE$5,0,IF($C44<$AE$5,VLOOKUP(ROUND(MIN('Heming-1982'!$C$4,MAX('Heming-1982'!$C$3,$E45)),0),'Heming-1982'!$C$6:$D$9,2),($G44^'Perry et al-2015'!$K$10+$F45*'Perry et al-2015'!$K$10*$C$6/100)^(1/'Perry et al-2015'!$K$10))) -> 0 | H45: =IF($C45<$AE$7,0,IF($C44<$AE$7,VLOOKUP(ROUND(MIN('Heming-1982'!$C$4,MAX('Heming-1982'!$C$3,$E45)),0),'Heming-1982'!$C$6:$D$9,2),($H44^'Perry et al-2015'!$K$10+$F45*'Perry et al-2015'!$K$10*$C$6/100)^(1/'Perry et al-2015'!$K$10))) -> 0 | I45: =IF($C45<$AE$9,0,IF($C44<$AE$9,VLOOKUP(ROUND(MIN('Heming-1982'!$C$4,MAX('Heming-1982'!$C$3,Calculations!$E45)),0),'Heming-1982'!$C$6:$D$9,2),($I44^'Perry et al-2015'!$K$10+$F45*'Perry et al-2015'!$K$10*$C$6/100)^(1/'Perry et al-2015'!$K$10))) -> 0 | J45: =IF($C$6=7,VLOOKUP($B45,Calculations!$BL$3:$BM$55,2,FALSE),VLOOKUP($A45,Calculations!$BI$3:$BN$400,6,FALSE)) -> 46.37 | K45: 7.983333333 | L45: =MAX(0,'Perry et al-2015'!$K$11*(K45-'Perry et al-2015'!$K$13)*(1-EXP('Perry et al-2015'!$K$12*(K45-'Perry et al-2015'!$K$15)))) -> 2.1324505 | M45: =IF($C45<$AF$5,0,IF($C44<$AF$5,VLOOKUP(ROUND(MIN('Heming-1982'!$C$4,MAX('Heming-1982'!$C$3,$K45)),0),'Heming-1982'!$C$6:$D$9,2),(M44^'Perry et al-2015'!$K$10+$L45*'Perry et al-2015'!$K$10*$C$6/100)^(1/'Perry et al-2015'!$K$10))) -> 0 | N45: =IF($C45<$AF$7,0,IF($C44<$AF$7,VLOOKUP(ROUND(MIN('Heming-1982'!$C$4,MAX('Heming-1982'!$C$3,$K45)),0),'Heming-1982'!$C$6:$D$9,2),(N44^'Perry et al-2015'!$K$10+$L45*'Perry et al-2015'!$K$10*$C$6/100)^(1/'Perry et al-2015'!$K$10))) -> 0 | O45: =IF($C45<$AF$9,0,IF($C44<$AF$9,VLOOKUP(ROUND(MIN('Heming-1982'!$C$4,MAX('Heming-1982'!$C$3,$K45)),0),'Heming-1982'!$C$6:$D$9,2),(O44^'Perry et al-2015'!$K$10+$L45*'Perry et al-2015'!$K$10*$C$6/100)^(1/'Perry et al-2015'!$K$10))) -> 0 | AH45: 2017-10-21 | AI45: 42 | AJ45: 10 | AK45: 395.1888889 | AL45: 00:00:00 | AM45: 180 | AN45: 00:00:00 | AO45: 0 | AP45: 00:00:00 | AQ45: 7.983333333 | AR45: 353.6888889 | AS45: 00:00:00 | AT45: 167.3222222 | AU45: 00:00:00 | AV45: 0 | AW45: 00:00:00 | BI45: 212 | BJ45: 2 | BK45: =BK44+Calculations!$C$6 -> 2017-02-12 | BL45: 7 | BM45: =RANDBETWEEN(VLOOKUP(BJ45,Calculations!$BB$6:$BE$17,4,FALSE)*100,VLOOKUP(BJ45,Calculations!$BB$6:$BE$17,3,FALSE)*100)/100 -> 41.19 | BN45: =RANDBETWEEN(VLOOKUP(BJ45,Calculations!$BB$6:$BH$17,7,FALSE)*100,VLOOKUP(BJ45,Calculations!$BB$6:$BH$17,6,FALSE)*100)/100 -> 39.06
A46: 1022 | B46: 43 | C46: 2017-10-22 | D46: =IF($C$6=7,VLOOKUP(B46,Calculations!$BL$3:$BM$55,2,FALSE),VLOOKUP($A46,Calculations!$BI$3:$BN$400,5,FALSE)) -> 50 | E46: 10 | F46: =MAX(0,'Perry et al-2015'!$K$11*(E46-'Perry et al-2015'!$K$13)*(1-EXP('Perry et al-2015'!$K$12*(E46-'Perry et al-2015'!$K$15)))) -> 2.836950493 | G46: =IF($C46<$AE$5,0,IF($C45<$AE$5,VLOOKUP(ROUND(MIN('Heming-1982'!$C$4,MAX('Heming-1982'!$C$3,$E46)),0),'Heming-1982'!$C$6:$D$9,2),($G45^'Perry et al-2015'!$K$10+$F46*'Perry et al-2015'!$K$10*$C$6/100)^(1/'Perry et al-2015'!$K$10))) -> 0 | H46: =IF($C46<$AE$7,0,IF($C45<$AE$7,VLOOKUP(ROUND(MIN('Heming-1982'!$C$4,MAX('Heming-1982'!$C$3,$E46)),0),'Heming-1982'!$C$6:$D$9,2),($H45^'Perry et al-2015'!$K$10+$F46*'Perry et al-2015'!$K$10*$C$6/100)^(1/'Perry et al-2015'!$K$10))) -> 0 | I46: =IF($C46<$AE$9,0,IF($C45<$AE$9,VLOOKUP(ROUND(MIN('Heming-1982'!$C$4,MAX('Heming-1982'!$C$3,Calculations!$E46)),0),'Heming-1982'!$C$6:$D$9,2),($I45^'Perry et al-2015'!$K$10+$F46*'Perry et al-2015'!$K$10*$C$6/100)^(1/'Perry et al-2015'!$K$10))) -> 0 | J46: =IF($C$6=7,VLOOKUP($B46,Calculations!$BL$3:$BM$55,2,FALSE),VLOOKUP($A46,Calculations!$BI$3:$BN$400,6,FALSE)) -> 47.2 | K46: 8.444444444 | L46: =MAX(0,'Perry et al-2015'!$K$11*(K46-'Perry et al-2015'!$K$13)*(1-EXP('Perry et al-2015'!$K$12*(K46-'Perry et al-2015'!$K$15)))) -> 2.300894335 | M46: =IF($C46<$AF$5,0,IF($C45<$AF$5,VLOOKUP(ROUND(MIN('Heming-1982'!$C$4,MAX('Heming-1982'!$C$3,$K46)),0),'Heming-1982'!$C$6:$D$9,2),(M45^'Perry et al-2015'!$K$10+$L46*'Perry et al-2015'!$K$10*$C$6/100)^(1/'Perry et al-2015'!$K$10))) -> 0 | N46: =IF($C46<$AF$7,0,IF($C45<$AF$7,VLOOKUP(ROUND(MIN('Heming-1982'!$C$4,MAX('Heming-1982'!$C$3,$K46)),0),'Heming-1982'!$C$6:$D$9,2),(N45^'Perry et al-2015'!$K$10+$L46*'Perry et al-2015'!$K$10*$C$6/100)^(1/'Perry et al-2015'!$K$10))) -> 0 | O46: =IF($C46<$AF$9,0,IF($C45<$AF$9,VLOOKUP(ROUND(MIN('Heming-1982'!$C$4,MAX('Heming-1982'!$C$3,$K46)),0),'Heming-1982'!$C$6:$D$9,2),(O45^'Perry et al-2015'!$K$10+$L46*'Perry et al-2015'!$K$10*$C$6/100)^(1/'Perry et al-2015'!$K$10))) -> 0 | AH46: 2017-10-22 | AI46: 43 | AJ46: 10 | AK46: 405.1888889 | AL46: 00:00:00 | AM46: 190 | AN46: 00:00:00 | AO46: 0 | AP46: 00:00:00 | AQ46: 8.444444444 | AR46: 362.1333333 | AS46: 00:00:00 | AT46: 175.7666667 | AU46: 00:00:00 | AV46: 0 | AW46: 00:00:00 | BI46: 213 | BJ46: 2 | BK46: =BK45+Calculations!$C$6 -> 2017-02-13 | BL46: 7 | BM46: =RANDBETWEEN(VLOOKUP(BJ46,Calculations!$BB$6:$BE$17,4,FALSE)*100,VLOOKUP(BJ46,Calculations!$BB$6:$BE$17,3,FALSE)*100)/100 -> 41.55 | BN46: =RANDBETWEEN(VLOOKUP(BJ46,Calculations!$BB$6:$BH$17,7,FALSE)*100,VLOOKUP(BJ46,Calculations!$BB$6:$BH$17,6,FALSE)*100)/100 -> 38.09
A47: 1023 | B47: 43 | C47: 2017-10-23 | D47: =IF($C$6=7,VLOOKUP(B47,Calculations!$BL$3:$BM$55,2,FALSE),VLOOKUP($A47,Calculations!$BI$3:$BN$400,5,FALSE)) -> 50 | E47: 10 | F47: =MAX(0,'Perry et al-2015'!$K$11*(E47-'Perry et al-2015'!$K$13)*(1-EXP('Perry et al-2015'!$K$12*(E47-'Perry et al-2015'!$K$15)))) -> 2.836950493 | G47: =IF($C47<$AE$5,0,IF($C46<$AE$5,VLOOKUP(ROUND(MIN('Heming-1982'!$C$4,MAX('Heming-1982'!$C$3,$E47)),0),'Heming-1982'!$C$6:$D$9,2),($G46^'Perry et al-2015'!$K$10+$F47*'Perry et al-2015'!$K$10*$C$6/100)^(1/'Perry et al-2015'!$K$10))) -> 0 | H47: =IF($C47<$AE$7,0,IF($C46<$AE$7,VLOOKUP(ROUND(MIN('Heming-1982'!$C$4,MAX('Heming-1982'!$C$3,$E47)),0),'Heming-1982'!$C$6:$D$9,2),($H46^'Perry et al-2015'!$K$10+$F47*'Perry et al-2015'!$K$10*$C$6/100)^(1/'Perry et al-2015'!$K$10))) -> 0 | I47: =IF($C47<$AE$9,0,IF($C46<$AE$9,VLOOKUP(ROUND(MIN('Heming-1982'!$C$4,MAX('Heming-1982'!$C$3,Calculations!$E47)),0),'Heming-1982'!$C$6:$D$9,2),($I46^'Perry et al-2015'!$K$10+$F47*'Perry et al-2015'!$K$10*$C$6/100)^(1/'Perry et al-2015'!$K$10))) -> 0 | J47: =IF($C$6=7,VLOOKUP($B47,Calculations!$BL$3:$BM$55,2,FALSE),VLOOKUP($A47,Calculations!$BI$3:$BN$400,6,FALSE)) -> 48.15 | K47: 8.972222222 | L47: =MAX(0,'Perry et al-2015'!$K$11*(K47-'Perry et al-2015'!$K$13)*(1-EXP('Perry et al-2015'!$K$12*(K47-'Perry et al-2015'!$K$15)))) -> 2.488940814 | M47: =IF($C47<$AF$5,0,IF($C46<$AF$5,VLOOKUP(ROUND(MIN('Heming-1982'!$C$4,MAX('Heming-1982'!$C$3,$K47)),0),'Heming-1982'!$C$6:$D$9,2),(M46^'Perry et al-2015'!$K$10+$L47*'Perry et al-2015'!$K$10*$C$6/100)^(1/'Perry et al-2015'!$K$10))) -> 0 | N47: =IF($C47<$AF$7,0,IF($C46<$AF$7,VLOOKUP(ROUND(MIN('Heming-1982'!$C$4,MAX('Heming-1982'!$C$3,$K47)),0),'Heming-1982'!$C$6:$D$9,2),(N46^'Perry et al-2015'!$K$10+$L47*'Perry et al-2015'!$K$10*$C$6/100)^(1/'Perry et al-2015'!$K$10))) -> 0 | O47: =IF($C47<$AF$9,0,IF($C46<$AF$9,VLOOKUP(ROUND(MIN('Heming-1982'!$C$4,MAX('Heming-1982'!$C$3,$K47)),0),'Heming-1982'!$C$6:$D$9,2),(O46^'Perry et al-2015'!$K$10+$L47*'Perry et al-2015'!$K$10*$C$6/100)^(1/'Perry et al-2015'!$K$10))) -> 0 | AH47: 2017-10-23 | AI47: 43 | AJ47: 10 | AK47: 415.1888889 | AL47: 00:00:00 | AM47: 200 | AN47: 00:00:00 | AO47: 0 | AP47: 00:00:00 | AQ47: 8.972222222 | AR47: 371.1055556 | AS47: 00:00:00 | AT47: 184.7388889 | AU47: 00:00:00 | AV47: 0 | AW47: 00:00:00 | BI47: 214 | BJ47: 2 | BK47: =BK46+Calculations!$C$6 -> 2017-02-14 | BL47: 7 | BM47: =RANDBETWEEN(VLOOKUP(BJ47,Calculations!$BB$6:$BE$17,4,FALSE)*100,VLOOKUP(BJ47,Calculations!$BB$6:$BE$17,3,FALSE)*100)/100 -> 42 | BN47: =RANDBETWEEN(VLOOKUP(BJ47,Calculations!$BB$6:$BH$17,7,FALSE)*100,VLOOKUP(BJ47,Calculations!$BB$6:$BH$17,6,FALSE)*100)/100 -> 40.02
A48: 1024 | B48: 43 | C48: 2017-10-24 | D48: =IF($C$6=7,VLOOKUP(B48,Calculations!$BL$3:$BM$55,2,FALSE),VLOOKUP($A48,Calculations!$BI$3:$BN$400,5,FALSE)) -> 50 | E48: 10 | F48: =MAX(0,'Perry et al-2015'!$K$11*(E48-'Perry et al-2015'!$K$13)*(1-EXP('Perry et al-2015'!$K$12*(E48-'Perry et al-2015'!$K$15)))) -> 2.836950493 | G48: =IF($C48<$AE$5,0,IF($C47<$AE$5,VLOOKUP(ROUND(MIN('Heming-1982'!$C$4,MAX('Heming-1982'!$C$3,$E48)),0),'Heming-1982'!$C$6:$D$9,2),($G47^'Perry et al-2015'!$K$10+$F48*'Perry et al-2015'!$K$10*$C$6/100)^(1/'Perry et al-2015'!$K$10))) -> 0 | H48: =IF($C48<$AE$7,0,IF($C47<$AE$7,VLOOKUP(ROUND(MIN('Heming-1982'!$C$4,MAX('Heming-1982'!$C$3,$E48)),0),'Heming-1982'!$C$6:$D$9,2),($H47^'Perry et al-2015'!$K$10+$F48*'Perry et al-2015'!$K$10*$C$6/100)^(1/'Perry et al-2015'!$K$10))) -> 0 | I48: =IF($C48<$AE$9,0,IF($C47<$AE$9,VLOOKUP(ROUND(MIN('Heming-1982'!$C$4,MAX('Heming-1982'!$C$3,Calculations!$E48)),0),'Heming-1982'!$C$6:$D$9,2),($I47^'Perry et al-2015'!$K$10+$F48*'Perry et al-2015'!$K$10*$C$6/100)^(1/'Perry et al-2015'!$K$10))) -> 0 | J48: =IF($C$6=7,VLOOKUP($B48,Calculations!$BL$3:$BM$55,2,FALSE),VLOOKUP($A48,Calculations!$BI$3:$BN$400,6,FALSE)) -> 46.46 | K48: 8.033333333 | L48: =MAX(0,'Perry et al-2015'!$K$11*(K48-'Perry et al-2015'!$K$13)*(1-EXP('Perry et al-2015'!$K$12*(K48-'Perry et al-2015'!$K$15)))) -> 2.150884014 | M48: =IF($C48<$AF$5,0,IF($C47<$AF$5,VLOOKUP(ROUND(MIN('Heming-1982'!$C$4,MAX('Heming-1982'!$C$3,$K48)),0),'Heming-1982'!$C$6:$D$9,2),(M47^'Perry et al-2015'!$K$10+$L48*'Perry et al-2015'!$K$10*$C$6/100)^(1/'Perry et al-2015'!$K$10))) -> 0 | N48: =IF($C48<$AF$7,0,IF($C47<$AF$7,VLOOKUP(ROUND(MIN('Heming-1982'!$C$4,MAX('Heming-1982'!$C$3,$K48)),0),'Heming-1982'!$C$6:$D$9,2),(N47^'Perry et al-2015'!$K$10+$L48*'Perry et al-2015'!$K$10*$C$6/100)^(1/'Perry et al-2015'!$K$10))) -> 0 | O48: =IF($C48<$AF$9,0,IF($C47<$AF$9,VLOOKUP(ROUND(MIN('Heming-1982'!$C$4,MAX('Heming-1982'!$C$3,$K48)),0),'Heming-1982'!$C$6:$D$9,2),(O47^'Perry et al-2015'!$K$10+$L48*'Perry et al-2015'!$K$10*$C$6/100)^(1/'Perry et al-2015'!$K$10))) -> 0 | AH48: 2017-10-24 | AI48: 43 | AJ48: 10 | AK48: 425.1888889 | AL48: 00:00:00 | AM48: 210 | AN48: 00:00:00 | AO48: 0 | AP48: 00:00:00 | AQ48: 8.033333333 | AR48: 379.1388889 | AS48: 00:00:00 | AT48: 192.7722222 | AU48: 00:00:00 | AV48: 0 | AW48: 00:00:00 | BI48: 215 | BJ48: 2 | BK48: =BK47+Calculations!$C$6 -> 2017-02-15 | BL48: 7 | BM48: =RANDBETWEEN(VLOOKUP(BJ48,Calculations!$BB$6:$BE$17,4,FALSE)*100,VLOOKUP(BJ48,Calculations!$BB$6:$BE$17,3,FALSE)*100)/100 -> 41.87 | BN48: =RANDBETWEEN(VLOOKUP(BJ48,Calculations!$BB$6:$BH$17,7,FALSE)*100,VLOOKUP(BJ48,Calculations!$BB$6:$BH$17,6,FALSE)*100)/100 -> 38.72
A49: 1025 | B49: 43 | C49: 2017-10-25 | D49: =IF($C$6=7,VLOOKUP(B49,Calculations!$BL$3:$BM$55,2,FALSE),VLOOKUP($A49,Calculations!$BI$3:$BN$400,5,FALSE)) -> 50 | E49: 10 | F49: =MAX(0,'Perry et al-2015'!$K$11*(E49-'Perry et al-2015'!$K$13)*(1-EXP('Perry et al-2015'!$K$12*(E49-'Perry et al-2015'!$K$15)))) -> 2.836950493 | G49: =IF($C49<$AE$5,0,IF($C48<$AE$5,VLOOKUP(ROUND(MIN('Heming-1982'!$C$4,MAX('Heming-1982'!$C$3,$E49)),0),'Heming-1982'!$C$6:$D$9,2),($G48^'Perry et al-2015'!$K$10+$F49*'Perry et al-2015'!$K$10*$C$6/100)^(1/'Perry et al-2015'!$K$10))) -> 0 | H49: =IF($C49<$AE$7,0,IF($C48<$AE$7,VLOOKUP(ROUND(MIN('Heming-1982'!$C$4,MAX('Heming-1982'!$C$3,$E49)),0),'Heming-1982'!$C$6:$D$9,2),($H48^'Perry et al-2015'!$K$10+$F49*'Perry et al-2015'!$K$10*$C$6/100)^(1/'Perry et al-2015'!$K$10))) -> 0 | I49: =IF($C49<$AE$9,0,IF($C48<$AE$9,VLOOKUP(ROUND(MIN('Heming-1982'!$C$4,MAX('Heming-1982'!$C$3,Calculations!$E49)),0),'Heming-1982'!$C$6:$D$9,2),($I48^'Perry et al-2015'!$K$10+$F49*'Perry et al-2015'!$K$10*$C$6/100)^(1/'Perry et al-2015'!$K$10))) -> 0 | J49: =IF($C$6=7,VLOOKUP($B49,Calculations!$BL$3:$BM$55,2,FALSE),VLOOKUP($A49,Calculations!$BI$3:$BN$400,6,FALSE)) -> 50.41 | K49: 10.22777778 | L49: =MAX(0,'Perry et al-2015'!$K$11*(K49-'Perry et al-2015'!$K$13)*(1-EXP('Perry et al-2015'!$K$12*(K49-'Perry et al-2015'!$K$15)))) -> 2.910140033 | M49: =IF($C49<$AF$5,0,IF($C48<$AF$5,VLOOKUP(ROUND(MIN('Heming-1982'!$C$4,MAX('Heming-1982'!$C$3,$K49)),0),'Heming-1982'!$C$6:$D$9,2),(M48^'Perry et al-2015'!$K$10+$L49*'Perry et al-2015'!$K$10*$C$6/100)^(1/'Perry et al-2015'!$K$10))) -> 0 | N49: =IF($C49<$AF$7,0,IF($C48<$AF$7,VLOOKUP(ROUND(MIN('Heming-1982'!$C$4,MAX('Heming-1982'!$C$3,$K49)),0),'Heming-1982'!$C$6:$D$9,2),(N48^'Perry et al-2015'!$K$10+$L49*'Perry et al-2015'!$K$10*$C$6/100)^(1/'Perry et al-2015'!$K$10))) -> 0 | O49: =IF($C49<$AF$9,0,IF($C48<$AF$9,VLOOKUP(ROUND(MIN('Heming-1982'!$C$4,MAX('Heming-1982'!$C$3,$K49)),0),'Heming-1982'!$C$6:$D$9,2),(O48^'Perry et al-2015'!$K$10+$L49*'Perry et al-2015'!$K$10*$C$6/100)^(1/'Perry et al-2015'!$K$10))) -> 0 | AH49: 2017-10-25 | AI49: 43 | AJ49: 10 | AK49: 435.1888889 | AL49: 00:00:00 | AM49: 220 | AN49: 00:00:00 | AO49: 0 | AP49: 00:00:00 | AQ49: 10.22777778 | AR49: 389.3666667 | AS49: 00:00:00 | AT49: 203 | AU49: 00:00:00 | AV49: 0 | AW49: 00:00:00 | BI49: 216 | BJ49: 2 | BK49: =BK48+Calculations!$C$6 -> 2017-02-16 | BL49: 7 | BM49: =RANDBETWEEN(VLOOKUP(BJ49,Calculations!$BB$6:$BE$17,4,FALSE)*100,VLOOKUP(BJ49,Calculations!$BB$6:$BE$17,3,FALSE)*100)/100 -> 41.65 | BN49: =RANDBETWEEN(VLOOKUP(BJ49,Calculations!$BB$6:$BH$17,7,FALSE)*100,VLOOKUP(BJ49,Calculations!$BB$6:$BH$17,6,FALSE)*100)/100 -> 38.66
A50: 1026 | B50: 43 | C50: 2017-10-26 | D50: =IF($C$6=7,VLOOKUP(B50,Calculations!$BL$3:$BM$55,2,FALSE),VLOOKUP($A50,Calculations!$BI$3:$BN$400,5,FALSE)) -> 50 | E50: 10 | F50: =MAX(0,'Perry et al-2015'!$K$11*(E50-'Perry et al-2015'!$K$13)*(1-EXP('Perry et al-2015'!$K$12*(E50-'Perry et al-2015'!$K$15)))) -> 2.836950493 | G50: =IF($C50<$AE$5,0,IF($C49<$AE$5,VLOOKUP(ROUND(MIN('Heming-1982'!$C$4,MAX('Heming-1982'!$C$3,$E50)),0),'Heming-1982'!$C$6:$D$9,2),($G49^'Perry et al-2015'!$K$10+$F50*'Perry et al-2015'!$K$10*$C$6/100)^(1/'Perry et al-2015'!$K$10))) -> 0 | H50: =IF($C50<$AE$7,0,IF($C49<$AE$7,VLOOKUP(ROUND(MIN('Heming-1982'!$C$4,MAX('Heming-1982'!$C$3,$E50)),0),'Heming-1982'!$C$6:$D$9,2),($H49^'Perry et al-2015'!$K$10+$F50*'Perry et al-2015'!$K$10*$C$6/100)^(1/'Perry et al-2015'!$K$10))) -> 0 | I50: =IF($C50<$AE$9,0,IF($C49<$AE$9,VLOOKUP(ROUND(MIN('Heming-1982'!$C$4,MAX('Heming-1982'!$C$3,Calculations!$E50)),0),'Heming-1982'!$C$6:$D$9,2),($I49^'Perry et al-2015'!$K$10+$F50*'Perry et al-2015'!$K$10*$C$6/100)^(1/'Perry et al-2015'!$K$10))) -> 0 | J50: =IF($C$6=7,VLOOKUP($B50,Calculations!$BL$3:$BM$55,2,FALSE),VLOOKUP($A50,Calculations!$BI$3:$BN$400,6,FALSE)) -> 49.57 | K50: 9.761111111 | L50: =MAX(0,'Perry et al-2015'!$K$11*(K50-'Perry et al-2015'!$K$13)*(1-EXP('Perry et al-2015'!$K$12*(K50-'Perry et al-2015'!$K$15)))) -> 2.75852591 | M50: =IF($C50<$AF$5,0,IF($C49<$AF$5,VLOOKUP(ROUND(MIN('Heming-1982'!$C$4,MAX('Heming-1982'!$C$3,$K50)),0),'Heming-1982'!$C$6:$D$9,2),(M49^'Perry et al-2015'!$K$10+$L50*'Perry et al-2015'!$K$10*$C$6/100)^(1/'Perry et al-2015'!$K$10))) -> 0 | N50: =IF($C50<$AF$7,0,IF($C49<$AF$7,VLOOKUP(ROUND(MIN('Heming-1982'!$C$4,MAX('Heming-1982'!$C$3,$K50)),0),'Heming-1982'!$C$6:$D$9,2),(N49^'Perry et al-2015'!$K$10+$L50*'Perry et al-2015'!$K$10*$C$6/100)^(1/'Perry et al-2015'!$K$10))) -> 0 | O50: =IF($C50<$AF$9,0,IF($C49<$AF$9,VLOOKUP(ROUND(MIN('Heming-1982'!$C$4,MAX('Heming-1982'!$C$3,$K50)),0),'Heming-1982'!$C$6:$D$9,2),(O49^'Perry et al-2015'!$K$10+$L50*'Perry et al-2015'!$K$10*$C$6/100)^(1/'Perry et al-2015'!$K$10))) -> 0 | AH50: 2017-10-26 | AI50: 43 | AJ50: 10 | AK50: 445.1888889 | AL50: 00:00:00 | AM50: 230 | AN50: 00:00:00 | AO50: 0 | AP50: 00:00:00 | AQ50: 9.761111111 | AR50: 399.1277778 | AS50: 00:00:00 | AT50: 212.7611111 | AU50: 00:00:00 | AV50: 0 | AW50: 00:00:00 | BI50: 217 | BJ50: 2 | BK50: =BK49+Calculations!$C$6 -> 2017-02-17 | BL50: 7 | BM50: =RANDBETWEEN(VLOOKUP(BJ50,Calculations!$BB$6:$BE$17,4,FALSE)*100,VLOOKUP(BJ50,Calculations!$BB$6:$BE$17,3,FALSE)*100)/100 -> 41.4 | BN50: =RANDBETWEEN(VLOOKUP(BJ50,Calculations!$BB$6:$BH$17,7,FALSE)*100,VLOOKUP(BJ50,Calculations!$BB$6:$BH$17,6,FALSE)*100)/100 -> 41.74
A51: 1027 | B51: 43 | C51: 2017-10-27 | D51: =IF($C$6=7,VLOOKUP(B51,Calculations!$BL$3:$BM$55,2,FALSE),VLOOKUP($A51,Calculations!$BI$3:$BN$400,5,FALSE)) -> 50 | E51: 10 | F51: =MAX(0,'Perry et al-2015'!$K$11*(E51-'Perry et al-2015'!$K$13)*(1-EXP('Perry et al-2015'!$K$12*(E51-'Perry et al-2015'!$K$15)))) -> 2.836950493 | G51: =IF($C51<$AE$5,0,IF($C50<$AE$5,VLOOKUP(ROUND(MIN('Heming-1982'!$C$4,MAX('Heming-1982'!$C$3,$E51)),0),'Heming-1982'!$C$6:$D$9,2),($G50^'Perry et al-2015'!$K$10+$F51*'Perry et al-2015'!$K$10*$C$6/100)^(1/'Perry et al-2015'!$K$10))) -> 0 | H51: =IF($C51<$AE$7,0,IF($C50<$AE$7,VLOOKUP(ROUND(MIN('Heming-1982'!$C$4,MAX('Heming-1982'!$C$3,$E51)),0),'Heming-1982'!$C$6:$D$9,2),($H50^'Perry et al-2015'!$K$10+$F51*'Perry et al-2015'!$K$10*$C$6/100)^(1/'Perry et al-2015'!$K$10))) -> 0 | I51: =IF($C51<$AE$9,0,IF($C50<$AE$9,VLOOKUP(ROUND(MIN('Heming-1982'!$C$4,MAX('Heming-1982'!$C$3,Calculations!$E51)),0),'Heming-1982'!$C$6:$D$9,2),($I50^'Perry et al-2015'!$K$10+$F51*'Perry et al-2015'!$K$10*$C$6/100)^(1/'Perry et al-2015'!$K$10))) -> 0 | J51: =IF($C$6=7,VLOOKUP($B51,Calculations!$BL$3:$BM$55,2,FALSE),VLOOKUP($A51,Calculations!$BI$3:$BN$400,6,FALSE)) -> 48.42 | K51: 9.122222222 | L51: =MAX(0,'Perry et al-2015'!$K$11*(K51-'Perry et al-2015'!$K$13)*(1-EXP('Perry et al-2015'!$K$12*(K51-'Perry et al-2015'!$K$15)))) -> 2.541338744 | M51: =IF($C51<$AF$5,0,IF($C50<$AF$5,VLOOKUP(ROUND(MIN('Heming-1982'!$C$4,MAX('Heming-1982'!$C$3,$K51)),0),'Heming-1982'!$C$6:$D$9,2),(M50^'Perry et al-2015'!$K$10+$L51*'Perry et al-2015'!$K$10*$C$6/100)^(1/'Perry et al-2015'!$K$10))) -> 0 | N51: =IF($C51<$AF$7,0,IF($C50<$AF$7,VLOOKUP(ROUND(MIN('Heming-1982'!$C$4,MAX('Heming-1982'!$C$3,$K51)),0),'Heming-1982'!$C$6:$D$9,2),(N50^'Perry et al-2015'!$K$10+$L51*'Perry et al-2015'!$K$10*$C$6/100)^(1/'Perry et al-2015'!$K$10))) -> 0 | O51: =IF($C51<$AF$9,0,IF($C50<$AF$9,VLOOKUP(ROUND(MIN('Heming-1982'!$C$4,MAX('Heming-1982'!$C$3,$K51)),0),'Heming-1982'!$C$6:$D$9,2),(O50^'Perry et al-2015'!$K$10+$L51*'Perry et al-2015'!$K$10*$C$6/100)^(1/'Perry et al-2015'!$K$10))) -> 0 | AH51: 2017-10-27 | AI51: 43 | AJ51: 10 | AK51: 455.1888889 | AL51: 00:00:00 | AM51: 240 | AN51: 00:00:00 | AO51: 0 | AP51: 00:00:00 | AQ51: 9.122222222 | AR51: 408.25 | AS51: 00:00:00 | AT51: 221.8833333 | AU51: 00:00:00 | AV51: 0 | AW51: 00:00:00 | BI51: 218 | BJ51: 2 | BK51: =BK50+Calculations!$C$6 -> 2017-02-18 | BL51: 7 | BM51: =RANDBETWEEN(VLOOKUP(BJ51,Calculations!$BB$6:$BE$17,4,FALSE)*100,VLOOKUP(BJ51,Calculations!$BB$6:$BE$17,3,FALSE)*100)/100 -> 42.06 | BN51: =RANDBETWEEN(VLOOKUP(BJ51,Calculations!$BB$6:$BH$17,7,FALSE)*100,VLOOKUP(BJ51,Calculations!$BB$6:$BH$17,6,FALSE)*100)/100 -> 41.79
A52: 1028 | B52: 43 | C52: 2017-10-28 | D52: =IF($C$6=7,VLOOKUP(B52,Calculations!$BL$3:$BM$55,2,FALSE),VLOOKUP($A52,Calculations!$BI$3:$BN$400,5,FALSE)) -> 50 | E52: 10 | F52: =MAX(0,'Perry et al-2015'!$K$11*(E52-'Perry et al-2015'!$K$13)*(1-EXP('Perry et al-2015'!$K$12*(E52-'Perry et al-2015'!$K$15)))) -> 2.836950493 | G52: =IF($C52<$AE$5,0,IF($C51<$AE$5,VLOOKUP(ROUND(MIN('Heming-1982'!$C$4,MAX('Heming-1982'!$C$3,$E52)),0),'Heming-1982'!$C$6:$D$9,2),($G51^'Perry et al-2015'!$K$10+$F52*'Perry et al-2015'!$K$10*$C$6/100)^(1/'Perry et al-2015'!$K$10))) -> 0 | H52: =IF($C52<$AE$7,0,IF($C51<$AE$7,VLOOKUP(ROUND(MIN('Heming-1982'!$C$4,MAX('Heming-1982'!$C$3,$E52)),0),'Heming-1982'!$C$6:$D$9,2),($H51^'Perry et al-2015'!$K$10+$F52*'Perry et al-2015'!$K$10*$C$6/100)^(1/'Perry et al-2015'!$K$10))) -> 0 | I52: =IF($C52<$AE$9,0,IF($C51<$AE$9,VLOOKUP(ROUND(MIN('Heming-1982'!$C$4,MAX('Heming-1982'!$C$3,Calculations!$E52)),0),'Heming-1982'!$C$6:$D$9,2),($I51^'Perry et al-2015'!$K$10+$F52*'Perry et al-2015'!$K$10*$C$6/100)^(1/'Perry et al-2015'!$K$10))) -> 0 | J52: =IF($C$6=7,VLOOKUP($B52,Calculations!$BL$3:$BM$55,2,FALSE),VLOOKUP($A52,Calculations!$BI$3:$BN$400,6,FALSE)) -> 49.63 | K52: 9.794444444 | L52: =MAX(0,'Perry et al-2015'!$K$11*(K52-'Perry et al-2015'!$K$13)*(1-EXP('Perry et al-2015'!$K$12*(K52-'Perry et al-2015'!$K$15)))) -> 2.769566524 | M52: =IF($C52<$AF$5,0,IF($C51<$AF$5,VLOOKUP(ROUND(MIN('Heming-1982'!$C$4,MAX('Heming-1982'!$C$3,$K52)),0),'Heming-1982'!$C$6:$D$9,2),(M51^'Perry et al-2015'!$K$10+$L52*'Perry et al-2015'!$K$10*$C$6/100)^(1/'Perry et al-2015'!$K$10))) -> 0 | N52: =IF($C52<$AF$7,0,IF($C51<$AF$7,VLOOKUP(ROUND(MIN('Heming-1982'!$C$4,MAX('Heming-1982'!$C$3,$K52)),0),'Heming-1982'!$C$6:$D$9,2),(N51^'Perry et al-2015'!$K$10+$L52*'Perry et al-2015'!$K$10*$C$6/100)^(1/'Perry et al-2015'!$K$10))) -> 0 | O52: =IF($C52<$AF$9,0,IF($C51<$AF$9,VLOOKUP(ROUND(MIN('Heming-1982'!$C$4,MAX('Heming-1982'!$C$3,$K52)),0),'Heming-1982'!$C$6:$D$9,2),(O51^'Perry et al-2015'!$K$10+$L52*'Perry et al-2015'!$K$10*$C$6/100)^(1/'Perry et al-2015'!$K$10))) -> 0 | AH52: 2017-10-28 | AI52: 43 | AJ52: 10 | AK52: 465.1888889 | AL52: 00:00:00 | AM52: 250 | AN52: 00:00:00 | AO52: 0 | AP52: 00:00:00 | AQ52: 9.794444444 | AR52: 418.0444444 | AS52: 00:00:00 | AT52: 231.6777778 | AU52: 00:00:00 | AV52: 0 | AW52: 00:00:00 | BI52: 219 | BJ52: 2 | BK52: =BK51+Calculations!$C$6 -> 2017-02-19 | BL52: 8 | BM52: =RANDBETWEEN(VLOOKUP(BJ52,Calculations!$BB$6:$BE$17,4,FALSE)*100,VLOOKUP(BJ52,Calculations!$BB$6:$BE$17,3,FALSE)*100)/100 -> 41.82 | BN52: =RANDBETWEEN(VLOOKUP(BJ52,Calculations!$BB$6:$BH$17,7,FALSE)*100,VLOOKUP(BJ52,Calculations!$BB$6:$BH$17,6,FALSE)*100)/100 -> 39.97
A53: 1029 | B53: 44 | C53: 2017-10-29 | D53: =IF($C$6=7,VLOOKUP(B53,Calculations!$BL$3:$BM$55,2,FALSE),VLOOKUP($A53,Calculations!$BI$3:$BN$400,5,FALSE)) -> 50 | E53: 10 | F53: =MAX(0,'Perry et al-2015'!$K$11*(E53-'Perry et al-2015'!$K$13)*(1-EXP('Perry et al-2015'!$K$12*(E53-'Perry et al-2015'!$K$15)))) -> 2.836950493 | G53: =IF($C53<$AE$5,0,IF($C52<$AE$5,VLOOKUP(ROUND(MIN('Heming-1982'!$C$4,MAX('Heming-1982'!$C$3,$E53)),0),'Heming-1982'!$C$6:$D$9,2),($G52^'Perry et al-2015'!$K$10+$F53*'Perry et al-2015'!$K$10*$C$6/100)^(1/'Perry et al-2015'!$K$10))) -> 0 | H53: =IF($C53<$AE$7,0,IF($C52<$AE$7,VLOOKUP(ROUND(MIN('Heming-1982'!$C$4,MAX('Heming-1982'!$C$3,$E53)),0),'Heming-1982'!$C$6:$D$9,2),($H52^'Perry et al-2015'!$K$10+$F53*'Perry et al-2015'!$K$10*$C$6/100)^(1/'Perry et al-2015'!$K$10))) -> 0 | I53: =IF($C53<$AE$9,0,IF($C52<$AE$9,VLOOKUP(ROUND(MIN('Heming-1982'!$C$4,MAX('Heming-1982'!$C$3,Calculations!$E53)),0),'Heming-1982'!$C$6:$D$9,2),($I52^'Perry et al-2015'!$K$10+$F53*'Perry et al-2015'!$K$10*$C$6/100)^(1/'Perry et al-2015'!$K$10))) -> 0 | J53: =IF($C$6=7,VLOOKUP($B53,Calculations!$BL$3:$BM$55,2,FALSE),VLOOKUP($A53,Calculations!$BI$3:$BN$400,6,FALSE)) -> 48.6 | K53: 9.222222222 | L53: =MAX(0,'Perry et al-2015'!$K$11*(K53-'Perry et al-2015'!$K$13)*(1-EXP('Perry et al-2015'!$K$12*(K53-'Perry et al-2015'!$K$15)))) -> 2.575990838 | M53: =IF($C53<$AF$5,0,IF($C52<$AF$5,VLOOKUP(ROUND(MIN('Heming-1982'!$C$4,MAX('Heming-1982'!$C$3,$K53)),0),'Heming-1982'!$C$6:$D$9,2),(M52^'Perry et al-2015'!$K$10+$L53*'Perry et al-2015'!$K$10*$C$6/100)^(1/'Perry et al-2015'!$K$10))) -> 0 | N53: =IF($C53<$AF$7,0,IF($C52<$AF$7,VLOOKUP(ROUND(MIN('Heming-1982'!$C$4,MAX('Heming-1982'!$C$3,$K53)),0),'Heming-1982'!$C$6:$D$9,2),(N52^'Perry et al-2015'!$K$10+$L53*'Perry et al-2015'!$K$10*$C$6/100)^(1/'Perry et al-2015'!$K$10))) -> 0 | O53: =IF($C53<$AF$9,0,IF($C52<$AF$9,VLOOKUP(ROUND(MIN('Heming-1982'!$C$4,MAX('Heming-1982'!$C$3,$K53)),0),'Heming-1982'!$C$6:$D$9,2),(O52^'Perry et al-2015'!$K$10+$L53*'Perry et al-2015'!$K$10*$C$6/100)^(1/'Perry et al-2015'!$K$10))) -> 0 | AH53: 2017-10-29 | AI53: 44 | AJ53: 10 | AK53: 475.1888889 | AL53: 00:00:00 | AM53: 260 | AN53: 00:00:00 | AO53: 0 | AP53: 00:00:00 | AQ53: 9.222222222 | AR53: 427.2666667 | AS53: 00:00:00 | AT53: 240.9 | AU53: 00:00:00 | AV53: 0 | AW53: 00:00:00 | BI53: 220 | BJ53: 2 | BK53: =BK52+Calculations!$C$6 -> 2017-02-20 | BL53: 8 | BM53: =RANDBETWEEN(VLOOKUP(BJ53,Calculations!$BB$6:$BE$17,4,FALSE)*100,VLOOKUP(BJ53,Calculations!$BB$6:$BE$17,3,FALSE)*100)/100 -> 41.54 | BN53: =RANDBETWEEN(VLOOKUP(BJ53,Calculations!$BB$6:$BH$17,7,FALSE)*100,VLOOKUP(BJ53,Calculations!$BB$6:$BH$17,6,FALSE)*100)/100 -> 40.34
A54: 1030 | B54: 44 | C54: 2017-10-30 | D54: =IF($C$6=7,VLOOKUP(B54,Calculations!$BL$3:$BM$55,2,FALSE),VLOOKUP($A54,Calculations!$BI$3:$BN$400,5,FALSE)) -> 50 | E54: 10 | F54: =MAX(0,'Perry et al-2015'!$K$11*(E54-'Perry et al-2015'!$K$13)*(1-EXP('Perry et al-2015'!$K$12*(E54-'Perry et al-2015'!$K$15)))) -> 2.836950493 | G54: =IF($C54<$AE$5,0,IF($C53<$AE$5,VLOOKUP(ROUND(MIN('Heming-1982'!$C$4,MAX('Heming-1982'!$C$3,$E54)),0),'Heming-1982'!$C$6:$D$9,2),($G53^'Perry et al-2015'!$K$10+$F54*'Perry et al-2015'!$K$10*$C$6/100)^(1/'Perry et al-2015'!$K$10))) -> 0 | H54: =IF($C54<$AE$7,0,IF($C53<$AE$7,VLOOKUP(ROUND(MIN('Heming-1982'!$C$4,MAX('Heming-1982'!$C$3,$E54)),0),'Heming-1982'!$C$6:$D$9,2),($H53^'Perry et al-2015'!$K$10+$F54*'Perry et al-2015'!$K$10*$C$6/100)^(1/'Perry et al-2015'!$K$10))) -> 0 | I54: =IF($C54<$AE$9,0,IF($C53<$AE$9,VLOOKUP(ROUND(MIN('Heming-1982'!$C$4,MAX('Heming-1982'!$C$3,Calculations!$E54)),0),'Heming-1982'!$C$6:$D$9,2),($I53^'Perry et al-2015'!$K$10+$F54*'Perry et al-2015'!$K$10*$C$6/100)^(1/'Perry et al-2015'!$K$10))) -> 0 | J54: =IF($C$6=7,VLOOKUP($B54,Calculations!$BL$3:$BM$55,2,FALSE),VLOOKUP($A54,Calculations!$BI$3:$BN$400,6,FALSE)) -> 49.78 | K54: 9.877777778 | L54: =MAX(0,'Perry et al-2015'!$K$11*(K54-'Perry et al-2015'!$K$13)*(1-EXP('Perry et al-2015'!$K$12*(K54-'Perry et al-2015'!$K$15)))) -> 2.797031324 | M54: =IF($C54<$AF$5,0,IF($C53<$AF$5,VLOOKUP(ROUND(MIN('Heming-1982'!$C$4,MAX('Heming-1982'!$C$3,$K54)),0),'Heming-1982'!$C$6:$D$9,2),(M53^'Perry et al-2015'!$K$10+$L54*'Perry et al-2015'!$K$10*$C$6/100)^(1/'Perry et al-2015'!$K$10))) -> 0 | N54: =IF($C54<$AF$7,0,IF($C53<$AF$7,VLOOKUP(ROUND(MIN('Heming-1982'!$C$4,MAX('Heming-1982'!$C$3,$K54)),0),'Heming-1982'!$C$6:$D$9,2),(N53^'Perry et al-2015'!$K$10+$L54*'Perry et al-2015'!$K$10*$C$6/100)^(1/'Perry et al-2015'!$K$10))) -> 0 | O54: =IF($C54<$AF$9,0,IF($C53<$AF$9,VLOOKUP(ROUND(MIN('Heming-1982'!$C$4,MAX('Heming-1982'!$C$3,$K54)),0),'Heming-1982'!$C$6:$D$9,2),(O53^'Perry et al-2015'!$K$10+$L54*'Perry et al-2015'!$K$10*$C$6/100)^(1/'Perry et al-2015'!$K$10))) -> 0 | AH54: 2017-10-30 | AI54: 44 | AJ54: 10 | AK54: 485.1888889 | AL54: 00:00:00 | AM54: 270 | AN54: 00:00:00 | AO54: 0 | AP54: 00:00:00 | AQ54: 9.877777778 | AR54: 437.1444444 | AS54: 00:00:00 | AT54: 250.7777778 | AU54: 00:00:00 | AV54: 0 | AW54: 00:00:00 | BI54: 221 | BJ54: 2 | BK54: =BK53+Calculations!$C$6 -> 2017-02-21 | BL54: 8 | BM54: =RANDBETWEEN(VLOOKUP(BJ54,Calculations!$BB$6:$BE$17,4,FALSE)*100,VLOOKUP(BJ54,Calculations!$BB$6:$BE$17,3,FALSE)*100)/100 -> 41.54 | BN54: =RANDBETWEEN(VLOOKUP(BJ54,Calculations!$BB$6:$BH$17,7,FALSE)*100,VLOOKUP(BJ54,Calculations!$BB$6:$BH$17,6,FALSE)*100)/100 -> 40.12
A55: 1031 | B55: 44 | C55: 2017-10-31 | D55: =IF($C$6=7,VLOOKUP(B55,Calculations!$BL$3:$BM$55,2,FALSE),VLOOKUP($A55,Calculations!$BI$3:$BN$400,5,FALSE)) -> 50 | E55: 10 | F55: =MAX(0,'Perry et al-2015'!$K$11*(E55-'Perry et al-2015'!$K$13)*(1-EXP('Perry et al-2015'!$K$12*(E55-'Perry et al-2015'!$K$15)))) -> 2.836950493 | G55: =IF($C55<$AE$5,0,IF($C54<$AE$5,VLOOKUP(ROUND(MIN('Heming-1982'!$C$4,MAX('Heming-1982'!$C$3,$E55)),0),'Heming-1982'!$C$6:$D$9,2),($G54^'Perry et al-2015'!$K$10+$F55*'Perry et al-2015'!$K$10*$C$6/100)^(1/'Perry et al-2015'!$K$10))) -> 0 | H55: =IF($C55<$AE$7,0,IF($C54<$AE$7,VLOOKUP(ROUND(MIN('Heming-1982'!$C$4,MAX('Heming-1982'!$C$3,$E55)),0),'Heming-1982'!$C$6:$D$9,2),($H54^'Perry et al-2015'!$K$10+$F55*'Perry et al-2015'!$K$10*$C$6/100)^(1/'Perry et al-2015'!$K$10))) -> 0 | I55: =IF($C55<$AE$9,0,IF($C54<$AE$9,VLOOKUP(ROUND(MIN('Heming-1982'!$C$4,MAX('Heming-1982'!$C$3,Calculations!$E55)),0),'Heming-1982'!$C$6:$D$9,2),($I54^'Perry et al-2015'!$K$10+$F55*'Perry et al-2015'!$K$10*$C$6/100)^(1/'Perry et al-2015'!$K$10))) -> 0 | J55: =IF($C$6=7,VLOOKUP($B55,Calculations!$BL$3:$BM$55,2,FALSE),VLOOKUP($A55,Calculations!$BI$3:$BN$400,6,FALSE)) -> 50.42 | K55: 10.23333333 | L55: =MAX(0,'Perry et al-2015'!$K$11*(K55-'Perry et al-2015'!$K$13)*(1-EXP('Perry et al-2015'!$K$12*(K55-'Perry et al-2015'!$K$15)))) -> 2.911904788 | M55: =IF($C55<$AF$5,0,IF($C54<$AF$5,VLOOKUP(ROUND(MIN('Heming-1982'!$C$4,MAX('Heming-1982'!$C$3,$K55)),0),'Heming-1982'!$C$6:$D$9,2),(M54^'Perry et al-2015'!$K$10+$L55*'Perry et al-2015'!$K$10*$C$6/100)^(1/'Perry et al-2015'!$K$10))) -> 0 | N55: =IF($C55<$AF$7,0,IF($C54<$AF$7,VLOOKUP(ROUND(MIN('Heming-1982'!$C$4,MAX('Heming-1982'!$C$3,$K55)),0),'Heming-1982'!$C$6:$D$9,2),(N54^'Perry et al-2015'!$K$10+$L55*'Perry et al-2015'!$K$10*$C$6/100)^(1/'Perry et al-2015'!$K$10))) -> 0 | O55: =IF($C55<$AF$9,0,IF($C54<$AF$9,VLOOKUP(ROUND(MIN('Heming-1982'!$C$4,MAX('Heming-1982'!$C$3,$K55)),0),'Heming-1982'!$C$6:$D$9,2),(O54^'Perry et al-2015'!$K$10+$L55*'Perry et al-2015'!$K$10*$C$6/100)^(1/'Perry et al-2015'!$K$10))) -> 0 | AH55: 2017-10-31 | AI55: 44 | AJ55: 10 | AK55: 495.1888889 | AL55: 00:00:00 | AM55: 280 | AN55: 00:00:00 | AO55: 0 | AP55: 00:00:00 | AQ55: 10.23333333 | AR55: 447.3777778 | AS55: 00:00:00 | AT55: 261.0111111 | AU55: 00:00:00 | AV55: 0 | AW55: 00:00:00 | BI55: 222 | BJ55: 2 | BK55: =BK54+Calculations!$C$6 -> 2017-02-22 | BL55: 8 | BM55: =RANDBETWEEN(VLOOKUP(BJ55,Calculations!$BB$6:$BE$17,4,FALSE)*100,VLOOKUP(BJ55,Calculations!$BB$6:$BE$17,3,FALSE)*100)/100 -> 41.88 | BN55: =RANDBETWEEN(VLOOKUP(BJ55,Calculations!$BB$6:$BH$17,7,FALSE)*100,VLOOKUP(BJ55,Calculations!$BB$6:$BH$17,6,FALSE)*100)/100 -> 39.83
A56: 1101 | B56: 44 | C56: 2017-11-01 | D56: =IF($C$6=7,VLOOKUP(B56,Calculations!$BL$3:$BM$55,2,FALSE),VLOOKUP($A56,Calculations!$BI$3:$BN$400,5,FALSE)) -> 50 | E56: 10 | F56: =MAX(0,'Perry et al-2015'!$K$11*(E56-'Perry et al-2015'!$K$13)*(1-EXP('Perry et al-2015'!$K$12*(E56-'Perry et al-2015'!$K$15)))) -> 2.836950493 | G56: =IF($C56<$AE$5,0,IF($C55<$AE$5,VLOOKUP(ROUND(MIN('Heming-1982'!$C$4,MAX('Heming-1982'!$C$3,$E56)),0),'Heming-1982'!$C$6:$D$9,2),($G55^'Perry et al-2015'!$K$10+$F56*'Perry et al-2015'!$K$10*$C$6/100)^(1/'Perry et al-2015'!$K$10))) -> 0 | H56: =IF($C56<$AE$7,0,IF($C55<$AE$7,VLOOKUP(ROUND(MIN('Heming-1982'!$C$4,MAX('Heming-1982'!$C$3,$E56)),0),'Heming-1982'!$C$6:$D$9,2),($H55^'Perry et al-2015'!$K$10+$F56*'Perry et al-2015'!$K$10*$C$6/100)^(1/'Perry et al-2015'!$K$10))) -> 0 | I56: =IF($C56<$AE$9,0,IF($C55<$AE$9,VLOOKUP(ROUND(MIN('Heming-1982'!$C$4,MAX('Heming-1982'!$C$3,Calculations!$E56)),0),'Heming-1982'!$C$6:$D$9,2),($I55^'Perry et al-2015'!$K$10+$F56*'Perry et al-2015'!$K$10*$C$6/100)^(1/'Perry et al-2015'!$K$10))) -> 0 | J56: =IF($C$6=7,VLOOKUP($B56,Calculations!$BL$3:$BM$55,2,FALSE),VLOOKUP($A56,Calculations!$BI$3:$BN$400,6,FALSE)) -> 45.3 | K56: 7.388888889 | L56: =MAX(0,'Perry et al-2015'!$K$11*(K56-'Perry et al-2015'!$K$13)*(1-EXP('Perry et al-2015'!$K$12*(K56-'Perry et al-2015'!$K$15)))) -> 1.910499788 | M56: =IF($C56<$AF$5,0,IF($C55<$AF$5,VLOOKUP(ROUND(MIN('Heming-1982'!$C$4,MAX('Heming-1982'!$C$3,$K56)),0),'Heming-1982'!$C$6:$D$9,2),(M55^'Perry et al-2015'!$K$10+$L56*'Perry et al-2015'!$K$10*$C$6/100)^(1/'Perry et al-2015'!$K$10))) -> 0 | N56: =IF($C56<$AF$7,0,IF($C55<$AF$7,VLOOKUP(ROUND(MIN('Heming-1982'!$C$4,MAX('Heming-1982'!$C$3,$K56)),0),'Heming-1982'!$C$6:$D$9,2),(N55^'Perry et al-2015'!$K$10+$L56*'Perry et al-2015'!$K$10*$C$6/100)^(1/'Perry et al-2015'!$K$10))) -> 0 | O56: =IF($C56<$AF$9,0,IF($C55<$AF$9,VLOOKUP(ROUND(MIN('Heming-1982'!$C$4,MAX('Heming-1982'!$C$3,$K56)),0),'Heming-1982'!$C$6:$D$9,2),(O55^'Perry et al-2015'!$K$10+$L56*'Perry et al-2015'!$K$10*$C$6/100)^(1/'Perry et al-2015'!$K$10))) -> 0 | AH56: 2017-11-01 | AI56: 44 | AJ56: 10 | AK56: 505.1888889 | AL56: 00:00:00 | AM56: 290 | AN56: 00:00:00 | AO56: 0 | AP56: 00:00:00 | AQ56: 7.388888889 | AR56: 454.7666667 | AS56: 00:00:00 | AT56: 268.4 | AU56: 00:00:00 | AV56: 0 | AW56: 00:00:00 | BI56: 223 | BJ56: 2 | BK56: =BK55+Calculations!$C$6 -> 2017-02-23 | BL56: 8 | BM56: =RANDBETWEEN(VLOOKUP(BJ56,Calculations!$BB$6:$BE$17,4,FALSE)*100,VLOOKUP(BJ56,Calculations!$BB$6:$BE$17,3,FALSE)*100)/100 -> 41.04 | BN56: =RANDBETWEEN(VLOOKUP(BJ56,Calculations!$BB$6:$BH$17,7,FALSE)*100,VLOOKUP(BJ56,Calculations!$BB$6:$BH$17,6,FALSE)*100)/100 -> 40.71
A57: 1102 | B57: 44 | C57: 2017-11-02 | D57: =IF($C$6=7,VLOOKUP(B57,Calculations!$BL$3:$BM$55,2,FALSE),VLOOKUP($A57,Calculations!$BI$3:$BN$400,5,FALSE)) -> 50 | E57: 10 | F57: =MAX(0,'Perry et al-2015'!$K$11*(E57-'Perry et al-2015'!$K$13)*(1-EXP('Perry et al-2015'!$K$12*(E57-'Perry et al-2015'!$K$15)))) -> 2.836950493 | G57: =IF($C57<$AE$5,0,IF($C56<$AE$5,VLOOKUP(ROUND(MIN('Heming-1982'!$C$4,MAX('Heming-1982'!$C$3,$E57)),0),'Heming-1982'!$C$6:$D$9,2),($G56^'Perry et al-2015'!$K$10+$F57*'Perry et al-2015'!$K$10*$C$6/100)^(1/'Perry et al-2015'!$K$10))) -> 0 | H57: =IF($C57<$AE$7,0,IF($C56<$AE$7,VLOOKUP(ROUND(MIN('Heming-1982'!$C$4,MAX('Heming-1982'!$C$3,$E57)),0),'Heming-1982'!$C$6:$D$9,2),($H56^'Perry et al-2015'!$K$10+$F57*'Perry et al-2015'!$K$10*$C$6/100)^(1/'Perry et al-2015'!$K$10))) -> 0 | I57: =IF($C57<$AE$9,0,IF($C56<$AE$9,VLOOKUP(ROUND(MIN('Heming-1982'!$C$4,MAX('Heming-1982'!$C$3,Calculations!$E57)),0),'Heming-1982'!$C$6:$D$9,2),($I56^'Perry et al-2015'!$K$10+$F57*'Perry et al-2015'!$K$10*$C$6/100)^(1/'Perry et al-2015'!$K$10))) -> 0 | J57: =IF($C$6=7,VLOOKUP($B57,Calculations!$BL$3:$BM$55,2,FALSE),VLOOKUP($A57,Calculations!$BI$3:$BN$400,6,FALSE)) -> 45.33 | K57: 7.405555556 | L57: =MAX(0,'Perry et al-2015'!$K$11*(K57-'Perry et al-2015'!$K$13)*(1-EXP('Perry et al-2015'!$K$12*(K57-'Perry et al-2015'!$K$15)))) -> 1.91678827 | M57: =IF($C57<$AF$5,0,IF($C56<$AF$5,VLOOKUP(ROUND(MIN('Heming-1982'!$C$4,MAX('Heming-1982'!$C$3,$K57)),0),'Heming-1982'!$C$6:$D$9,2),(M56^'Perry et al-2015'!$K$10+$L57*'Perry et al-2015'!$K$10*$C$6/100)^(1/'Perry et al-2015'!$K$10))) -> 0 | N57: =IF($C57<$AF$7,0,IF($C56<$AF$7,VLOOKUP(ROUND(MIN('Heming-1982'!$C$4,MAX('Heming-1982'!$C$3,$K57)),0),'Heming-1982'!$C$6:$D$9,2),(N56^'Perry et al-2015'!$K$10+$L57*'Perry et al-2015'!$K$10*$C$6/100)^(1/'Perry et al-2015'!$K$10))) -> 0 | O57: =IF($C57<$AF$9,0,IF($C56<$AF$9,VLOOKUP(ROUND(MIN('Heming-1982'!$C$4,MAX('Heming-1982'!$C$3,$K57)),0),'Heming-1982'!$C$6:$D$9,2),(O56^'Perry et al-2015'!$K$10+$L57*'Perry et al-2015'!$K$10*$C$6/100)^(1/'Perry et al-2015'!$K$10))) -> 0 | AH57: 2017-11-02 | AI57: 44 | AJ57: 10 | AK57: 515.1888889 | AL57: 00:00:00 | AM57: 300 | AN57: 00:00:00 | AO57: 0 | AP57: 00:00:00 | AQ57: 7.405555556 | AR57: 462.1722222 | AS57: 00:00:00 | AT57: 275.8055556 | AU57: 00:00:00 | AV57: 0 | AW57: 00:00:00 | BI57: 224 | BJ57: 2 | BK57: =BK56+Calculations!$C$6 -> 2017-02-24 | BL57: 8 | BM57: =RANDBETWEEN(VLOOKUP(BJ57,Calculations!$BB$6:$BE$17,4,FALSE)*100,VLOOKUP(BJ57,Calculations!$BB$6:$BE$17,3,FALSE)*100)/100 -> 41.06 | BN57: =RANDBETWEEN(VLOOKUP(BJ57,Calculations!$BB$6:$BH$17,7,FALSE)*100,VLOOKUP(BJ57,Calculations!$BB$6:$BH$17,6,FALSE)*100)/100 -> 38.3
A58: 1103 | B58: 44 | C58: 2017-11-03 | D58: =IF($C$6=7,VLOOKUP(B58,Calculations!$BL$3:$BM$55,2,FALSE),VLOOKUP($A58,Calculations!$BI$3:$BN$400,5,FALSE)) -> 50 | E58: 10 | F58: =MAX(0,'Perry et al-2015'!$K$11*(E58-'Perry et al-2015'!$K$13)*(1-EXP('Perry et al-2015'!$K$12*(E58-'Perry et al-2015'!$K$15)))) -> 2.836950493 | G58: =IF($C58<$AE$5,0,IF($C57<$AE$5,VLOOKUP(ROUND(MIN('Heming-1982'!$C$4,MAX('Heming-1982'!$C$3,$E58)),0),'Heming-1982'!$C$6:$D$9,2),($G57^'Perry et al-2015'!$K$10+$F58*'Perry et al-2015'!$K$10*$C$6/100)^(1/'Perry et al-2015'!$K$10))) -> 0 | H58: =IF($C58<$AE$7,0,IF($C57<$AE$7,VLOOKUP(ROUND(MIN('Heming-1982'!$C$4,MAX('Heming-1982'!$C$3,$E58)),0),'Heming-1982'!$C$6:$D$9,2),($H57^'Perry et al-2015'!$K$10+$F58*'Perry et al-2015'!$K$10*$C$6/100)^(1/'Perry et al-2015'!$K$10))) -> 0 | I58: =IF($C58<$AE$9,0,IF($C57<$AE$9,VLOOKUP(ROUND(MIN('Heming-1982'!$C$4,MAX('Heming-1982'!$C$3,Calculations!$E58)),0),'Heming-1982'!$C$6:$D$9,2),($I57^'Perry et al-2015'!$K$10+$F58*'Perry et al-2015'!$K$10*$C$6/100)^(1/'Perry et al-2015'!$K$10))) -> 0 | J58: =IF($C$6=7,VLOOKUP($B58,Calculations!$BL$3:$BM$55,2,FALSE),VLOOKUP($A58,Calculations!$BI$3:$BN$400,6,FALSE)) -> 44.44 | K58: 6.911111111 | L58: =MAX(0,'Perry et al-2015'!$K$11*(K58-'Perry et al-2015'!$K$13)*(1-EXP('Perry et al-2015'!$K$12*(K58-'Perry et al-2015'!$K$15)))) -> 1.728803286 | M58: =IF($C58<$AF$5,0,IF($C57<$AF$5,VLOOKUP(ROUND(MIN('Heming-1982'!$C$4,MAX('Heming-1982'!$C$3,$K58)),0),'Heming-1982'!$C$6:$D$9,2),(M57^'Perry et al-2015'!$K$10+$L58*'Perry et al-2015'!$K$10*$C$6/100)^(1/'Perry et al-2015'!$K$10))) -> 0 | N58: =IF($C58<$AF$7,0,IF($C57<$AF$7,VLOOKUP(ROUND(MIN('Heming-1982'!$C$4,MAX('Heming-1982'!$C$3,$K58)),0),'Heming-1982'!$C$6:$D$9,2),(N57^'Perry et al-2015'!$K$10+$L58*'Perry et al-2015'!$K$10*$C$6/100)^(1/'Perry et al-2015'!$K$10))) -> 0 | O58: =IF($C58<$AF$9,0,IF($C57<$AF$9,VLOOKUP(ROUND(MIN('Heming-1982'!$C$4,MAX('Heming-1982'!$C$3,$K58)),0),'Heming-1982'!$C$6:$D$9,2),(O57^'Perry et al-2015'!$K$10+$L58*'Perry et al-2015'!$K$10*$C$6/100)^(1/'Perry et al-2015'!$K$10))) -> 0 | AH58: 2017-11-03 | AI58: 44 | AJ58: 10 | AK58: 525.1888889 | AL58: 00:00:00 | AM58: 310 | AN58: 00:00:00 | AO58: 0 | AP58: 00:00:00 | AQ58: 6.911111111 | AR58: 469.0833333 | AS58: 00:00:00 | AT58: 282.7166667 | AU58: 00:00:00 | AV58: 0 | AW58: 00:00:00 | BI58: 225 | BJ58: 2 | BK58: =BK57+Calculations!$C$6 -> 2017-02-25 | BL58: 8 | BM58: =RANDBETWEEN(VLOOKUP(BJ58,Calculations!$BB$6:$BE$17,4,FALSE)*100,VLOOKUP(BJ58,Calculations!$BB$6:$BE$17,3,FALSE)*100)/100 -> 41.64 | BN58: =RANDBETWEEN(VLOOKUP(BJ58,Calculations!$BB$6:$BH$17,7,FALSE)*100,VLOOKUP(BJ58,Calculations!$BB$6:$BH$17,6,FALSE)*100)/100 -> 38.45
A59: 1104 | B59: 44 | C59: 2017-11-04 | D59: =IF($C$6=7,VLOOKUP(B59,Calculations!$BL$3:$BM$55,2,FALSE),VLOOKUP($A59,Calculations!$BI$3:$BN$400,5,FALSE)) -> 50 | E59: 10 | F59: =MAX(0,'Perry et al-2015'!$K$11*(E59-'Perry et al-2015'!$K$13)*(1-EXP('Perry et al-2015'!$K$12*(E59-'Perry et al-2015'!$K$15)))) -> 2.836950493 | G59: =IF($C59<$AE$5,0,IF($C58<$AE$5,VLOOKUP(ROUND(MIN('Heming-1982'!$C$4,MAX('Heming-1982'!$C$3,$E59)),0),'Heming-1982'!$C$6:$D$9,2),($G58^'Perry et al-2015'!$K$10+$F59*'Perry et al-2015'!$K$10*$C$6/100)^(1/'Perry et al-2015'!$K$10))) -> 0 | H59: =IF($C59<$AE$7,0,IF($C58<$AE$7,VLOOKUP(ROUND(MIN('Heming-1982'!$C$4,MAX('Heming-1982'!$C$3,$E59)),0),'Heming-1982'!$C$6:$D$9,2),($H58^'Perry et al-2015'!$K$10+$F59*'Perry et al-2015'!$K$10*$C$6/100)^(1/'Perry et al-2015'!$K$10))) -> 0 | I59: =IF($C59<$AE$9,0,IF($C58<$AE$9,VLOOKUP(ROUND(MIN('Heming-1982'!$C$4,MAX('Heming-1982'!$C$3,Calculations!$E59)),0),'Heming-1982'!$C$6:$D$9,2),($I58^'Perry et al-2015'!$K$10+$F59*'Perry et al-2015'!$K$10*$C$6/100)^(1/'Perry et al-2015'!$K$10))) -> 0 | J59: =IF($C$6=7,VLOOKUP($B59,Calculations!$BL$3:$BM$55,2,FALSE),VLOOKUP($A59,Calculations!$BI$3:$BN$400,6,FALSE)) -> 43.4 | K59: 6.333333333 | L59: =MAX(0,'Perry et al-2015'!$K$11*(K59-'Perry et al-2015'!$K$13)*(1-EXP('Perry et al-2015'!$K$12*(K59-'Perry et al-2015'!$K$15)))) -> 1.505805959 | M59: =IF($C59<$AF$5,0,IF($C58<$AF$5,VLOOKUP(ROUND(MIN('Heming-1982'!$C$4,MAX('Heming-1982'!$C$3,$K59)),0),'Heming-1982'!$C$6:$D$9,2),(M58^'Perry et al-2015'!$K$10+$L59*'Perry et al-2015'!$K$10*$C$6/100)^(1/'Perry et al-2015'!$K$10))) -> 0 | N59: =IF($C59<$AF$7,0,IF($C58<$AF$7,VLOOKUP(ROUND(MIN('Heming-1982'!$C$4,MAX('Heming-1982'!$C$3,$K59)),0),'Heming-1982'!$C$6:$D$9,2),(N58^'Perry et al-2015'!$K$10+$L59*'Perry et al-2015'!$K$10*$C$6/100)^(1/'Perry et al-2015'!$K$10))) -> 0 | O59: =IF($C59<$AF$9,0,IF($C58<$AF$9,VLOOKUP(ROUND(MIN('Heming-1982'!$C$4,MAX('Heming-1982'!$C$3,$K59)),0),'Heming-1982'!$C$6:$D$9,2),(O58^'Perry et al-2015'!$K$10+$L59*'Perry et al-2015'!$K$10*$C$6/100)^(1/'Perry et al-2015'!$K$10))) -> 0 | AH59: 2017-11-04 | AI59: 44 | AJ59: 10 | AK59: 535.1888889 | AL59: 00:00:00 | AM59: 320 | AN59: 00:00:00 | AO59: 0 | AP59: 00:00:00 | AQ59: 6.333333333 | AR59: 475.4166667 | AS59: 00:00:00 | AT59: 289.05 | AU59: 00:00:00 | AV59: 0 | AW59: 00:00:00 | BI59: 226 | BJ59: 2 | BK59: =BK58+Calculations!$C$6 -> 2017-02-26 | BL59: 9 | BM59: =RANDBETWEEN(VLOOKUP(BJ59,Calculations!$BB$6:$BE$17,4,FALSE)*100,VLOOKUP(BJ59,Calculations!$BB$6:$BE$17,3,FALSE)*100)/100 -> 41.79 | BN59: =RANDBETWEEN(VLOOKUP(BJ59,Calculations!$BB$6:$BH$17,7,FALSE)*100,VLOOKUP(BJ59,Calculations!$BB$6:$BH$17,6,FALSE)*100)/100 -> 40.77
A60: 1105 | B60: 45 | C60: 2017-11-05 | D60: =IF($C$6=7,VLOOKUP(B60,Calculations!$BL$3:$BM$55,2,FALSE),VLOOKUP($A60,Calculations!$BI$3:$BN$400,5,FALSE)) -> 50 | E60: 10 | F60: =MAX(0,'Perry et al-2015'!$K$11*(E60-'Perry et al-2015'!$K$13)*(1-EXP('Perry et al-2015'!$K$12*(E60-'Perry et al-2015'!$K$15)))) -> 2.836950493 | G60: =IF($C60<$AE$5,0,IF($C59<$AE$5,VLOOKUP(ROUND(MIN('Heming-1982'!$C$4,MAX('Heming-1982'!$C$3,$E60)),0),'Heming-1982'!$C$6:$D$9,2),($G59^'Perry et al-2015'!$K$10+$F60*'Perry et al-2015'!$K$10*$C$6/100)^(1/'Perry et al-2015'!$K$10))) -> 0 | H60: =IF($C60<$AE$7,0,IF($C59<$AE$7,VLOOKUP(ROUND(MIN('Heming-1982'!$C$4,MAX('Heming-1982'!$C$3,$E60)),0),'Heming-1982'!$C$6:$D$9,2),($H59^'Perry et al-2015'!$K$10+$F60*'Perry et al-2015'!$K$10*$C$6/100)^(1/'Perry et al-2015'!$K$10))) -> 0 | I60: =IF($C60<$AE$9,0,IF($C59<$AE$9,VLOOKUP(ROUND(MIN('Heming-1982'!$C$4,MAX('Heming-1982'!$C$3,Calculations!$E60)),0),'Heming-1982'!$C$6:$D$9,2),($I59^'Perry et al-2015'!$K$10+$F60*'Perry et al-2015'!$K$10*$C$6/100)^(1/'Perry et al-2015'!$K$10))) -> 0 | J60: =IF($C$6=7,VLOOKUP($B60,Calculations!$BL$3:$BM$55,2,FALSE),VLOOKUP($A60,Calculations!$BI$3:$BN$400,6,FALSE)) -> 43.08 | K60: 6.155555556 | L60: =MAX(0,'Perry et al-2015'!$K$11*(K60-'Perry et al-2015'!$K$13)*(1-EXP('Perry et al-2015'!$K$12*(K60-'Perry et al-2015'!$K$15)))) -> 1.436565436 | M60: =IF($C60<$AF$5,0,IF($C59<$AF$5,VLOOKUP(ROUND(MIN('Heming-1982'!$C$4,MAX('Heming-1982'!$C$3,$K60)),0),'Heming-1982'!$C$6:$D$9,2),(M59^'Perry et al-2015'!$K$10+$L60*'Perry et al-2015'!$K$10*$C$6/100)^(1/'Perry et al-2015'!$K$10))) -> 0 | N60: =IF($C60<$AF$7,0,IF($C59<$AF$7,VLOOKUP(ROUND(MIN('Heming-1982'!$C$4,MAX('Heming-1982'!$C$3,$K60)),0),'Heming-1982'!$C$6:$D$9,2),(N59^'Perry et al-2015'!$K$10+$L60*'Perry et al-2015'!$K$10*$C$6/100)^(1/'Perry et al-2015'!$K$10))) -> 0 | O60: =IF($C60<$AF$9,0,IF($C59<$AF$9,VLOOKUP(ROUND(MIN('Heming-1982'!$C$4,MAX('Heming-1982'!$C$3,$K60)),0),'Heming-1982'!$C$6:$D$9,2),(O59^'Perry et al-2015'!$K$10+$L60*'Perry et al-2015'!$K$10*$C$6/100)^(1/'Perry et al-2015'!$K$10))) -> 0 | AH60: 2017-11-05 | AI60: 45 | AJ60: 10 | AK60: 545.1888889 | AL60: 00:00:00 | AM60: 330 | AN60: 00:00:00 | AO60: 0 | AP60: 00:00:00 | AQ60: 6.155555556 | AR60: 481.5722222 | AS60: 00:00:00 | AT60: 295.2055556 | AU60: 00:00:00 | AV60: 0 | AW60: 00:00:00 | BI60: 227 | BJ60: 2 | BK60: =BK59+Calculations!$C$6 -> 2017-02-27 | BL60: 9 | BM60: =RANDBETWEEN(VLOOKUP(BJ60,Calculations!$BB$6:$BE$17,4,FALSE)*100,VLOOKUP(BJ60,Calculations!$BB$6:$BE$17,3,FALSE)*100)/100 -> 41.46 | BN60: =RANDBETWEEN(VLOOKUP(BJ60,Calculations!$BB$6:$BH$17,7,FALSE)*100,VLOOKUP(BJ60,Calculations!$BB$6:$BH$17,6,FALSE)*100)/100 -> 40.52
A61: 1106 | B61: 45 | C61: 2017-11-06 | D61: =IF($C$6=7,VLOOKUP(B61,Calculations!$BL$3:$BM$55,2,FALSE),VLOOKUP($A61,Calculations!$BI$3:$BN$400,5,FALSE)) -> 50 | E61: 10 | F61: =MAX(0,'Perry et al-2015'!$K$11*(E61-'Perry et al-2015'!$K$13)*(1-EXP('Perry et al-2015'!$K$12*(E61-'Perry et al-2015'!$K$15)))) -> 2.836950493 | G61: =IF($C61<$AE$5,0,IF($C60<$AE$5,VLOOKUP(ROUND(MIN('Heming-1982'!$C$4,MAX('Heming-1982'!$C$3,$E61)),0),'Heming-1982'!$C$6:$D$9,2),($G60^'Perry et al-2015'!$K$10+$F61*'Perry et al-2015'!$K$10*$C$6/100)^(1/'Perry et al-2015'!$K$10))) -> 0 | H61: =IF($C61<$AE$7,0,IF($C60<$AE$7,VLOOKUP(ROUND(MIN('Heming-1982'!$C$4,MAX('Heming-1982'!$C$3,$E61)),0),'Heming-1982'!$C$6:$D$9,2),($H60^'Perry et al-2015'!$K$10+$F61*'Perry et al-2015'!$K$10*$C$6/100)^(1/'Perry et al-2015'!$K$10))) -> 0 | I61: =IF($C61<$AE$9,0,IF($C60<$AE$9,VLOOKUP(ROUND(MIN('Heming-1982'!$C$4,MAX('Heming-1982'!$C$3,Calculations!$E61)),0),'Heming-1982'!$C$6:$D$9,2),($I60^'Perry et al-2015'!$K$10+$F61*'Perry et al-2015'!$K$10*$C$6/100)^(1/'Perry et al-2015'!$K$10))) -> 0 | J61: =IF($C$6=7,VLOOKUP($B61,Calculations!$BL$3:$BM$55,2,FALSE),VLOOKUP($A61,Calculations!$BI$3:$BN$400,6,FALSE)) -> 43.48 | K61: 6.377777778 | L61: =MAX(0,'Perry et al-2015'!$K$11*(K61-'Perry et al-2015'!$K$13)*(1-EXP('Perry et al-2015'!$K$12*(K61-'Perry et al-2015'!$K$15)))) -> 1.523072832 | M61: =IF($C61<$AF$5,0,IF($C60<$AF$5,VLOOKUP(ROUND(MIN('Heming-1982'!$C$4,MAX('Heming-1982'!$C$3,$K61)),0),'Heming-1982'!$C$6:$D$9,2),(M60^'Perry et al-2015'!$K$10+$L61*'Perry et al-2015'!$K$10*$C$6/100)^(1/'Perry et al-2015'!$K$10))) -> 0 | N61: =IF($C61<$AF$7,0,IF($C60<$AF$7,VLOOKUP(ROUND(MIN('Heming-1982'!$C$4,MAX('Heming-1982'!$C$3,$K61)),0),'Heming-1982'!$C$6:$D$9,2),(N60^'Perry et al-2015'!$K$10+$L61*'Perry et al-2015'!$K$10*$C$6/100)^(1/'Perry et al-2015'!$K$10))) -> 0 | O61: =IF($C61<$AF$9,0,IF($C60<$AF$9,VLOOKUP(ROUND(MIN('Heming-1982'!$C$4,MAX('Heming-1982'!$C$3,$K61)),0),'Heming-1982'!$C$6:$D$9,2),(O60^'Perry et al-2015'!$K$10+$L61*'Perry et al-2015'!$K$10*$C$6/100)^(1/'Perry et al-2015'!$K$10))) -> 0 | AH61: 2017-11-06 | AI61: 45 | AJ61: 10 | AK61: 555.1888889 | AL61: 00:00:00 | AM61: 340 | AN61: 00:00:00 | AO61: 10 | AP61: 00:00:00 | AQ61: 6.377777778 | AR61: 487.95 | AS61: 00:00:00 | AT61: 301.5833333 | AU61: 00:00:00 | AV61: 6.377777778 | AW61: 00:00:00 | BI61: 228 | BJ61: 2 | BK61: =BK60+Calculations!$C$6 -> 2017-02-28 | BL61: 9 | BM61: =RANDBETWEEN(VLOOKUP(BJ61,Calculations!$BB$6:$BE$17,4,FALSE)*100,VLOOKUP(BJ61,Calculations!$BB$6:$BE$17,3,FALSE)*100)/100 -> 41.32 | BN61: =RANDBETWEEN(VLOOKUP(BJ61,Calculations!$BB$6:$BH$17,7,FALSE)*100,VLOOKUP(BJ61,Calculations!$BB$6:$BH$17,6,FALSE)*100)/100 -> 40.3
A62: 1107 | B62: 45 | C62: 2017-11-07 | D62: =IF($C$6=7,VLOOKUP(B62,Calculations!$BL$3:$BM$55,2,FALSE),VLOOKUP($A62,Calculations!$BI$3:$BN$400,5,FALSE)) -> 50 | E62: 10 | F62: =MAX(0,'Perry et al-2015'!$K$11*(E62-'Perry et al-2015'!$K$13)*(1-EXP('Perry et al-2015'!$K$12*(E62-'Perry et al-2015'!$K$15)))) -> 2.836950493 | G62: =IF($C62<$AE$5,0,IF($C61<$AE$5,VLOOKUP(ROUND(MIN('Heming-1982'!$C$4,MAX('Heming-1982'!$C$3,$E62)),0),'Heming-1982'!$C$6:$D$9,2),($G61^'Perry et al-2015'!$K$10+$F62*'Perry et al-2015'!$K$10*$C$6/100)^(1/'Perry et al-2015'!$K$10))) -> 0 | H62: =IF($C62<$AE$7,0,IF($C61<$AE$7,VLOOKUP(ROUND(MIN('Heming-1982'!$C$4,MAX('Heming-1982'!$C$3,$E62)),0),'Heming-1982'!$C$6:$D$9,2),($H61^'Perry et al-2015'!$K$10+$F62*'Perry et al-2015'!$K$10*$C$6/100)^(1/'Perry et al-2015'!$K$10))) -> 0 | I62: =IF($C62<$AE$9,0,IF($C61<$AE$9,VLOOKUP(ROUND(MIN('Heming-1982'!$C$4,MAX('Heming-1982'!$C$3,Calculations!$E62)),0),'Heming-1982'!$C$6:$D$9,2),($I61^'Perry et al-2015'!$K$10+$F62*'Perry et al-2015'!$K$10*$C$6/100)^(1/'Perry et al-2015'!$K$10))) -> 0 | J62: =IF($C$6=7,VLOOKUP($B62,Calculations!$BL$3:$BM$55,2,FALSE),VLOOKUP($A62,Calculations!$BI$3:$BN$400,6,FALSE)) -> 43.67 | K62: 6.483333333 | L62: =MAX(0,'Perry et al-2015'!$K$11*(K62-'Perry et al-2015'!$K$13)*(1-EXP('Perry et al-2015'!$K$12*(K62-'Perry et al-2015'!$K$15)))) -> 1.564009672 | M62: =IF($C62<$AF$5,0,IF($C61<$AF$5,VLOOKUP(ROUND(MIN('Heming-1982'!$C$4,MAX('Heming-1982'!$C$3,$K62)),0),'Heming-1982'!$C$6:$D$9,2),(M61^'Perry et al-2015'!$K$10+$L62*'Perry et al-2015'!$K$10*$C$6/100)^(1/'Perry et al-2015'!$K$10))) -> 0 | N62: =IF($C62<$AF$7,0,IF($C61<$AF$7,VLOOKUP(ROUND(MIN('Heming-1982'!$C$4,MAX('Heming-1982'!$C$3,$K62)),0),'Heming-1982'!$C$6:$D$9,2),(N61^'Perry et al-2015'!$K$10+$L62*'Perry et al-2015'!$K$10*$C$6/100)^(1/'Perry et al-2015'!$K$10))) -> 0 | O62: =IF($C62<$AF$9,0,IF($C61<$AF$9,VLOOKUP(ROUND(MIN('Heming-1982'!$C$4,MAX('Heming-1982'!$C$3,$K62)),0),'Heming-1982'!$C$6:$D$9,2),(O61^'Perry et al-2015'!$K$10+$L62*'Perry et al-2015'!$K$10*$C$6/100)^(1/'Perry et al-2015'!$K$10))) -> 0 | AH62: 2017-11-07 | AI62: 45 | AJ62: 10 | AK62: 565.1888889 | AL62: 00:00:00 | AM62: 350 | AN62: 00:00:00 | AO62: 20 | AP62: 00:00:00 | AQ62: 6.483333333 | AR62: 494.4333333 | AS62: 00:00:00 | AT62: 308.0666667 | AU62: 00:00:00 | AV62: 12.86111111 | AW62: 00:00:00 | BI62: 301 | BJ62: 3 | BK62: =BK61+Calculations!$C$6 -> 2017-03-01 | BL62: 9 | BM62: =RANDBETWEEN(VLOOKUP(BJ62,Calculations!$BB$6:$BE$17,4,FALSE)*100,VLOOKUP(BJ62,Calculations!$BB$6:$BE$17,3,FALSE)*100)/100 -> 41.65 | BN62: =RANDBETWEEN(VLOOKUP(BJ62,Calculations!$BB$6:$BH$17,7,FALSE)*100,VLOOKUP(BJ62,Calculations!$BB$6:$BH$17,6,FALSE)*100)/100 -> 43.77
A63: 1108 | B63: 45 | C63: 2017-11-08 | D63: =IF($C$6=7,VLOOKUP(B63,Calculations!$BL$3:$BM$55,2,FALSE),VLOOKUP($A63,Calculations!$BI$3:$BN$400,5,FALSE)) -> 50 | E63: 10 | F63: =MAX(0,'Perry et al-2015'!$K$11*(E63-'Perry et al-2015'!$K$13)*(1-EXP('Perry et al-2015'!$K$12*(E63-'Perry et al-2015'!$K$15)))) -> 2.836950493 | G63: =IF($C63<$AE$5,0,IF($C62<$AE$5,VLOOKUP(ROUND(MIN('Heming-1982'!$C$4,MAX('Heming-1982'!$C$3,$E63)),0),'Heming-1982'!$C$6:$D$9,2),($G62^'Perry et al-2015'!$K$10+$F63*'Perry et al-2015'!$K$10*$C$6/100)^(1/'Perry et al-2015'!$K$10))) -> 0 | H63: =IF($C63<$AE$7,0,IF($C62<$AE$7,VLOOKUP(ROUND(MIN('Heming-1982'!$C$4,MAX('Heming-1982'!$C$3,$E63)),0),'Heming-1982'!$C$6:$D$9,2),($H62^'Perry et al-2015'!$K$10+$F63*'Perry et al-2015'!$K$10*$C$6/100)^(1/'Perry et al-2015'!$K$10))) -> 0 | I63: =IF($C63<$AE$9,0,IF($C62<$AE$9,VLOOKUP(ROUND(MIN('Heming-1982'!$C$4,MAX('Heming-1982'!$C$3,Calculations!$E63)),0),'Heming-1982'!$C$6:$D$9,2),($I62^'Perry et al-2015'!$K$10+$F63*'Perry et al-2015'!$K$10*$C$6/100)^(1/'Perry et al-2015'!$K$10))) -> 0 | J63: =IF($C$6=7,VLOOKUP($B63,Calculations!$BL$3:$BM$55,2,FALSE),VLOOKUP($A63,Calculations!$BI$3:$BN$400,6,FALSE)) -> 45.99 | K63: 7.772222222 | L63: =MAX(0,'Perry et al-2015'!$K$11*(K63-'Perry et al-2015'!$K$13)*(1-EXP('Perry et al-2015'!$K$12*(K63-'Perry et al-2015'!$K$15)))) -> 2.054200645 | M63: =IF($C63<$AF$5,0,IF($C62<$AF$5,VLOOKUP(ROUND(MIN('Heming-1982'!$C$4,MAX('Heming-1982'!$C$3,$K63)),0),'Heming-1982'!$C$6:$D$9,2),(M62^'Perry et al-2015'!$K$10+$L63*'Perry et al-2015'!$K$10*$C$6/100)^(1/'Perry et al-2015'!$K$10))) -> 0 | N63: =IF($C63<$AF$7,0,IF($C62<$AF$7,VLOOKUP(ROUND(MIN('Heming-1982'!$C$4,MAX('Heming-1982'!$C$3,$K63)),0),'Heming-1982'!$C$6:$D$9,2),(N62^'Perry et al-2015'!$K$10+$L63*'Perry et al-2015'!$K$10*$C$6/100)^(1/'Perry et al-2015'!$K$10))) -> 0 | O63: =IF($C63<$AF$9,0,IF($C62<$AF$9,VLOOKUP(ROUND(MIN('Heming-1982'!$C$4,MAX('Heming-1982'!$C$3,$K63)),0),'Heming-1982'!$C$6:$D$9,2),(O62^'Perry et al-2015'!$K$10+$L63*'Perry et al-2015'!$K$10*$C$6/100)^(1/'Perry et al-2015'!$K$10))) -> 0 | AH63: 2017-11-08 | AI63: 45 | AJ63: 10 | AK63: 575.1888889 | AL63: 00:00:00 | AM63: 360 | AN63: 00:00:00 | AO63: 30 | AP63: 00:00:00 | AQ63: 7.772222222 | AR63: 502.2055556 | AS63: 00:00:00 | AT63: 315.8388889 | AU63: 00:00:00 | AV63: 20.63333333 | AW63: 00:00:00 | BI63: 302 | BJ63: 3 | BK63: =BK62+Calculations!$C$6 -> 2017-03-02 | BL63: 9 | BM63: =RANDBETWEEN(VLOOKUP(BJ63,Calculations!$BB$6:$BE$17,4,FALSE)*100,VLOOKUP(BJ63,Calculations!$BB$6:$BE$17,3,FALSE)*100)/100 -> 41.8 | BN63: =RANDBETWEEN(VLOOKUP(BJ63,Calculations!$BB$6:$BH$17,7,FALSE)*100,VLOOKUP(BJ63,Calculations!$BB$6:$BH$17,6,FALSE)*100)/100 -> 42.65
A64: 1109 | B64: 45 | C64: 2017-11-09 | D64: =IF($C$6=7,VLOOKUP(B64,Calculations!$BL$3:$BM$55,2,FALSE),VLOOKUP($A64,Calculations!$BI$3:$BN$400,5,FALSE)) -> 50 | E64: 10 | F64: =MAX(0,'Perry et al-2015'!$K$11*(E64-'Perry et al-2015'!$K$13)*(1-EXP('Perry et al-2015'!$K$12*(E64-'Perry et al-2015'!$K$15)))) -> 2.836950493 | G64: =IF($C64<$AE$5,0,IF($C63<$AE$5,VLOOKUP(ROUND(MIN('Heming-1982'!$C$4,MAX('Heming-1982'!$C$3,$E64)),0),'Heming-1982'!$C$6:$D$9,2),($G63^'Perry et al-2015'!$K$10+$F64*'Perry et al-2015'!$K$10*$C$6/100)^(1/'Perry et al-2015'!$K$10))) -> 0 | H64: =IF($C64<$AE$7,0,IF($C63<$AE$7,VLOOKUP(ROUND(MIN('Heming-1982'!$C$4,MAX('Heming-1982'!$C$3,$E64)),0),'Heming-1982'!$C$6:$D$9,2),($H63^'Perry et al-2015'!$K$10+$F64*'Perry et al-2015'!$K$10*$C$6/100)^(1/'Perry et al-2015'!$K$10))) -> 0 | I64: =IF($C64<$AE$9,0,IF($C63<$AE$9,VLOOKUP(ROUND(MIN('Heming-1982'!$C$4,MAX('Heming-1982'!$C$3,Calculations!$E64)),0),'Heming-1982'!$C$6:$D$9,2),($I63^'Perry et al-2015'!$K$10+$F64*'Perry et al-2015'!$K$10*$C$6/100)^(1/'Perry et al-2015'!$K$10))) -> 0 | J64: =IF($C$6=7,VLOOKUP($B64,Calculations!$BL$3:$BM$55,2,FALSE),VLOOKUP($A64,Calculations!$BI$3:$BN$400,6,FALSE)) -> 44.98 | K64: 7.211111111 | L64: =MAX(0,'Perry et al-2015'!$K$11*(K64-'Perry et al-2015'!$K$13)*(1-EXP('Perry et al-2015'!$K$12*(K64-'Perry et al-2015'!$K$15)))) -> 1.843206891 | M64: =IF($C64<$AF$5,0,IF($C63<$AF$5,VLOOKUP(ROUND(MIN('Heming-1982'!$C$4,MAX('Heming-1982'!$C$3,$K64)),0),'Heming-1982'!$C$6:$D$9,2),(M63^'Perry et al-2015'!$K$10+$L64*'Perry et al-2015'!$K$10*$C$6/100)^(1/'Perry et al-2015'!$K$10))) -> 0 | N64: =IF($C64<$AF$7,0,IF($C63<$AF$7,VLOOKUP(ROUND(MIN('Heming-1982'!$C$4,MAX('Heming-1982'!$C$3,$K64)),0),'Heming-1982'!$C$6:$D$9,2),(N63^'Perry et al-2015'!$K$10+$L64*'Perry et al-2015'!$K$10*$C$6/100)^(1/'Perry et al-2015'!$K$10))) -> 0 | O64: =IF($C64<$AF$9,0,IF($C63<$AF$9,VLOOKUP(ROUND(MIN('Heming-1982'!$C$4,MAX('Heming-1982'!$C$3,$K64)),0),'Heming-1982'!$C$6:$D$9,2),(O63^'Perry et al-2015'!$K$10+$L64*'Perry et al-2015'!$K$10*$C$6/100)^(1/'Perry et al-2015'!$K$10))) -> 0 | AH64: 2017-11-09 | AI64: 45 | AJ64: 10 | AK64: 585.1888889 | AL64: 00:00:00 | AM64: 370 | AN64: 00:00:00 | AO64: 40 | AP64: 00:00:00 | AQ64: 7.211111111 | AR64: 509.4166667 | AS64: 00:00:00 | AT64: 323.05 | AU64: 00:00:00 | AV64: 27.84444444 | AW64: 00:00:00 | BI64: 303 | BJ64: 3 | BK64: =BK63+Calculations!$C$6 -> 2017-03-03 | BL64: 9 | BM64: =RANDBETWEEN(VLOOKUP(BJ64,Calculations!$BB$6:$BE$17,4,FALSE)*100,VLOOKUP(BJ64,Calculations!$BB$6:$BE$17,3,FALSE)*100)/100 -> 41.72 | BN64: =RANDBETWEEN(VLOOKUP(BJ64,Calculations!$BB$6:$BH$17,7,FALSE)*100,VLOOKUP(BJ64,Calculations!$BB$6:$BH$17,6,FALSE)*100)/100 -> 43.35
A65: 1110 | B65: 45 | C65: 2017-11-10 | D65: =IF($C$6=7,VLOOKUP(B65,Calculations!$BL$3:$BM$55,2,FALSE),VLOOKUP($A65,Calculations!$BI$3:$BN$400,5,FALSE)) -> 50 | E65: 10 | F65: =MAX(0,'Perry et al-2015'!$K$11*(E65-'Perry et al-2015'!$K$13)*(1-EXP('Perry et al-2015'!$K$12*(E65-'Perry et al-2015'!$K$15)))) -> 2.836950493 | G65: =IF($C65<$AE$5,0,IF($C64<$AE$5,VLOOKUP(ROUND(MIN('Heming-1982'!$C$4,MAX('Heming-1982'!$C$3,$E65)),0),'Heming-1982'!$C$6:$D$9,2),($G64^'Perry et al-2015'!$K$10+$F65*'Perry et al-2015'!$K$10*$C$6/100)^(1/'Perry et al-2015'!$K$10))) -> 0 | H65: =IF($C65<$AE$7,0,IF($C64<$AE$7,VLOOKUP(ROUND(MIN('Heming-1982'!$C$4,MAX('Heming-1982'!$C$3,$E65)),0),'Heming-1982'!$C$6:$D$9,2),($H64^'Perry et al-2015'!$K$10+$F65*'Perry et al-2015'!$K$10*$C$6/100)^(1/'Perry et al-2015'!$K$10))) -> 0 | I65: =IF($C65<$AE$9,0,IF($C64<$AE$9,VLOOKUP(ROUND(MIN('Heming-1982'!$C$4,MAX('Heming-1982'!$C$3,Calculations!$E65)),0),'Heming-1982'!$C$6:$D$9,2),($I64^'Perry et al-2015'!$K$10+$F65*'Perry et al-2015'!$K$10*$C$6/100)^(1/'Perry et al-2015'!$K$10))) -> 0 | J65: =IF($C$6=7,VLOOKUP($B65,Calculations!$BL$3:$BM$55,2,FALSE),VLOOKUP($A65,Calculations!$BI$3:$BN$400,6,FALSE)) -> 42.27 | K65: 5.705555556 | L65: =MAX(0,'Perry et al-2015'!$K$11*(K65-'Perry et al-2015'!$K$13)*(1-EXP('Perry et al-2015'!$K$12*(K65-'Perry et al-2015'!$K$15)))) -> 1.260153652 | M65: =IF($C65<$AF$5,0,IF($C64<$AF$5,VLOOKUP(ROUND(MIN('Heming-1982'!$C$4,MAX('Heming-1982'!$C$3,$K65)),0),'Heming-1982'!$C$6:$D$9,2),(M64^'Perry et al-2015'!$K$10+$L65*'Perry et al-2015'!$K$10*$C$6/100)^(1/'Perry et al-2015'!$K$10))) -> 0 | N65: =IF($C65<$AF$7,0,IF($C64<$AF$7,VLOOKUP(ROUND(MIN('Heming-1982'!$C$4,MAX('Heming-1982'!$C$3,$K65)),0),'Heming-1982'!$C$6:$D$9,2),(N64^'Perry et al-2015'!$K$10+$L65*'Perry et al-2015'!$K$10*$C$6/100)^(1/'Perry et al-2015'!$K$10))) -> 0 | O65: =IF($C65<$AF$9,0,IF($C64<$AF$9,VLOOKUP(ROUND(MIN('Heming-1982'!$C$4,MAX('Heming-1982'!$C$3,$K65)),0),'Heming-1982'!$C$6:$D$9,2),(O64^'Perry et al-2015'!$K$10+$L65*'Perry et al-2015'!$K$10*$C$6/100)^(1/'Perry et al-2015'!$K$10))) -> 0 | AH65: 2017-11-10 | AI65: 45 | AJ65: 10 | AK65: 595.1888889 | AL65: 00:00:00 | AM65: 380 | AN65: 00:00:00 | AO65: 50 | AP65: 00:00:00 | AQ65: 5.705555556 | AR65: 515.1222222 | AS65: 00:00:00 | AT65: 328.7555556 | AU65: 00:00:00 | AV65: 33.55 | AW65: 00:00:00 | BI65: 304 | BJ65: 3 | BK65: =BK64+Calculations!$C$6 -> 2017-03-04 | BL65: 9 | BM65: =RANDBETWEEN(VLOOKUP(BJ65,Calculations!$BB$6:$BE$17,4,FALSE)*100,VLOOKUP(BJ65,Calculations!$BB$6:$BE$17,3,FALSE)*100)/100 -> 41.32 | BN65: =RANDBETWEEN(VLOOKUP(BJ65,Calculations!$BB$6:$BH$17,7,FALSE)*100,VLOOKUP(BJ65,Calculations!$BB$6:$BH$17,6,FALSE)*100)/100 -> 43.37
A66: 1111 | B66: 45 | C66: 2017-11-11 | D66: =IF($C$6=7,VLOOKUP(B66,Calculations!$BL$3:$BM$55,2,FALSE),VLOOKUP($A66,Calculations!$BI$3:$BN$400,5,FALSE)) -> 50 | E66: 10 | F66: =MAX(0,'Perry et al-2015'!$K$11*(E66-'Perry et al-2015'!$K$13)*(1-EXP('Perry et al-2015'!$K$12*(E66-'Perry et al-2015'!$K$15)))) -> 2.836950493 | G66: =IF($C66<$AE$5,0,IF($C65<$AE$5,VLOOKUP(ROUND(MIN('Heming-1982'!$C$4,MAX('Heming-1982'!$C$3,$E66)),0),'Heming-1982'!$C$6:$D$9,2),($G65^'Perry et al-2015'!$K$10+$F66*'Perry et al-2015'!$K$10*$C$6/100)^(1/'Perry et al-2015'!$K$10))) -> 0 | H66: =IF($C66<$AE$7,0,IF($C65<$AE$7,VLOOKUP(ROUND(MIN('Heming-1982'!$C$4,MAX('Heming-1982'!$C$3,$E66)),0),'Heming-1982'!$C$6:$D$9,2),($H65^'Perry et al-2015'!$K$10+$F66*'Perry et al-2015'!$K$10*$C$6/100)^(1/'Perry et al-2015'!$K$10))) -> 0 | I66: =IF($C66<$AE$9,0,IF($C65<$AE$9,VLOOKUP(ROUND(MIN('Heming-1982'!$C$4,MAX('Heming-1982'!$C$3,Calculations!$E66)),0),'Heming-1982'!$C$6:$D$9,2),($I65^'Perry et al-2015'!$K$10+$F66*'Perry et al-2015'!$K$10*$C$6/100)^(1/'Perry et al-2015'!$K$10))) -> 0 | J66: =IF($C$6=7,VLOOKUP($B66,Calculations!$BL$3:$BM$55,2,FALSE),VLOOKUP($A66,Calculations!$BI$3:$BN$400,6,FALSE)) -> 44.33 | K66: 6.85 | L66: =MAX(0,'Perry et al-2015'!$K$11*(K66-'Perry et al-2015'!$K$13)*(1-EXP('Perry et al-2015'!$K$12*(K66-'Perry et al-2015'!$K$15)))) -> 1.70537614 | M66: =IF($C66<$AF$5,0,IF($C65<$AF$5,VLOOKUP(ROUND(MIN('Heming-1982'!$C$4,MAX('Heming-1982'!$C$3,$K66)),0),'Heming-1982'!$C$6:$D$9,2),(M65^'Perry et al-2015'!$K$10+$L66*'Perry et al-2015'!$K$10*$C$6/100)^(1/'Perry et al-2015'!$K$10))) -> 0 | N66: =IF($C66<$AF$7,0,IF($C65<$AF$7,VLOOKUP(ROUND(MIN('Heming-1982'!$C$4,MAX('Heming-1982'!$C$3,$K66)),0),'Heming-1982'!$C$6:$D$9,2),(N65^'Perry et al-2015'!$K$10+$L66*'Perry et al-2015'!$K$10*$C$6/100)^(1/'Perry et al-2015'!$K$10))) -> 0 | O66: =IF($C66<$AF$9,0,IF($C65<$AF$9,VLOOKUP(ROUND(MIN('Heming-1982'!$C$4,MAX('Heming-1982'!$C$3,$K66)),0),'Heming-1982'!$C$6:$D$9,2),(O65^'Perry et al-2015'!$K$10+$L66*'Perry et al-2015'!$K$10*$C$6/100)^(1/'Perry et al-2015'!$K$10))) -> 0 | AH66: 2017-11-11 | AI66: 45 | AJ66: 10 | AK66: 605.1888889 | AL66: 00:00:00 | AM66: 390 | AN66: 00:00:00 | AO66: 60 | AP66: 00:00:00 | AQ66: 6.85 | AR66: 521.9722222 | AS66: 00:00:00 | AT66: 335.6055556 | AU66: 00:00:00 | AV66: 40.4 | AW66: 00:00:00 | BI66: 305 | BJ66: 3 | BK66: =BK65+Calculations!$C$6 -> 2017-03-05 | BL66: 10 | BM66: =RANDBETWEEN(VLOOKUP(BJ66,Calculations!$BB$6:$BE$17,4,FALSE)*100,VLOOKUP(BJ66,Calculations!$BB$6:$BE$17,3,FALSE)*100)/100 -> 41.78 | BN66: =RANDBETWEEN(VLOOKUP(BJ66,Calculations!$BB$6:$BH$17,7,FALSE)*100,VLOOKUP(BJ66,Calculations!$BB$6:$BH$17,6,FALSE)*100)/100 -> 43.43
A67: 1112 | B67: 46 | C67: 2017-11-12 | D67: =IF($C$6=7,VLOOKUP(B67,Calculations!$BL$3:$BM$55,2,FALSE),VLOOKUP($A67,Calculations!$BI$3:$BN$400,5,FALSE)) -> 50 | E67: 10 | F67: =MAX(0,'Perry et al-2015'!$K$11*(E67-'Perry et al-2015'!$K$13)*(1-EXP('Perry et al-2015'!$K$12*(E67-'Perry et al-2015'!$K$15)))) -> 2.836950493 | G67: =IF($C67<$AE$5,0,IF($C66<$AE$5,VLOOKUP(ROUND(MIN('Heming-1982'!$C$4,MAX('Heming-1982'!$C$3,$E67)),0),'Heming-1982'!$C$6:$D$9,2),($G66^'Perry et al-2015'!$K$10+$F67*'Perry et al-2015'!$K$10*$C$6/100)^(1/'Perry et al-2015'!$K$10))) -> 0 | H67: =IF($C67<$AE$7,0,IF($C66<$AE$7,VLOOKUP(ROUND(MIN('Heming-1982'!$C$4,MAX('Heming-1982'!$C$3,$E67)),0),'Heming-1982'!$C$6:$D$9,2),($H66^'Perry et al-2015'!$K$10+$F67*'Perry et al-2015'!$K$10*$C$6/100)^(1/'Perry et al-2015'!$K$10))) -> 0 | I67: =IF($C67<$AE$9,0,IF($C66<$AE$9,VLOOKUP(ROUND(MIN('Heming-1982'!$C$4,MAX('Heming-1982'!$C$3,Calculations!$E67)),0),'Heming-1982'!$C$6:$D$9,2),($I66^'Perry et al-2015'!$K$10+$F67*'Perry et al-2015'!$K$10*$C$6/100)^(1/'Perry et al-2015'!$K$10))) -> 0 | J67: =IF($C$6=7,VLOOKUP($B67,Calculations!$BL$3:$BM$55,2,FALSE),VLOOKUP($A67,Calculations!$BI$3:$BN$400,6,FALSE)) -> 42.83 | K67: 6.016666667 | L67: =MAX(0,'Perry et al-2015'!$K$11*(K67-'Perry et al-2015'!$K$13)*(1-EXP('Perry et al-2015'!$K$12*(K67-'Perry et al-2015'!$K$15)))) -> 1.382286409 | M67: =IF($C67<$AF$5,0,IF($C66<$AF$5,VLOOKUP(ROUND(MIN('Heming-1982'!$C$4,MAX('Heming-1982'!$C$3,$K67)),0),'Heming-1982'!$C$6:$D$9,2),(M66^'Perry et al-2015'!$K$10+$L67*'Perry et al-2015'!$K$10*$C$6/100)^(1/'Perry et al-2015'!$K$10))) -> 0 | N67: =IF($C67<$AF$7,0,IF($C66<$AF$7,VLOOKUP(ROUND(MIN('Heming-1982'!$C$4,MAX('Heming-1982'!$C$3,$K67)),0),'Heming-1982'!$C$6:$D$9,2),(N66^'Perry et al-2015'!$K$10+$L67*'Perry et al-2015'!$K$10*$C$6/100)^(1/'Perry et al-2015'!$K$10))) -> 0 | O67: =IF($C67<$AF$9,0,IF($C66<$AF$9,VLOOKUP(ROUND(MIN('Heming-1982'!$C$4,MAX('Heming-1982'!$C$3,$K67)),0),'Heming-1982'!$C$6:$D$9,2),(O66^'Perry et al-2015'!$K$10+$L67*'Perry et al-2015'!$K$10*$C$6/100)^(1/'Perry et al-2015'!$K$10))) -> 0 | AH67: 2017-11-12 | AI67: =WEEKNUM(AH67) -> 46 | AJ67: 10 | AK67: =IF($AH66>=$AD$5,($AH67-$AH66)*AJ67+AK66,0) -> 615.1888889 | AL67: =IF(AK67>=$AD$11,IF(AK66<$AD$11,1,0),0)*$AH67 -> 00:00:00 | AM67: =IF($AH66>=$AD$7,($AH67-$AH66)*AJ67+AM66,0) -> 400 | AN67: =IF(AM67>=$AD$11,IF(AM66<$AD$11,1,0),0)*$AH67 -> 00:00:00 | AO67: =IF($AH66>=$AD$9,($AH67-$AH66)*AJ67+AO66,0) -> 70 | AP67: =IF(AO67>=$AD$11,IF(AO66<$AD$11,1,0),0)*AH67 -> 00:00:00 | AQ67: 6.016666667 | AR67: =IF($AH66>=$AD$5,($AH67-$AH66)*AQ67+AR66,0) -> 527.9888889 | AS67: =IF(AR67>=$AD$11,IF(AR66<$AD$11,1,0),0)*$AH67 -> 00:00:00 | AT67: =IF($AH66>=$AD$7,($AH67-$AH66)*AQ67+AT66,0) -> 341.6222222 | AU67: =IF(AT67>=$AD$11,IF(AT66<$AD$11,1,0),0)*$AH67 -> 00:00:00 | AV67: =IF($AH66>=$AD$9,($AH67-$AH66)*AQ67+AV66,0) -> 46.41666667 | AW67: =IF(AV67>=$AD$11,IF(AV66<$AD$11,1,0),0)*AH67 -> 00:00:00 | BI67: =100*MONTH(BK67)+DAY(BK67) -> 306 | BJ67: =MONTH(BK67) -> 3 | BK67: =BK66+Calculations!$C$6 -> 2017-03-06 | BL67: =WEEKNUM(BK67) -> 10 | BM67: =RANDBETWEEN(VLOOKUP(BJ67,Calculations!$BB$6:$BE$17,4,FALSE)*100,VLOOKUP(BJ67,Calculations!$BB$6:$BE$17,3,FALSE)*100)/100 -> 42.04 | BN67: =RANDBETWEEN(VLOOKUP(BJ67,Calculations!$BB$6:$BH$17,7,FALSE)*100,VLOOKUP(BJ67,Calculations!$BB$6:$BH$17,6,FALSE)*100)/100 -> 42.58
A68: 1113 | B68: 46 | C68: 2017-11-13 | D68: =IF($C$6=7,VLOOKUP(B68,Calculations!$BL$3:$BM$55,2,FALSE),VLOOKUP($A68,Calculations!$BI$3:$BN$400,5,FALSE)) -> 50 | E68: 10 | F68: =MAX(0,'Perry et al-2015'!$K$11*(E68-'Perry et al-2015'!$K$13)*(1-EXP('Perry et al-2015'!$K$12*(E68-'Perry et al-2015'!$K$15)))) -> 2.836950493 | G68: =IF($C68<$AE$5,0,IF($C67<$AE$5,VLOOKUP(ROUND(MIN('Heming-1982'!$C$4,MAX('Heming-1982'!$C$3,$E68)),0),'Heming-1982'!$C$6:$D$9,2),($G67^'Perry et al-2015'!$K$10+$F68*'Perry et al-2015'!$K$10*$C$6/100)^(1/'Perry et al-2015'!$K$10))) -> 0 | H68: =IF($C68<$AE$7,0,IF($C67<$AE$7,VLOOKUP(ROUND(MIN('Heming-1982'!$C$4,MAX('Heming-1982'!$C$3,$E68)),0),'Heming-1982'!$C$6:$D$9,2),($H67^'Perry et al-2015'!$K$10+$F68*'Perry et al-2015'!$K$10*$C$6/100)^(1/'Perry et al-2015'!$K$10))) -> 0 | I68: =IF($C68<$AE$9,0,IF($C67<$AE$9,VLOOKUP(ROUND(MIN('Heming-1982'!$C$4,MAX('Heming-1982'!$C$3,Calculations!$E68)),0),'Heming-1982'!$C$6:$D$9,2),($I67^'Perry et al-2015'!$K$10+$F68*'Perry et al-2015'!$K$10*$C$6/100)^(1/'Perry et al-2015'!$K$10))) -> 0 | J68: =IF($C$6=7,VLOOKUP($B68,Calculations!$BL$3:$BM$55,2,FALSE),VLOOKUP($A68,Calculations!$BI$3:$BN$400,6,FALSE)) -> 44.58 | K68: 6.988888889 | L68: =MAX(0,'Perry et al-2015'!$K$11*(K68-'Perry et al-2015'!$K$13)*(1-EXP('Perry et al-2015'!$K$12*(K68-'Perry et al-2015'!$K$15)))) -> 1.758561086 | M68: =IF($C68<$AF$5,0,IF($C67<$AF$5,VLOOKUP(ROUND(MIN('Heming-1982'!$C$4,MAX('Heming-1982'!$C$3,$K68)),0),'Heming-1982'!$C$6:$D$9,2),(M67^'Perry et al-2015'!$K$10+$L68*'Perry et al-2015'!$K$10*$C$6/100)^(1/'Perry et al-2015'!$K$10))) -> 0 | N68: =IF($C68<$AF$7,0,IF($C67<$AF$7,VLOOKUP(ROUND(MIN('Heming-1982'!$C$4,MAX('Heming-1982'!$C$3,$K68)),0),'Heming-1982'!$C$6:$D$9,2),(N67^'Perry et al-2015'!$K$10+$L68*'Perry et al-2015'!$K$10*$C$6/100)^(1/'Perry et al-2015'!$K$10))) -> 0 | O68: =IF($C68<$AF$9,0,IF($C67<$AF$9,VLOOKUP(ROUND(MIN('Heming-1982'!$C$4,MAX('Heming-1982'!$C$3,$K68)),0),'Heming-1982'!$C$6:$D$9,2),(O67^'Perry et al-2015'!$K$10+$L68*'Perry et al-2015'!$K$10*$C$6/100)^(1/'Perry et al-2015'!$K$10))) -> 0 | AH68: 2017-11-13 | AI68: 46 | AJ68: 10 | AK68: 625.1888889 | AL68: 00:00:00 | AM68: 410 | AN68: 00:00:00 | AO68: 80 | AP68: 00:00:00 | AQ68: 6.988888889 | AR68: 534.9777778 | AS68: 00:00:00 | AT68: 348.6111111 | AU68: 00:00:00 | AV68: 53.40555556 | AW68: 00:00:00 | BI68: 307 | BJ68: 3 | BK68: =BK67+Calculations!$C$6 -> 2017-03-07 | BL68: 10 | BM68: =RANDBETWEEN(VLOOKUP(BJ68,Calculations!$BB$6:$BE$17,4,FALSE)*100,VLOOKUP(BJ68,Calculations!$BB$6:$BE$17,3,FALSE)*100)/100 -> 41.52 | BN68: =RANDBETWEEN(VLOOKUP(BJ68,Calculations!$BB$6:$BH$17,7,FALSE)*100,VLOOKUP(BJ68,Calculations!$BB$6:$BH$17,6,FALSE)*100)/100 -> 43.16
A69: 1114 | B69: 46 | C69: 2017-11-14 | D69: =IF($C$6=7,VLOOKUP(B69,Calculations!$BL$3:$BM$55,2,FALSE),VLOOKUP($A69,Calculations!$BI$3:$BN$400,5,FALSE)) -> 50 | E69: 10 | F69: =MAX(0,'Perry et al-2015'!$K$11*(E69-'Perry et al-2015'!$K$13)*(1-EXP('Perry et al-2015'!$K$12*(E69-'Perry et al-2015'!$K$15)))) -> 2.836950493 | G69: =IF($C69<$AE$5,0,IF($C68<$AE$5,VLOOKUP(ROUND(MIN('Heming-1982'!$C$4,MAX('Heming-1982'!$C$3,$E69)),0),'Heming-1982'!$C$6:$D$9,2),($G68^'Perry et al-2015'!$K$10+$F69*'Perry et al-2015'!$K$10*$C$6/100)^(1/'Perry et al-2015'!$K$10))) -> 0 | H69: =IF($C69<$AE$7,0,IF($C68<$AE$7,VLOOKUP(ROUND(MIN('Heming-1982'!$C$4,MAX('Heming-1982'!$C$3,$E69)),0),'Heming-1982'!$C$6:$D$9,2),($H68^'Perry et al-2015'!$K$10+$F69*'Perry et al-2015'!$K$10*$C$6/100)^(1/'Perry et al-2015'!$K$10))) -> 0 | I69: =IF($C69<$AE$9,0,IF($C68<$AE$9,VLOOKUP(ROUND(MIN('Heming-1982'!$C$4,MAX('Heming-1982'!$C$3,Calculations!$E69)),0),'Heming-1982'!$C$6:$D$9,2),($I68^'Perry et al-2015'!$K$10+$F69*'Perry et al-2015'!$K$10*$C$6/100)^(1/'Perry et al-2015'!$K$10))) -> 0 | J69: =IF($C$6=7,VLOOKUP($B69,Calculations!$BL$3:$BM$55,2,FALSE),VLOOKUP($A69,Calculations!$BI$3:$BN$400,6,FALSE)) -> 42.22 | K69: 5.677777778 | L69: =MAX(0,'Perry et al-2015'!$K$11*(K69-'Perry et al-2015'!$K$13)*(1-EXP('Perry et al-2015'!$K$12*(K69-'Perry et al-2015'!$K$15)))) -> 1.249214089 | M69: =IF($C69<$AF$5,0,IF($C68<$AF$5,VLOOKUP(ROUND(MIN('Heming-1982'!$C$4,MAX('Heming-1982'!$C$3,$K69)),0),'Heming-1982'!$C$6:$D$9,2),(M68^'Perry et al-2015'!$K$10+$L69*'Perry et al-2015'!$K$10*$C$6/100)^(1/'Perry et al-2015'!$K$10))) -> 0 | N69: =IF($C69<$AF$7,0,IF($C68<$AF$7,VLOOKUP(ROUND(MIN('Heming-1982'!$C$4,MAX('Heming-1982'!$C$3,$K69)),0),'Heming-1982'!$C$6:$D$9,2),(N68^'Perry et al-2015'!$K$10+$L69*'Perry et al-2015'!$K$10*$C$6/100)^(1/'Perry et al-2015'!$K$10))) -> 0 | O69: =IF($C69<$AF$9,0,IF($C68<$AF$9,VLOOKUP(ROUND(MIN('Heming-1982'!$C$4,MAX('Heming-1982'!$C$3,$K69)),0),'Heming-1982'!$C$6:$D$9,2),(O68^'Perry et al-2015'!$K$10+$L69*'Perry et al-2015'!$K$10*$C$6/100)^(1/'Perry et al-2015'!$K$10))) -> 0 | AH69: 2017-11-14 | AI69: 46 | AJ69: 10 | AK69: 635.1888889 | AL69: 00:00:00 | AM69: 420 | AN69: 00:00:00 | AO69: 90 | AP69: 00:00:00 | AQ69: 5.677777778 | AR69: 540.6555556 | AS69: 00:00:00 | AT69: 354.2888889 | AU69: 00:00:00 | AV69: 59.08333333 | AW69: 00:00:00 | BI69: 308 | BJ69: 3 | BK69: =BK68+Calculations!$C$6 -> 2017-03-08 | BL69: 10 | BM69: =RANDBETWEEN(VLOOKUP(BJ69,Calculations!$BB$6:$BE$17,4,FALSE)*100,VLOOKUP(BJ69,Calculations!$BB$6:$BE$17,3,FALSE)*100)/100 -> 41.08 | BN69: =RANDBETWEEN(VLOOKUP(BJ69,Calculations!$BB$6:$BH$17,7,FALSE)*100,VLOOKUP(BJ69,Calculations!$BB$6:$BH$17,6,FALSE)*100)/100 -> 42.81
A70: 1115 | B70: 46 | C70: 2017-11-15 | D70: =IF($C$6=7,VLOOKUP(B70,Calculations!$BL$3:$BM$55,2,FALSE),VLOOKUP($A70,Calculations!$BI$3:$BN$400,5,FALSE)) -> 50 | E70: 10 | F70: =MAX(0,'Perry et al-2015'!$K$11*(E70-'Perry et al-2015'!$K$13)*(1-EXP('Perry et al-2015'!$K$12*(E70-'Perry et al-2015'!$K$15)))) -> 2.836950493 | G70: =IF($C70<$AE$5,0,IF($C69<$AE$5,VLOOKUP(ROUND(MIN('Heming-1982'!$C$4,MAX('Heming-1982'!$C$3,$E70)),0),'Heming-1982'!$C$6:$D$9,2),($G69^'Perry et al-2015'!$K$10+$F70*'Perry et al-2015'!$K$10*$C$6/100)^(1/'Perry et al-2015'!$K$10))) -> 0 | H70: =IF($C70<$AE$7,0,IF($C69<$AE$7,VLOOKUP(ROUND(MIN('Heming-1982'!$C$4,MAX('Heming-1982'!$C$3,$E70)),0),'Heming-1982'!$C$6:$D$9,2),($H69^'Perry et al-2015'!$K$10+$F70*'Perry et al-2015'!$K$10*$C$6/100)^(1/'Perry et al-2015'!$K$10))) -> 0 | I70: =IF($C70<$AE$9,0,IF($C69<$AE$9,VLOOKUP(ROUND(MIN('Heming-1982'!$C$4,MAX('Heming-1982'!$C$3,Calculations!$E70)),0),'Heming-1982'!$C$6:$D$9,2),($I69^'Perry et al-2015'!$K$10+$F70*'Perry et al-2015'!$K$10*$C$6/100)^(1/'Perry et al-2015'!$K$10))) -> 0 | J70: =IF($C$6=7,VLOOKUP($B70,Calculations!$BL$3:$BM$55,2,FALSE),VLOOKUP($A70,Calculations!$BI$3:$BN$400,6,FALSE)) -> 42.22 | K70: 5.677777778 | L70: =MAX(0,'Perry et al-2015'!$K$11*(K70-'Perry et al-2015'!$K$13)*(1-EXP('Perry et al-2015'!$K$12*(K70-'Perry et al-2015'!$K$15)))) -> 1.249214089 | M70: =IF($C70<$AF$5,0,IF($C69<$AF$5,VLOOKUP(ROUND(MIN('Heming-1982'!$C$4,MAX('Heming-1982'!$C$3,$K70)),0),'Heming-1982'!$C$6:$D$9,2),(M69^'Perry et al-2015'!$K$10+$L70*'Perry et al-2015'!$K$10*$C$6/100)^(1/'Perry et al-2015'!$K$10))) -> 0 | N70: =IF($C70<$AF$7,0,IF($C69<$AF$7,VLOOKUP(ROUND(MIN('Heming-1982'!$C$4,MAX('Heming-1982'!$C$3,$K70)),0),'Heming-1982'!$C$6:$D$9,2),(N69^'Perry et al-2015'!$K$10+$L70*'Perry et al-2015'!$K$10*$C$6/100)^(1/'Perry et al-2015'!$K$10))) -> 0 | O70: =IF($C70<$AF$9,0,IF($C69<$AF$9,VLOOKUP(ROUND(MIN('Heming-1982'!$C$4,MAX('Heming-1982'!$C$3,$K70)),0),'Heming-1982'!$C$6:$D$9,2),(O69^'Perry et al-2015'!$K$10+$L70*'Perry et al-2015'!$K$10*$C$6/100)^(1/'Perry et al-2015'!$K$10))) -> 0 | AH70: 2017-11-15 | AI70: 46 | AJ70: 10 | AK70: 645.1888889 | AL70: 00:00:00 | AM70: 430 | AN70: 00:00:00 | AO70: 100 | AP70: 00:00:00 | AQ70: 5.677777778 | AR70: 546.3333333 | AS70: 00:00:00 | AT70: 359.9666667 | AU70: 00:00:00 | AV70: 64.76111111 | AW70: 00:00:00 | BI70: 309 | BJ70: 3 | BK70: =BK69+Calculations!$C$6 -> 2017-03-09 | BL70: 10 | BM70: =RANDBETWEEN(VLOOKUP(BJ70,Calculations!$BB$6:$BE$17,4,FALSE)*100,VLOOKUP(BJ70,Calculations!$BB$6:$BE$17,3,FALSE)*100)/100 -> 41.2 | BN70: =RANDBETWEEN(VLOOKUP(BJ70,Calculations!$BB$6:$BH$17,7,FALSE)*100,VLOOKUP(BJ70,Calculations!$BB$6:$BH$17,6,FALSE)*100)/100 -> 42.87
A71: 1116 | B71: 46 | C71: 2017-11-16 | D71: =IF($C$6=7,VLOOKUP(B71,Calculations!$BL$3:$BM$55,2,FALSE),VLOOKUP($A71,Calculations!$BI$3:$BN$400,5,FALSE)) -> 50 | E71: 10 | F71: =MAX(0,'Perry et al-2015'!$K$11*(E71-'Perry et al-2015'!$K$13)*(1-EXP('Perry et al-2015'!$K$12*(E71-'Perry et al-2015'!$K$15)))) -> 2.836950493 | G71: =IF($C71<$AE$5,0,IF($C70<$AE$5,VLOOKUP(ROUND(MIN('Heming-1982'!$C$4,MAX('Heming-1982'!$C$3,$E71)),0),'Heming-1982'!$C$6:$D$9,2),($G70^'Perry et al-2015'!$K$10+$F71*'Perry et al-2015'!$K$10*$C$6/100)^(1/'Perry et al-2015'!$K$10))) -> 0 | H71: =IF($C71<$AE$7,0,IF($C70<$AE$7,VLOOKUP(ROUND(MIN('Heming-1982'!$C$4,MAX('Heming-1982'!$C$3,$E71)),0),'Heming-1982'!$C$6:$D$9,2),($H70^'Perry et al-2015'!$K$10+$F71*'Perry et al-2015'!$K$10*$C$6/100)^(1/'Perry et al-2015'!$K$10))) -> 0 | I71: =IF($C71<$AE$9,0,IF($C70<$AE$9,VLOOKUP(ROUND(MIN('Heming-1982'!$C$4,MAX('Heming-1982'!$C$3,Calculations!$E71)),0),'Heming-1982'!$C$6:$D$9,2),($I70^'Perry et al-2015'!$K$10+$F71*'Perry et al-2015'!$K$10*$C$6/100)^(1/'Perry et al-2015'!$K$10))) -> 0 | J71: =IF($C$6=7,VLOOKUP($B71,Calculations!$BL$3:$BM$55,2,FALSE),VLOOKUP($A71,Calculations!$BI$3:$BN$400,6,FALSE)) -> 42.66 | K71: 5.922222222 | L71: =MAX(0,'Perry et al-2015'!$K$11*(K71-'Perry et al-2015'!$K$13)*(1-EXP('Perry et al-2015'!$K$12*(K71-'Perry et al-2015'!$K$15)))) -> 1.345288313 | M71: =IF($C71<$AF$5,0,IF($C70<$AF$5,VLOOKUP(ROUND(MIN('Heming-1982'!$C$4,MAX('Heming-1982'!$C$3,$K71)),0),'Heming-1982'!$C$6:$D$9,2),(M70^'Perry et al-2015'!$K$10+$L71*'Perry et al-2015'!$K$10*$C$6/100)^(1/'Perry et al-2015'!$K$10))) -> 0 | N71: =IF($C71<$AF$7,0,IF($C70<$AF$7,VLOOKUP(ROUND(MIN('Heming-1982'!$C$4,MAX('Heming-1982'!$C$3,$K71)),0),'Heming-1982'!$C$6:$D$9,2),(N70^'Perry et al-2015'!$K$10+$L71*'Perry et al-2015'!$K$10*$C$6/100)^(1/'Perry et al-2015'!$K$10))) -> 0 | O71: =IF($C71<$AF$9,0,IF($C70<$AF$9,VLOOKUP(ROUND(MIN('Heming-1982'!$C$4,MAX('Heming-1982'!$C$3,$K71)),0),'Heming-1982'!$C$6:$D$9,2),(O70^'Perry et al-2015'!$K$10+$L71*'Perry et al-2015'!$K$10*$C$6/100)^(1/'Perry et al-2015'!$K$10))) -> 0 | AH71: 2017-11-16 | AI71: 46 | AJ71: 10 | AK71: 655.1888889 | AL71: 00:00:00 | AM71: 440 | AN71: 00:00:00 | AO71: 110 | AP71: 00:00:00 | AQ71: 5.922222222 | AR71: 552.2555556 | AS71: 00:00:00 | AT71: 365.8888889 | AU71: 00:00:00 | AV71: 70.68333333 | AW71: 00:00:00 | BI71: 310 | BJ71: 3 | BK71: =BK70+Calculations!$C$6 -> 2017-03-10 | BL71: 10 | BM71: =RANDBETWEEN(VLOOKUP(BJ71,Calculations!$BB$6:$BE$17,4,FALSE)*100,VLOOKUP(BJ71,Calculations!$BB$6:$BE$17,3,FALSE)*100)/100 -> 42.04 | BN71: =RANDBETWEEN(VLOOKUP(BJ71,Calculations!$BB$6:$BH$17,7,FALSE)*100,VLOOKUP(BJ71,Calculations!$BB$6:$BH$17,6,FALSE)*100)/100 -> 42.63
A72: 1117 | B72: 46 | C72: 2017-11-17 | D72: =IF($C$6=7,VLOOKUP(B72,Calculations!$BL$3:$BM$55,2,FALSE),VLOOKUP($A72,Calculations!$BI$3:$BN$400,5,FALSE)) -> 50 | E72: 10 | F72: =MAX(0,'Perry et al-2015'!$K$11*(E72-'Perry et al-2015'!$K$13)*(1-EXP('Perry et al-2015'!$K$12*(E72-'Perry et al-2015'!$K$15)))) -> 2.836950493 | G72: =IF($C72<$AE$5,0,IF($C71<$AE$5,VLOOKUP(ROUND(MIN('Heming-1982'!$C$4,MAX('Heming-1982'!$C$3,$E72)),0),'Heming-1982'!$C$6:$D$9,2),($G71^'Perry et al-2015'!$K$10+$F72*'Perry et al-2015'!$K$10*$C$6/100)^(1/'Perry et al-2015'!$K$10))) -> 0 | H72: =IF($C72<$AE$7,0,IF($C71<$AE$7,VLOOKUP(ROUND(MIN('Heming-1982'!$C$4,MAX('Heming-1982'!$C$3,$E72)),0),'Heming-1982'!$C$6:$D$9,2),($H71^'Perry et al-2015'!$K$10+$F72*'Perry et al-2015'!$K$10*$C$6/100)^(1/'Perry et al-2015'!$K$10))) -> 0 | I72: =IF($C72<$AE$9,0,IF($C71<$AE$9,VLOOKUP(ROUND(MIN('Heming-1982'!$C$4,MAX('Heming-1982'!$C$3,Calculations!$E72)),0),'Heming-1982'!$C$6:$D$9,2),($I71^'Perry et al-2015'!$K$10+$F72*'Perry et al-2015'!$K$10*$C$6/100)^(1/'Perry et al-2015'!$K$10))) -> 0 | J72: =IF($C$6=7,VLOOKUP($B72,Calculations!$BL$3:$BM$55,2,FALSE),VLOOKUP($A72,Calculations!$BI$3:$BN$400,6,FALSE)) -> 43.99 | K72: 6.661111111 | L72: =MAX(0,'Perry et al-2015'!$K$11*(K72-'Perry et al-2015'!$K$13)*(1-EXP('Perry et al-2015'!$K$12*(K72-'Perry et al-2015'!$K$15)))) -> 1.632718206 | M72: =IF($C72<$AF$5,0,IF($C71<$AF$5,VLOOKUP(ROUND(MIN('Heming-1982'!$C$4,MAX('Heming-1982'!$C$3,$K72)),0),'Heming-1982'!$C$6:$D$9,2),(M71^'Perry et al-2015'!$K$10+$L72*'Perry et al-2015'!$K$10*$C$6/100)^(1/'Perry et al-2015'!$K$10))) -> 0 | N72: =IF($C72<$AF$7,0,IF($C71<$AF$7,VLOOKUP(ROUND(MIN('Heming-1982'!$C$4,MAX('Heming-1982'!$C$3,$K72)),0),'Heming-1982'!$C$6:$D$9,2),(N71^'Perry et al-2015'!$K$10+$L72*'Perry et al-2015'!$K$10*$C$6/100)^(1/'Perry et al-2015'!$K$10))) -> 0 | O72: =IF($C72<$AF$9,0,IF($C71<$AF$9,VLOOKUP(ROUND(MIN('Heming-1982'!$C$4,MAX('Heming-1982'!$C$3,$K72)),0),'Heming-1982'!$C$6:$D$9,2),(O71^'Perry et al-2015'!$K$10+$L72*'Perry et al-2015'!$K$10*$C$6/100)^(1/'Perry et al-2015'!$K$10))) -> 0 | AH72: 2017-11-17 | AI72: 46 | AJ72: 10 | AK72: 665.1888889 | AL72: 00:00:00 | AM72: 450 | AN72: 00:00:00 | AO72: 120 | AP72: 00:00:00 | AQ72: 6.661111111 | AR72: 558.9166667 | AS72: 00:00:00 | AT72: 372.55 | AU72: 00:00:00 | AV72: 77.34444444 | AW72: 00:00:00 | BI72: 311 | BJ72: 3 | BK72: =BK71+Calculations!$C$6 -> 2017-03-11 | BL72: 10 | BM72: =RANDBETWEEN(VLOOKUP(BJ72,Calculations!$BB$6:$BE$17,4,FALSE)*100,VLOOKUP(BJ72,Calculations!$BB$6:$BE$17,3,FALSE)*100)/100 -> 41.51 | BN72: =RANDBETWEEN(VLOOKUP(BJ72,Calculations!$BB$6:$BH$17,7,FALSE)*100,VLOOKUP(BJ72,Calculations!$BB$6:$BH$17,6,FALSE)*100)/100 -> 42.54
A73: =MONTH(C73)*100+DAY(C73) -> 1118 | B73: =WEEKNUM(C73) -> 46 | C73: 2017-11-18 | D73: =IF($C$6=7,VLOOKUP(B73,Calculations!$BL$3:$BM$55,2,FALSE),VLOOKUP($A73,Calculations!$BI$3:$BN$400,5,FALSE)) -> 50 | E73: =(D73-32)*5/9 -> 10 | F73: =MAX(0,'Perry et al-2015'!$K$11*(E73-'Perry et al-2015'!$K$13)*(1-EXP('Perry et al-2015'!$K$12*(E73-'Perry et al-2015'!$K$15)))) -> 2.836950493 | G73: =IF($C73<$AE$5,0,IF($C72<$AE$5,VLOOKUP(ROUND(MIN('Heming-1982'!$C$4,MAX('Heming-1982'!$C$3,$E73)),0),'Heming-1982'!$C$6:$D$9,2),($G72^'Perry et al-2015'!$K$10+$F73*'Perry et al-2015'!$K$10*$C$6/100)^(1/'Perry et al-2015'!$K$10))) -> 0 | H73: =IF($C73<$AE$7,0,IF($C72<$AE$7,VLOOKUP(ROUND(MIN('Heming-1982'!$C$4,MAX('Heming-1982'!$C$3,$E73)),0),'Heming-1982'!$C$6:$D$9,2),($H72^'Perry et al-2015'!$K$10+$F73*'Perry et al-2015'!$K$10*$C$6/100)^(1/'Perry et al-2015'!$K$10))) -> 0 | I73: =IF($C73<$AE$9,0,IF($C72<$AE$9,VLOOKUP(ROUND(MIN('Heming-1982'!$C$4,MAX('Heming-1982'!$C$3,Calculations!$E73)),0),'Heming-1982'!$C$6:$D$9,2),($I72^'Perry et al-2015'!$K$10+$F73*'Perry et al-2015'!$K$10*$C$6/100)^(1/'Perry et al-2015'!$K$10))) -> 0 | J73: =IF($C$6=7,VLOOKUP($B73,Calculations!$BL$3:$BM$55,2,FALSE),VLOOKUP($A73,Calculations!$BI$3:$BN$400,6,FALSE)) -> 45.02 | K73: =(J73-32)*5/9 -> 7.233333333 | L73: =MAX(0,'Perry et al-2015'!$K$11*(K73-'Perry et al-2015'!$K$13)*(1-EXP('Perry et al-2015'!$K$12*(K73-'Perry et al-2015'!$K$15)))) -> 1.851639667 | M73: =IF($C73<$AF$5,0,IF($C72<$AF$5,VLOOKUP(ROUND(MIN('Heming-1982'!$C$4,MAX('Heming-1982'!$C$3,$K73)),0),'Heming-1982'!$C$6:$D$9,2),(M72^'Perry et al-2015'!$K$10+$L73*'Perry et al-2015'!$K$10*$C$6/100)^(1/'Perry et al-2015'!$K$10))) -> 0 | N73: =IF($C73<$AF$7,0,IF($C72<$AF$7,VLOOKUP(ROUND(MIN('Heming-1982'!$C$4,MAX('Heming-1982'!$C$3,$K73)),0),'Heming-1982'!$C$6:$D$9,2),(N72^'Perry et al-2015'!$K$10+$L73*'Perry et al-2015'!$K$10*$C$6/100)^(1/'Perry et al-2015'!$K$10))) -> 0 | O73: =IF($C73<$AF$9,0,IF($C72<$AF$9,VLOOKUP(ROUND(MIN('Heming-1982'!$C$4,MAX('Heming-1982'!$C$3,$K73)),0),'Heming-1982'!$C$6:$D$9,2),(O72^'Perry et al-2015'!$K$10+$L73*'Perry et al-2015'!$K$10*$C$6/100)^(1/'Perry et al-2015'!$K$10))) -> 0 | AH73: 2017-11-18 | AI73: 46 | AJ73: =E73 -> 10 | AK73: 675.1888889 | AL73: 00:00:00 | AM73: 460 | AN73: 00:00:00 | AO73: 130 | AP73: 00:00:00 | AQ73: =K73 -> 7.233333333 | AR73: 566.15 | AS73: 00:00:00 | AT73: 379.7833333 | AU73: 00:00:00 | AV73: 84.57777778 | AW73: 00:00:00 | BI73: 312 | BJ73: 3 | BK73: =BK72+Calculations!$C$6 -> 2017-03-12 | BL73: 11 | BM73: =RANDBETWEEN(VLOOKUP(BJ73,Calculations!$BB$6:$BE$17,4,FALSE)*100,VLOOKUP(BJ73,Calculations!$BB$6:$BE$17,3,FALSE)*100)/100 -> 41.88 | BN73: =RANDBETWEEN(VLOOKUP(BJ73,Calculations!$BB$6:$BH$17,7,FALSE)*100,VLOOKUP(BJ73,Calculations!$BB$6:$BH$17,6,FALSE)*100)/100 -> 43.91
A74: 1119 | B74: 47 | C74: =C73+$C$6 -> 2017-11-19 | D74: =IF($C$6=7,VLOOKUP(B74,Calculations!$BL$3:$BM$55,2,FALSE),VLOOKUP($A74,Calculations!$BI$3:$BN$400,5,FALSE)) -> 50 | E74: 10 | F74: =MAX(0,'Perry et al-2015'!$K$11*(E74-'Perry et al-2015'!$K$13)*(1-EXP('Perry et al-2015'!$K$12*(E74-'Perry et al-2015'!$K$15)))) -> 2.836950493 | G74: =IF($C74<$AE$5,0,IF($C73<$AE$5,VLOOKUP(ROUND(MIN('Heming-1982'!$C$4,MAX('Heming-1982'!$C$3,$E74)),0),'Heming-1982'!$C$6:$D$9,2),($G73^'Perry et al-2015'!$K$10+$F74*'Perry et al-2015'!$K$10*$C$6/100)^(1/'Perry et al-2015'!$K$10))) -> 0 | H74: =IF($C74<$AE$7,0,IF($C73<$AE$7,VLOOKUP(ROUND(MIN('Heming-1982'!$C$4,MAX('Heming-1982'!$C$3,$E74)),0),'Heming-1982'!$C$6:$D$9,2),($H73^'Perry et al-2015'!$K$10+$F74*'Perry et al-2015'!$K$10*$C$6/100)^(1/'Perry et al-2015'!$K$10))) -> 0 | I74: =IF($C74<$AE$9,0,IF($C73<$AE$9,VLOOKUP(ROUND(MIN('Heming-1982'!$C$4,MAX('Heming-1982'!$C$3,Calculations!$E74)),0),'Heming-1982'!$C$6:$D$9,2),($I73^'Perry et al-2015'!$K$10+$F74*'Perry et al-2015'!$K$10*$C$6/100)^(1/'Perry et al-2015'!$K$10))) -> 0 | J74: =IF($C$6=7,VLOOKUP($B74,Calculations!$BL$3:$BM$55,2,FALSE),VLOOKUP($A74,Calculations!$BI$3:$BN$400,6,FALSE)) -> 45.68 | K74: 7.6 | L74: =MAX(0,'Perry et al-2015'!$K$11*(K74-'Perry et al-2015'!$K$13)*(1-EXP('Perry et al-2015'!$K$12*(K74-'Perry et al-2015'!$K$15)))) -> 1.98988631 | M74: =IF($C74<$AF$5,0,IF($C73<$AF$5,VLOOKUP(ROUND(MIN('Heming-1982'!$C$4,MAX('Heming-1982'!$C$3,$K74)),0),'Heming-1982'!$C$6:$D$9,2),(M73^'Perry et al-2015'!$K$10+$L74*'Perry et al-2015'!$K$10*$C$6/100)^(1/'Perry et al-2015'!$K$10))) -> 0 | N74: =IF($C74<$AF$7,0,IF($C73<$AF$7,VLOOKUP(ROUND(MIN('Heming-1982'!$C$4,MAX('Heming-1982'!$C$3,$K74)),0),'Heming-1982'!$C$6:$D$9,2),(N73^'Perry et al-2015'!$K$10+$L74*'Perry et al-2015'!$K$10*$C$6/100)^(1/'Perry et al-2015'!$K$10))) -> 0 | O74: =IF($C74<$AF$9,0,IF($C73<$AF$9,VLOOKUP(ROUND(MIN('Heming-1982'!$C$4,MAX('Heming-1982'!$C$3,$K74)),0),'Heming-1982'!$C$6:$D$9,2),(O73^'Perry et al-2015'!$K$10+$L74*'Perry et al-2015'!$K$10*$C$6/100)^(1/'Perry et al-2015'!$K$10))) -> 0 | AH74: =AH73+$C$6 -> 2017-11-19 | AI74: 47 | AJ74: 10 | AK74: 685.1888889 | AL74: 00:00:00 | AM74: 470 | AN74: 00:00:00 | AO74: 140 | AP74: 00:00:00 | AQ74: 7.6 | AR74: 573.75 | AS74: 00:00:00 | AT74: 387.3833333 | AU74: 00:00:00 | AV74: 92.17777778 | AW74: 00:00:00 | BI74: 313 | BJ74: 3 | BK74: =BK73+Calculations!$C$6 -> 2017-03-13 | BL74: 11 | BM74: =RANDBETWEEN(VLOOKUP(BJ74,Calculations!$BB$6:$BE$17,4,FALSE)*100,VLOOKUP(BJ74,Calculations!$BB$6:$BE$17,3,FALSE)*100)/100 -> 41.75 | BN74: =RANDBETWEEN(VLOOKUP(BJ74,Calculations!$BB$6:$BH$17,7,FALSE)*100,VLOOKUP(BJ74,Calculations!$BB$6:$BH$17,6,FALSE)*100)/100 -> 42.47
A75: 1120 | B75: 47 | C75: 2017-11-20 | D75: =IF($C$6=7,VLOOKUP(B75,Calculations!$BL$3:$BM$55,2,FALSE),VLOOKUP($A75,Calculations!$BI$3:$BN$400,5,FALSE)) -> 50 | E75: 10 | F75: =MAX(0,'Perry et al-2015'!$K$11*(E75-'Perry et al-2015'!$K$13)*(1-EXP('Perry et al-2015'!$K$12*(E75-'Perry et al-2015'!$K$15)))) -> 2.836950493 | G75: =IF($C75<$AE$5,0,IF($C74<$AE$5,VLOOKUP(ROUND(MIN('Heming-1982'!$C$4,MAX('Heming-1982'!$C$3,$E75)),0),'Heming-1982'!$C$6:$D$9,2),($G74^'Perry et al-2015'!$K$10+$F75*'Perry et al-2015'!$K$10*$C$6/100)^(1/'Perry et al-2015'!$K$10))) -> 0 | H75: =IF($C75<$AE$7,0,IF($C74<$AE$7,VLOOKUP(ROUND(MIN('Heming-1982'!$C$4,MAX('Heming-1982'!$C$3,$E75)),0),'Heming-1982'!$C$6:$D$9,2),($H74^'Perry et al-2015'!$K$10+$F75*'Perry et al-2015'!$K$10*$C$6/100)^(1/'Perry et al-2015'!$K$10))) -> 0 | I75: =IF($C75<$AE$9,0,IF($C74<$AE$9,VLOOKUP(ROUND(MIN('Heming-1982'!$C$4,MAX('Heming-1982'!$C$3,Calculations!$E75)),0),'Heming-1982'!$C$6:$D$9,2),($I74^'Perry et al-2015'!$K$10+$F75*'Perry et al-2015'!$K$10*$C$6/100)^(1/'Perry et al-2015'!$K$10))) -> 0 | J75: =IF($C$6=7,VLOOKUP($B75,Calculations!$BL$3:$BM$55,2,FALSE),VLOOKUP($A75,Calculations!$BI$3:$BN$400,6,FALSE)) -> 45.11 | K75: 7.283333333 | L75: =MAX(0,'Perry et al-2015'!$K$11*(K75-'Perry et al-2015'!$K$13)*(1-EXP('Perry et al-2015'!$K$12*(K75-'Perry et al-2015'!$K$15)))) -> 1.870591566 | M75: =IF($C75<$AF$5,0,IF($C74<$AF$5,VLOOKUP(ROUND(MIN('Heming-1982'!$C$4,MAX('Heming-1982'!$C$3,$K75)),0),'Heming-1982'!$C$6:$D$9,2),(M74^'Perry et al-2015'!$K$10+$L75*'Perry et al-2015'!$K$10*$C$6/100)^(1/'Perry et al-2015'!$K$10))) -> 0 | N75: =IF($C75<$AF$7,0,IF($C74<$AF$7,VLOOKUP(ROUND(MIN('Heming-1982'!$C$4,MAX('Heming-1982'!$C$3,$K75)),0),'Heming-1982'!$C$6:$D$9,2),(N74^'Perry et al-2015'!$K$10+$L75*'Perry et al-2015'!$K$10*$C$6/100)^(1/'Perry et al-2015'!$K$10))) -> 0 | O75: =IF($C75<$AF$9,0,IF($C74<$AF$9,VLOOKUP(ROUND(MIN('Heming-1982'!$C$4,MAX('Heming-1982'!$C$3,$K75)),0),'Heming-1982'!$C$6:$D$9,2),(O74^'Perry et al-2015'!$K$10+$L75*'Perry et al-2015'!$K$10*$C$6/100)^(1/'Perry et al-2015'!$K$10))) -> 0 | AH75: 2017-11-20 | AI75: 47 | AJ75: 10 | AK75: 695.1888889 | AL75: 00:00:00 | AM75: 480 | AN75: 00:00:00 | AO75: 150 | AP75: 00:00:00 | AQ75: 7.283333333 | AR75: 581.0333333 | AS75: 00:00:00 | AT75: 394.6666667 | AU75: 00:00:00 | AV75: 99.46111111 | AW75: 00:00:00 | BI75: 314 | BJ75: 3 | BK75: =BK74+Calculations!$C$6 -> 2017-03-14 | BL75: 11 | BM75: =RANDBETWEEN(VLOOKUP(BJ75,Calculations!$BB$6:$BE$17,4,FALSE)*100,VLOOKUP(BJ75,Calculations!$BB$6:$BE$17,3,FALSE)*100)/100 -> 41.62 | BN75: =RANDBETWEEN(VLOOKUP(BJ75,Calculations!$BB$6:$BH$17,7,FALSE)*100,VLOOKUP(BJ75,Calculations!$BB$6:$BH$17,6,FALSE)*100)/100 -> 42.78
A76: 1121 | B76: 47 | C76: 2017-11-21 | D76: =IF($C$6=7,VLOOKUP(B76,Calculations!$BL$3:$BM$55,2,FALSE),VLOOKUP($A76,Calculations!$BI$3:$BN$400,5,FALSE)) -> 50 | E76: 10 | F76: =MAX(0,'Perry et al-2015'!$K$11*(E76-'Perry et al-2015'!$K$13)*(1-EXP('Perry et al-2015'!$K$12*(E76-'Perry et al-2015'!$K$15)))) -> 2.836950493 | G76: =IF($C76<$AE$5,0,IF($C75<$AE$5,VLOOKUP(ROUND(MIN('Heming-1982'!$C$4,MAX('Heming-1982'!$C$3,$E76)),0),'Heming-1982'!$C$6:$D$9,2),($G75^'Perry et al-2015'!$K$10+$F76*'Perry et al-2015'!$K$10*$C$6/100)^(1/'Perry et al-2015'!$K$10))) -> 0 | H76: =IF($C76<$AE$7,0,IF($C75<$AE$7,VLOOKUP(ROUND(MIN('Heming-1982'!$C$4,MAX('Heming-1982'!$C$3,$E76)),0),'Heming-1982'!$C$6:$D$9,2),($H75^'Perry et al-2015'!$K$10+$F76*'Perry et al-2015'!$K$10*$C$6/100)^(1/'Perry et al-2015'!$K$10))) -> 0 | I76: =IF($C76<$AE$9,0,IF($C75<$AE$9,VLOOKUP(ROUND(MIN('Heming-1982'!$C$4,MAX('Heming-1982'!$C$3,Calculations!$E76)),0),'Heming-1982'!$C$6:$D$9,2),($I75^'Perry et al-2015'!$K$10+$F76*'Perry et al-2015'!$K$10*$C$6/100)^(1/'Perry et al-2015'!$K$10))) -> 0 | J76: =IF($C$6=7,VLOOKUP($B76,Calculations!$BL$3:$BM$55,2,FALSE),VLOOKUP($A76,Calculations!$BI$3:$BN$400,6,FALSE)) -> 42.28 | K76: 5.711111111 | L76: =MAX(0,'Perry et al-2015'!$K$11*(K76-'Perry et al-2015'!$K$13)*(1-EXP('Perry et al-2015'!$K$12*(K76-'Perry et al-2015'!$K$15)))) -> 1.262340903 | M76: =IF($C76<$AF$5,0,IF($C75<$AF$5,VLOOKUP(ROUND(MIN('Heming-1982'!$C$4,MAX('Heming-1982'!$C$3,$K76)),0),'Heming-1982'!$C$6:$D$9,2),(M75^'Perry et al-2015'!$K$10+$L76*'Perry et al-2015'!$K$10*$C$6/100)^(1/'Perry et al-2015'!$K$10))) -> 0 | N76: =IF($C76<$AF$7,0,IF($C75<$AF$7,VLOOKUP(ROUND(MIN('Heming-1982'!$C$4,MAX('Heming-1982'!$C$3,$K76)),0),'Heming-1982'!$C$6:$D$9,2),(N75^'Perry et al-2015'!$K$10+$L76*'Perry et al-2015'!$K$10*$C$6/100)^(1/'Perry et al-2015'!$K$10))) -> 0 | O76: =IF($C76<$AF$9,0,IF($C75<$AF$9,VLOOKUP(ROUND(MIN('Heming-1982'!$C$4,MAX('Heming-1982'!$C$3,$K76)),0),'Heming-1982'!$C$6:$D$9,2),(O75^'Perry et al-2015'!$K$10+$L76*'Perry et al-2015'!$K$10*$C$6/100)^(1/'Perry et al-2015'!$K$10))) -> 0 | AH76: 2017-11-21 | AI76: 47 | AJ76: 10 | AK76: 705.1888889 | AL76: 00:00:00 | AM76: 490 | AN76: 00:00:00 | AO76: 160 | AP76: 00:00:00 | AQ76: 5.711111111 | AR76: 586.7444444 | AS76: 00:00:00 | AT76: 400.3777778 | AU76: 00:00:00 | AV76: 105.1722222 | AW76: 00:00:00 | BI76: 315 | BJ76: 3 | BK76: =BK75+Calculations!$C$6 -> 2017-03-15 | BL76: 11 | BM76: =RANDBETWEEN(VLOOKUP(BJ76,Calculations!$BB$6:$BE$17,4,FALSE)*100,VLOOKUP(BJ76,Calculations!$BB$6:$BE$17,3,FALSE)*100)/100 -> 41.29 | BN76: =RANDBETWEEN(VLOOKUP(BJ76,Calculations!$BB$6:$BH$17,7,FALSE)*100,VLOOKUP(BJ76,Calculations!$BB$6:$BH$17,6,FALSE)*100)/100 -> 42.07
A77: 1122 | B77: 47 | C77: 2017-11-22 | D77: =IF($C$6=7,VLOOKUP(B77,Calculations!$BL$3:$BM$55,2,FALSE),VLOOKUP($A77,Calculations!$BI$3:$BN$400,5,FALSE)) -> 50 | E77: 10 | F77: =MAX(0,'Perry et al-2015'!$K$11*(E77-'Perry et al-2015'!$K$13)*(1-EXP('Perry et al-2015'!$K$12*(E77-'Perry et al-2015'!$K$15)))) -> 2.836950493 | G77: =IF($C77<$AE$5,0,IF($C76<$AE$5,VLOOKUP(ROUND(MIN('Heming-1982'!$C$4,MAX('Heming-1982'!$C$3,$E77)),0),'Heming-1982'!$C$6:$D$9,2),($G76^'Perry et al-2015'!$K$10+$F77*'Perry et al-2015'!$K$10*$C$6/100)^(1/'Perry et al-2015'!$K$10))) -> 0 | H77: =IF($C77<$AE$7,0,IF($C76<$AE$7,VLOOKUP(ROUND(MIN('Heming-1982'!$C$4,MAX('Heming-1982'!$C$3,$E77)),0),'Heming-1982'!$C$6:$D$9,2),($H76^'Perry et al-2015'!$K$10+$F77*'Perry et al-2015'!$K$10*$C$6/100)^(1/'Perry et al-2015'!$K$10))) -> 0 | I77: =IF($C77<$AE$9,0,IF($C76<$AE$9,VLOOKUP(ROUND(MIN('Heming-1982'!$C$4,MAX('Heming-1982'!$C$3,Calculations!$E77)),0),'Heming-1982'!$C$6:$D$9,2),($I76^'Perry et al-2015'!$K$10+$F77*'Perry et al-2015'!$K$10*$C$6/100)^(1/'Perry et al-2015'!$K$10))) -> 0 | J77: =IF($C$6=7,VLOOKUP($B77,Calculations!$BL$3:$BM$55,2,FALSE),VLOOKUP($A77,Calculations!$BI$3:$BN$400,6,FALSE)) -> 45.47 | K77: 7.483333333 | L77: =MAX(0,'Perry et al-2015'!$K$11*(K77-'Perry et al-2015'!$K$13)*(1-EXP('Perry et al-2015'!$K$12*(K77-'Perry et al-2015'!$K$15)))) -> 1.946087258 | M77: =IF($C77<$AF$5,0,IF($C76<$AF$5,VLOOKUP(ROUND(MIN('Heming-1982'!$C$4,MAX('Heming-1982'!$C$3,$K77)),0),'Heming-1982'!$C$6:$D$9,2),(M76^'Perry et al-2015'!$K$10+$L77*'Perry et al-2015'!$K$10*$C$6/100)^(1/'Perry et al-2015'!$K$10))) -> 0 | N77: =IF($C77<$AF$7,0,IF($C76<$AF$7,VLOOKUP(ROUND(MIN('Heming-1982'!$C$4,MAX('Heming-1982'!$C$3,$K77)),0),'Heming-1982'!$C$6:$D$9,2),(N76^'Perry et al-2015'!$K$10+$L77*'Perry et al-2015'!$K$10*$C$6/100)^(1/'Perry et al-2015'!$K$10))) -> 0 | O77: =IF($C77<$AF$9,0,IF($C76<$AF$9,VLOOKUP(ROUND(MIN('Heming-1982'!$C$4,MAX('Heming-1982'!$C$3,$K77)),0),'Heming-1982'!$C$6:$D$9,2),(O76^'Perry et al-2015'!$K$10+$L77*'Perry et al-2015'!$K$10*$C$6/100)^(1/'Perry et al-2015'!$K$10))) -> 0 | AH77: 2017-11-22 | AI77: 47 | AJ77: 10 | AK77: 715.1888889 | AL77: 00:00:00 | AM77: 500 | AN77: 00:00:00 | AO77: 170 | AP77: 00:00:00 | AQ77: 7.483333333 | AR77: 594.2277778 | AS77: 00:00:00 | AT77: 407.8611111 | AU77: 00:00:00 | AV77: 112.6555556 | AW77: 00:00:00 | BI77: 316 | BJ77: 3 | BK77: =BK76+Calculations!$C$6 -> 2017-03-16 | BL77: 11 | BM77: =RANDBETWEEN(VLOOKUP(BJ77,Calculations!$BB$6:$BE$17,4,FALSE)*100,VLOOKUP(BJ77,Calculations!$BB$6:$BE$17,3,FALSE)*100)/100 -> 41.38 | BN77: =RANDBETWEEN(VLOOKUP(BJ77,Calculations!$BB$6:$BH$17,7,FALSE)*100,VLOOKUP(BJ77,Calculations!$BB$6:$BH$17,6,FALSE)*100)/100 -> 42.8
A78: 1123 | B78: 47 | C78: 2017-11-23 | D78: =IF($C$6=7,VLOOKUP(B78,Calculations!$BL$3:$BM$55,2,FALSE),VLOOKUP($A78,Calculations!$BI$3:$BN$400,5,FALSE)) -> 50 | E78: 10 | F78: =MAX(0,'Perry et al-2015'!$K$11*(E78-'Perry et al-2015'!$K$13)*(1-EXP('Perry et al-2015'!$K$12*(E78-'Perry et al-2015'!$K$15)))) -> 2.836950493 | G78: =IF($C78<$AE$5,0,IF($C77<$AE$5,VLOOKUP(ROUND(MIN('Heming-1982'!$C$4,MAX('Heming-1982'!$C$3,$E78)),0),'Heming-1982'!$C$6:$D$9,2),($G77^'Perry et al-2015'!$K$10+$F78*'Perry et al-2015'!$K$10*$C$6/100)^(1/'Perry et al-2015'!$K$10))) -> 0 | H78: =IF($C78<$AE$7,0,IF($C77<$AE$7,VLOOKUP(ROUND(MIN('Heming-1982'!$C$4,MAX('Heming-1982'!$C$3,$E78)),0),'Heming-1982'!$C$6:$D$9,2),($H77^'Perry et al-2015'!$K$10+$F78*'Perry et al-2015'!$K$10*$C$6/100)^(1/'Perry et al-2015'!$K$10))) -> 0 | I78: =IF($C78<$AE$9,0,IF($C77<$AE$9,VLOOKUP(ROUND(MIN('Heming-1982'!$C$4,MAX('Heming-1982'!$C$3,Calculations!$E78)),0),'Heming-1982'!$C$6:$D$9,2),($I77^'Perry et al-2015'!$K$10+$F78*'Perry et al-2015'!$K$10*$C$6/100)^(1/'Perry et al-2015'!$K$10))) -> 0 | J78: =IF($C$6=7,VLOOKUP($B78,Calculations!$BL$3:$BM$55,2,FALSE),VLOOKUP($A78,Calculations!$BI$3:$BN$400,6,FALSE)) -> 45.55 | K78: 7.527777778 | L78: =MAX(0,'Perry et al-2015'!$K$11*(K78-'Perry et al-2015'!$K$13)*(1-EXP('Perry et al-2015'!$K$12*(K78-'Perry et al-2015'!$K$15)))) -> 1.962794044 | M78: =IF($C78<$AF$5,0,IF($C77<$AF$5,VLOOKUP(ROUND(MIN('Heming-1982'!$C$4,MAX('Heming-1982'!$C$3,$K78)),0),'Heming-1982'!$C$6:$D$9,2),(M77^'Perry et al-2015'!$K$10+$L78*'Perry et al-2015'!$K$10*$C$6/100)^(1/'Perry et al-2015'!$K$10))) -> 0 | N78: =IF($C78<$AF$7,0,IF($C77<$AF$7,VLOOKUP(ROUND(MIN('Heming-1982'!$C$4,MAX('Heming-1982'!$C$3,$K78)),0),'Heming-1982'!$C$6:$D$9,2),(N77^'Perry et al-2015'!$K$10+$L78*'Perry et al-2015'!$K$10*$C$6/100)^(1/'Perry et al-2015'!$K$10))) -> 0 | O78: =IF($C78<$AF$9,0,IF($C77<$AF$9,VLOOKUP(ROUND(MIN('Heming-1982'!$C$4,MAX('Heming-1982'!$C$3,$K78)),0),'Heming-1982'!$C$6:$D$9,2),(O77^'Perry et al-2015'!$K$10+$L78*'Perry et al-2015'!$K$10*$C$6/100)^(1/'Perry et al-2015'!$K$10))) -> 0 | AH78: 2017-11-23 | AI78: 47 | AJ78: 10 | AK78: 725.1888889 | AL78: 00:00:00 | AM78: 510 | AN78: 00:00:00 | AO78: 180 | AP78: 00:00:00 | AQ78: 7.527777778 | AR78: 601.7555556 | AS78: 00:00:00 | AT78: 415.3888889 | AU78: 00:00:00 | AV78: 120.1833333 | AW78: 00:00:00 | BI78: 317 | BJ78: 3 | BK78: =BK77+Calculations!$C$6 -> 2017-03-17 | BL78: 11 | BM78: =RANDBETWEEN(VLOOKUP(BJ78,Calculations!$BB$6:$BE$17,4,FALSE)*100,VLOOKUP(BJ78,Calculations!$BB$6:$BE$17,3,FALSE)*100)/100 -> 41.36 | BN78: =RANDBETWEEN(VLOOKUP(BJ78,Calculations!$BB$6:$BH$17,7,FALSE)*100,VLOOKUP(BJ78,Calculations!$BB$6:$BH$17,6,FALSE)*100)/100 -> 43.6
A79: 1124 | B79: 47 | C79: 2017-11-24 | D79: =IF($C$6=7,VLOOKUP(B79,Calculations!$BL$3:$BM$55,2,FALSE),VLOOKUP($A79,Calculations!$BI$3:$BN$400,5,FALSE)) -> 50 | E79: 10 | F79: =MAX(0,'Perry et al-2015'!$K$11*(E79-'Perry et al-2015'!$K$13)*(1-EXP('Perry et al-2015'!$K$12*(E79-'Perry et al-2015'!$K$15)))) -> 2.836950493 | G79: =IF($C79<$AE$5,0,IF($C78<$AE$5,VLOOKUP(ROUND(MIN('Heming-1982'!$C$4,MAX('Heming-1982'!$C$3,$E79)),0),'Heming-1982'!$C$6:$D$9,2),($G78^'Perry et al-2015'!$K$10+$F79*'Perry et al-2015'!$K$10*$C$6/100)^(1/'Perry et al-2015'!$K$10))) -> 0 | H79: =IF($C79<$AE$7,0,IF($C78<$AE$7,VLOOKUP(ROUND(MIN('Heming-1982'!$C$4,MAX('Heming-1982'!$C$3,$E79)),0),'Heming-1982'!$C$6:$D$9,2),($H78^'Perry et al-2015'!$K$10+$F79*'Perry et al-2015'!$K$10*$C$6/100)^(1/'Perry et al-2015'!$K$10))) -> 0 | I79: =IF($C79<$AE$9,0,IF($C78<$AE$9,VLOOKUP(ROUND(MIN('Heming-1982'!$C$4,MAX('Heming-1982'!$C$3,Calculations!$E79)),0),'Heming-1982'!$C$6:$D$9,2),($I78^'Perry et al-2015'!$K$10+$F79*'Perry et al-2015'!$K$10*$C$6/100)^(1/'Perry et al-2015'!$K$10))) -> 0 | J79: =IF($C$6=7,VLOOKUP($B79,Calculations!$BL$3:$BM$55,2,FALSE),VLOOKUP($A79,Calculations!$BI$3:$BN$400,6,FALSE)) -> 45.22 | K79: 7.344444444 | L79: =MAX(0,'Perry et al-2015'!$K$11*(K79-'Perry et al-2015'!$K$13)*(1-EXP('Perry et al-2015'!$K$12*(K79-'Perry et al-2015'!$K$15)))) -> 1.893713298 | M79: =IF($C79<$AF$5,0,IF($C78<$AF$5,VLOOKUP(ROUND(MIN('Heming-1982'!$C$4,MAX('Heming-1982'!$C$3,$K79)),0),'Heming-1982'!$C$6:$D$9,2),(M78^'Perry et al-2015'!$K$10+$L79*'Perry et al-2015'!$K$10*$C$6/100)^(1/'Perry et al-2015'!$K$10))) -> 0 | N79: =IF($C79<$AF$7,0,IF($C78<$AF$7,VLOOKUP(ROUND(MIN('Heming-1982'!$C$4,MAX('Heming-1982'!$C$3,$K79)),0),'Heming-1982'!$C$6:$D$9,2),(N78^'Perry et al-2015'!$K$10+$L79*'Perry et al-2015'!$K$10*$C$6/100)^(1/'Perry et al-2015'!$K$10))) -> 0 | O79: =IF($C79<$AF$9,0,IF($C78<$AF$9,VLOOKUP(ROUND(MIN('Heming-1982'!$C$4,MAX('Heming-1982'!$C$3,$K79)),0),'Heming-1982'!$C$6:$D$9,2),(O78^'Perry et al-2015'!$K$10+$L79*'Perry et al-2015'!$K$10*$C$6/100)^(1/'Perry et al-2015'!$K$10))) -> 0 | AH79: 2017-11-24 | AI79: 47 | AJ79: 10 | AK79: 735.1888889 | AL79: 00:00:00 | AM79: 520 | AN79: 00:00:00 | AO79: 190 | AP79: 00:00:00 | AQ79: 7.344444444 | AR79: 609.1 | AS79: 00:00:00 | AT79: 422.7333333 | AU79: 00:00:00 | AV79: 127.5277778 | AW79: 00:00:00 | BI79: 318 | BJ79: 3 | BK79: =BK78+Calculations!$C$6 -> 2017-03-18 | BL79: 11 | BM79: =RANDBETWEEN(VLOOKUP(BJ79,Calculations!$BB$6:$BE$17,4,FALSE)*100,VLOOKUP(BJ79,Calculations!$BB$6:$BE$17,3,FALSE)*100)/100 -> 41.35 | BN79: =RANDBETWEEN(VLOOKUP(BJ79,Calculations!$BB$6:$BH$17,7,FALSE)*100,VLOOKUP(BJ79,Calculations!$BB$6:$BH$17,6,FALSE)*100)/100 -> 42.6
A80: 1125 | B80: 47 | C80: 2017-11-25 | D80: =IF($C$6=7,VLOOKUP(B80,Calculations!$BL$3:$BM$55,2,FALSE),VLOOKUP($A80,Calculations!$BI$3:$BN$400,5,FALSE)) -> 50 | E80: 10 | F80: =MAX(0,'Perry et al-2015'!$K$11*(E80-'Perry et al-2015'!$K$13)*(1-EXP('Perry et al-2015'!$K$12*(E80-'Perry et al-2015'!$K$15)))) -> 2.836950493 | G80: =IF($C80<$AE$5,0,IF($C79<$AE$5,VLOOKUP(ROUND(MIN('Heming-1982'!$C$4,MAX('Heming-1982'!$C$3,$E80)),0),'Heming-1982'!$C$6:$D$9,2),($G79^'Perry et al-2015'!$K$10+$F80*'Perry et al-2015'!$K$10*$C$6/100)^(1/'Perry et al-2015'!$K$10))) -> 0 | H80: =IF($C80<$AE$7,0,IF($C79<$AE$7,VLOOKUP(ROUND(MIN('Heming-1982'!$C$4,MAX('Heming-1982'!$C$3,$E80)),0),'Heming-1982'!$C$6:$D$9,2),($H79^'Perry et al-2015'!$K$10+$F80*'Perry et al-2015'!$K$10*$C$6/100)^(1/'Perry et al-2015'!$K$10))) -> 0 | I80: =IF($C80<$AE$9,0,IF($C79<$AE$9,VLOOKUP(ROUND(MIN('Heming-1982'!$C$4,MAX('Heming-1982'!$C$3,Calculations!$E80)),0),'Heming-1982'!$C$6:$D$9,2),($I79^'Perry et al-2015'!$K$10+$F80*'Perry et al-2015'!$K$10*$C$6/100)^(1/'Perry et al-2015'!$K$10))) -> 0 | J80: =IF($C$6=7,VLOOKUP($B80,Calculations!$BL$3:$BM$55,2,FALSE),VLOOKUP($A80,Calculations!$BI$3:$BN$400,6,FALSE)) -> 43.64 | K80: 6.466666667 | L80: =MAX(0,'Perry et al-2015'!$K$11*(K80-'Perry et al-2015'!$K$13)*(1-EXP('Perry et al-2015'!$K$12*(K80-'Perry et al-2015'!$K$15)))) -> 1.557552798 | M80: =IF($C80<$AF$5,0,IF($C79<$AF$5,VLOOKUP(ROUND(MIN('Heming-1982'!$C$4,MAX('Heming-1982'!$C$3,$K80)),0),'Heming-1982'!$C$6:$D$9,2),(M79^'Perry et al-2015'!$K$10+$L80*'Perry et al-2015'!$K$10*$C$6/100)^(1/'Perry et al-2015'!$K$10))) -> 0 | N80: =IF($C80<$AF$7,0,IF($C79<$AF$7,VLOOKUP(ROUND(MIN('Heming-1982'!$C$4,MAX('Heming-1982'!$C$3,$K80)),0),'Heming-1982'!$C$6:$D$9,2),(N79^'Perry et al-2015'!$K$10+$L80*'Perry et al-2015'!$K$10*$C$6/100)^(1/'Perry et al-2015'!$K$10))) -> 0 | O80: =IF($C80<$AF$9,0,IF($C79<$AF$9,VLOOKUP(ROUND(MIN('Heming-1982'!$C$4,MAX('Heming-1982'!$C$3,$K80)),0),'Heming-1982'!$C$6:$D$9,2),(O79^'Perry et al-2015'!$K$10+$L80*'Perry et al-2015'!$K$10*$C$6/100)^(1/'Perry et al-2015'!$K$10))) -> 0 | AH80: 2017-11-25 | AI80: 47 | AJ80: 10 | AK80: 745.1888889 | AL80: 00:00:00 | AM80: 530 | AN80: 00:00:00 | AO80: 200 | AP80: 00:00:00 | AQ80: 6.466666667 | AR80: 615.5666667 | AS80: 00:00:00 | AT80: 429.2 | AU80: 00:00:00 | AV80: 133.9944444 | AW80: 00:00:00 | BI80: 319 | BJ80: 3 | BK80: =BK79+Calculations!$C$6 -> 2017-03-19 | BL80: 12 | BM80: =RANDBETWEEN(VLOOKUP(BJ80,Calculations!$BB$6:$BE$17,4,FALSE)*100,VLOOKUP(BJ80,Calculations!$BB$6:$BE$17,3,FALSE)*100)/100 -> 41.43 | BN80: =RANDBETWEEN(VLOOKUP(BJ80,Calculations!$BB$6:$BH$17,7,FALSE)*100,VLOOKUP(BJ80,Calculations!$BB$6:$BH$17,6,FALSE)*100)/100 -> 42.18
A81: 1126 | B81: 48 | C81: 2017-11-26 | D81: =IF($C$6=7,VLOOKUP(B81,Calculations!$BL$3:$BM$55,2,FALSE),VLOOKUP($A81,Calculations!$BI$3:$BN$400,5,FALSE)) -> 50 | E81: 10 | F81: =MAX(0,'Perry et al-2015'!$K$11*(E81-'Perry et al-2015'!$K$13)*(1-EXP('Perry et al-2015'!$K$12*(E81-'Perry et al-2015'!$K$15)))) -> 2.836950493 | G81: =IF($C81<$AE$5,0,IF($C80<$AE$5,VLOOKUP(ROUND(MIN('Heming-1982'!$C$4,MAX('Heming-1982'!$C$3,$E81)),0),'Heming-1982'!$C$6:$D$9,2),($G80^'Perry et al-2015'!$K$10+$F81*'Perry et al-2015'!$K$10*$C$6/100)^(1/'Perry et al-2015'!$K$10))) -> 0 | H81: =IF($C81<$AE$7,0,IF($C80<$AE$7,VLOOKUP(ROUND(MIN('Heming-1982'!$C$4,MAX('Heming-1982'!$C$3,$E81)),0),'Heming-1982'!$C$6:$D$9,2),($H80^'Perry et al-2015'!$K$10+$F81*'Perry et al-2015'!$K$10*$C$6/100)^(1/'Perry et al-2015'!$K$10))) -> 0 | I81: =IF($C81<$AE$9,0,IF($C80<$AE$9,VLOOKUP(ROUND(MIN('Heming-1982'!$C$4,MAX('Heming-1982'!$C$3,Calculations!$E81)),0),'Heming-1982'!$C$6:$D$9,2),($I80^'Perry et al-2015'!$K$10+$F81*'Perry et al-2015'!$K$10*$C$6/100)^(1/'Perry et al-2015'!$K$10))) -> 0 | J81: =IF($C$6=7,VLOOKUP($B81,Calculations!$BL$3:$BM$55,2,FALSE),VLOOKUP($A81,Calculations!$BI$3:$BN$400,6,FALSE)) -> 45.35 | K81: 7.416666667 | L81: =MAX(0,'Perry et al-2015'!$K$11*(K81-'Perry et al-2015'!$K$13)*(1-EXP('Perry et al-2015'!$K$12*(K81-'Perry et al-2015'!$K$15)))) -> 1.92097862 | M81: =IF($C81<$AF$5,0,IF($C80<$AF$5,VLOOKUP(ROUND(MIN('Heming-1982'!$C$4,MAX('Heming-1982'!$C$3,$K81)),0),'Heming-1982'!$C$6:$D$9,2),(M80^'Perry et al-2015'!$K$10+$L81*'Perry et al-2015'!$K$10*$C$6/100)^(1/'Perry et al-2015'!$K$10))) -> 0 | N81: =IF($C81<$AF$7,0,IF($C80<$AF$7,VLOOKUP(ROUND(MIN('Heming-1982'!$C$4,MAX('Heming-1982'!$C$3,$K81)),0),'Heming-1982'!$C$6:$D$9,2),(N80^'Perry et al-2015'!$K$10+$L81*'Perry et al-2015'!$K$10*$C$6/100)^(1/'Perry et al-2015'!$K$10))) -> 0 | O81: =IF($C81<$AF$9,0,IF($C80<$AF$9,VLOOKUP(ROUND(MIN('Heming-1982'!$C$4,MAX('Heming-1982'!$C$3,$K81)),0),'Heming-1982'!$C$6:$D$9,2),(O80^'Perry et al-2015'!$K$10+$L81*'Perry et al-2015'!$K$10*$C$6/100)^(1/'Perry et al-2015'!$K$10))) -> 0 | AH81: 2017-11-26 | AI81: 48 | AJ81: 10 | AK81: 755.1888889 | AL81: 00:00:00 | AM81: 540 | AN81: 00:00:00 | AO81: 210 | AP81: 00:00:00 | AQ81: 7.416666667 | AR81: 622.9833333 | AS81: 00:00:00 | AT81: 436.6166667 | AU81: 00:00:00 | AV81: 141.4111111 | AW81: 00:00:00 | BI81: 320 | BJ81: 3 | BK81: =BK80+Calculations!$C$6 -> 2017-03-20 | BL81: 12 | BM81: =RANDBETWEEN(VLOOKUP(BJ81,Calculations!$BB$6:$BE$17,4,FALSE)*100,VLOOKUP(BJ81,Calculations!$BB$6:$BE$17,3,FALSE)*100)/100 -> 42.05 | BN81: =RANDBETWEEN(VLOOKUP(BJ81,Calculations!$BB$6:$BH$17,7,FALSE)*100,VLOOKUP(BJ81,Calculations!$BB$6:$BH$17,6,FALSE)*100)/100 -> 43.11
A82: 1127 | B82: 48 | C82: 2017-11-27 | D82: =IF($C$6=7,VLOOKUP(B82,Calculations!$BL$3:$BM$55,2,FALSE),VLOOKUP($A82,Calculations!$BI$3:$BN$400,5,FALSE)) -> 50 | E82: 10 | F82: =MAX(0,'Perry et al-2015'!$K$11*(E82-'Perry et al-2015'!$K$13)*(1-EXP('Perry et al-2015'!$K$12*(E82-'Perry et al-2015'!$K$15)))) -> 2.836950493 | G82: =IF($C82<$AE$5,0,IF($C81<$AE$5,VLOOKUP(ROUND(MIN('Heming-1982'!$C$4,MAX('Heming-1982'!$C$3,$E82)),0),'Heming-1982'!$C$6:$D$9,2),($G81^'Perry et al-2015'!$K$10+$F82*'Perry et al-2015'!$K$10*$C$6/100)^(1/'Perry et al-2015'!$K$10))) -> 0 | H82: =IF($C82<$AE$7,0,IF($C81<$AE$7,VLOOKUP(ROUND(MIN('Heming-1982'!$C$4,MAX('Heming-1982'!$C$3,$E82)),0),'Heming-1982'!$C$6:$D$9,2),($H81^'Perry et al-2015'!$K$10+$F82*'Perry et al-2015'!$K$10*$C$6/100)^(1/'Perry et al-2015'!$K$10))) -> 0 | I82: =IF($C82<$AE$9,0,IF($C81<$AE$9,VLOOKUP(ROUND(MIN('Heming-1982'!$C$4,MAX('Heming-1982'!$C$3,Calculations!$E82)),0),'Heming-1982'!$C$6:$D$9,2),($I81^'Perry et al-2015'!$K$10+$F82*'Perry et al-2015'!$K$10*$C$6/100)^(1/'Perry et al-2015'!$K$10))) -> 0 | J82: =IF($C$6=7,VLOOKUP($B82,Calculations!$BL$3:$BM$55,2,FALSE),VLOOKUP($A82,Calculations!$BI$3:$BN$400,6,FALSE)) -> 45.84 | K82: 7.688888889 | L82: =MAX(0,'Perry et al-2015'!$K$11*(K82-'Perry et al-2015'!$K$13)*(1-EXP('Perry et al-2015'!$K$12*(K82-'Perry et al-2015'!$K$15)))) -> 2.023132803 | M82: =IF($C82<$AF$5,0,IF($C81<$AF$5,VLOOKUP(ROUND(MIN('Heming-1982'!$C$4,MAX('Heming-1982'!$C$3,$K82)),0),'Heming-1982'!$C$6:$D$9,2),(M81^'Perry et al-2015'!$K$10+$L82*'Perry et al-2015'!$K$10*$C$6/100)^(1/'Perry et al-2015'!$K$10))) -> 0 | N82: =IF($C82<$AF$7,0,IF($C81<$AF$7,VLOOKUP(ROUND(MIN('Heming-1982'!$C$4,MAX('Heming-1982'!$C$3,$K82)),0),'Heming-1982'!$C$6:$D$9,2),(N81^'Perry et al-2015'!$K$10+$L82*'Perry et al-2015'!$K$10*$C$6/100)^(1/'Perry et al-2015'!$K$10))) -> 0 | O82: =IF($C82<$AF$9,0,IF($C81<$AF$9,VLOOKUP(ROUND(MIN('Heming-1982'!$C$4,MAX('Heming-1982'!$C$3,$K82)),0),'Heming-1982'!$C$6:$D$9,2),(O81^'Perry et al-2015'!$K$10+$L82*'Perry et al-2015'!$K$10*$C$6/100)^(1/'Perry et al-2015'!$K$10))) -> 0 | AH82: 2017-11-27 | AI82: 48 | AJ82: 10 | AK82: 765.1888889 | AL82: 00:00:00 | AM82: 550 | AN82: 00:00:00 | AO82: 220 | AP82: 00:00:00 | AQ82: 7.688888889 | AR82: 630.6722222 | AS82: 00:00:00 | AT82: 444.3055556 | AU82: 00:00:00 | AV82: 149.1 | AW82: 00:00:00 | BI82: 321 | BJ82: 3 | BK82: =BK81+Calculations!$C$6 -> 2017-03-21 | BL82: 12 | BM82: =RANDBETWEEN(VLOOKUP(BJ82,Calculations!$BB$6:$BE$17,4,FALSE)*100,VLOOKUP(BJ82,Calculations!$BB$6:$BE$17,3,FALSE)*100)/100 -> 41.5 | BN82: =RANDBETWEEN(VLOOKUP(BJ82,Calculations!$BB$6:$BH$17,7,FALSE)*100,VLOOKUP(BJ82,Calculations!$BB$6:$BH$17,6,FALSE)*100)/100 -> 42.92
A83: 1128 | B83: 48 | C83: 2017-11-28 | D83: =IF($C$6=7,VLOOKUP(B83,Calculations!$BL$3:$BM$55,2,FALSE),VLOOKUP($A83,Calculations!$BI$3:$BN$400,5,FALSE)) -> 50 | E83: 10 | F83: =MAX(0,'Perry et al-2015'!$K$11*(E83-'Perry et al-2015'!$K$13)*(1-EXP('Perry et al-2015'!$K$12*(E83-'Perry et al-2015'!$K$15)))) -> 2.836950493 | G83: =IF($C83<$AE$5,0,IF($C82<$AE$5,VLOOKUP(ROUND(MIN('Heming-1982'!$C$4,MAX('Heming-1982'!$C$3,$E83)),0),'Heming-1982'!$C$6:$D$9,2),($G82^'Perry et al-2015'!$K$10+$F83*'Perry et al-2015'!$K$10*$C$6/100)^(1/'Perry et al-2015'!$K$10))) -> 0 | H83: =IF($C83<$AE$7,0,IF($C82<$AE$7,VLOOKUP(ROUND(MIN('Heming-1982'!$C$4,MAX('Heming-1982'!$C$3,$E83)),0),'Heming-1982'!$C$6:$D$9,2),($H82^'Perry et al-2015'!$K$10+$F83*'Perry et al-2015'!$K$10*$C$6/100)^(1/'Perry et al-2015'!$K$10))) -> 0 | I83: =IF($C83<$AE$9,0,IF($C82<$AE$9,VLOOKUP(ROUND(MIN('Heming-1982'!$C$4,MAX('Heming-1982'!$C$3,Calculations!$E83)),0),'Heming-1982'!$C$6:$D$9,2),($I82^'Perry et al-2015'!$K$10+$F83*'Perry et al-2015'!$K$10*$C$6/100)^(1/'Perry et al-2015'!$K$10))) -> 0 | J83: =IF($C$6=7,VLOOKUP($B83,Calculations!$BL$3:$BM$55,2,FALSE),VLOOKUP($A83,Calculations!$BI$3:$BN$400,6,FALSE)) -> 43.32 | K83: 6.288888889 | L83: =MAX(0,'Perry et al-2015'!$K$11*(K83-'Perry et al-2015'!$K$13)*(1-EXP('Perry et al-2015'!$K$12*(K83-'Perry et al-2015'!$K$15)))) -> 1.48852152 | M83: =IF($C83<$AF$5,0,IF($C82<$AF$5,VLOOKUP(ROUND(MIN('Heming-1982'!$C$4,MAX('Heming-1982'!$C$3,$K83)),0),'Heming-1982'!$C$6:$D$9,2),(M82^'Perry et al-2015'!$K$10+$L83*'Perry et al-2015'!$K$10*$C$6/100)^(1/'Perry et al-2015'!$K$10))) -> 0 | N83: =IF($C83<$AF$7,0,IF($C82<$AF$7,VLOOKUP(ROUND(MIN('Heming-1982'!$C$4,MAX('Heming-1982'!$C$3,$K83)),0),'Heming-1982'!$C$6:$D$9,2),(N82^'Perry et al-2015'!$K$10+$L83*'Perry et al-2015'!$K$10*$C$6/100)^(1/'Perry et al-2015'!$K$10))) -> 0 | O83: =IF($C83<$AF$9,0,IF($C82<$AF$9,VLOOKUP(ROUND(MIN('Heming-1982'!$C$4,MAX('Heming-1982'!$C$3,$K83)),0),'Heming-1982'!$C$6:$D$9,2),(O82^'Perry et al-2015'!$K$10+$L83*'Perry et al-2015'!$K$10*$C$6/100)^(1/'Perry et al-2015'!$K$10))) -> 0 | AH83: 2017-11-28 | AI83: 48 | AJ83: 10 | AK83: 775.1888889 | AL83: 00:00:00 | AM83: 560 | AN83: 00:00:00 | AO83: 230 | AP83: 00:00:00 | AQ83: 6.288888889 | AR83: 636.9611111 | AS83: 00:00:00 | AT83: 450.5944444 | AU83: 00:00:00 | AV83: 155.3888889 | AW83: 00:00:00 | BI83: 322 | BJ83: 3 | BK83: =BK82+Calculations!$C$6 -> 2017-03-22 | BL83: 12 | BM83: =RANDBETWEEN(VLOOKUP(BJ83,Calculations!$BB$6:$BE$17,4,FALSE)*100,VLOOKUP(BJ83,Calculations!$BB$6:$BE$17,3,FALSE)*100)/100 -> 41.54 | BN83: =RANDBETWEEN(VLOOKUP(BJ83,Calculations!$BB$6:$BH$17,7,FALSE)*100,VLOOKUP(BJ83,Calculations!$BB$6:$BH$17,6,FALSE)*100)/100 -> 42.26
A84: 1129 | B84: 48 | C84: 2017-11-29 | D84: =IF($C$6=7,VLOOKUP(B84,Calculations!$BL$3:$BM$55,2,FALSE),VLOOKUP($A84,Calculations!$BI$3:$BN$400,5,FALSE)) -> 50 | E84: 10 | F84: =MAX(0,'Perry et al-2015'!$K$11*(E84-'Perry et al-2015'!$K$13)*(1-EXP('Perry et al-2015'!$K$12*(E84-'Perry et al-2015'!$K$15)))) -> 2.836950493 | G84: =IF($C84<$AE$5,0,IF($C83<$AE$5,VLOOKUP(ROUND(MIN('Heming-1982'!$C$4,MAX('Heming-1982'!$C$3,$E84)),0),'Heming-1982'!$C$6:$D$9,2),($G83^'Perry et al-2015'!$K$10+$F84*'Perry et al-2015'!$K$10*$C$6/100)^(1/'Perry et al-2015'!$K$10))) -> 0 | H84: =IF($C84<$AE$7,0,IF($C83<$AE$7,VLOOKUP(ROUND(MIN('Heming-1982'!$C$4,MAX('Heming-1982'!$C$3,$E84)),0),'Heming-1982'!$C$6:$D$9,2),($H83^'Perry et al-2015'!$K$10+$F84*'Perry et al-2015'!$K$10*$C$6/100)^(1/'Perry et al-2015'!$K$10))) -> 0 | I84: =IF($C84<$AE$9,0,IF($C83<$AE$9,VLOOKUP(ROUND(MIN('Heming-1982'!$C$4,MAX('Heming-1982'!$C$3,Calculations!$E84)),0),'Heming-1982'!$C$6:$D$9,2),($I83^'Perry et al-2015'!$K$10+$F84*'Perry et al-2015'!$K$10*$C$6/100)^(1/'Perry et al-2015'!$K$10))) -> 0 | J84: =IF($C$6=7,VLOOKUP($B84,Calculations!$BL$3:$BM$55,2,FALSE),VLOOKUP($A84,Calculations!$BI$3:$BN$400,6,FALSE)) -> 42.41 | K84: 5.783333333 | L84: =MAX(0,'Perry et al-2015'!$K$11*(K84-'Perry et al-2015'!$K$13)*(1-EXP('Perry et al-2015'!$K$12*(K84-'Perry et al-2015'!$K$15)))) -> 1.29075485 | M84: =IF($C84<$AF$5,0,IF($C83<$AF$5,VLOOKUP(ROUND(MIN('Heming-1982'!$C$4,MAX('Heming-1982'!$C$3,$K84)),0),'Heming-1982'!$C$6:$D$9,2),(M83^'Perry et al-2015'!$K$10+$L84*'Perry et al-2015'!$K$10*$C$6/100)^(1/'Perry et al-2015'!$K$10))) -> 0 | N84: =IF($C84<$AF$7,0,IF($C83<$AF$7,VLOOKUP(ROUND(MIN('Heming-1982'!$C$4,MAX('Heming-1982'!$C$3,$K84)),0),'Heming-1982'!$C$6:$D$9,2),(N83^'Perry et al-2015'!$K$10+$L84*'Perry et al-2015'!$K$10*$C$6/100)^(1/'Perry et al-2015'!$K$10))) -> 0 | O84: =IF($C84<$AF$9,0,IF($C83<$AF$9,VLOOKUP(ROUND(MIN('Heming-1982'!$C$4,MAX('Heming-1982'!$C$3,$K84)),0),'Heming-1982'!$C$6:$D$9,2),(O83^'Perry et al-2015'!$K$10+$L84*'Perry et al-2015'!$K$10*$C$6/100)^(1/'Perry et al-2015'!$K$10))) -> 0 | AH84: 2017-11-29 | AI84: 48 | AJ84: 10 | AK84: 785.1888889 | AL84: 00:00:00 | AM84: 570 | AN84: 00:00:00 | AO84: 240 | AP84: 00:00:00 | AQ84: 5.783333333 | AR84: 642.7444444 | AS84: 00:00:00 | AT84: 456.3777778 | AU84: 00:00:00 | AV84: 161.1722222 | AW84: 00:00:00 | BI84: 323 | BJ84: 3 | BK84: =BK83+Calculations!$C$6 -> 2017-03-23 | BL84: 12 | BM84: =RANDBETWEEN(VLOOKUP(BJ84,Calculations!$BB$6:$BE$17,4,FALSE)*100,VLOOKUP(BJ84,Calculations!$BB$6:$BE$17,3,FALSE)*100)/100 -> 41.65 | BN84: =RANDBETWEEN(VLOOKUP(BJ84,Calculations!$BB$6:$BH$17,7,FALSE)*100,VLOOKUP(BJ84,Calculations!$BB$6:$BH$17,6,FALSE)*100)/100 -> 43.68
A85: 1130 | B85: 48 | C85: 2017-11-30 | D85: =IF($C$6=7,VLOOKUP(B85,Calculations!$BL$3:$BM$55,2,FALSE),VLOOKUP($A85,Calculations!$BI$3:$BN$400,5,FALSE)) -> 50 | E85: 10 | F85: =MAX(0,'Perry et al-2015'!$K$11*(E85-'Perry et al-2015'!$K$13)*(1-EXP('Perry et al-2015'!$K$12*(E85-'Perry et al-2015'!$K$15)))) -> 2.836950493 | G85: =IF($C85<$AE$5,0,IF($C84<$AE$5,VLOOKUP(ROUND(MIN('Heming-1982'!$C$4,MAX('Heming-1982'!$C$3,$E85)),0),'Heming-1982'!$C$6:$D$9,2),($G84^'Perry et al-2015'!$K$10+$F85*'Perry et al-2015'!$K$10*$C$6/100)^(1/'Perry et al-2015'!$K$10))) -> 0 | H85: =IF($C85<$AE$7,0,IF($C84<$AE$7,VLOOKUP(ROUND(MIN('Heming-1982'!$C$4,MAX('Heming-1982'!$C$3,$E85)),0),'Heming-1982'!$C$6:$D$9,2),($H84^'Perry et al-2015'!$K$10+$F85*'Perry et al-2015'!$K$10*$C$6/100)^(1/'Perry et al-2015'!$K$10))) -> 0 | I85: =IF($C85<$AE$9,0,IF($C84<$AE$9,VLOOKUP(ROUND(MIN('Heming-1982'!$C$4,MAX('Heming-1982'!$C$3,Calculations!$E85)),0),'Heming-1982'!$C$6:$D$9,2),($I84^'Perry et al-2015'!$K$10+$F85*'Perry et al-2015'!$K$10*$C$6/100)^(1/'Perry et al-2015'!$K$10))) -> 0 | J85: =IF($C$6=7,VLOOKUP($B85,Calculations!$BL$3:$BM$55,2,FALSE),VLOOKUP($A85,Calculations!$BI$3:$BN$400,6,FALSE)) -> 43.79 | K85: 6.55 | L85: =MAX(0,'Perry et al-2015'!$K$11*(K85-'Perry et al-2015'!$K$13)*(1-EXP('Perry et al-2015'!$K$12*(K85-'Perry et al-2015'!$K$15)))) -> 1.589811017 | M85: =IF($C85<$AF$5,0,IF($C84<$AF$5,VLOOKUP(ROUND(MIN('Heming-1982'!$C$4,MAX('Heming-1982'!$C$3,$K85)),0),'Heming-1982'!$C$6:$D$9,2),(M84^'Perry et al-2015'!$K$10+$L85*'Perry et al-2015'!$K$10*$C$6/100)^(1/'Perry et al-2015'!$K$10))) -> 0 | N85: =IF($C85<$AF$7,0,IF($C84<$AF$7,VLOOKUP(ROUND(MIN('Heming-1982'!$C$4,MAX('Heming-1982'!$C$3,$K85)),0),'Heming-1982'!$C$6:$D$9,2),(N84^'Perry et al-2015'!$K$10+$L85*'Perry et al-2015'!$K$10*$C$6/100)^(1/'Perry et al-2015'!$K$10))) -> 0 | O85: =IF($C85<$AF$9,0,IF($C84<$AF$9,VLOOKUP(ROUND(MIN('Heming-1982'!$C$4,MAX('Heming-1982'!$C$3,$K85)),0),'Heming-1982'!$C$6:$D$9,2),(O84^'Perry et al-2015'!$K$10+$L85*'Perry et al-2015'!$K$10*$C$6/100)^(1/'Perry et al-2015'!$K$10))) -> 0 | AH85: 2017-11-30 | AI85: 48 | AJ85: 10 | AK85: 795.1888889 | AL85: 00:00:00 | AM85: 580 | AN85: 00:00:00 | AO85: 250 | AP85: 00:00:00 | AQ85: 6.55 | AR85: 649.2944444 | AS85: 00:00:00 | AT85: 462.9277778 | AU85: 00:00:00 | AV85: 167.7222222 | AW85: 00:00:00 | BI85: 324 | BJ85: 3 | BK85: =BK84+Calculations!$C$6 -> 2017-03-24 | BL85: 12 | BM85: =RANDBETWEEN(VLOOKUP(BJ85,Calculations!$BB$6:$BE$17,4,FALSE)*100,VLOOKUP(BJ85,Calculations!$BB$6:$BE$17,3,FALSE)*100)/100 -> 41.35 | BN85: =RANDBETWEEN(VLOOKUP(BJ85,Calculations!$BB$6:$BH$17,7,FALSE)*100,VLOOKUP(BJ85,Calculations!$BB$6:$BH$17,6,FALSE)*100)/100 -> 43.24
A86: 1201 | B86: 48 | C86: 2017-12-01 | D86: =IF($C$6=7,VLOOKUP(B86,Calculations!$BL$3:$BM$55,2,FALSE),VLOOKUP($A86,Calculations!$BI$3:$BN$400,5,FALSE)) -> 41.29 | E86: 5.161111111 | F86: =MAX(0,'Perry et al-2015'!$K$11*(E86-'Perry et al-2015'!$K$13)*(1-EXP('Perry et al-2015'!$K$12*(E86-'Perry et al-2015'!$K$15)))) -> 1.044794436 | G86: =IF($C86<$AE$5,0,IF($C85<$AE$5,VLOOKUP(ROUND(MIN('Heming-1982'!$C$4,MAX('Heming-1982'!$C$3,$E86)),0),'Heming-1982'!$C$6:$D$9,2),($G85^'Perry et al-2015'!$K$10+$F86*'Perry et al-2015'!$K$10*$C$6/100)^(1/'Perry et al-2015'!$K$10))) -> 0 | H86: =IF($C86<$AE$7,0,IF($C85<$AE$7,VLOOKUP(ROUND(MIN('Heming-1982'!$C$4,MAX('Heming-1982'!$C$3,$E86)),0),'Heming-1982'!$C$6:$D$9,2),($H85^'Perry et al-2015'!$K$10+$F86*'Perry et al-2015'!$K$10*$C$6/100)^(1/'Perry et al-2015'!$K$10))) -> 0 | I86: =IF($C86<$AE$9,0,IF($C85<$AE$9,VLOOKUP(ROUND(MIN('Heming-1982'!$C$4,MAX('Heming-1982'!$C$3,Calculations!$E86)),0),'Heming-1982'!$C$6:$D$9,2),($I85^'Perry et al-2015'!$K$10+$F86*'Perry et al-2015'!$K$10*$C$6/100)^(1/'Perry et al-2015'!$K$10))) -> 0 | J86: =IF($C$6=7,VLOOKUP($B86,Calculations!$BL$3:$BM$55,2,FALSE),VLOOKUP($A86,Calculations!$BI$3:$BN$400,6,FALSE)) -> 41.13 | K86: 5.072222222 | L86: =MAX(0,'Perry et al-2015'!$K$11*(K86-'Perry et al-2015'!$K$13)*(1-EXP('Perry et al-2015'!$K$12*(K86-'Perry et al-2015'!$K$15)))) -> 1.009457686 | M86: =IF($C86<$AF$5,0,IF($C85<$AF$5,VLOOKUP(ROUND(MIN('Heming-1982'!$C$4,MAX('Heming-1982'!$C$3,$K86)),0),'Heming-1982'!$C$6:$D$9,2),(M85^'Perry et al-2015'!$K$10+$L86*'Perry et al-2015'!$K$10*$C$6/100)^(1/'Perry et al-2015'!$K$10))) -> 0 | N86: =IF($C86<$AF$7,0,IF($C85<$AF$7,VLOOKUP(ROUND(MIN('Heming-1982'!$C$4,MAX('Heming-1982'!$C$3,$K86)),0),'Heming-1982'!$C$6:$D$9,2),(N85^'Perry et al-2015'!$K$10+$L86*'Perry et al-2015'!$K$10*$C$6/100)^(1/'Perry et al-2015'!$K$10))) -> 0 | O86: =IF($C86<$AF$9,0,IF($C85<$AF$9,VLOOKUP(ROUND(MIN('Heming-1982'!$C$4,MAX('Heming-1982'!$C$3,$K86)),0),'Heming-1982'!$C$6:$D$9,2),(O85^'Perry et al-2015'!$K$10+$L86*'Perry et al-2015'!$K$10*$C$6/100)^(1/'Perry et al-2015'!$K$10))) -> 0 | AH86: 2017-12-01 | AI86: 48 | AJ86: 5.161111111 | AK86: 800.35 | AL86: 00:00:00 | AM86: 585.1611111 | AN86: 00:00:00 | AO86: 255.1611111 | AP86: 00:00:00 | AQ86: 5.072222222 | AR86: 654.3666667 | AS86: 00:00:00 | AT86: 468 | AU86: 00:00:00 | AV86: 172.7944444 | AW86: 00:00:00 | BI86: 325 | BJ86: 3 | BK86: =BK85+Calculations!$C$6 -> 2017-03-25 | BL86: 12 | BM86: =RANDBETWEEN(VLOOKUP(BJ86,Calculations!$BB$6:$BE$17,4,FALSE)*100,VLOOKUP(BJ86,Calculations!$BB$6:$BE$17,3,FALSE)*100)/100 -> 41.09 | BN86: =RANDBETWEEN(VLOOKUP(BJ86,Calculations!$BB$6:$BH$17,7,FALSE)*100,VLOOKUP(BJ86,Calculations!$BB$6:$BH$17,6,FALSE)*100)/100 -> 43.52
A87: 1202 | B87: 48 | C87: 2017-12-02 | D87: =IF($C$6=7,VLOOKUP(B87,Calculations!$BL$3:$BM$55,2,FALSE),VLOOKUP($A87,Calculations!$BI$3:$BN$400,5,FALSE)) -> 44.87 | E87: 7.15 | F87: =MAX(0,'Perry et al-2015'!$K$11*(E87-'Perry et al-2015'!$K$13)*(1-EXP('Perry et al-2015'!$K$12*(E87-'Perry et al-2015'!$K$15)))) -> 1.819986401 | G87: =IF($C87<$AE$5,0,IF($C86<$AE$5,VLOOKUP(ROUND(MIN('Heming-1982'!$C$4,MAX('Heming-1982'!$C$3,$E87)),0),'Heming-1982'!$C$6:$D$9,2),($G86^'Perry et al-2015'!$K$10+$F87*'Perry et al-2015'!$K$10*$C$6/100)^(1/'Perry et al-2015'!$K$10))) -> 0 | H87: =IF($C87<$AE$7,0,IF($C86<$AE$7,VLOOKUP(ROUND(MIN('Heming-1982'!$C$4,MAX('Heming-1982'!$C$3,$E87)),0),'Heming-1982'!$C$6:$D$9,2),($H86^'Perry et al-2015'!$K$10+$F87*'Perry et al-2015'!$K$10*$C$6/100)^(1/'Perry et al-2015'!$K$10))) -> 0 | I87: =IF($C87<$AE$9,0,IF($C86<$AE$9,VLOOKUP(ROUND(MIN('Heming-1982'!$C$4,MAX('Heming-1982'!$C$3,Calculations!$E87)),0),'Heming-1982'!$C$6:$D$9,2),($I86^'Perry et al-2015'!$K$10+$F87*'Perry et al-2015'!$K$10*$C$6/100)^(1/'Perry et al-2015'!$K$10))) -> 0 | J87: =IF($C$6=7,VLOOKUP($B87,Calculations!$BL$3:$BM$55,2,FALSE),VLOOKUP($A87,Calculations!$BI$3:$BN$400,6,FALSE)) -> 41.82 | K87: 5.455555556 | L87: =MAX(0,'Perry et al-2015'!$K$11*(K87-'Perry et al-2015'!$K$13)*(1-EXP('Perry et al-2015'!$K$12*(K87-'Perry et al-2015'!$K$15)))) -> 1.161504847 | M87: =IF($C87<$AF$5,0,IF($C86<$AF$5,VLOOKUP(ROUND(MIN('Heming-1982'!$C$4,MAX('Heming-1982'!$C$3,$K87)),0),'Heming-1982'!$C$6:$D$9,2),(M86^'Perry et al-2015'!$K$10+$L87*'Perry et al-2015'!$K$10*$C$6/100)^(1/'Perry et al-2015'!$K$10))) -> 0 | N87: =IF($C87<$AF$7,0,IF($C86<$AF$7,VLOOKUP(ROUND(MIN('Heming-1982'!$C$4,MAX('Heming-1982'!$C$3,$K87)),0),'Heming-1982'!$C$6:$D$9,2),(N86^'Perry et al-2015'!$K$10+$L87*'Perry et al-2015'!$K$10*$C$6/100)^(1/'Perry et al-2015'!$K$10))) -> 0 | O87: =IF($C87<$AF$9,0,IF($C86<$AF$9,VLOOKUP(ROUND(MIN('Heming-1982'!$C$4,MAX('Heming-1982'!$C$3,$K87)),0),'Heming-1982'!$C$6:$D$9,2),(O86^'Perry et al-2015'!$K$10+$L87*'Perry et al-2015'!$K$10*$C$6/100)^(1/'Perry et al-2015'!$K$10))) -> 0 | AH87: 2017-12-02 | AI87: 48 | AJ87: 7.15 | AK87: 807.5 | AL87: 00:00:00 | AM87: 592.3111111 | AN87: 00:00:00 | AO87: 262.3111111 | AP87: 00:00:00 | AQ87: 5.455555556 | AR87: 659.8222222 | AS87: 00:00:00 | AT87: 473.4555556 | AU87: 00:00:00 | AV87: 178.25 | AW87: 00:00:00 | BI87: 326 | BJ87: 3 | BK87: =BK86+Calculations!$C$6 -> 2017-03-26 | BL87: 13 | BM87: =RANDBETWEEN(VLOOKUP(BJ87,Calculations!$BB$6:$BE$17,4,FALSE)*100,VLOOKUP(BJ87,Calculations!$BB$6:$BE$17,3,FALSE)*100)/100 -> 41.75 | BN87: =RANDBETWEEN(VLOOKUP(BJ87,Calculations!$BB$6:$BH$17,7,FALSE)*100,VLOOKUP(BJ87,Calculations!$BB$6:$BH$17,6,FALSE)*100)/100 -> 43.35
A88: 1203 | B88: 49 | C88: 2017-12-03 | D88: =IF($C$6=7,VLOOKUP(B88,Calculations!$BL$3:$BM$55,2,FALSE),VLOOKUP($A88,Calculations!$BI$3:$BN$400,5,FALSE)) -> 42.16 | E88: 5.644444444 | F88: =MAX(0,'Perry et al-2015'!$K$11*(E88-'Perry et al-2015'!$K$13)*(1-EXP('Perry et al-2015'!$K$12*(E88-'Perry et al-2015'!$K$15)))) -> 1.236079391 | G88: =IF($C88<$AE$5,0,IF($C87<$AE$5,VLOOKUP(ROUND(MIN('Heming-1982'!$C$4,MAX('Heming-1982'!$C$3,$E88)),0),'Heming-1982'!$C$6:$D$9,2),($G87^'Perry et al-2015'!$K$10+$F88*'Perry et al-2015'!$K$10*$C$6/100)^(1/'Perry et al-2015'!$K$10))) -> 0 | H88: =IF($C88<$AE$7,0,IF($C87<$AE$7,VLOOKUP(ROUND(MIN('Heming-1982'!$C$4,MAX('Heming-1982'!$C$3,$E88)),0),'Heming-1982'!$C$6:$D$9,2),($H87^'Perry et al-2015'!$K$10+$F88*'Perry et al-2015'!$K$10*$C$6/100)^(1/'Perry et al-2015'!$K$10))) -> 0 | I88: =IF($C88<$AE$9,0,IF($C87<$AE$9,VLOOKUP(ROUND(MIN('Heming-1982'!$C$4,MAX('Heming-1982'!$C$3,Calculations!$E88)),0),'Heming-1982'!$C$6:$D$9,2),($I87^'Perry et al-2015'!$K$10+$F88*'Perry et al-2015'!$K$10*$C$6/100)^(1/'Perry et al-2015'!$K$10))) -> 0 | J88: =IF($C$6=7,VLOOKUP($B88,Calculations!$BL$3:$BM$55,2,FALSE),VLOOKUP($A88,Calculations!$BI$3:$BN$400,6,FALSE)) -> 44.37 | K88: 6.872222222 | L88: =MAX(0,'Perry et al-2015'!$K$11*(K88-'Perry et al-2015'!$K$13)*(1-EXP('Perry et al-2015'!$K$12*(K88-'Perry et al-2015'!$K$15)))) -> 1.713899726 | M88: =IF($C88<$AF$5,0,IF($C87<$AF$5,VLOOKUP(ROUND(MIN('Heming-1982'!$C$4,MAX('Heming-1982'!$C$3,$K88)),0),'Heming-1982'!$C$6:$D$9,2),(M87^'Perry et al-2015'!$K$10+$L88*'Perry et al-2015'!$K$10*$C$6/100)^(1/'Perry et al-2015'!$K$10))) -> 0 | N88: =IF($C88<$AF$7,0,IF($C87<$AF$7,VLOOKUP(ROUND(MIN('Heming-1982'!$C$4,MAX('Heming-1982'!$C$3,$K88)),0),'Heming-1982'!$C$6:$D$9,2),(N87^'Perry et al-2015'!$K$10+$L88*'Perry et al-2015'!$K$10*$C$6/100)^(1/'Perry et al-2015'!$K$10))) -> 0 | O88: =IF($C88<$AF$9,0,IF($C87<$AF$9,VLOOKUP(ROUND(MIN('Heming-1982'!$C$4,MAX('Heming-1982'!$C$3,$K88)),0),'Heming-1982'!$C$6:$D$9,2),(O87^'Perry et al-2015'!$K$10+$L88*'Perry et al-2015'!$K$10*$C$6/100)^(1/'Perry et al-2015'!$K$10))) -> 0 | AH88: 2017-12-03 | AI88: 49 | AJ88: 5.644444444 | AK88: 813.1444444 | AL88: 00:00:00 | AM88: 597.9555556 | AN88: 00:00:00 | AO88: 267.9555556 | AP88: 00:00:00 | AQ88: 6.872222222 | AR88: 666.6944444 | AS88: 00:00:00 | AT88: 480.3277778 | AU88: 00:00:00 | AV88: 185.1222222 | AW88: 00:00:00 | BI88: 327 | BJ88: 3 | BK88: =BK87+Calculations!$C$6 -> 2017-03-27 | BL88: 13 | BM88: =RANDBETWEEN(VLOOKUP(BJ88,Calculations!$BB$6:$BE$17,4,FALSE)*100,VLOOKUP(BJ88,Calculations!$BB$6:$BE$17,3,FALSE)*100)/100 -> 41.69 | BN88: =RANDBETWEEN(VLOOKUP(BJ88,Calculations!$BB$6:$BH$17,7,FALSE)*100,VLOOKUP(BJ88,Calculations!$BB$6:$BH$17,6,FALSE)*100)/100 -> 43.63
A89: 1204 | B89: 49 | C89: 2017-12-04 | D89: =IF($C$6=7,VLOOKUP(B89,Calculations!$BL$3:$BM$55,2,FALSE),VLOOKUP($A89,Calculations!$BI$3:$BN$400,5,FALSE)) -> 42.93 | E89: 6.072222222 | F89: =MAX(0,'Perry et al-2015'!$K$11*(E89-'Perry et al-2015'!$K$13)*(1-EXP('Perry et al-2015'!$K$12*(E89-'Perry et al-2015'!$K$15)))) -> 1.404016903 | G89: =IF($C89<$AE$5,0,IF($C88<$AE$5,VLOOKUP(ROUND(MIN('Heming-1982'!$C$4,MAX('Heming-1982'!$C$3,$E89)),0),'Heming-1982'!$C$6:$D$9,2),($G88^'Perry et al-2015'!$K$10+$F89*'Perry et al-2015'!$K$10*$C$6/100)^(1/'Perry et al-2015'!$K$10))) -> 0 | H89: =IF($C89<$AE$7,0,IF($C88<$AE$7,VLOOKUP(ROUND(MIN('Heming-1982'!$C$4,MAX('Heming-1982'!$C$3,$E89)),0),'Heming-1982'!$C$6:$D$9,2),($H88^'Perry et al-2015'!$K$10+$F89*'Perry et al-2015'!$K$10*$C$6/100)^(1/'Perry et al-2015'!$K$10))) -> 0 | I89: =IF($C89<$AE$9,0,IF($C88<$AE$9,VLOOKUP(ROUND(MIN('Heming-1982'!$C$4,MAX('Heming-1982'!$C$3,Calculations!$E89)),0),'Heming-1982'!$C$6:$D$9,2),($I88^'Perry et al-2015'!$K$10+$F89*'Perry et al-2015'!$K$10*$C$6/100)^(1/'Perry et al-2015'!$K$10))) -> 0 | J89: =IF($C$6=7,VLOOKUP($B89,Calculations!$BL$3:$BM$55,2,FALSE),VLOOKUP($A89,Calculations!$BI$3:$BN$400,6,FALSE)) -> 44.05 | K89: 6.694444444 | L89: =MAX(0,'Perry et al-2015'!$K$11*(K89-'Perry et al-2015'!$K$13)*(1-EXP('Perry et al-2015'!$K$12*(K89-'Perry et al-2015'!$K$15)))) -> 1.645566633 | M89: =IF($C89<$AF$5,0,IF($C88<$AF$5,VLOOKUP(ROUND(MIN('Heming-1982'!$C$4,MAX('Heming-1982'!$C$3,$K89)),0),'Heming-1982'!$C$6:$D$9,2),(M88^'Perry et al-2015'!$K$10+$L89*'Perry et al-2015'!$K$10*$C$6/100)^(1/'Perry et al-2015'!$K$10))) -> 0 | N89: =IF($C89<$AF$7,0,IF($C88<$AF$7,VLOOKUP(ROUND(MIN('Heming-1982'!$C$4,MAX('Heming-1982'!$C$3,$K89)),0),'Heming-1982'!$C$6:$D$9,2),(N88^'Perry et al-2015'!$K$10+$L89*'Perry et al-2015'!$K$10*$C$6/100)^(1/'Perry et al-2015'!$K$10))) -> 0 | O89: =IF($C89<$AF$9,0,IF($C88<$AF$9,VLOOKUP(ROUND(MIN('Heming-1982'!$C$4,MAX('Heming-1982'!$C$3,$K89)),0),'Heming-1982'!$C$6:$D$9,2),(O88^'Perry et al-2015'!$K$10+$L89*'Perry et al-2015'!$K$10*$C$6/100)^(1/'Perry et al-2015'!$K$10))) -> 0 | AH89: 2017-12-04 | AI89: 49 | AJ89: 6.072222222 | AK89: 819.2166667 | AL89: 00:00:00 | AM89: 604.0277778 | AN89: 00:00:00 | AO89: 274.0277778 | AP89: 00:00:00 | AQ89: 6.694444444 | AR89: 673.3888889 | AS89: 00:00:00 | AT89: 487.0222222 | AU89: 00:00:00 | AV89: 191.8166667 | AW89: 00:00:00 | BI89: 328 | BJ89: 3 | BK89: =BK88+Calculations!$C$6 -> 2017-03-28 | BL89: 13 | BM89: =RANDBETWEEN(VLOOKUP(BJ89,Calculations!$BB$6:$BE$17,4,FALSE)*100,VLOOKUP(BJ89,Calculations!$BB$6:$BE$17,3,FALSE)*100)/100 -> 41.23 | BN89: =RANDBETWEEN(VLOOKUP(BJ89,Calculations!$BB$6:$BH$17,7,FALSE)*100,VLOOKUP(BJ89,Calculations!$BB$6:$BH$17,6,FALSE)*100)/100 -> 43.74
A90: 1205 | B90: 49 | C90: 2017-12-05 | D90: =IF($C$6=7,VLOOKUP(B90,Calculations!$BL$3:$BM$55,2,FALSE),VLOOKUP($A90,Calculations!$BI$3:$BN$400,5,FALSE)) -> 41.87 | E90: 5.483333333 | F90: =MAX(0,'Perry et al-2015'!$K$11*(E90-'Perry et al-2015'!$K$13)*(1-EXP('Perry et al-2015'!$K$12*(E90-'Perry et al-2015'!$K$15)))) -> 1.172486763 | G90: =IF($C90<$AE$5,0,IF($C89<$AE$5,VLOOKUP(ROUND(MIN('Heming-1982'!$C$4,MAX('Heming-1982'!$C$3,$E90)),0),'Heming-1982'!$C$6:$D$9,2),($G89^'Perry et al-2015'!$K$10+$F90*'Perry et al-2015'!$K$10*$C$6/100)^(1/'Perry et al-2015'!$K$10))) -> 0 | H90: =IF($C90<$AE$7,0,IF($C89<$AE$7,VLOOKUP(ROUND(MIN('Heming-1982'!$C$4,MAX('Heming-1982'!$C$3,$E90)),0),'Heming-1982'!$C$6:$D$9,2),($H89^'Perry et al-2015'!$K$10+$F90*'Perry et al-2015'!$K$10*$C$6/100)^(1/'Perry et al-2015'!$K$10))) -> 0 | I90: =IF($C90<$AE$9,0,IF($C89<$AE$9,VLOOKUP(ROUND(MIN('Heming-1982'!$C$4,MAX('Heming-1982'!$C$3,Calculations!$E90)),0),'Heming-1982'!$C$6:$D$9,2),($I89^'Perry et al-2015'!$K$10+$F90*'Perry et al-2015'!$K$10*$C$6/100)^(1/'Perry et al-2015'!$K$10))) -> 0 | J90: =IF($C$6=7,VLOOKUP($B90,Calculations!$BL$3:$BM$55,2,FALSE),VLOOKUP($A90,Calculations!$BI$3:$BN$400,6,FALSE)) -> 44.98 | K90: 7.211111111 | L90: =MAX(0,'Perry et al-2015'!$K$11*(K90-'Perry et al-2015'!$K$13)*(1-EXP('Perry et al-2015'!$K$12*(K90-'Perry et al-2015'!$K$15)))) -> 1.843206891 | M90: =IF($C90<$AF$5,0,IF($C89<$AF$5,VLOOKUP(ROUND(MIN('Heming-1982'!$C$4,MAX('Heming-1982'!$C$3,$K90)),0),'Heming-1982'!$C$6:$D$9,2),(M89^'Perry et al-2015'!$K$10+$L90*'Perry et al-2015'!$K$10*$C$6/100)^(1/'Perry et al-2015'!$K$10))) -> 0 | N90: =IF($C90<$AF$7,0,IF($C89<$AF$7,VLOOKUP(ROUND(MIN('Heming-1982'!$C$4,MAX('Heming-1982'!$C$3,$K90)),0),'Heming-1982'!$C$6:$D$9,2),(N89^'Perry et al-2015'!$K$10+$L90*'Perry et al-2015'!$K$10*$C$6/100)^(1/'Perry et al-2015'!$K$10))) -> 0 | O90: =IF($C90<$AF$9,0,IF($C89<$AF$9,VLOOKUP(ROUND(MIN('Heming-1982'!$C$4,MAX('Heming-1982'!$C$3,$K90)),0),'Heming-1982'!$C$6:$D$9,2),(O89^'Perry et al-2015'!$K$10+$L90*'Perry et al-2015'!$K$10*$C$6/100)^(1/'Perry et al-2015'!$K$10))) -> 0 | AH90: 2017-12-05 | AI90: 49 | AJ90: 5.483333333 | AK90: 824.7 | AL90: 00:00:00 | AM90: 609.5111111 | AN90: 00:00:00 | AO90: 279.5111111 | AP90: 00:00:00 | AQ90: 7.211111111 | AR90: 680.6 | AS90: 00:00:00 | AT90: 494.2333333 | AU90: 00:00:00 | AV90: 199.0277778 | AW90: 00:00:00 | BI90: 329 | BJ90: 3 | BK90: =BK89+Calculations!$C$6 -> 2017-03-29 | BL90: 13 | BM90: =RANDBETWEEN(VLOOKUP(BJ90,Calculations!$BB$6:$BE$17,4,FALSE)*100,VLOOKUP(BJ90,Calculations!$BB$6:$BE$17,3,FALSE)*100)/100 -> 41.99 | BN90: =RANDBETWEEN(VLOOKUP(BJ90,Calculations!$BB$6:$BH$17,7,FALSE)*100,VLOOKUP(BJ90,Calculations!$BB$6:$BH$17,6,FALSE)*100)/100 -> 43.71
A91: 1206 | B91: 49 | C91: 2017-12-06 | D91: =IF($C$6=7,VLOOKUP(B91,Calculations!$BL$3:$BM$55,2,FALSE),VLOOKUP($A91,Calculations!$BI$3:$BN$400,5,FALSE)) -> 41.59 | E91: 5.327777778 | F91: =MAX(0,'Perry et al-2015'!$K$11*(E91-'Perry et al-2015'!$K$13)*(1-EXP('Perry et al-2015'!$K$12*(E91-'Perry et al-2015'!$K$15)))) -> 1.110923517 | G91: =IF($C91<$AE$5,0,IF($C90<$AE$5,VLOOKUP(ROUND(MIN('Heming-1982'!$C$4,MAX('Heming-1982'!$C$3,$E91)),0),'Heming-1982'!$C$6:$D$9,2),($G90^'Perry et al-2015'!$K$10+$F91*'Perry et al-2015'!$K$10*$C$6/100)^(1/'Perry et al-2015'!$K$10))) -> 0 | H91: =IF($C91<$AE$7,0,IF($C90<$AE$7,VLOOKUP(ROUND(MIN('Heming-1982'!$C$4,MAX('Heming-1982'!$C$3,$E91)),0),'Heming-1982'!$C$6:$D$9,2),($H90^'Perry et al-2015'!$K$10+$F91*'Perry et al-2015'!$K$10*$C$6/100)^(1/'Perry et al-2015'!$K$10))) -> 0 | I91: =IF($C91<$AE$9,0,IF($C90<$AE$9,VLOOKUP(ROUND(MIN('Heming-1982'!$C$4,MAX('Heming-1982'!$C$3,Calculations!$E91)),0),'Heming-1982'!$C$6:$D$9,2),($I90^'Perry et al-2015'!$K$10+$F91*'Perry et al-2015'!$K$10*$C$6/100)^(1/'Perry et al-2015'!$K$10))) -> 0 | J91: =IF($C$6=7,VLOOKUP($B91,Calculations!$BL$3:$BM$55,2,FALSE),VLOOKUP($A91,Calculations!$BI$3:$BN$400,6,FALSE)) -> 44.06 | K91: 6.7 | L91: =MAX(0,'Perry et al-2015'!$K$11*(K91-'Perry et al-2015'!$K$13)*(1-EXP('Perry et al-2015'!$K$12*(K91-'Perry et al-2015'!$K$15)))) -> 1.647706954 | M91: =IF($C91<$AF$5,0,IF($C90<$AF$5,VLOOKUP(ROUND(MIN('Heming-1982'!$C$4,MAX('Heming-1982'!$C$3,$K91)),0),'Heming-1982'!$C$6:$D$9,2),(M90^'Perry et al-2015'!$K$10+$L91*'Perry et al-2015'!$K$10*$C$6/100)^(1/'Perry et al-2015'!$K$10))) -> 0 | N91: =IF($C91<$AF$7,0,IF($C90<$AF$7,VLOOKUP(ROUND(MIN('Heming-1982'!$C$4,MAX('Heming-1982'!$C$3,$K91)),0),'Heming-1982'!$C$6:$D$9,2),(N90^'Perry et al-2015'!$K$10+$L91*'Perry et al-2015'!$K$10*$C$6/100)^(1/'Perry et al-2015'!$K$10))) -> 0 | O91: =IF($C91<$AF$9,0,IF($C90<$AF$9,VLOOKUP(ROUND(MIN('Heming-1982'!$C$4,MAX('Heming-1982'!$C$3,$K91)),0),'Heming-1982'!$C$6:$D$9,2),(O90^'Perry et al-2015'!$K$10+$L91*'Perry et al-2015'!$K$10*$C$6/100)^(1/'Perry et al-2015'!$K$10))) -> 0 | AH91: 2017-12-06 | AI91: 49 | AJ91: 5.327777778 | AK91: 830.0277778 | AL91: 00:00:00 | AM91: 614.8388889 | AN91: 00:00:00 | AO91: 284.8388889 | AP91: 00:00:00 | AQ91: 6.7 | AR91: 687.3 | AS91: 00:00:00 | AT91: 500.9333333 | AU91: 00:00:00 | AV91: 205.7277778 | AW91: 00:00:00 | BI91: 330 | BJ91: 3 | BK91: =BK90+Calculations!$C$6 -> 2017-03-30 | BL91: 13 | BM91: =RANDBETWEEN(VLOOKUP(BJ91,Calculations!$BB$6:$BE$17,4,FALSE)*100,VLOOKUP(BJ91,Calculations!$BB$6:$BE$17,3,FALSE)*100)/100 -> 41.81 | BN91: =RANDBETWEEN(VLOOKUP(BJ91,Calculations!$BB$6:$BH$17,7,FALSE)*100,VLOOKUP(BJ91,Calculations!$BB$6:$BH$17,6,FALSE)*100)/100 -> 43.87
A92: 1207 | B92: 49 | C92: 2017-12-07 | D92: =IF($C$6=7,VLOOKUP(B92,Calculations!$BL$3:$BM$55,2,FALSE),VLOOKUP($A92,Calculations!$BI$3:$BN$400,5,FALSE)) -> 41.08 | E92: 5.044444444 | F92: =MAX(0,'Perry et al-2015'!$K$11*(E92-'Perry et al-2015'!$K$13)*(1-EXP('Perry et al-2015'!$K$12*(E92-'Perry et al-2015'!$K$15)))) -> 0.9984055812 | G92: =IF($C92<$AE$5,0,IF($C91<$AE$5,VLOOKUP(ROUND(MIN('Heming-1982'!$C$4,MAX('Heming-1982'!$C$3,$E92)),0),'Heming-1982'!$C$6:$D$9,2),($G91^'Perry et al-2015'!$K$10+$F92*'Perry et al-2015'!$K$10*$C$6/100)^(1/'Perry et al-2015'!$K$10))) -> 0 | H92: =IF($C92<$AE$7,0,IF($C91<$AE$7,VLOOKUP(ROUND(MIN('Heming-1982'!$C$4,MAX('Heming-1982'!$C$3,$E92)),0),'Heming-1982'!$C$6:$D$9,2),($H91^'Perry et al-2015'!$K$10+$F92*'Perry et al-2015'!$K$10*$C$6/100)^(1/'Perry et al-2015'!$K$10))) -> 0 | I92: =IF($C92<$AE$9,0,IF($C91<$AE$9,VLOOKUP(ROUND(MIN('Heming-1982'!$C$4,MAX('Heming-1982'!$C$3,Calculations!$E92)),0),'Heming-1982'!$C$6:$D$9,2),($I91^'Perry et al-2015'!$K$10+$F92*'Perry et al-2015'!$K$10*$C$6/100)^(1/'Perry et al-2015'!$K$10))) -> 0 | J92: =IF($C$6=7,VLOOKUP($B92,Calculations!$BL$3:$BM$55,2,FALSE),VLOOKUP($A92,Calculations!$BI$3:$BN$400,6,FALSE)) -> 43.61 | K92: 6.45 | L92: =MAX(0,'Perry et al-2015'!$K$11*(K92-'Perry et al-2015'!$K$13)*(1-EXP('Perry et al-2015'!$K$12*(K92-'Perry et al-2015'!$K$15)))) -> 1.551093339 | M92: =IF($C92<$AF$5,0,IF($C91<$AF$5,VLOOKUP(ROUND(MIN('Heming-1982'!$C$4,MAX('Heming-1982'!$C$3,$K92)),0),'Heming-1982'!$C$6:$D$9,2),(M91^'Perry et al-2015'!$K$10+$L92*'Perry et al-2015'!$K$10*$C$6/100)^(1/'Perry et al-2015'!$K$10))) -> 0 | N92: =IF($C92<$AF$7,0,IF($C91<$AF$7,VLOOKUP(ROUND(MIN('Heming-1982'!$C$4,MAX('Heming-1982'!$C$3,$K92)),0),'Heming-1982'!$C$6:$D$9,2),(N91^'Perry et al-2015'!$K$10+$L92*'Perry et al-2015'!$K$10*$C$6/100)^(1/'Perry et al-2015'!$K$10))) -> 0 | O92: =IF($C92<$AF$9,0,IF($C91<$AF$9,VLOOKUP(ROUND(MIN('Heming-1982'!$C$4,MAX('Heming-1982'!$C$3,$K92)),0),'Heming-1982'!$C$6:$D$9,2),(O91^'Perry et al-2015'!$K$10+$L92*'Perry et al-2015'!$K$10*$C$6/100)^(1/'Perry et al-2015'!$K$10))) -> 0 | AH92: 2017-12-07 | AI92: 49 | AJ92: 5.044444444 | AK92: 835.0722222 | AL92: 00:00:00 | AM92: 619.8833333 | AN92: 00:00:00 | AO92: 289.8833333 | AP92: 00:00:00 | AQ92: 6.45 | AR92: 693.75 | AS92: 00:00:00 | AT92: 507.3833333 | AU92: 00:00:00 | AV92: 212.1777778 | AW92: 00:00:00 | BI92: 331 | BJ92: 3 | BK92: =BK91+Calculations!$C$6 -> 2017-03-31 | BL92: 13 | BM92: =RANDBETWEEN(VLOOKUP(BJ92,Calculations!$BB$6:$BE$17,4,FALSE)*100,VLOOKUP(BJ92,Calculations!$BB$6:$BE$17,3,FALSE)*100)/100 -> 41.29 | BN92: =RANDBETWEEN(VLOOKUP(BJ92,Calculations!$BB$6:$BH$17,7,FALSE)*100,VLOOKUP(BJ92,Calculations!$BB$6:$BH$17,6,FALSE)*100)/100 -> 43.74
A93: 1208 | B93: 49 | C93: 2017-12-08 | D93: =IF($C$6=7,VLOOKUP(B93,Calculations!$BL$3:$BM$55,2,FALSE),VLOOKUP($A93,Calculations!$BI$3:$BN$400,5,FALSE)) -> 44.79 | E93: 7.105555556 | F93: =MAX(0,'Perry et al-2015'!$K$11*(E93-'Perry et al-2015'!$K$13)*(1-EXP('Perry et al-2015'!$K$12*(E93-'Perry et al-2015'!$K$15)))) -> 1.803071206 | G93: =IF($C93<$AE$5,0,IF($C92<$AE$5,VLOOKUP(ROUND(MIN('Heming-1982'!$C$4,MAX('Heming-1982'!$C$3,$E93)),0),'Heming-1982'!$C$6:$D$9,2),($G92^'Perry et al-2015'!$K$10+$F93*'Perry et al-2015'!$K$10*$C$6/100)^(1/'Perry et al-2015'!$K$10))) -> 0 | H93: =IF($C93<$AE$7,0,IF($C92<$AE$7,VLOOKUP(ROUND(MIN('Heming-1982'!$C$4,MAX('Heming-1982'!$C$3,$E93)),0),'Heming-1982'!$C$6:$D$9,2),($H92^'Perry et al-2015'!$K$10+$F93*'Perry et al-2015'!$K$10*$C$6/100)^(1/'Perry et al-2015'!$K$10))) -> 0 | I93: =IF($C93<$AE$9,0,IF($C92<$AE$9,VLOOKUP(ROUND(MIN('Heming-1982'!$C$4,MAX('Heming-1982'!$C$3,Calculations!$E93)),0),'Heming-1982'!$C$6:$D$9,2),($I92^'Perry et al-2015'!$K$10+$F93*'Perry et al-2015'!$K$10*$C$6/100)^(1/'Perry et al-2015'!$K$10))) -> 0 | J93: =IF($C$6=7,VLOOKUP($B93,Calculations!$BL$3:$BM$55,2,FALSE),VLOOKUP($A93,Calculations!$BI$3:$BN$400,6,FALSE)) -> 43.83 | K93: 6.572222222 | L93: =MAX(0,'Perry et al-2015'!$K$11*(K93-'Perry et al-2015'!$K$13)*(1-EXP('Perry et al-2015'!$K$12*(K93-'Perry et al-2015'!$K$15)))) -> 1.598402056 | M93: =IF($C93<$AF$5,0,IF($C92<$AF$5,VLOOKUP(ROUND(MIN('Heming-1982'!$C$4,MAX('Heming-1982'!$C$3,$K93)),0),'Heming-1982'!$C$6:$D$9,2),(M92^'Perry et al-2015'!$K$10+$L93*'Perry et al-2015'!$K$10*$C$6/100)^(1/'Perry et al-2015'!$K$10))) -> 0 | N93: =IF($C93<$AF$7,0,IF($C92<$AF$7,VLOOKUP(ROUND(MIN('Heming-1982'!$C$4,MAX('Heming-1982'!$C$3,$K93)),0),'Heming-1982'!$C$6:$D$9,2),(N92^'Perry et al-2015'!$K$10+$L93*'Perry et al-2015'!$K$10*$C$6/100)^(1/'Perry et al-2015'!$K$10))) -> 0 | O93: =IF($C93<$AF$9,0,IF($C92<$AF$9,VLOOKUP(ROUND(MIN('Heming-1982'!$C$4,MAX('Heming-1982'!$C$3,$K93)),0),'Heming-1982'!$C$6:$D$9,2),(O92^'Perry et al-2015'!$K$10+$L93*'Perry et al-2015'!$K$10*$C$6/100)^(1/'Perry et al-2015'!$K$10))) -> 0 | AH93: 2017-12-08 | AI93: 49 | AJ93: 7.105555556 | AK93: 842.1777778 | AL93: 00:00:00 | AM93: 626.9888889 | AN93: 00:00:00 | AO93: 296.9888889 | AP93: 00:00:00 | AQ93: 6.572222222 | AR93: 700.3222222 | AS93: 00:00:00 | AT93: 513.9555556 | AU93: 00:00:00 | AV93: 218.75 | AW93: 00:00:00 | BI93: 401 | BJ93: 4 | BK93: =BK92+Calculations!$C$6 -> 2017-04-01 | BL93: 13 | BM93: =RANDBETWEEN(VLOOKUP(BJ93,Calculations!$BB$6:$BE$17,4,FALSE)*100,VLOOKUP(BJ93,Calculations!$BB$6:$BE$17,3,FALSE)*100)/100 -> 43.43 | BN93: =RANDBETWEEN(VLOOKUP(BJ93,Calculations!$BB$6:$BH$17,7,FALSE)*100,VLOOKUP(BJ93,Calculations!$BB$6:$BH$17,6,FALSE)*100)/100 -> 42.38
A94: 1209 | B94: 49 | C94: 2017-12-09 | D94: =IF($C$6=7,VLOOKUP(B94,Calculations!$BL$3:$BM$55,2,FALSE),VLOOKUP($A94,Calculations!$BI$3:$BN$400,5,FALSE)) -> 43.94 | E94: 6.633333333 | F94: =MAX(0,'Perry et al-2015'!$K$11*(E94-'Perry et al-2015'!$K$13)*(1-EXP('Perry et al-2015'!$K$12*(E94-'Perry et al-2015'!$K$15)))) -> 1.622002738 | G94: =IF($C94<$AE$5,0,IF($C93<$AE$5,VLOOKUP(ROUND(MIN('Heming-1982'!$C$4,MAX('Heming-1982'!$C$3,$E94)),0),'Heming-1982'!$C$6:$D$9,2),($G93^'Perry et al-2015'!$K$10+$F94*'Perry et al-2015'!$K$10*$C$6/100)^(1/'Perry et al-2015'!$K$10))) -> 0 | H94: =IF($C94<$AE$7,0,IF($C93<$AE$7,VLOOKUP(ROUND(MIN('Heming-1982'!$C$4,MAX('Heming-1982'!$C$3,$E94)),0),'Heming-1982'!$C$6:$D$9,2),($H93^'Perry et al-2015'!$K$10+$F94*'Perry et al-2015'!$K$10*$C$6/100)^(1/'Perry et al-2015'!$K$10))) -> 0 | I94: =IF($C94<$AE$9,0,IF($C93<$AE$9,VLOOKUP(ROUND(MIN('Heming-1982'!$C$4,MAX('Heming-1982'!$C$3,Calculations!$E94)),0),'Heming-1982'!$C$6:$D$9,2),($I93^'Perry et al-2015'!$K$10+$F94*'Perry et al-2015'!$K$10*$C$6/100)^(1/'Perry et al-2015'!$K$10))) -> 0 | J94: =IF($C$6=7,VLOOKUP($B94,Calculations!$BL$3:$BM$55,2,FALSE),VLOOKUP($A94,Calculations!$BI$3:$BN$400,6,FALSE)) -> 42.96 | K94: 6.088888889 | L94: =MAX(0,'Perry et al-2015'!$K$11*(K94-'Perry et al-2015'!$K$13)*(1-EXP('Perry et al-2015'!$K$12*(K94-'Perry et al-2015'!$K$15)))) -> 1.410531179 | M94: =IF($C94<$AF$5,0,IF($C93<$AF$5,VLOOKUP(ROUND(MIN('Heming-1982'!$C$4,MAX('Heming-1982'!$C$3,$K94)),0),'Heming-1982'!$C$6:$D$9,2),(M93^'Perry et al-2015'!$K$10+$L94*'Perry et al-2015'!$K$10*$C$6/100)^(1/'Perry et al-2015'!$K$10))) -> 0 | N94: =IF($C94<$AF$7,0,IF($C93<$AF$7,VLOOKUP(ROUND(MIN('Heming-1982'!$C$4,MAX('Heming-1982'!$C$3,$K94)),0),'Heming-1982'!$C$6:$D$9,2),(N93^'Perry et al-2015'!$K$10+$L94*'Perry et al-2015'!$K$10*$C$6/100)^(1/'Perry et al-2015'!$K$10))) -> 0 | O94: =IF($C94<$AF$9,0,IF($C93<$AF$9,VLOOKUP(ROUND(MIN('Heming-1982'!$C$4,MAX('Heming-1982'!$C$3,$K94)),0),'Heming-1982'!$C$6:$D$9,2),(O93^'Perry et al-2015'!$K$10+$L94*'Perry et al-2015'!$K$10*$C$6/100)^(1/'Perry et al-2015'!$K$10))) -> 0 | AH94: 2017-12-09 | AI94: 49 | AJ94: 6.633333333 | AK94: 848.8111111 | AL94: 00:00:00 | AM94: 633.6222222 | AN94: 00:00:00 | AO94: 303.6222222 | AP94: 00:00:00 | AQ94: 6.088888889 | AR94: 706.4111111 | AS94: 00:00:00 | AT94: 520.0444444 | AU94: 00:00:00 | AV94: 224.8388889 | AW94: 00:00:00 | BI94: 402 | BJ94: 4 | BK94: =BK93+Calculations!$C$6 -> 2017-04-02 | BL94: 14 | BM94: =RANDBETWEEN(VLOOKUP(BJ94,Calculations!$BB$6:$BE$17,4,FALSE)*100,VLOOKUP(BJ94,Calculations!$BB$6:$BE$17,3,FALSE)*100)/100 -> 44.35 | BN94: =RANDBETWEEN(VLOOKUP(BJ94,Calculations!$BB$6:$BH$17,7,FALSE)*100,VLOOKUP(BJ94,Calculations!$BB$6:$BH$17,6,FALSE)*100)/100 -> 44
A95: 1210 | B95: 50 | C95: 2017-12-10 | D95: =IF($C$6=7,VLOOKUP(B95,Calculations!$BL$3:$BM$55,2,FALSE),VLOOKUP($A95,Calculations!$BI$3:$BN$400,5,FALSE)) -> 43.63 | E95: 6.461111111 | F95: =MAX(0,'Perry et al-2015'!$K$11*(E95-'Perry et al-2015'!$K$13)*(1-EXP('Perry et al-2015'!$K$12*(E95-'Perry et al-2015'!$K$15)))) -> 1.555399932 | G95: =IF($C95<$AE$5,0,IF($C94<$AE$5,VLOOKUP(ROUND(MIN('Heming-1982'!$C$4,MAX('Heming-1982'!$C$3,$E95)),0),'Heming-1982'!$C$6:$D$9,2),($G94^'Perry et al-2015'!$K$10+$F95*'Perry et al-2015'!$K$10*$C$6/100)^(1/'Perry et al-2015'!$K$10))) -> 0 | H95: =IF($C95<$AE$7,0,IF($C94<$AE$7,VLOOKUP(ROUND(MIN('Heming-1982'!$C$4,MAX('Heming-1982'!$C$3,$E95)),0),'Heming-1982'!$C$6:$D$9,2),($H94^'Perry et al-2015'!$K$10+$F95*'Perry et al-2015'!$K$10*$C$6/100)^(1/'Perry et al-2015'!$K$10))) -> 0 | I95: =IF($C95<$AE$9,0,IF($C94<$AE$9,VLOOKUP(ROUND(MIN('Heming-1982'!$C$4,MAX('Heming-1982'!$C$3,Calculations!$E95)),0),'Heming-1982'!$C$6:$D$9,2),($I94^'Perry et al-2015'!$K$10+$F95*'Perry et al-2015'!$K$10*$C$6/100)^(1/'Perry et al-2015'!$K$10))) -> 0 | J95: =IF($C$6=7,VLOOKUP($B95,Calculations!$BL$3:$BM$55,2,FALSE),VLOOKUP($A95,Calculations!$BI$3:$BN$400,6,FALSE)) -> 44.54 | K95: 6.966666667 | L95: =MAX(0,'Perry et al-2015'!$K$11*(K95-'Perry et al-2015'!$K$13)*(1-EXP('Perry et al-2015'!$K$12*(K95-'Perry et al-2015'!$K$15)))) -> 1.750065639 | M95: =IF($C95<$AF$5,0,IF($C94<$AF$5,VLOOKUP(ROUND(MIN('Heming-1982'!$C$4,MAX('Heming-1982'!$C$3,$K95)),0),'Heming-1982'!$C$6:$D$9,2),(M94^'Perry et al-2015'!$K$10+$L95*'Perry et al-2015'!$K$10*$C$6/100)^(1/'Perry et al-2015'!$K$10))) -> 0 | N95: =IF($C95<$AF$7,0,IF($C94<$AF$7,VLOOKUP(ROUND(MIN('Heming-1982'!$C$4,MAX('Heming-1982'!$C$3,$K95)),0),'Heming-1982'!$C$6:$D$9,2),(N94^'Perry et al-2015'!$K$10+$L95*'Perry et al-2015'!$K$10*$C$6/100)^(1/'Perry et al-2015'!$K$10))) -> 0 | O95: =IF($C95<$AF$9,0,IF($C94<$AF$9,VLOOKUP(ROUND(MIN('Heming-1982'!$C$4,MAX('Heming-1982'!$C$3,$K95)),0),'Heming-1982'!$C$6:$D$9,2),(O94^'Perry et al-2015'!$K$10+$L95*'Perry et al-2015'!$K$10*$C$6/100)^(1/'Perry et al-2015'!$K$10))) -> 0 | AH95: 2017-12-10 | AI95: 50 | AJ95: 6.461111111 | AK95: 855.2722222 | AL95: 00:00:00 | AM95: 640.0833333 | AN95: 00:00:00 | AO95: 310.0833333 | AP95: 00:00:00 | AQ95: 6.966666667 | AR95: 713.3777778 | AS95: 00:00:00 | AT95: 527.0111111 | AU95: 00:00:00 | AV95: 231.8055556 | AW95: 00:00:00 | BI95: 403 | BJ95: 4 | BK95: =BK94+Calculations!$C$6 -> 2017-04-03 | BL95: 14 | BM95: =RANDBETWEEN(VLOOKUP(BJ95,Calculations!$BB$6:$BE$17,4,FALSE)*100,VLOOKUP(BJ95,Calculations!$BB$6:$BE$17,3,FALSE)*100)/100 -> 44.28 | BN95: =RANDBETWEEN(VLOOKUP(BJ95,Calculations!$BB$6:$BH$17,7,FALSE)*100,VLOOKUP(BJ95,Calculations!$BB$6:$BH$17,6,FALSE)*100)/100 -> 45.95
A96: 1211 | B96: 50 | C96: 2017-12-11 | D96: =IF($C$6=7,VLOOKUP(B96,Calculations!$BL$3:$BM$55,2,FALSE),VLOOKUP($A96,Calculations!$BI$3:$BN$400,5,FALSE)) -> 42.49 | E96: 5.827777778 | F96: =MAX(0,'Perry et al-2015'!$K$11*(E96-'Perry et al-2015'!$K$13)*(1-EXP('Perry et al-2015'!$K$12*(E96-'Perry et al-2015'!$K$15)))) -> 1.308221335 | G96: =IF($C96<$AE$5,0,IF($C95<$AE$5,VLOOKUP(ROUND(MIN('Heming-1982'!$C$4,MAX('Heming-1982'!$C$3,$E96)),0),'Heming-1982'!$C$6:$D$9,2),($G95^'Perry et al-2015'!$K$10+$F96*'Perry et al-2015'!$K$10*$C$6/100)^(1/'Perry et al-2015'!$K$10))) -> 0 | H96: =IF($C96<$AE$7,0,IF($C95<$AE$7,VLOOKUP(ROUND(MIN('Heming-1982'!$C$4,MAX('Heming-1982'!$C$3,$E96)),0),'Heming-1982'!$C$6:$D$9,2),($H95^'Perry et al-2015'!$K$10+$F96*'Perry et al-2015'!$K$10*$C$6/100)^(1/'Perry et al-2015'!$K$10))) -> 0 | I96: =IF($C96<$AE$9,0,IF($C95<$AE$9,VLOOKUP(ROUND(MIN('Heming-1982'!$C$4,MAX('Heming-1982'!$C$3,Calculations!$E96)),0),'Heming-1982'!$C$6:$D$9,2),($I95^'Perry et al-2015'!$K$10+$F96*'Perry et al-2015'!$K$10*$C$6/100)^(1/'Perry et al-2015'!$K$10))) -> 0 | J96: =IF($C$6=7,VLOOKUP($B96,Calculations!$BL$3:$BM$55,2,FALSE),VLOOKUP($A96,Calculations!$BI$3:$BN$400,6,FALSE)) -> 44.58 | K96: 6.988888889 | L96: =MAX(0,'Perry et al-2015'!$K$11*(K96-'Perry et al-2015'!$K$13)*(1-EXP('Perry et al-2015'!$K$12*(K96-'Perry et al-2015'!$K$15)))) -> 1.758561086 | M96: =IF($C96<$AF$5,0,IF($C95<$AF$5,VLOOKUP(ROUND(MIN('Heming-1982'!$C$4,MAX('Heming-1982'!$C$3,$K96)),0),'Heming-1982'!$C$6:$D$9,2),(M95^'Perry et al-2015'!$K$10+$L96*'Perry et al-2015'!$K$10*$C$6/100)^(1/'Perry et al-2015'!$K$10))) -> 0 | N96: =IF($C96<$AF$7,0,IF($C95<$AF$7,VLOOKUP(ROUND(MIN('Heming-1982'!$C$4,MAX('Heming-1982'!$C$3,$K96)),0),'Heming-1982'!$C$6:$D$9,2),(N95^'Perry et al-2015'!$K$10+$L96*'Perry et al-2015'!$K$10*$C$6/100)^(1/'Perry et al-2015'!$K$10))) -> 0 | O96: =IF($C96<$AF$9,0,IF($C95<$AF$9,VLOOKUP(ROUND(MIN('Heming-1982'!$C$4,MAX('Heming-1982'!$C$3,$K96)),0),'Heming-1982'!$C$6:$D$9,2),(O95^'Perry et al-2015'!$K$10+$L96*'Perry et al-2015'!$K$10*$C$6/100)^(1/'Perry et al-2015'!$K$10))) -> 0 | AH96: 2017-12-11 | AI96: 50 | AJ96: 5.827777778 | AK96: 861.1 | AL96: 00:00:00 | AM96: 645.9111111 | AN96: 00:00:00 | AO96: 315.9111111 | AP96: 00:00:00 | AQ96: 6.988888889 | AR96: 720.3666667 | AS96: 00:00:00 | AT96: 534 | AU96: 00:00:00 | AV96: 238.7944444 | AW96: 00:00:00 | BI96: 404 | BJ96: 4 | BK96: =BK95+Calculations!$C$6 -> 2017-04-04 | BL96: 14 | BM96: =RANDBETWEEN(VLOOKUP(BJ96,Calculations!$BB$6:$BE$17,4,FALSE)*100,VLOOKUP(BJ96,Calculations!$BB$6:$BE$17,3,FALSE)*100)/100 -> 44.94 | BN96: =RANDBETWEEN(VLOOKUP(BJ96,Calculations!$BB$6:$BH$17,7,FALSE)*100,VLOOKUP(BJ96,Calculations!$BB$6:$BH$17,6,FALSE)*100)/100 -> 44.64
A97: 1212 | B97: 50 | C97: 2017-12-12 | D97: =IF($C$6=7,VLOOKUP(B97,Calculations!$BL$3:$BM$55,2,FALSE),VLOOKUP($A97,Calculations!$BI$3:$BN$400,5,FALSE)) -> 41.85 | E97: 5.472222222 | F97: =MAX(0,'Perry et al-2015'!$K$11*(E97-'Perry et al-2015'!$K$13)*(1-EXP('Perry et al-2015'!$K$12*(E97-'Perry et al-2015'!$K$15)))) -> 1.168094607 | G97: =IF($C97<$AE$5,0,IF($C96<$AE$5,VLOOKUP(ROUND(MIN('Heming-1982'!$C$4,MAX('Heming-1982'!$C$3,$E97)),0),'Heming-1982'!$C$6:$D$9,2),($G96^'Perry et al-2015'!$K$10+$F97*'Perry et al-2015'!$K$10*$C$6/100)^(1/'Perry et al-2015'!$K$10))) -> 0 | H97: =IF($C97<$AE$7,0,IF($C96<$AE$7,VLOOKUP(ROUND(MIN('Heming-1982'!$C$4,MAX('Heming-1982'!$C$3,$E97)),0),'Heming-1982'!$C$6:$D$9,2),($H96^'Perry et al-2015'!$K$10+$F97*'Perry et al-2015'!$K$10*$C$6/100)^(1/'Perry et al-2015'!$K$10))) -> 0 | I97: =IF($C97<$AE$9,0,IF($C96<$AE$9,VLOOKUP(ROUND(MIN('Heming-1982'!$C$4,MAX('Heming-1982'!$C$3,Calculations!$E97)),0),'Heming-1982'!$C$6:$D$9,2),($I96^'Perry et al-2015'!$K$10+$F97*'Perry et al-2015'!$K$10*$C$6/100)^(1/'Perry et al-2015'!$K$10))) -> 0 | J97: =IF($C$6=7,VLOOKUP($B97,Calculations!$BL$3:$BM$55,2,FALSE),VLOOKUP($A97,Calculations!$BI$3:$BN$400,6,FALSE)) -> 41.23 | K97: 5.127777778 | L97: =MAX(0,'Perry et al-2015'!$K$11*(K97-'Perry et al-2015'!$K$13)*(1-EXP('Perry et al-2015'!$K$12*(K97-'Perry et al-2015'!$K$15)))) -> 1.031548561 | M97: =IF($C97<$AF$5,0,IF($C96<$AF$5,VLOOKUP(ROUND(MIN('Heming-1982'!$C$4,MAX('Heming-1982'!$C$3,$K97)),0),'Heming-1982'!$C$6:$D$9,2),(M96^'Perry et al-2015'!$K$10+$L97*'Perry et al-2015'!$K$10*$C$6/100)^(1/'Perry et al-2015'!$K$10))) -> 0 | N97: =IF($C97<$AF$7,0,IF($C96<$AF$7,VLOOKUP(ROUND(MIN('Heming-1982'!$C$4,MAX('Heming-1982'!$C$3,$K97)),0),'Heming-1982'!$C$6:$D$9,2),(N96^'Perry et al-2015'!$K$10+$L97*'Perry et al-2015'!$K$10*$C$6/100)^(1/'Perry et al-2015'!$K$10))) -> 0 | O97: =IF($C97<$AF$9,0,IF($C96<$AF$9,VLOOKUP(ROUND(MIN('Heming-1982'!$C$4,MAX('Heming-1982'!$C$3,$K97)),0),'Heming-1982'!$C$6:$D$9,2),(O96^'Perry et al-2015'!$K$10+$L97*'Perry et al-2015'!$K$10*$C$6/100)^(1/'Perry et al-2015'!$K$10))) -> 0 | AH97: 2017-12-12 | AI97: 50 | AJ97: 5.472222222 | AK97: 866.5722222 | AL97: 00:00:00 | AM97: 651.3833333 | AN97: 00:00:00 | AO97: 321.3833333 | AP97: 00:00:00 | AQ97: 5.127777778 | AR97: 725.4944444 | AS97: 00:00:00 | AT97: 539.1277778 | AU97: 00:00:00 | AV97: 243.9222222 | AW97: 00:00:00 | BI97: 405 | BJ97: 4 | BK97: =BK96+Calculations!$C$6 -> 2017-04-05 | BL97: 14 | BM97: =RANDBETWEEN(VLOOKUP(BJ97,Calculations!$BB$6:$BE$17,4,FALSE)*100,VLOOKUP(BJ97,Calculations!$BB$6:$BE$17,3,FALSE)*100)/100 -> 43.36 | BN97: =RANDBETWEEN(VLOOKUP(BJ97,Calculations!$BB$6:$BH$17,7,FALSE)*100,VLOOKUP(BJ97,Calculations!$BB$6:$BH$17,6,FALSE)*100)/100 -> 42.07
A98: 1213 | B98: 50 | C98: 2017-12-13 | D98: =IF($C$6=7,VLOOKUP(B98,Calculations!$BL$3:$BM$55,2,FALSE),VLOOKUP($A98,Calculations!$BI$3:$BN$400,5,FALSE)) -> 43.4 | E98: 6.333333333 | F98: =MAX(0,'Perry et al-2015'!$K$11*(E98-'Perry et al-2015'!$K$13)*(1-EXP('Perry et al-2015'!$K$12*(E98-'Perry et al-2015'!$K$15)))) -> 1.505805959 | G98: =IF($C98<$AE$5,0,IF($C97<$AE$5,VLOOKUP(ROUND(MIN('Heming-1982'!$C$4,MAX('Heming-1982'!$C$3,$E98)),0),'Heming-1982'!$C$6:$D$9,2),($G97^'Perry et al-2015'!$K$10+$F98*'Perry et al-2015'!$K$10*$C$6/100)^(1/'Perry et al-2015'!$K$10))) -> 0 | H98: =IF($C98<$AE$7,0,IF($C97<$AE$7,VLOOKUP(ROUND(MIN('Heming-1982'!$C$4,MAX('Heming-1982'!$C$3,$E98)),0),'Heming-1982'!$C$6:$D$9,2),($H97^'Perry et al-2015'!$K$10+$F98*'Perry et al-2015'!$K$10*$C$6/100)^(1/'Perry et al-2015'!$K$10))) -> 0 | I98: =IF($C98<$AE$9,0,IF($C97<$AE$9,VLOOKUP(ROUND(MIN('Heming-1982'!$C$4,MAX('Heming-1982'!$C$3,Calculations!$E98)),0),'Heming-1982'!$C$6:$D$9,2),($I97^'Perry et al-2015'!$K$10+$F98*'Perry et al-2015'!$K$10*$C$6/100)^(1/'Perry et al-2015'!$K$10))) -> 0 | J98: =IF($C$6=7,VLOOKUP($B98,Calculations!$BL$3:$BM$55,2,FALSE),VLOOKUP($A98,Calculations!$BI$3:$BN$400,6,FALSE)) -> 44.44 | K98: 6.911111111 | L98: =MAX(0,'Perry et al-2015'!$K$11*(K98-'Perry et al-2015'!$K$13)*(1-EXP('Perry et al-2015'!$K$12*(K98-'Perry et al-2015'!$K$15)))) -> 1.728803286 | M98: =IF($C98<$AF$5,0,IF($C97<$AF$5,VLOOKUP(ROUND(MIN('Heming-1982'!$C$4,MAX('Heming-1982'!$C$3,$K98)),0),'Heming-1982'!$C$6:$D$9,2),(M97^'Perry et al-2015'!$K$10+$L98*'Perry et al-2015'!$K$10*$C$6/100)^(1/'Perry et al-2015'!$K$10))) -> 0 | N98: =IF($C98<$AF$7,0,IF($C97<$AF$7,VLOOKUP(ROUND(MIN('Heming-1982'!$C$4,MAX('Heming-1982'!$C$3,$K98)),0),'Heming-1982'!$C$6:$D$9,2),(N97^'Perry et al-2015'!$K$10+$L98*'Perry et al-2015'!$K$10*$C$6/100)^(1/'Perry et al-2015'!$K$10))) -> 0 | O98: =IF($C98<$AF$9,0,IF($C97<$AF$9,VLOOKUP(ROUND(MIN('Heming-1982'!$C$4,MAX('Heming-1982'!$C$3,$K98)),0),'Heming-1982'!$C$6:$D$9,2),(O97^'Perry et al-2015'!$K$10+$L98*'Perry et al-2015'!$K$10*$C$6/100)^(1/'Perry et al-2015'!$K$10))) -> 0 | AH98: 2017-12-13 | AI98: 50 | AJ98: 6.333333333 | AK98: 872.9055556 | AL98: 00:00:00 | AM98: 657.7166667 | AN98: 00:00:00 | AO98: 327.7166667 | AP98: 00:00:00 | AQ98: 6.911111111 | AR98: 732.4055556 | AS98: 00:00:00 | AT98: 546.0388889 | AU98: 00:00:00 | AV98: 250.8333333 | AW98: 00:00:00 | BI98: 406 | BJ98: 4 | BK98: =BK97+Calculations!$C$6 -> 2017-04-06 | BL98: 14 | BM98: =RANDBETWEEN(VLOOKUP(BJ98,Calculations!$BB$6:$BE$17,4,FALSE)*100,VLOOKUP(BJ98,Calculations!$BB$6:$BE$17,3,FALSE)*100)/100 -> 43.9 | BN98: =RANDBETWEEN(VLOOKUP(BJ98,Calculations!$BB$6:$BH$17,7,FALSE)*100,VLOOKUP(BJ98,Calculations!$BB$6:$BH$17,6,FALSE)*100)/100 -> 44.52
A99: 1214 | B99: 50 | C99: 2017-12-14 | D99: =IF($C$6=7,VLOOKUP(B99,Calculations!$BL$3:$BM$55,2,FALSE),VLOOKUP($A99,Calculations!$BI$3:$BN$400,5,FALSE)) -> 42.56 | E99: 5.866666667 | F99: =MAX(0,'Perry et al-2015'!$K$11*(E99-'Perry et al-2015'!$K$13)*(1-EXP('Perry et al-2015'!$K$12*(E99-'Perry et al-2015'!$K$15)))) -> 1.323492407 | G99: =IF($C99<$AE$5,0,IF($C98<$AE$5,VLOOKUP(ROUND(MIN('Heming-1982'!$C$4,MAX('Heming-1982'!$C$3,$E99)),0),'Heming-1982'!$C$6:$D$9,2),($G98^'Perry et al-2015'!$K$10+$F99*'Perry et al-2015'!$K$10*$C$6/100)^(1/'Perry et al-2015'!$K$10))) -> 0 | H99: =IF($C99<$AE$7,0,IF($C98<$AE$7,VLOOKUP(ROUND(MIN('Heming-1982'!$C$4,MAX('Heming-1982'!$C$3,$E99)),0),'Heming-1982'!$C$6:$D$9,2),($H98^'Perry et al-2015'!$K$10+$F99*'Perry et al-2015'!$K$10*$C$6/100)^(1/'Perry et al-2015'!$K$10))) -> 0 | I99: =IF($C99<$AE$9,0,IF($C98<$AE$9,VLOOKUP(ROUND(MIN('Heming-1982'!$C$4,MAX('Heming-1982'!$C$3,Calculations!$E99)),0),'Heming-1982'!$C$6:$D$9,2),($I98^'Perry et al-2015'!$K$10+$F99*'Perry et al-2015'!$K$10*$C$6/100)^(1/'Perry et al-2015'!$K$10))) -> 0 | J99: =IF($C$6=7,VLOOKUP($B99,Calculations!$BL$3:$BM$55,2,FALSE),VLOOKUP($A99,Calculations!$BI$3:$BN$400,6,FALSE)) -> 42.66 | K99: 5.922222222 | L99: =MAX(0,'Perry et al-2015'!$K$11*(K99-'Perry et al-2015'!$K$13)*(1-EXP('Perry et al-2015'!$K$12*(K99-'Perry et al-2015'!$K$15)))) -> 1.345288313 | M99: =IF($C99<$AF$5,0,IF($C98<$AF$5,VLOOKUP(ROUND(MIN('Heming-1982'!$C$4,MAX('Heming-1982'!$C$3,$K99)),0),'Heming-1982'!$C$6:$D$9,2),(M98^'Perry et al-2015'!$K$10+$L99*'Perry et al-2015'!$K$10*$C$6/100)^(1/'Perry et al-2015'!$K$10))) -> 0 | N99: =IF($C99<$AF$7,0,IF($C98<$AF$7,VLOOKUP(ROUND(MIN('Heming-1982'!$C$4,MAX('Heming-1982'!$C$3,$K99)),0),'Heming-1982'!$C$6:$D$9,2),(N98^'Perry et al-2015'!$K$10+$L99*'Perry et al-2015'!$K$10*$C$6/100)^(1/'Perry et al-2015'!$K$10))) -> 0 | O99: =IF($C99<$AF$9,0,IF($C98<$AF$9,VLOOKUP(ROUND(MIN('Heming-1982'!$C$4,MAX('Heming-1982'!$C$3,$K99)),0),'Heming-1982'!$C$6:$D$9,2),(O98^'Perry et al-2015'!$K$10+$L99*'Perry et al-2015'!$K$10*$C$6/100)^(1/'Perry et al-2015'!$K$10))) -> 0 | AH99: 2017-12-14 | AI99: 50 | AJ99: 5.866666667 | AK99: 878.7722222 | AL99: 00:00:00 | AM99: 663.5833333 | AN99: 00:00:00 | AO99: 333.5833333 | AP99: 00:00:00 | AQ99: 5.922222222 | AR99: 738.3277778 | AS99: 00:00:00 | AT99: 551.9611111 | AU99: 00:00:00 | AV99: 256.7555556 | AW99: 00:00:00 | BI99: 407 | BJ99: 4 | BK99: =BK98+Calculations!$C$6 -> 2017-04-07 | BL99: 14 | BM99: =RANDBETWEEN(VLOOKUP(BJ99,Calculations!$BB$6:$BE$17,4,FALSE)*100,VLOOKUP(BJ99,Calculations!$BB$6:$BE$17,3,FALSE)*100)/100 -> 43.93 | BN99: =RANDBETWEEN(VLOOKUP(BJ99,Calculations!$BB$6:$BH$17,7,FALSE)*100,VLOOKUP(BJ99,Calculations!$BB$6:$BH$17,6,FALSE)*100)/100 -> 45.71
A100: 1215 | B100: 50 | C100: 2017-12-15 | D100: =IF($C$6=7,VLOOKUP(B100,Calculations!$BL$3:$BM$55,2,FALSE),VLOOKUP($A100,Calculations!$BI$3:$BN$400,5,FALSE)) -> 44.18 | E100: 6.766666667 | F100: =MAX(0,'Perry et al-2015'!$K$11*(E100-'Perry et al-2015'!$K$13)*(1-EXP('Perry et al-2015'!$K$12*(E100-'Perry et al-2015'!$K$15)))) -> 1.673366387 | G100: =IF($C100<$AE$5,0,IF($C99<$AE$5,VLOOKUP(ROUND(MIN('Heming-1982'!$C$4,MAX('Heming-1982'!$C$3,$E100)),0),'Heming-1982'!$C$6:$D$9,2),($G99^'Perry et al-2015'!$K$10+$F100*'Perry et al-2015'!$K$10*$C$6/100)^(1/'Perry et al-2015'!$K$10))) -> 0 | H100: =IF($C100<$AE$7,0,IF($C99<$AE$7,VLOOKUP(ROUND(MIN('Heming-1982'!$C$4,MAX('Heming-1982'!$C$3,$E100)),0),'Heming-1982'!$C$6:$D$9,2),($H99^'Perry et al-2015'!$K$10+$F100*'Perry et al-2015'!$K$10*$C$6/100)^(1/'Perry et al-2015'!$K$10))) -> 0 | I100: =IF($C100<$AE$9,0,IF($C99<$AE$9,VLOOKUP(ROUND(MIN('Heming-1982'!$C$4,MAX('Heming-1982'!$C$3,Calculations!$E100)),0),'Heming-1982'!$C$6:$D$9,2),($I99^'Perry et al-2015'!$K$10+$F100*'Perry et al-2015'!$K$10*$C$6/100)^(1/'Perry et al-2015'!$K$10))) -> 0 | J100: =IF($C$6=7,VLOOKUP($B100,Calculations!$BL$3:$BM$55,2,FALSE),VLOOKUP($A100,Calculations!$BI$3:$BN$400,6,FALSE)) -> 43.27 | K100: 6.261111111 | L100: =MAX(0,'Perry et al-2015'!$K$11*(K100-'Perry et al-2015'!$K$13)*(1-EXP('Perry et al-2015'!$K$12*(K100-'Perry et al-2015'!$K$15)))) -> 1.477709943 | M100: =IF($C100<$AF$5,0,IF($C99<$AF$5,VLOOKUP(ROUND(MIN('Heming-1982'!$C$4,MAX('Heming-1982'!$C$3,$K100)),0),'Heming-1982'!$C$6:$D$9,2),(M99^'Perry et al-2015'!$K$10+$L100*'Perry et al-2015'!$K$10*$C$6/100)^(1/'Perry et al-2015'!$K$10))) -> 0 | N100: =IF($C100<$AF$7,0,IF($C99<$AF$7,VLOOKUP(ROUND(MIN('Heming-1982'!$C$4,MAX('Heming-1982'!$C$3,$K100)),0),'Heming-1982'!$C$6:$D$9,2),(N99^'Perry et al-2015'!$K$10+$L100*'Perry et al-2015'!$K$10*$C$6/100)^(1/'Perry et al-2015'!$K$10))) -> 0 | O100: =IF($C100<$AF$9,0,IF($C99<$AF$9,VLOOKUP(ROUND(MIN('Heming-1982'!$C$4,MAX('Heming-1982'!$C$3,$K100)),0),'Heming-1982'!$C$6:$D$9,2),(O99^'Perry et al-2015'!$K$10+$L100*'Perry et al-2015'!$K$10*$C$6/100)^(1/'Perry et al-2015'!$K$10))) -> 0 | AH100: 2017-12-15 | AI100: 50 | AJ100: 6.766666667 | AK100: 885.5388889 | AL100: 00:00:00 | AM100: 670.35 | AN100: 00:00:00 | AO100: 340.35 | AP100: 00:00:00 | AQ100: 6.261111111 | AR100: 744.5888889 | AS100: 00:00:00 | AT100: 558.2222222 | AU100: 00:00:00 | AV100: 263.0166667 | AW100: 00:00:00 | BI100: 408 | BJ100: 4 | BK100: =BK99+Calculations!$C$6 -> 2017-04-08 | BL100: 14 | BM100: =RANDBETWEEN(VLOOKUP(BJ100,Calculations!$BB$6:$BE$17,4,FALSE)*100,VLOOKUP(BJ100,Calculations!$BB$6:$BE$17,3,FALSE)*100)/100 -> 44.78 | BN100: =RANDBETWEEN(VLOOKUP(BJ100,Calculations!$BB$6:$BH$17,7,FALSE)*100,VLOOKUP(BJ100,Calculations!$BB$6:$BH$17,6,FALSE)*100)/100 -> 43.81
A101: 1216 | B101: 50 | C101: 2017-12-16 | D101: =IF($C$6=7,VLOOKUP(B101,Calculations!$BL$3:$BM$55,2,FALSE),VLOOKUP($A101,Calculations!$BI$3:$BN$400,5,FALSE)) -> 42.11 | E101: 5.616666667 | F101: =MAX(0,'Perry et al-2015'!$K$11*(E101-'Perry et al-2015'!$K$13)*(1-EXP('Perry et al-2015'!$K$12*(E101-'Perry et al-2015'!$K$15)))) -> 1.225127852 | G101: =IF($C101<$AE$5,0,IF($C100<$AE$5,VLOOKUP(ROUND(MIN('Heming-1982'!$C$4,MAX('Heming-1982'!$C$3,$E101)),0),'Heming-1982'!$C$6:$D$9,2),($G100^'Perry et al-2015'!$K$10+$F101*'Perry et al-2015'!$K$10*$C$6/100)^(1/'Perry et al-2015'!$K$10))) -> 0 | H101: =IF($C101<$AE$7,0,IF($C100<$AE$7,VLOOKUP(ROUND(MIN('Heming-1982'!$C$4,MAX('Heming-1982'!$C$3,$E101)),0),'Heming-1982'!$C$6:$D$9,2),($H100^'Perry et al-2015'!$K$10+$F101*'Perry et al-2015'!$K$10*$C$6/100)^(1/'Perry et al-2015'!$K$10))) -> 0 | I101: =IF($C101<$AE$9,0,IF($C100<$AE$9,VLOOKUP(ROUND(MIN('Heming-1982'!$C$4,MAX('Heming-1982'!$C$3,Calculations!$E101)),0),'Heming-1982'!$C$6:$D$9,2),($I100^'Perry et al-2015'!$K$10+$F101*'Perry et al-2015'!$K$10*$C$6/100)^(1/'Perry et al-2015'!$K$10))) -> 0 | J101: =IF($C$6=7,VLOOKUP($B101,Calculations!$BL$3:$BM$55,2,FALSE),VLOOKUP($A101,Calculations!$BI$3:$BN$400,6,FALSE)) -> 44.4 | K101: 6.888888889 | L101: =MAX(0,'Perry et al-2015'!$K$11*(K101-'Perry et al-2015'!$K$13)*(1-EXP('Perry et al-2015'!$K$12*(K101-'Perry et al-2015'!$K$15)))) -> 1.720288956 | M101: =IF($C101<$AF$5,0,IF($C100<$AF$5,VLOOKUP(ROUND(MIN('Heming-1982'!$C$4,MAX('Heming-1982'!$C$3,$K101)),0),'Heming-1982'!$C$6:$D$9,2),(M100^'Perry et al-2015'!$K$10+$L101*'Perry et al-2015'!$K$10*$C$6/100)^(1/'Perry et al-2015'!$K$10))) -> 0 | N101: =IF($C101<$AF$7,0,IF($C100<$AF$7,VLOOKUP(ROUND(MIN('Heming-1982'!$C$4,MAX('Heming-1982'!$C$3,$K101)),0),'Heming-1982'!$C$6:$D$9,2),(N100^'Perry et al-2015'!$K$10+$L101*'Perry et al-2015'!$K$10*$C$6/100)^(1/'Perry et al-2015'!$K$10))) -> 0 | O101: =IF($C101<$AF$9,0,IF($C100<$AF$9,VLOOKUP(ROUND(MIN('Heming-1982'!$C$4,MAX('Heming-1982'!$C$3,$K101)),0),'Heming-1982'!$C$6:$D$9,2),(O100^'Perry et al-2015'!$K$10+$L101*'Perry et al-2015'!$K$10*$C$6/100)^(1/'Perry et al-2015'!$K$10))) -> 0 | AH101: 2017-12-16 | AI101: 50 | AJ101: 5.616666667 | AK101: 891.1555556 | AL101: 00:00:00 | AM101: 675.9666667 | AN101: 00:00:00 | AO101: 345.9666667 | AP101: 00:00:00 | AQ101: 6.888888889 | AR101: 751.4777778 | AS101: 00:00:00 | AT101: 565.1111111 | AU101: 00:00:00 | AV101: 269.9055556 | AW101: 00:00:00 | BI101: 409 | BJ101: 4 | BK101: =BK100+Calculations!$C$6 -> 2017-04-09 | BL101: 15 | BM101: =RANDBETWEEN(VLOOKUP(BJ101,Calculations!$BB$6:$BE$17,4,FALSE)*100,VLOOKUP(BJ101,Calculations!$BB$6:$BE$17,3,FALSE)*100)/100 -> 44.32 | BN101: =RANDBETWEEN(VLOOKUP(BJ101,Calculations!$BB$6:$BH$17,7,FALSE)*100,VLOOKUP(BJ101,Calculations!$BB$6:$BH$17,6,FALSE)*100)/100 -> 45.79
A102: 1217 | B102: 51 | C102: 2017-12-17 | D102: =IF($C$6=7,VLOOKUP(B102,Calculations!$BL$3:$BM$55,2,FALSE),VLOOKUP($A102,Calculations!$BI$3:$BN$400,5,FALSE)) -> 43.04 | E102: 6.133333333 | F102: =MAX(0,'Perry et al-2015'!$K$11*(E102-'Perry et al-2015'!$K$13)*(1-EXP('Perry et al-2015'!$K$12*(E102-'Perry et al-2015'!$K$15)))) -> 1.427891441 | G102: =IF($C102<$AE$5,0,IF($C101<$AE$5,VLOOKUP(ROUND(MIN('Heming-1982'!$C$4,MAX('Heming-1982'!$C$3,$E102)),0),'Heming-1982'!$C$6:$D$9,2),($G101^'Perry et al-2015'!$K$10+$F102*'Perry et al-2015'!$K$10*$C$6/100)^(1/'Perry et al-2015'!$K$10))) -> 0 | H102: =IF($C102<$AE$7,0,IF($C101<$AE$7,VLOOKUP(ROUND(MIN('Heming-1982'!$C$4,MAX('Heming-1982'!$C$3,$E102)),0),'Heming-1982'!$C$6:$D$9,2),($H101^'Perry et al-2015'!$K$10+$F102*'Perry et al-2015'!$K$10*$C$6/100)^(1/'Perry et al-2015'!$K$10))) -> 0 | I102: =IF($C102<$AE$9,0,IF($C101<$AE$9,VLOOKUP(ROUND(MIN('Heming-1982'!$C$4,MAX('Heming-1982'!$C$3,Calculations!$E102)),0),'Heming-1982'!$C$6:$D$9,2),($I101^'Perry et al-2015'!$K$10+$F102*'Perry et al-2015'!$K$10*$C$6/100)^(1/'Perry et al-2015'!$K$10))) -> 0 | J102: =IF($C$6=7,VLOOKUP($B102,Calculations!$BL$3:$BM$55,2,FALSE),VLOOKUP($A102,Calculations!$BI$3:$BN$400,6,FALSE)) -> 41.31 | K102: 5.172222222 | L102: =MAX(0,'Perry et al-2015'!$K$11*(K102-'Perry et al-2015'!$K$13)*(1-EXP('Perry et al-2015'!$K$12*(K102-'Perry et al-2015'!$K$15)))) -> 1.049208268 | M102: =IF($C102<$AF$5,0,IF($C101<$AF$5,VLOOKUP(ROUND(MIN('Heming-1982'!$C$4,MAX('Heming-1982'!$C$3,$K102)),0),'Heming-1982'!$C$6:$D$9,2),(M101^'Perry et al-2015'!$K$10+$L102*'Perry et al-2015'!$K$10*$C$6/100)^(1/'Perry et al-2015'!$K$10))) -> 0 | N102: =IF($C102<$AF$7,0,IF($C101<$AF$7,VLOOKUP(ROUND(MIN('Heming-1982'!$C$4,MAX('Heming-1982'!$C$3,$K102)),0),'Heming-1982'!$C$6:$D$9,2),(N101^'Perry et al-2015'!$K$10+$L102*'Perry et al-2015'!$K$10*$C$6/100)^(1/'Perry et al-2015'!$K$10))) -> 0 | O102: =IF($C102<$AF$9,0,IF($C101<$AF$9,VLOOKUP(ROUND(MIN('Heming-1982'!$C$4,MAX('Heming-1982'!$C$3,$K102)),0),'Heming-1982'!$C$6:$D$9,2),(O101^'Perry et al-2015'!$K$10+$L102*'Perry et al-2015'!$K$10*$C$6/100)^(1/'Perry et al-2015'!$K$10))) -> 0 | AH102: 2017-12-17 | AI102: 51 | AJ102: 6.133333333 | AK102: 897.2888889 | AL102: 00:00:00 | AM102: 682.1 | AN102: 00:00:00 | AO102: 352.1 | AP102: 00:00:00 | AQ102: 5.172222222 | AR102: 756.65 | AS102: 00:00:00 | AT102: 570.2833333 | AU102: 00:00:00 | AV102: 275.0777778 | AW102: 00:00:00 | BI102: 410 | BJ102: 4 | BK102: =BK101+Calculations!$C$6 -> 2017-04-10 | BL102: 15 | BM102: =RANDBETWEEN(VLOOKUP(BJ102,Calculations!$BB$6:$BE$17,4,FALSE)*100,VLOOKUP(BJ102,Calculations!$BB$6:$BE$17,3,FALSE)*100)/100 -> 43.86 | BN102: =RANDBETWEEN(VLOOKUP(BJ102,Calculations!$BB$6:$BH$17,7,FALSE)*100,VLOOKUP(BJ102,Calculations!$BB$6:$BH$17,6,FALSE)*100)/100 -> 42.67
A103: 1218 | B103: 51 | C103: 2017-12-18 | D103: =IF($C$6=7,VLOOKUP(B103,Calculations!$BL$3:$BM$55,2,FALSE),VLOOKUP($A103,Calculations!$BI$3:$BN$400,5,FALSE)) -> 42.49 | E103: 5.827777778 | F103: =MAX(0,'Perry et al-2015'!$K$11*(E103-'Perry et al-2015'!$K$13)*(1-EXP('Perry et al-2015'!$K$12*(E103-'Perry et al-2015'!$K$15)))) -> 1.308221335 | G103: =IF($C103<$AE$5,0,IF($C102<$AE$5,VLOOKUP(ROUND(MIN('Heming-1982'!$C$4,MAX('Heming-1982'!$C$3,$E103)),0),'Heming-1982'!$C$6:$D$9,2),($G102^'Perry et al-2015'!$K$10+$F103*'Perry et al-2015'!$K$10*$C$6/100)^(1/'Perry et al-2015'!$K$10))) -> 0 | H103: =IF($C103<$AE$7,0,IF($C102<$AE$7,VLOOKUP(ROUND(MIN('Heming-1982'!$C$4,MAX('Heming-1982'!$C$3,$E103)),0),'Heming-1982'!$C$6:$D$9,2),($H102^'Perry et al-2015'!$K$10+$F103*'Perry et al-2015'!$K$10*$C$6/100)^(1/'Perry et al-2015'!$K$10))) -> 0 | I103: =IF($C103<$AE$9,0,IF($C102<$AE$9,VLOOKUP(ROUND(MIN('Heming-1982'!$C$4,MAX('Heming-1982'!$C$3,Calculations!$E103)),0),'Heming-1982'!$C$6:$D$9,2),($I102^'Perry et al-2015'!$K$10+$F103*'Perry et al-2015'!$K$10*$C$6/100)^(1/'Perry et al-2015'!$K$10))) -> 0 | J103: =IF($C$6=7,VLOOKUP($B103,Calculations!$BL$3:$BM$55,2,FALSE),VLOOKUP($A103,Calculations!$BI$3:$BN$400,6,FALSE)) -> 43.22 | K103: 6.233333333 | L103: =MAX(0,'Perry et al-2015'!$K$11*(K103-'Perry et al-2015'!$K$13)*(1-EXP('Perry et al-2015'!$K$12*(K103-'Perry et al-2015'!$K$15)))) -> 1.466891672 | M103: =IF($C103<$AF$5,0,IF($C102<$AF$5,VLOOKUP(ROUND(MIN('Heming-1982'!$C$4,MAX('Heming-1982'!$C$3,$K103)),0),'Heming-1982'!$C$6:$D$9,2),(M102^'Perry et al-2015'!$K$10+$L103*'Perry et al-2015'!$K$10*$C$6/100)^(1/'Perry et al-2015'!$K$10))) -> 0 | N103: =IF($C103<$AF$7,0,IF($C102<$AF$7,VLOOKUP(ROUND(MIN('Heming-1982'!$C$4,MAX('Heming-1982'!$C$3,$K103)),0),'Heming-1982'!$C$6:$D$9,2),(N102^'Perry et al-2015'!$K$10+$L103*'Perry et al-2015'!$K$10*$C$6/100)^(1/'Perry et al-2015'!$K$10))) -> 0 | O103: =IF($C103<$AF$9,0,IF($C102<$AF$9,VLOOKUP(ROUND(MIN('Heming-1982'!$C$4,MAX('Heming-1982'!$C$3,$K103)),0),'Heming-1982'!$C$6:$D$9,2),(O102^'Perry et al-2015'!$K$10+$L103*'Perry et al-2015'!$K$10*$C$6/100)^(1/'Perry et al-2015'!$K$10))) -> 0 | AH103: 2017-12-18 | AI103: 51 | AJ103: 5.827777778 | AK103: 903.1166667 | AL103: 00:00:00 | AM103: 687.9277778 | AN103: 00:00:00 | AO103: 357.9277778 | AP103: 00:00:00 | AQ103: 6.233333333 | AR103: 762.8833333 | AS103: 00:00:00 | AT103: 576.5166667 | AU103: 00:00:00 | AV103: 281.3111111 | AW103: 00:00:00 | BI103: 411 | BJ103: 4 | BK103: =BK102+Calculations!$C$6 -> 2017-04-11 | BL103: 15 | BM103: =RANDBETWEEN(VLOOKUP(BJ103,Calculations!$BB$6:$BE$17,4,FALSE)*100,VLOOKUP(BJ103,Calculations!$BB$6:$BE$17,3,FALSE)*100)/100 -> 44.21 | BN103: =RANDBETWEEN(VLOOKUP(BJ103,Calculations!$BB$6:$BH$17,7,FALSE)*100,VLOOKUP(BJ103,Calculations!$BB$6:$BH$17,6,FALSE)*100)/100 -> 44.04
A104: 1219 | B104: 51 | C104: 2017-12-19 | D104: =IF($C$6=7,VLOOKUP(B104,Calculations!$BL$3:$BM$55,2,FALSE),VLOOKUP($A104,Calculations!$BI$3:$BN$400,5,FALSE)) -> 43.54 | E104: 6.411111111 | F104: =MAX(0,'Perry et al-2015'!$K$11*(E104-'Perry et al-2015'!$K$13)*(1-EXP('Perry et al-2015'!$K$12*(E104-'Perry et al-2015'!$K$15)))) -> 1.536011297 | G104: =IF($C104<$AE$5,0,IF($C103<$AE$5,VLOOKUP(ROUND(MIN('Heming-1982'!$C$4,MAX('Heming-1982'!$C$3,$E104)),0),'Heming-1982'!$C$6:$D$9,2),($G103^'Perry et al-2015'!$K$10+$F104*'Perry et al-2015'!$K$10*$C$6/100)^(1/'Perry et al-2015'!$K$10))) -> 0 | H104: =IF($C104<$AE$7,0,IF($C103<$AE$7,VLOOKUP(ROUND(MIN('Heming-1982'!$C$4,MAX('Heming-1982'!$C$3,$E104)),0),'Heming-1982'!$C$6:$D$9,2),($H103^'Perry et al-2015'!$K$10+$F104*'Perry et al-2015'!$K$10*$C$6/100)^(1/'Perry et al-2015'!$K$10))) -> 0 | I104: =IF($C104<$AE$9,0,IF($C103<$AE$9,VLOOKUP(ROUND(MIN('Heming-1982'!$C$4,MAX('Heming-1982'!$C$3,Calculations!$E104)),0),'Heming-1982'!$C$6:$D$9,2),($I103^'Perry et al-2015'!$K$10+$F104*'Perry et al-2015'!$K$10*$C$6/100)^(1/'Perry et al-2015'!$K$10))) -> 0 | J104: =IF($C$6=7,VLOOKUP($B104,Calculations!$BL$3:$BM$55,2,FALSE),VLOOKUP($A104,Calculations!$BI$3:$BN$400,6,FALSE)) -> 45.14 | K104: 7.3 | L104: =MAX(0,'Perry et al-2015'!$K$11*(K104-'Perry et al-2015'!$K$13)*(1-EXP('Perry et al-2015'!$K$12*(K104-'Perry et al-2015'!$K$15)))) -> 1.876902076 | M104: =IF($C104<$AF$5,0,IF($C103<$AF$5,VLOOKUP(ROUND(MIN('Heming-1982'!$C$4,MAX('Heming-1982'!$C$3,$K104)),0),'Heming-1982'!$C$6:$D$9,2),(M103^'Perry et al-2015'!$K$10+$L104*'Perry et al-2015'!$K$10*$C$6/100)^(1/'Perry et al-2015'!$K$10))) -> 0 | N104: =IF($C104<$AF$7,0,IF($C103<$AF$7,VLOOKUP(ROUND(MIN('Heming-1982'!$C$4,MAX('Heming-1982'!$C$3,$K104)),0),'Heming-1982'!$C$6:$D$9,2),(N103^'Perry et al-2015'!$K$10+$L104*'Perry et al-2015'!$K$10*$C$6/100)^(1/'Perry et al-2015'!$K$10))) -> 0 | O104: =IF($C104<$AF$9,0,IF($C103<$AF$9,VLOOKUP(ROUND(MIN('Heming-1982'!$C$4,MAX('Heming-1982'!$C$3,$K104)),0),'Heming-1982'!$C$6:$D$9,2),(O103^'Perry et al-2015'!$K$10+$L104*'Perry et al-2015'!$K$10*$C$6/100)^(1/'Perry et al-2015'!$K$10))) -> 0 | AH104: 2017-12-19 | AI104: 51 | AJ104: 6.411111111 | AK104: 909.5277778 | AL104: 00:00:00 | AM104: 694.3388889 | AN104: 00:00:00 | AO104: 364.3388889 | AP104: 00:00:00 | AQ104: 7.3 | AR104: 770.1833333 | AS104: 00:00:00 | AT104: 583.8166667 | AU104: 00:00:00 | AV104: 288.6111111 | AW104: 00:00:00 | BI104: 412 | BJ104: 4 | BK104: =BK103+Calculations!$C$6 -> 2017-04-12 | BL104: 15 | BM104: =RANDBETWEEN(VLOOKUP(BJ104,Calculations!$BB$6:$BE$17,4,FALSE)*100,VLOOKUP(BJ104,Calculations!$BB$6:$BE$17,3,FALSE)*100)/100 -> 45.08 | BN104: =RANDBETWEEN(VLOOKUP(BJ104,Calculations!$BB$6:$BH$17,7,FALSE)*100,VLOOKUP(BJ104,Calculations!$BB$6:$BH$17,6,FALSE)*100)/100 -> 44.5
A105: 1220 | B105: 51 | C105: 2017-12-20 | D105: =IF($C$6=7,VLOOKUP(B105,Calculations!$BL$3:$BM$55,2,FALSE),VLOOKUP($A105,Calculations!$BI$3:$BN$400,5,FALSE)) -> 44.78 | E105: 7.1 | F105: =MAX(0,'Perry et al-2015'!$K$11*(E105-'Perry et al-2015'!$K$13)*(1-EXP('Perry et al-2015'!$K$12*(E105-'Perry et al-2015'!$K$15)))) -> 1.800955194 | G105: =IF($C105<$AE$5,0,IF($C104<$AE$5,VLOOKUP(ROUND(MIN('Heming-1982'!$C$4,MAX('Heming-1982'!$C$3,$E105)),0),'Heming-1982'!$C$6:$D$9,2),($G104^'Perry et al-2015'!$K$10+$F105*'Perry et al-2015'!$K$10*$C$6/100)^(1/'Perry et al-2015'!$K$10))) -> 0 | H105: =IF($C105<$AE$7,0,IF($C104<$AE$7,VLOOKUP(ROUND(MIN('Heming-1982'!$C$4,MAX('Heming-1982'!$C$3,$E105)),0),'Heming-1982'!$C$6:$D$9,2),($H104^'Perry et al-2015'!$K$10+$F105*'Perry et al-2015'!$K$10*$C$6/100)^(1/'Perry et al-2015'!$K$10))) -> 0 | I105: =IF($C105<$AE$9,0,IF($C104<$AE$9,VLOOKUP(ROUND(MIN('Heming-1982'!$C$4,MAX('Heming-1982'!$C$3,Calculations!$E105)),0),'Heming-1982'!$C$6:$D$9,2),($I104^'Perry et al-2015'!$K$10+$F105*'Perry et al-2015'!$K$10*$C$6/100)^(1/'Perry et al-2015'!$K$10))) -> 0 | J105: =IF($C$6=7,VLOOKUP($B105,Calculations!$BL$3:$BM$55,2,FALSE),VLOOKUP($A105,Calculations!$BI$3:$BN$400,6,FALSE)) -> 41.56 | K105: 5.311111111 | L105: =MAX(0,'Perry et al-2015'!$K$11*(K105-'Perry et al-2015'!$K$13)*(1-EXP('Perry et al-2015'!$K$12*(K105-'Perry et al-2015'!$K$15)))) -> 1.104318293 | M105: =IF($C105<$AF$5,0,IF($C104<$AF$5,VLOOKUP(ROUND(MIN('Heming-1982'!$C$4,MAX('Heming-1982'!$C$3,$K105)),0),'Heming-1982'!$C$6:$D$9,2),(M104^'Perry et al-2015'!$K$10+$L105*'Perry et al-2015'!$K$10*$C$6/100)^(1/'Perry et al-2015'!$K$10))) -> 0 | N105: =IF($C105<$AF$7,0,IF($C104<$AF$7,VLOOKUP(ROUND(MIN('Heming-1982'!$C$4,MAX('Heming-1982'!$C$3,$K105)),0),'Heming-1982'!$C$6:$D$9,2),(N104^'Perry et al-2015'!$K$10+$L105*'Perry et al-2015'!$K$10*$C$6/100)^(1/'Perry et al-2015'!$K$10))) -> 0 | O105: =IF($C105<$AF$9,0,IF($C104<$AF$9,VLOOKUP(ROUND(MIN('Heming-1982'!$C$4,MAX('Heming-1982'!$C$3,$K105)),0),'Heming-1982'!$C$6:$D$9,2),(O104^'Perry et al-2015'!$K$10+$L105*'Perry et al-2015'!$K$10*$C$6/100)^(1/'Perry et al-2015'!$K$10))) -> 0 | AH105: 2017-12-20 | AI105: 51 | AJ105: 7.1 | AK105: 916.6277778 | AL105: 00:00:00 | AM105: 701.4388889 | AN105: 00:00:00 | AO105: 371.4388889 | AP105: 00:00:00 | AQ105: 5.311111111 | AR105: 775.4944444 | AS105: 00:00:00 | AT105: 589.1277778 | AU105: 00:00:00 | AV105: 293.9222222 | AW105: 00:00:00 | BI105: 413 | BJ105: 4 | BK105: =BK104+Calculations!$C$6 -> 2017-04-13 | BL105: 15 | BM105: =RANDBETWEEN(VLOOKUP(BJ105,Calculations!$BB$6:$BE$17,4,FALSE)*100,VLOOKUP(BJ105,Calculations!$BB$6:$BE$17,3,FALSE)*100)/100 -> 43.28 | BN105: =RANDBETWEEN(VLOOKUP(BJ105,Calculations!$BB$6:$BH$17,7,FALSE)*100,VLOOKUP(BJ105,Calculations!$BB$6:$BH$17,6,FALSE)*100)/100 -> 45.5
A106: 1221 | B106: 51 | C106: 2017-12-21 | D106: =IF($C$6=7,VLOOKUP(B106,Calculations!$BL$3:$BM$55,2,FALSE),VLOOKUP($A106,Calculations!$BI$3:$BN$400,5,FALSE)) -> 42.22 | E106: 5.677777778 | F106: =MAX(0,'Perry et al-2015'!$K$11*(E106-'Perry et al-2015'!$K$13)*(1-EXP('Perry et al-2015'!$K$12*(E106-'Perry et al-2015'!$K$15)))) -> 1.249214089 | G106: =IF($C106<$AE$5,0,IF($C105<$AE$5,VLOOKUP(ROUND(MIN('Heming-1982'!$C$4,MAX('Heming-1982'!$C$3,$E106)),0),'Heming-1982'!$C$6:$D$9,2),($G105^'Perry et al-2015'!$K$10+$F106*'Perry et al-2015'!$K$10*$C$6/100)^(1/'Perry et al-2015'!$K$10))) -> 0 | H106: =IF($C106<$AE$7,0,IF($C105<$AE$7,VLOOKUP(ROUND(MIN('Heming-1982'!$C$4,MAX('Heming-1982'!$C$3,$E106)),0),'Heming-1982'!$C$6:$D$9,2),($H105^'Perry et al-2015'!$K$10+$F106*'Perry et al-2015'!$K$10*$C$6/100)^(1/'Perry et al-2015'!$K$10))) -> 0 | I106: =IF($C106<$AE$9,0,IF($C105<$AE$9,VLOOKUP(ROUND(MIN('Heming-1982'!$C$4,MAX('Heming-1982'!$C$3,Calculations!$E106)),0),'Heming-1982'!$C$6:$D$9,2),($I105^'Perry et al-2015'!$K$10+$F106*'Perry et al-2015'!$K$10*$C$6/100)^(1/'Perry et al-2015'!$K$10))) -> 0 | J106: =IF($C$6=7,VLOOKUP($B106,Calculations!$BL$3:$BM$55,2,FALSE),VLOOKUP($A106,Calculations!$BI$3:$BN$400,6,FALSE)) -> 44.42 | K106: 6.9 | L106: =MAX(0,'Perry et al-2015'!$K$11*(K106-'Perry et al-2015'!$K$13)*(1-EXP('Perry et al-2015'!$K$12*(K106-'Perry et al-2015'!$K$15)))) -> 1.724546787 | M106: =IF($C106<$AF$5,0,IF($C105<$AF$5,VLOOKUP(ROUND(MIN('Heming-1982'!$C$4,MAX('Heming-1982'!$C$3,$K106)),0),'Heming-1982'!$C$6:$D$9,2),(M105^'Perry et al-2015'!$K$10+$L106*'Perry et al-2015'!$K$10*$C$6/100)^(1/'Perry et al-2015'!$K$10))) -> 0 | N106: =IF($C106<$AF$7,0,IF($C105<$AF$7,VLOOKUP(ROUND(MIN('Heming-1982'!$C$4,MAX('Heming-1982'!$C$3,$K106)),0),'Heming-1982'!$C$6:$D$9,2),(N105^'Perry et al-2015'!$K$10+$L106*'Perry et al-2015'!$K$10*$C$6/100)^(1/'Perry et al-2015'!$K$10))) -> 0 | O106: =IF($C106<$AF$9,0,IF($C105<$AF$9,VLOOKUP(ROUND(MIN('Heming-1982'!$C$4,MAX('Heming-1982'!$C$3,$K106)),0),'Heming-1982'!$C$6:$D$9,2),(O105^'Perry et al-2015'!$K$10+$L106*'Perry et al-2015'!$K$10*$C$6/100)^(1/'Perry et al-2015'!$K$10))) -> 0 | AH106: 2017-12-21 | AI106: 51 | AJ106: 5.677777778 | AK106: 922.3055556 | AL106: 00:00:00 | AM106: 707.1166667 | AN106: 00:00:00 | AO106: 377.1166667 | AP106: 00:00:00 | AQ106: 6.9 | AR106: 782.3944444 | AS106: 00:00:00 | AT106: 596.0277778 | AU106: 00:00:00 | AV106: 300.8222222 | AW106: 00:00:00 | BI106: 414 | BJ106: 4 | BK106: =BK105+Calculations!$C$6 -> 2017-04-14 | BL106: 15 | BM106: =RANDBETWEEN(VLOOKUP(BJ106,Calculations!$BB$6:$BE$17,4,FALSE)*100,VLOOKUP(BJ106,Calculations!$BB$6:$BE$17,3,FALSE)*100)/100 -> 44.43 | BN106: =RANDBETWEEN(VLOOKUP(BJ106,Calculations!$BB$6:$BH$17,7,FALSE)*100,VLOOKUP(BJ106,Calculations!$BB$6:$BH$17,6,FALSE)*100)/100 -> 44.24
A107: 1222 | B107: 51 | C107: 2017-12-22 | D107: =IF($C$6=7,VLOOKUP(B107,Calculations!$BL$3:$BM$55,2,FALSE),VLOOKUP($A107,Calculations!$BI$3:$BN$400,5,FALSE)) -> 42.35 | E107: 5.75 | F107: =MAX(0,'Perry et al-2015'!$K$11*(E107-'Perry et al-2015'!$K$13)*(1-EXP('Perry et al-2015'!$K$12*(E107-'Perry et al-2015'!$K$15)))) -> 1.277645433 | G107: =IF($C107<$AE$5,0,IF($C106<$AE$5,VLOOKUP(ROUND(MIN('Heming-1982'!$C$4,MAX('Heming-1982'!$C$3,$E107)),0),'Heming-1982'!$C$6:$D$9,2),($G106^'Perry et al-2015'!$K$10+$F107*'Perry et al-2015'!$K$10*$C$6/100)^(1/'Perry et al-2015'!$K$10))) -> 0 | H107: =IF($C107<$AE$7,0,IF($C106<$AE$7,VLOOKUP(ROUND(MIN('Heming-1982'!$C$4,MAX('Heming-1982'!$C$3,$E107)),0),'Heming-1982'!$C$6:$D$9,2),($H106^'Perry et al-2015'!$K$10+$F107*'Perry et al-2015'!$K$10*$C$6/100)^(1/'Perry et al-2015'!$K$10))) -> 0 | I107: =IF($C107<$AE$9,0,IF($C106<$AE$9,VLOOKUP(ROUND(MIN('Heming-1982'!$C$4,MAX('Heming-1982'!$C$3,Calculations!$E107)),0),'Heming-1982'!$C$6:$D$9,2),($I106^'Perry et al-2015'!$K$10+$F107*'Perry et al-2015'!$K$10*$C$6/100)^(1/'Perry et al-2015'!$K$10))) -> 0 | J107: =IF($C$6=7,VLOOKUP($B107,Calculations!$BL$3:$BM$55,2,FALSE),VLOOKUP($A107,Calculations!$BI$3:$BN$400,6,FALSE)) -> 45.52 | K107: 7.511111111 | L107: =MAX(0,'Perry et al-2015'!$K$11*(K107-'Perry et al-2015'!$K$13)*(1-EXP('Perry et al-2015'!$K$12*(K107-'Perry et al-2015'!$K$15)))) -> 1.95653206 | M107: =IF($C107<$AF$5,0,IF($C106<$AF$5,VLOOKUP(ROUND(MIN('Heming-1982'!$C$4,MAX('Heming-1982'!$C$3,$K107)),0),'Heming-1982'!$C$6:$D$9,2),(M106^'Perry et al-2015'!$K$10+$L107*'Perry et al-2015'!$K$10*$C$6/100)^(1/'Perry et al-2015'!$K$10))) -> 0 | N107: =IF($C107<$AF$7,0,IF($C106<$AF$7,VLOOKUP(ROUND(MIN('Heming-1982'!$C$4,MAX('Heming-1982'!$C$3,$K107)),0),'Heming-1982'!$C$6:$D$9,2),(N106^'Perry et al-2015'!$K$10+$L107*'Perry et al-2015'!$K$10*$C$6/100)^(1/'Perry et al-2015'!$K$10))) -> 0 | O107: =IF($C107<$AF$9,0,IF($C106<$AF$9,VLOOKUP(ROUND(MIN('Heming-1982'!$C$4,MAX('Heming-1982'!$C$3,$K107)),0),'Heming-1982'!$C$6:$D$9,2),(O106^'Perry et al-2015'!$K$10+$L107*'Perry et al-2015'!$K$10*$C$6/100)^(1/'Perry et al-2015'!$K$10))) -> 0 | AH107: 2017-12-22 | AI107: 51 | AJ107: 5.75 | AK107: 928.0555556 | AL107: 00:00:00 | AM107: 712.8666667 | AN107: 00:00:00 | AO107: 382.8666667 | AP107: 00:00:00 | AQ107: 7.511111111 | AR107: 789.9055556 | AS107: 00:00:00 | AT107: 603.5388889 | AU107: 00:00:00 | AV107: 308.3333333 | AW107: 00:00:00 | BI107: 415 | BJ107: 4 | BK107: =BK106+Calculations!$C$6 -> 2017-04-15 | BL107: 15 | BM107: =RANDBETWEEN(VLOOKUP(BJ107,Calculations!$BB$6:$BE$17,4,FALSE)*100,VLOOKUP(BJ107,Calculations!$BB$6:$BE$17,3,FALSE)*100)/100 -> 44.74 | BN107: =RANDBETWEEN(VLOOKUP(BJ107,Calculations!$BB$6:$BH$17,7,FALSE)*100,VLOOKUP(BJ107,Calculations!$BB$6:$BH$17,6,FALSE)*100)/100 -> 42.02
A108: 1223 | B108: 51 | C108: 2017-12-23 | D108: =IF($C$6=7,VLOOKUP(B108,Calculations!$BL$3:$BM$55,2,FALSE),VLOOKUP($A108,Calculations!$BI$3:$BN$400,5,FALSE)) -> 43.22 | E108: 6.233333333 | F108: =MAX(0,'Perry et al-2015'!$K$11*(E108-'Perry et al-2015'!$K$13)*(1-EXP('Perry et al-2015'!$K$12*(E108-'Perry et al-2015'!$K$15)))) -> 1.466891672 | G108: =IF($C108<$AE$5,0,IF($C107<$AE$5,VLOOKUP(ROUND(MIN('Heming-1982'!$C$4,MAX('Heming-1982'!$C$3,$E108)),0),'Heming-1982'!$C$6:$D$9,2),($G107^'Perry et al-2015'!$K$10+$F108*'Perry et al-2015'!$K$10*$C$6/100)^(1/'Perry et al-2015'!$K$10))) -> 0 | H108: =IF($C108<$AE$7,0,IF($C107<$AE$7,VLOOKUP(ROUND(MIN('Heming-1982'!$C$4,MAX('Heming-1982'!$C$3,$E108)),0),'Heming-1982'!$C$6:$D$9,2),($H107^'Perry et al-2015'!$K$10+$F108*'Perry et al-2015'!$K$10*$C$6/100)^(1/'Perry et al-2015'!$K$10))) -> 0 | I108: =IF($C108<$AE$9,0,IF($C107<$AE$9,VLOOKUP(ROUND(MIN('Heming-1982'!$C$4,MAX('Heming-1982'!$C$3,Calculations!$E108)),0),'Heming-1982'!$C$6:$D$9,2),($I107^'Perry et al-2015'!$K$10+$F108*'Perry et al-2015'!$K$10*$C$6/100)^(1/'Perry et al-2015'!$K$10))) -> 0 | J108: =IF($C$6=7,VLOOKUP($B108,Calculations!$BL$3:$BM$55,2,FALSE),VLOOKUP($A108,Calculations!$BI$3:$BN$400,6,FALSE)) -> 41.73 | K108: 5.405555556 | L108: =MAX(0,'Perry et al-2015'!$K$11*(K108-'Perry et al-2015'!$K$13)*(1-EXP('Perry et al-2015'!$K$12*(K108-'Perry et al-2015'!$K$15)))) -> 1.141724661 | M108: =IF($C108<$AF$5,0,IF($C107<$AF$5,VLOOKUP(ROUND(MIN('Heming-1982'!$C$4,MAX('Heming-1982'!$C$3,$K108)),0),'Heming-1982'!$C$6:$D$9,2),(M107^'Perry et al-2015'!$K$10+$L108*'Perry et al-2015'!$K$10*$C$6/100)^(1/'Perry et al-2015'!$K$10))) -> 0 | N108: =IF($C108<$AF$7,0,IF($C107<$AF$7,VLOOKUP(ROUND(MIN('Heming-1982'!$C$4,MAX('Heming-1982'!$C$3,$K108)),0),'Heming-1982'!$C$6:$D$9,2),(N107^'Perry et al-2015'!$K$10+$L108*'Perry et al-2015'!$K$10*$C$6/100)^(1/'Perry et al-2015'!$K$10))) -> 0 | O108: =IF($C108<$AF$9,0,IF($C107<$AF$9,VLOOKUP(ROUND(MIN('Heming-1982'!$C$4,MAX('Heming-1982'!$C$3,$K108)),0),'Heming-1982'!$C$6:$D$9,2),(O107^'Perry et al-2015'!$K$10+$L108*'Perry et al-2015'!$K$10*$C$6/100)^(1/'Perry et al-2015'!$K$10))) -> 0 | AH108: 2017-12-23 | AI108: 51 | AJ108: 6.233333333 | AK108: 934.2888889 | AL108: 00:00:00 | AM108: 719.1 | AN108: 00:00:00 | AO108: 389.1 | AP108: 00:00:00 | AQ108: 5.405555556 | AR108: 795.3111111 | AS108: 00:00:00 | AT108: 608.9444444 | AU108: 00:00:00 | AV108: 313.7388889 | AW108: 00:00:00 | BI108: 416 | BJ108: 4 | BK108: =BK107+Calculations!$C$6 -> 2017-04-16 | BL108: 16 | BM108: =RANDBETWEEN(VLOOKUP(BJ108,Calculations!$BB$6:$BE$17,4,FALSE)*100,VLOOKUP(BJ108,Calculations!$BB$6:$BE$17,3,FALSE)*100)/100 -> 44.21 | BN108: =RANDBETWEEN(VLOOKUP(BJ108,Calculations!$BB$6:$BH$17,7,FALSE)*100,VLOOKUP(BJ108,Calculations!$BB$6:$BH$17,6,FALSE)*100)/100 -> 42.81
A109: 1224 | B109: 52 | C109: 2017-12-24 | D109: =IF($C$6=7,VLOOKUP(B109,Calculations!$BL$3:$BM$55,2,FALSE),VLOOKUP($A109,Calculations!$BI$3:$BN$400,5,FALSE)) -> 42.59 | E109: 5.883333333 | F109: =MAX(0,'Perry et al-2015'!$K$11*(E109-'Perry et al-2015'!$K$13)*(1-EXP('Perry et al-2015'!$K$12*(E109-'Perry et al-2015'!$K$15)))) -> 1.330033654 | G109: =IF($C109<$AE$5,0,IF($C108<$AE$5,VLOOKUP(ROUND(MIN('Heming-1982'!$C$4,MAX('Heming-1982'!$C$3,$E109)),0),'Heming-1982'!$C$6:$D$9,2),($G108^'Perry et al-2015'!$K$10+$F109*'Perry et al-2015'!$K$10*$C$6/100)^(1/'Perry et al-2015'!$K$10))) -> 0 | H109: =IF($C109<$AE$7,0,IF($C108<$AE$7,VLOOKUP(ROUND(MIN('Heming-1982'!$C$4,MAX('Heming-1982'!$C$3,$E109)),0),'Heming-1982'!$C$6:$D$9,2),($H108^'Perry et al-2015'!$K$10+$F109*'Perry et al-2015'!$K$10*$C$6/100)^(1/'Perry et al-2015'!$K$10))) -> 0 | I109: =IF($C109<$AE$9,0,IF($C108<$AE$9,VLOOKUP(ROUND(MIN('Heming-1982'!$C$4,MAX('Heming-1982'!$C$3,Calculations!$E109)),0),'Heming-1982'!$C$6:$D$9,2),($I108^'Perry et al-2015'!$K$10+$F109*'Perry et al-2015'!$K$10*$C$6/100)^(1/'Perry et al-2015'!$K$10))) -> 0 | J109: =IF($C$6=7,VLOOKUP($B109,Calculations!$BL$3:$BM$55,2,FALSE),VLOOKUP($A109,Calculations!$BI$3:$BN$400,6,FALSE)) -> 42.77 | K109: 5.983333333 | L109: =MAX(0,'Perry et al-2015'!$K$11*(K109-'Perry et al-2015'!$K$13)*(1-EXP('Perry et al-2015'!$K$12*(K109-'Perry et al-2015'!$K$15)))) -> 1.369236264 | M109: =IF($C109<$AF$5,0,IF($C108<$AF$5,VLOOKUP(ROUND(MIN('Heming-1982'!$C$4,MAX('Heming-1982'!$C$3,$K109)),0),'Heming-1982'!$C$6:$D$9,2),(M108^'Perry et al-2015'!$K$10+$L109*'Perry et al-2015'!$K$10*$C$6/100)^(1/'Perry et al-2015'!$K$10))) -> 0 | N109: =IF($C109<$AF$7,0,IF($C108<$AF$7,VLOOKUP(ROUND(MIN('Heming-1982'!$C$4,MAX('Heming-1982'!$C$3,$K109)),0),'Heming-1982'!$C$6:$D$9,2),(N108^'Perry et al-2015'!$K$10+$L109*'Perry et al-2015'!$K$10*$C$6/100)^(1/'Perry et al-2015'!$K$10))) -> 0 | O109: =IF($C109<$AF$9,0,IF($C108<$AF$9,VLOOKUP(ROUND(MIN('Heming-1982'!$C$4,MAX('Heming-1982'!$C$3,$K109)),0),'Heming-1982'!$C$6:$D$9,2),(O108^'Perry et al-2015'!$K$10+$L109*'Perry et al-2015'!$K$10*$C$6/100)^(1/'Perry et al-2015'!$K$10))) -> 0 | AH109: 2017-12-24 | AI109: 52 | AJ109: 5.883333333 | AK109: 940.1722222 | AL109: 00:00:00 | AM109: 724.9833333 | AN109: 00:00:00 | AO109: 394.9833333 | AP109: 00:00:00 | AQ109: 5.983333333 | AR109: 801.2944444 | AS109: 00:00:00 | AT109: 614.9277778 | AU109: 00:00:00 | AV109: 319.7222222 | AW109: 00:00:00 | BI109: 417 | BJ109: 4 | BK109: =BK108+Calculations!$C$6 -> 2017-04-17 | BL109: 16 | BM109: =RANDBETWEEN(VLOOKUP(BJ109,Calculations!$BB$6:$BE$17,4,FALSE)*100,VLOOKUP(BJ109,Calculations!$BB$6:$BE$17,3,FALSE)*100)/100 -> 44.72 | BN109: =RANDBETWEEN(VLOOKUP(BJ109,Calculations!$BB$6:$BH$17,7,FALSE)*100,VLOOKUP(BJ109,Calculations!$BB$6:$BH$17,6,FALSE)*100)/100 -> 42.42
A110: 1225 | B110: 52 | C110: 2017-12-25 | D110: =IF($C$6=7,VLOOKUP(B110,Calculations!$BL$3:$BM$55,2,FALSE),VLOOKUP($A110,Calculations!$BI$3:$BN$400,5,FALSE)) -> 43.55 | E110: 6.416666667 | F110: =MAX(0,'Perry et al-2015'!$K$11*(E110-'Perry et al-2015'!$K$13)*(1-EXP('Perry et al-2015'!$K$12*(E110-'Perry et al-2015'!$K$15)))) -> 1.538166724 | G110: =IF($C110<$AE$5,0,IF($C109<$AE$5,VLOOKUP(ROUND(MIN('Heming-1982'!$C$4,MAX('Heming-1982'!$C$3,$E110)),0),'Heming-1982'!$C$6:$D$9,2),($G109^'Perry et al-2015'!$K$10+$F110*'Perry et al-2015'!$K$10*$C$6/100)^(1/'Perry et al-2015'!$K$10))) -> 0 | H110: =IF($C110<$AE$7,0,IF($C109<$AE$7,VLOOKUP(ROUND(MIN('Heming-1982'!$C$4,MAX('Heming-1982'!$C$3,$E110)),0),'Heming-1982'!$C$6:$D$9,2),($H109^'Perry et al-2015'!$K$10+$F110*'Perry et al-2015'!$K$10*$C$6/100)^(1/'Perry et al-2015'!$K$10))) -> 0 | I110: =IF($C110<$AE$9,0,IF($C109<$AE$9,VLOOKUP(ROUND(MIN('Heming-1982'!$C$4,MAX('Heming-1982'!$C$3,Calculations!$E110)),0),'Heming-1982'!$C$6:$D$9,2),($I109^'Perry et al-2015'!$K$10+$F110*'Perry et al-2015'!$K$10*$C$6/100)^(1/'Perry et al-2015'!$K$10))) -> 0 | J110: =IF($C$6=7,VLOOKUP($B110,Calculations!$BL$3:$BM$55,2,FALSE),VLOOKUP($A110,Calculations!$BI$3:$BN$400,6,FALSE)) -> 44.48 | K110: 6.933333333 | L110: =MAX(0,'Perry et al-2015'!$K$11*(K110-'Perry et al-2015'!$K$13)*(1-EXP('Perry et al-2015'!$K$12*(K110-'Perry et al-2015'!$K$15)))) -> 1.737312271 | M110: =IF($C110<$AF$5,0,IF($C109<$AF$5,VLOOKUP(ROUND(MIN('Heming-1982'!$C$4,MAX('Heming-1982'!$C$3,$K110)),0),'Heming-1982'!$C$6:$D$9,2),(M109^'Perry et al-2015'!$K$10+$L110*'Perry et al-2015'!$K$10*$C$6/100)^(1/'Perry et al-2015'!$K$10))) -> 0 | N110: =IF($C110<$AF$7,0,IF($C109<$AF$7,VLOOKUP(ROUND(MIN('Heming-1982'!$C$4,MAX('Heming-1982'!$C$3,$K110)),0),'Heming-1982'!$C$6:$D$9,2),(N109^'Perry et al-2015'!$K$10+$L110*'Perry et al-2015'!$K$10*$C$6/100)^(1/'Perry et al-2015'!$K$10))) -> 0 | O110: =IF($C110<$AF$9,0,IF($C109<$AF$9,VLOOKUP(ROUND(MIN('Heming-1982'!$C$4,MAX('Heming-1982'!$C$3,$K110)),0),'Heming-1982'!$C$6:$D$9,2),(O109^'Perry et al-2015'!$K$10+$L110*'Perry et al-2015'!$K$10*$C$6/100)^(1/'Perry et al-2015'!$K$10))) -> 0 | AH110: 2017-12-25 | AI110: 52 | AJ110: 6.416666667 | AK110: 946.5888889 | AL110: 00:00:00 | AM110: 731.4 | AN110: 00:00:00 | AO110: 401.4 | AP110: 00:00:00 | AQ110: 6.933333333 | AR110: 808.2277778 | AS110: 00:00:00 | AT110: 621.8611111 | AU110: 00:00:00 | AV110: 326.6555556 | AW110: 00:00:00 | BI110: 418 | BJ110: 4 | BK110: =BK109+Calculations!$C$6 -> 2017-04-18 | BL110: 16 | BM110: =RANDBETWEEN(VLOOKUP(BJ110,Calculations!$BB$6:$BE$17,4,FALSE)*100,VLOOKUP(BJ110,Calculations!$BB$6:$BE$17,3,FALSE)*100)/100 -> 44 | BN110: =RANDBETWEEN(VLOOKUP(BJ110,Calculations!$BB$6:$BH$17,7,FALSE)*100,VLOOKUP(BJ110,Calculations!$BB$6:$BH$17,6,FALSE)*100)/100 -> 43.64
A111: 1226 | B111: 52 | C111: 2017-12-26 | D111: =IF($C$6=7,VLOOKUP(B111,Calculations!$BL$3:$BM$55,2,FALSE),VLOOKUP($A111,Calculations!$BI$3:$BN$400,5,FALSE)) -> 42.24 | E111: 5.688888889 | F111: =MAX(0,'Perry et al-2015'!$K$11*(E111-'Perry et al-2015'!$K$13)*(1-EXP('Perry et al-2015'!$K$12*(E111-'Perry et al-2015'!$K$15)))) -> 1.253590574 | G111: =IF($C111<$AE$5,0,IF($C110<$AE$5,VLOOKUP(ROUND(MIN('Heming-1982'!$C$4,MAX('Heming-1982'!$C$3,$E111)),0),'Heming-1982'!$C$6:$D$9,2),($G110^'Perry et al-2015'!$K$10+$F111*'Perry et al-2015'!$K$10*$C$6/100)^(1/'Perry et al-2015'!$K$10))) -> 0 | H111: =IF($C111<$AE$7,0,IF($C110<$AE$7,VLOOKUP(ROUND(MIN('Heming-1982'!$C$4,MAX('Heming-1982'!$C$3,$E111)),0),'Heming-1982'!$C$6:$D$9,2),($H110^'Perry et al-2015'!$K$10+$F111*'Perry et al-2015'!$K$10*$C$6/100)^(1/'Perry et al-2015'!$K$10))) -> 0 | I111: =IF($C111<$AE$9,0,IF($C110<$AE$9,VLOOKUP(ROUND(MIN('Heming-1982'!$C$4,MAX('Heming-1982'!$C$3,Calculations!$E111)),0),'Heming-1982'!$C$6:$D$9,2),($I110^'Perry et al-2015'!$K$10+$F111*'Perry et al-2015'!$K$10*$C$6/100)^(1/'Perry et al-2015'!$K$10))) -> 0 | J111: =IF($C$6=7,VLOOKUP($B111,Calculations!$BL$3:$BM$55,2,FALSE),VLOOKUP($A111,Calculations!$BI$3:$BN$400,6,FALSE)) -> 43.81 | K111: 6.561111111 | L111: =MAX(0,'Perry et al-2015'!$K$11*(K111-'Perry et al-2015'!$K$13)*(1-EXP('Perry et al-2015'!$K$12*(K111-'Perry et al-2015'!$K$15)))) -> 1.59410713 | M111: =IF($C111<$AF$5,0,IF($C110<$AF$5,VLOOKUP(ROUND(MIN('Heming-1982'!$C$4,MAX('Heming-1982'!$C$3,$K111)),0),'Heming-1982'!$C$6:$D$9,2),(M110^'Perry et al-2015'!$K$10+$L111*'Perry et al-2015'!$K$10*$C$6/100)^(1/'Perry et al-2015'!$K$10))) -> 0 | N111: =IF($C111<$AF$7,0,IF($C110<$AF$7,VLOOKUP(ROUND(MIN('Heming-1982'!$C$4,MAX('Heming-1982'!$C$3,$K111)),0),'Heming-1982'!$C$6:$D$9,2),(N110^'Perry et al-2015'!$K$10+$L111*'Perry et al-2015'!$K$10*$C$6/100)^(1/'Perry et al-2015'!$K$10))) -> 0 | O111: =IF($C111<$AF$9,0,IF($C110<$AF$9,VLOOKUP(ROUND(MIN('Heming-1982'!$C$4,MAX('Heming-1982'!$C$3,$K111)),0),'Heming-1982'!$C$6:$D$9,2),(O110^'Perry et al-2015'!$K$10+$L111*'Perry et al-2015'!$K$10*$C$6/100)^(1/'Perry et al-2015'!$K$10))) -> 0 | AH111: 2017-12-26 | AI111: 52 | AJ111: 5.688888889 | AK111: 952.2777778 | AL111: 00:00:00 | AM111: 737.0888889 | AN111: 00:00:00 | AO111: 407.0888889 | AP111: 00:00:00 | AQ111: 6.561111111 | AR111: 814.7888889 | AS111: 00:00:00 | AT111: 628.4222222 | AU111: 00:00:00 | AV111: 333.2166667 | AW111: 00:00:00 | BI111: 419 | BJ111: 4 | BK111: =BK110+Calculations!$C$6 -> 2017-04-19 | BL111: 16 | BM111: =RANDBETWEEN(VLOOKUP(BJ111,Calculations!$BB$6:$BE$17,4,FALSE)*100,VLOOKUP(BJ111,Calculations!$BB$6:$BE$17,3,FALSE)*100)/100 -> 44.21 | BN111: =RANDBETWEEN(VLOOKUP(BJ111,Calculations!$BB$6:$BH$17,7,FALSE)*100,VLOOKUP(BJ111,Calculations!$BB$6:$BH$17,6,FALSE)*100)/100 -> 44.01
A112: 1227 | B112: 52 | C112: 2017-12-27 | D112: =IF($C$6=7,VLOOKUP(B112,Calculations!$BL$3:$BM$55,2,FALSE),VLOOKUP($A112,Calculations!$BI$3:$BN$400,5,FALSE)) -> 41.38 | E112: 5.211111111 | F112: =MAX(0,'Perry et al-2015'!$K$11*(E112-'Perry et al-2015'!$K$13)*(1-EXP('Perry et al-2015'!$K$12*(E112-'Perry et al-2015'!$K$15)))) -> 1.064650882 | G112: =IF($C112<$AE$5,0,IF($C111<$AE$5,VLOOKUP(ROUND(MIN('Heming-1982'!$C$4,MAX('Heming-1982'!$C$3,$E112)),0),'Heming-1982'!$C$6:$D$9,2),($G111^'Perry et al-2015'!$K$10+$F112*'Perry et al-2015'!$K$10*$C$6/100)^(1/'Perry et al-2015'!$K$10))) -> 0.6892602566 | H112: =IF($C112<$AE$7,0,IF($C111<$AE$7,VLOOKUP(ROUND(MIN('Heming-1982'!$C$4,MAX('Heming-1982'!$C$3,$E112)),0),'Heming-1982'!$C$6:$D$9,2),($H111^'Perry et al-2015'!$K$10+$F112*'Perry et al-2015'!$K$10*$C$6/100)^(1/'Perry et al-2015'!$K$10))) -> 0 | I112: =IF($C112<$AE$9,0,IF($C111<$AE$9,VLOOKUP(ROUND(MIN('Heming-1982'!$C$4,MAX('Heming-1982'!$C$3,Calculations!$E112)),0),'Heming-1982'!$C$6:$D$9,2),($I111^'Perry et al-2015'!$K$10+$F112*'Perry et al-2015'!$K$10*$C$6/100)^(1/'Perry et al-2015'!$K$10))) -> 0 | J112: =IF($C$6=7,VLOOKUP($B112,Calculations!$BL$3:$BM$55,2,FALSE),VLOOKUP($A112,Calculations!$BI$3:$BN$400,6,FALSE)) -> 41.49 | K112: 5.272222222 | L112: =MAX(0,'Perry et al-2015'!$K$11*(K112-'Perry et al-2015'!$K$13)*(1-EXP('Perry et al-2015'!$K$12*(K112-'Perry et al-2015'!$K$15)))) -> 1.088899378 | M112: =IF($C112<$AF$5,0,IF($C111<$AF$5,VLOOKUP(ROUND(MIN('Heming-1982'!$C$4,MAX('Heming-1982'!$C$3,$K112)),0),'Heming-1982'!$C$6:$D$9,2),(M111^'Perry et al-2015'!$K$10+$L112*'Perry et al-2015'!$K$10*$C$6/100)^(1/'Perry et al-2015'!$K$10))) -> 0 | N112: =IF($C112<$AF$7,0,IF($C111<$AF$7,VLOOKUP(ROUND(MIN('Heming-1982'!$C$4,MAX('Heming-1982'!$C$3,$K112)),0),'Heming-1982'!$C$6:$D$9,2),(N111^'Perry et al-2015'!$K$10+$L112*'Perry et al-2015'!$K$10*$C$6/100)^(1/'Perry et al-2015'!$K$10))) -> 0 | O112: =IF($C112<$AF$9,0,IF($C111<$AF$9,VLOOKUP(ROUND(MIN('Heming-1982'!$C$4,MAX('Heming-1982'!$C$3,$K112)),0),'Heming-1982'!$C$6:$D$9,2),(O111^'Perry et al-2015'!$K$10+$L112*'Perry et al-2015'!$K$10*$C$6/100)^(1/'Perry et al-2015'!$K$10))) -> 0 | AH112: 2017-12-27 | AI112: 52 | AJ112: 5.211111111 | AK112: 957.4888889 | AL112: 2017-12-27 | AM112: 742.3 | AN112: 00:00:00 | AO112: 412.3 | AP112: 00:00:00 | AQ112: 5.272222222 | AR112: 820.0611111 | AS112: 00:00:00 | AT112: 633.6944444 | AU112: 00:00:00 | AV112: 338.4888889 | AW112: 00:00:00 | BI112: 420 | BJ112: 4 | BK112: =BK111+Calculations!$C$6 -> 2017-04-20 | BL112: 16 | BM112: =RANDBETWEEN(VLOOKUP(BJ112,Calculations!$BB$6:$BE$17,4,FALSE)*100,VLOOKUP(BJ112,Calculations!$BB$6:$BE$17,3,FALSE)*100)/100 -> 44.82 | BN112: =RANDBETWEEN(VLOOKUP(BJ112,Calculations!$BB$6:$BH$17,7,FALSE)*100,VLOOKUP(BJ112,Calculations!$BB$6:$BH$17,6,FALSE)*100)/100 -> 45.65
A113: 1228 | B113: 52 | C113: 2017-12-28 | D113: =IF($C$6=7,VLOOKUP(B113,Calculations!$BL$3:$BM$55,2,FALSE),VLOOKUP($A113,Calculations!$BI$3:$BN$400,5,FALSE)) -> 43.79 | E113: 6.55 | F113: =MAX(0,'Perry et al-2015'!$K$11*(E113-'Perry et al-2015'!$K$13)*(1-EXP('Perry et al-2015'!$K$12*(E113-'Perry et al-2015'!$K$15)))) -> 1.589811017 | G113: =IF($C113<$AE$5,0,IF($C112<$AE$5,VLOOKUP(ROUND(MIN('Heming-1982'!$C$4,MAX('Heming-1982'!$C$3,$E113)),0),'Heming-1982'!$C$6:$D$9,2),($G112^'Perry et al-2015'!$K$10+$F113*'Perry et al-2015'!$K$10*$C$6/100)^(1/'Perry et al-2015'!$K$10))) -> 0.702040473 | H113: =IF($C113<$AE$7,0,IF($C112<$AE$7,VLOOKUP(ROUND(MIN('Heming-1982'!$C$4,MAX('Heming-1982'!$C$3,$E113)),0),'Heming-1982'!$C$6:$D$9,2),($H112^'Perry et al-2015'!$K$10+$F113*'Perry et al-2015'!$K$10*$C$6/100)^(1/'Perry et al-2015'!$K$10))) -> 0 | I113: =IF($C113<$AE$9,0,IF($C112<$AE$9,VLOOKUP(ROUND(MIN('Heming-1982'!$C$4,MAX('Heming-1982'!$C$3,Calculations!$E113)),0),'Heming-1982'!$C$6:$D$9,2),($I112^'Perry et al-2015'!$K$10+$F113*'Perry et al-2015'!$K$10*$C$6/100)^(1/'Perry et al-2015'!$K$10))) -> 0 | J113: =IF($C$6=7,VLOOKUP($B113,Calculations!$BL$3:$BM$55,2,FALSE),VLOOKUP($A113,Calculations!$BI$3:$BN$400,6,FALSE)) -> 42.29 | K113: 5.716666667 | L113: =MAX(0,'Perry et al-2015'!$K$11*(K113-'Perry et al-2015'!$K$13)*(1-EXP('Perry et al-2015'!$K$12*(K113-'Perry et al-2015'!$K$15)))) -> 1.264527932 | M113: =IF($C113<$AF$5,0,IF($C112<$AF$5,VLOOKUP(ROUND(MIN('Heming-1982'!$C$4,MAX('Heming-1982'!$C$3,$K113)),0),'Heming-1982'!$C$6:$D$9,2),(M112^'Perry et al-2015'!$K$10+$L113*'Perry et al-2015'!$K$10*$C$6/100)^(1/'Perry et al-2015'!$K$10))) -> 0 | N113: =IF($C113<$AF$7,0,IF($C112<$AF$7,VLOOKUP(ROUND(MIN('Heming-1982'!$C$4,MAX('Heming-1982'!$C$3,$K113)),0),'Heming-1982'!$C$6:$D$9,2),(N112^'Perry et al-2015'!$K$10+$L113*'Perry et al-2015'!$K$10*$C$6/100)^(1/'Perry et al-2015'!$K$10))) -> 0 | O113: =IF($C113<$AF$9,0,IF($C112<$AF$9,VLOOKUP(ROUND(MIN('Heming-1982'!$C$4,MAX('Heming-1982'!$C$3,$K113)),0),'Heming-1982'!$C$6:$D$9,2),(O112^'Perry et al-2015'!$K$10+$L113*'Perry et al-2015'!$K$10*$C$6/100)^(1/'Perry et al-2015'!$K$10))) -> 0 | AH113: 2017-12-28 | AI113: 52 | AJ113: 6.55 | AK113: 964.0388889 | AL113: 00:00:00 | AM113: 748.85 | AN113: 00:00:00 | AO113: 418.85 | AP113: 00:00:00 | AQ113: 5.716666667 | AR113: 825.7777778 | AS113: 00:00:00 | AT113: 639.4111111 | AU113: 00:00:00 | AV113: 344.2055556 | AW113: 00:00:00 | BI113: 421 | BJ113: 4 | BK113: =BK112+Calculations!$C$6 -> 2017-04-21 | BL113: 16 | BM113: =RANDBETWEEN(VLOOKUP(BJ113,Calculations!$BB$6:$BE$17,4,FALSE)*100,VLOOKUP(BJ113,Calculations!$BB$6:$BE$17,3,FALSE)*100)/100 -> 44.98 | BN113: =RANDBETWEEN(VLOOKUP(BJ113,Calculations!$BB$6:$BH$17,7,FALSE)*100,VLOOKUP(BJ113,Calculations!$BB$6:$BH$17,6,FALSE)*100)/100 -> 43
